Workbook

Sheet Menu
B5: 2012 | C5: 2013 | D5: 2014 | E5: 2015 | F5: 2016 | G5: 2017 | H5: 2018 | I5: 2019 | J5: 2020 | K5: 2021 | L5: 2022 | M5: 2023 | N5: 2024 | O5: 2025

Sheet 1Q12
A7: Financing and debentures (R$ million) | D7: Index/ Currency ¹ | E7: Average weighted interest rate (% p.y.) ² | F7: Balance 4 Mar-12 | G7: Maturity | H7: Amortization Profile | N7: Transaction costs / fair value adjustment 4
H8: up to 12 months | I8: from 12 to 24 | J8: from 24 to 36 | K8: from 36 to 48 | L8: from 48 to 60 | M8: > 60 months
B9: Foreing Currency
C11: Notes | D11: US$ | E11: 7.2 | F11: 461.332 | G11: 2015-12-20 | H11: 9.174 | I11: 0 | J11: 0 | K11: 455.525 | L11: 0 | M11: 0 | N11: -3.367
C12: Advances on Foreign Exchange Contracts (ACC) | D12: US$ | E12: 2 | F12: 114.242 | G12: < 341 days | H12: 114.242 | I12: 0 | J12: 0 | K12: 0 | L12: 0 | M12: 0 | N12: -
C13: Foreign loan | D13: US$ + LIBOR | E13: 1 | F13: 109.222 | G13: 2014-06-30 | H13: 0.514 | I13: 0 | J13: 109.326 | K13: 0 | L13: 0 | M13: 0 | N13: -0.619
C14: BNDES | D14: US$ | E14: 5.6 | F14: 66.004 | G14: 2012 to 2018 | H14: 19.6 | I14: 18.002 | J14: 13.995 | K14: 10.237 | L14: 4.013 | M14: 0.156 | N14: -
C15: Advances on Foreign Exchange Contracts (ACE) | D15: US$ | E15: 1.8 | F15: 56.522 | G15: < 109 days | H15: 56.522 | I15: 0 | J15: 0 | K15: 0 | L15: 0 | M15: 0 | N15: -
C16: Financial institutions | D16: MX$ + TIIE | E16: 1.8 | F16: 31.38 | G16: 2012 to 2016 | H16: 11.395 | I16: 6.788 | J16: 3.446 | K16: 2.926 | L16: 6.826 | M16: 0 | N16: -
C17: Financial institutions | D17: Bs | E17: 12.9 | F17: 29.655 | G17: 2012 to 2014 | H17: 21.156 | I17: 4.251 | J17: 4.248 | K17: 0 | L17: 0 | M17: 0 | N17: -
C18: Import Financing (FINIMP) | D18: US$ | E18: 7 | F18: 0.868 | G18: 2012-12-17 | H18: 0.868 | I18: 0 | J18: 0 | K18: 0 | L18: 0 | M18: 0 | N18: -
C20: Sub Total foreing currency | F20: 869.224 | H20: 233.471 | I20: 29.041 | J20: 131.015 | K20: 468.688 | L20: 10.839 | M20: 0.156 | N20: -3.986
B22: Local Currency
C24: Banco do Brasil fixed rate ³ | D24: R$ | E24: 11.9 | F24: 1846.914 | G24: 2012 to 2015 | H24: 694.24 | I24: 367.551 | J24: 368.027 | K24: 368.333 | L24: 0 | M24: 0 | N24: 48.764
C25: BNDES | D25: TJLP | E25: 3 | F25: 840.861 | G25: 2012 to 2019 | H25: 361.126 | I25: 158.255 | J25: 125.432 | K25: 100.963 | L25: 61.291 | M25: 33.897 | N25: -0.102
C26: Debentures - 4th issuance | D26: CDI | E26: 108.2 | F26: 793.0164982 | G26: 2015-01-01 | H26: 3.120752 | I26: 0 | J26: 800 | K26: 0 | L26: 0 | M26: 0 | N26: -10.10425379
C27: Banco do Brasil floating rate | D27: CDI | E27: 101.3 | F27: 573.627 | G27: 2014-03-24 | H27: 0 | I27: 579.272 | J27: 0 | K27: 0 | L27: 0 | M27: 0 | N27: -5.646
C28: Debentures - 3rd issuance | D28: CDI | E28: 108.5 | F28: 206.1589732 | G28: 2012-01-01 | H28: 207.083573 | I28: 0 | J28: 0 | K28: 0 | L28: 0 | M28: 0 | N28: -0.924599822
C29: Loan - MaxFácil | D29: CDI | E29: 100 | F29: 88.489 | G29: 2012-05-02 | H29: 88.489 | I29: 0 | J29: 0 | K29: 0 | L29: 0 | M29: 0 | N29: -
C30: Banco do Nordeste do Brasil | D30: R$ | E30: 8.5 | F30: 82.796 | G30: 2018-06-07 | H30: 13.688 | I30: 13.163 | J30: 13.163 | K30: 13.163 | L30: 13.163 | M30: 16.454 | N30: -
C31: BNDES | D31: R$ | E31: 5.8 | F31: 55.546 | G31: 2015 to 2021 | H31: 13.14 | I31: 13.273 | J31: 13.273 | K31: 10.739 | L31: 4.852 | M31: 0.269 | N31: -
C32: Financial leasing | D32: IGPM | E32: 5.6 | F32: 42.045 | G32: 2031-04-06 | H32: 1.435 | I32: 1.354 | J32: 1.43 | K32: 1.51 | L32: 1.595 | M32: 34.721 | N32: -
C33: Research and projects financing (FINEP) | D33: TJLP | E33: 0.5 | F33: 39.863 | G33: 2013 to 2014 | H33: 23.178 | I33: 16.686 | J33: 0 | K33: 0 | L33: 0 | M33: 0 | N33: -
C34: Research and projects financing (FINEP) | D34: R$ | E34: 4 | F34: 10.9 | G34: 2019 to 2021 | H34: 0.019 | I34: 0 | J34: 1.123 | K34: 1.827 | L34: 1.827 | M34: 6.104 | N34: -
C35: Agency for Financing Machinery and Equipment (FINAME) | D35: TJLP | E35: 2.7 | F35: 1.683 | G35: 2012 to 2013 | H35: 1.454 | I35: 0.229 | J35: 0 | K35: 0 | L35: 0 | M35: 0 | N35: -
C36: Financial leasing fixed rate | D36: R$ | E36: 14.7 | F36: 1.088 | G36: 2012 to 2014 | H36: 0.776 | I36: 0.283 | J36: 0.029 | K36: 0 | L36: 0 | M36: 0 | N36: -
C38: Sub Total local currency | F38: 4582.988 | H38: 1407.749325 | I38: 1150.066 | J38: 1322.477 | K38: 496.535 | L38: 82.728 | M38: 91.445 | N38: 31.98714639
C40: Unrealized losses on swaps transactions | F40: 21.844 | H40: 21.844 | I40: 0 | J40: 0 | K40: 0 | L40: 0 | M40: 0
B42: Total | F42: 5474.057 | H42: 1663.064325 | I42: 1179.107 | J42: 1453.492 | K42: 965.223 | L42: 93.567 | M42: 91.601 | N42: 28.00114639
C44: Transaction costs and fair value adjustment 4 | H44: -5.728 | I44: 2.106 | J44: 11.37 | K44: 20.255 | L44: 0 | M44: 0 | N44: 28.00114639
B46: Total | F46: 5474.057 | H46: 1657.335 | I46: 1181.213 | J46: 1464.862 | K46: 985.478 | L46: 93.567 | M46: 91.602
B48: 1. | C48: Libor = London Interbank Offered Rate / MX$ = Mexican Peso / TIIE = Mexican Interbank Interest Rate Even / Bs = Bolivar Forte from Venezuela / CDI = interbank certificate of deposit rate / TJLP = basic financing cost of BNDES (set by National Monetary Council. On March 31, 2012, TJLP was fixed at 6% p.a. / IGPM = General Index of Market Prices
B50: 2. | C50: The company contracted hedging against foreign exchange exposure and interest rate for some debt.
B52: 3. | C52: For this loan, a hedging instrument was hired with the objective of swapping the fixed to floating rate, equivalent to 98,8% of CDI.
B54: 4. | C54: As provided in IAS 39, transaction costs incurred in obtaining financial resources were deducted from the value of the financial instrument, and as provided in Resolution CVM 604/09, loans was recognised at fair value. The amount to be appropriated to income in the future is as follows:
C57: Transaction costs | D57: Amount to be appropriated | E57: Profile
E58: up to 12 months | F58: from 12 to 24 | G58: from 24 to 36 | H58: from 36 to 48 | I58: from 48 to 60 | J58: > 60 months
C59: Debentures | D59: -11.029 | E59: -4.546 | F59: -3.029 | G59: -3.454 | H59: 0 | I59: 0 | J59: 0
C60: Banco do Brasil | D60: -21.658 | E60: -13.67 | F60: -5.767 | G60: -1.916 | H60: -0.306 | I60: 0 | J60: 0
C61: Notes | D61: -3.367 | E61: -0.898 | F61: -0.898 | G61: -0.898 | H61: -0.673 | I61: 0 | J61: 0
C62: Others | D62: -0.72 | E62: -0.258 | F62: -0.294 | G62: -0.164 | H62: -0.004 | I62: 0 | J62: 0
C64: Total | D64: -36.774 | E64: -19.372 | F64: -9.988 | G64: -6.432 | H64: -0.983 | I64: 0 | J64: -
C66: As provided in Resolution CVM 604/09 (November 19, 2009), the amortization of fair value adjustment is as follows:
C68: Fair value adjustment | D68: Amount to be amortized | E68: Profile
E69: up to 12 months | F69: from 12 to 24 | G69: from 24 to 36 | H69: from 36 to 48 | I69: from 48 to 60 | J69: > 60 months
C70: Banco do Brasil | D70: 64.776 | E70: 13.644 | F70: 12.093 | G70: 17.802 | H70: 21.238 | I70: 0 | J70: 0
C72: Total | D72: 64.776 | E72: 13.644 | F72: 12.093 | G72: 17.802 | H72: 21.238 | I72: 0 | J72: 0

Sheet 2Q12
A7: Financing and debentures (R$ million) | D7: Index/ Currency ¹ | E7: Average weighted interest rate (% p.y.) ² | F7: Balance 4 Jun-12 | G7: Maturity | H7: Amortization Profile | N7: Transaction costs / fair value adjustment 4
H8: up to 12 months | I8: from 12 to 24 | J8: from 24 to 36 | K8: from 36 to 48 | L8: from 48 to 60 | M8: > 60 months
B9: Foreing Currency
C11: Notes | D11: US$ | E11: 7.2 | F11: 502.857 | G11: 2015-12-20 | H11: 1.018 | I11: 0 | J11: 0 | K11: 505.325 | L11: 0 | M11: 0 | N11: -3.486
C12: Advances on Foreign Exchange Contracts (ACC) | D12: US$ | E12: 2.2 | F12: 121.369 | G12: < 356 days | H12: 121.369 | I12: 0 | J12: 0 | K12: 0 | L12: 0 | M12: 0 | N12: -
C13: Foreign loan | D13: US$ + LIBOR | E13: 1 | F13: 120.688 | G13: 2014-06-30 | H13: 0.012 | I13: 121.278 | J13: 0 | K13: 0 | L13: 0 | M13: 0 | N13: -0.601
C14: BNDES | D14: US$ | E14: 5.5 | F14: 70.797 | G14: 2012 to 2018 | H14: 22.114 | I14: 19.972 | J14: 15.086 | K14: 10.727 | L14: 2.633 | M14: 0.265 | N14: -
C15: Advances on Foreign Exchange Contracts (ACE) | D15: US$ | E15: 1.6 | F15: 50.821 | G15: < 111 days | H15: 50.821 | I15: 0 | J15: 0 | K15: 0 | L15: 0 | M15: 0 | N15: -
C16: Financial institutions | D16: USD | E16: 2.4 | F16: 41.371 | G16: 2017-04-11 | H16: 0.221 | I16: 0 | J16: 0 | K16: 0 | L16: 41.15 | M16: 0 | N16: -
C17: Financial institutions | D17: Bs | E17: 12.6 | F17: 36.933 | G17: 2012 to 2014 | H17: 27.509 | I17: 4.712 | J17: 4.712 | K17: 0 | L17: 0 | M17: 0 | N17: -
C18: Financial institutions | D18: MX$ + TIIE | E18: 1.4 | F18: 34.676 | G18: 2014 a 2016 | H18: 14.049 | I18: 7.193 | J18: 3.1 | K18: 3.101 | L18: 7.234 | M18: 0 | N18: -
C19: Import Financing (FINIMP) | D19: US$ | E19: 7 | F19: 0.98 | G19: 2012-12-17 | H19: 0.98 | I19: 0 | J19: 0 | K19: 0 | L19: 0 | M19: 0 | N19: -
C21: Sub Total foreing currency | F21: 980.492 | H21: 238.093 | I21: 153.155 | J21: 22.898 | K21: 519.153 | L21: 51.017 | M21: 0.265 | N21: -4.087
B23: Local Currency
C25: Banco do Brasil fixed rate ³ | D25: R$ | E25: 11.9 | F25: 1857.464 | G25: 2013 to 2015 | H25: 1019.343 | I25: 378.618 | J25: 378.976 | K25: 0 | L25: 0 | M25: 0 | N25: 80.528
C26: Debentures - 4th issuance | D26: CDI | E26: 108.2 | F26: 811.8947282 | G26: 2015-01-01 | H26: 21.301872 | I26: 0 | J26: 800 | K26: 0 | L26: 0 | M26: 0 | N26: -9.407143837
C27: BNDES | D27: TJLP | E27: 2.8 | F27: 778.319 | G27: 2012 to 2019 | H27: 287.249 | I27: 161.459 | J27: 132.362 | K27: 104.944 | L27: 63.128 | M27: 29.265 | N27: -0.087
C28: Banco do Brasil floating rate | D28: CDI | E28: 101.4 | F28: 643.49 | G28: 2014-04-15 | H28: 0 | I28: 648.893 | J28: 0 | K28: 0 | L28: 0 | M28: 0 | N28: -5.403
C29: Debentures - 3rd issuance | D29: CDI | E29: 108.5 | F29: 211.1516426 | G29: 2012-01-01 | H29: 211.7824958 | I29: 0 | J29: 0 | K29: 0 | L29: 0 | M29: 0 | N29: -0.630853266
C30: Loan - MaxFácil | D30: CDI | E30: 100 | F30: 90.338 | G30: 2012-07-02 | H30: 90.338 | I30: 0 | J30: 0 | K30: 0 | L30: 0 | M30: 0 | N30: -
C31: Banco do Nordeste do Brasil | D31: R$ | E31: 8.5 | F31: 79.463 | G31: 2018-06-07 | H31: 13.646 | I31: 13.163 | J31: 13.163 | K31: 13.163 | L31: 13.163 | M31: 13.163 | N31: -
C32: BNDES | D32: R$ | E32: 5.8 | F32: 52.28 | G32: 2015 to 2021 | H32: 13.192 | I32: 13.273 | J32: 13.182 | K32: 9.12 | L32: 3.311 | M32: 0.202 | N32: -
C33: Financial leasing | D33: IGPM | E33: 5.6 | F33: 43.083 | G33: 2031-04-06 | H33: 1.498 | I33: 1.417 | J33: 1.497 | K33: 1.581 | L33: 1.669 | M33: 35.421 | N33: -
C34: Research and projects financing (FINEP) | D34: TJLP | E34: 0.4 | F34: 34.074 | G34: 2013 to 2014 | H34: 22.591 | I34: 11.483 | J34: 0 | K34: 0 | L34: 0 | M34: 0 | N34: -
C35: Research and projects financing (FINEP) | D35: R$ | E35: 4 | F35: 10.899 | G35: 2019 to 2021 | H35: 0.018 | I35: 0.086 | J35: 1.494 | K35: 1.827 | L35: 1.827 | M35: 5.648 | N35: -
C36: Agency for Financing Machinery and Equipment (FINAME) | D36: TJLP | E36: 2.8 | F36: 1.26 | G36: 2012 to 2013 | H36: 1.213 | I36: 0.047 | J36: 0 | K36: 0 | L36: 0 | M36: 0 | N36: -
C37: Financial leasing fixed rate | D37: R$ | E37: 14.7 | F37: 0.881 | G37: 2012 to 2014 | H37: 0.693 | I37: 0.188 | J37: 0 | K37: 0 | L37: 0 | M37: 0 | N37: -
C39: Sub Total local currency | F39: 4614.599 | H39: 1682.865368 | I39: 1228.627 | J39: 1340.674 | K39: 130.635 | L39: 83.098 | M39: 83.699 | N39: 65.0000029
C41: Unrealized losses on swaps transactions | F41: 10.926 | H41: 10.927 | I41: 0 | J41: 0 | K41: 0 | L41: 0 | M41: 0
B43: Total | F43: 5606.017 | H43: 1931.885368 | I43: 1381.782 | J43: 1363.572 | K43: 649.788 | L43: 134.115 | M43: 83.964 | N43: 60.9130029
C45: Transaction costs and fair value adjustment 4 | H45: 14.492 | I45: 16.456 | J45: 30.462 | K45: -0.498 | L45: 0 | M45: 0 | N45: 60.9130029
B47: Total | F47: 5606.017 | H47: 1946.376 | I47: 1398.237 | J47: 1394.035 | K47: 649.29 | L47: 134.115 | M47: 83.965
B49: 1. | C49: Libor = London Interbank Offered Rate / MX$ = Mexican Peso / TIIE = Mexican Interbank Interest Rate Even / Bs = Bolivar Forte from Venezuela / CDI = interbank certificate of deposit rate / TJLP = basic financing cost of BNDES (set by National Monetary Council. On June 30, 2012, TJLP was fixed at 6% p.a. / IGPM = General Index of Market Prices
B51: 2. | C51: The company contracted hedging against foreign exchange exposure and interest rate for some debt.
B53: 3. | C53: For this loan, a hedging instrument was hired with the objective of swapping the fixed to floating rate, equivalent to 98% of CDI.
B55: 4. | C55: As provided in IAS 39, transaction costs incurred in obtaining financial resources were deducted from the value of the financial instrument, and as provided in Resolution CVM 604/09, loans was recognised at fair value. The amount to be appropriated to income in the future is as follows:
C58: Transaction costs | D58: Amount to be appropriated | E58: Profile
E59: up to 12 months | F59: from 12 to 24 | G59: from 24 to 36 | H59: from 36 to 48 | I59: from 48 to 60 | J59: > 60 months
C60: Banco do Brasil | D60: -19.343 | E60: -11.185 | F60: -6.264 | G60: -1.894 | H60: 0 | I60: 0 | J60: 0
C61: Debentures | D61: -10.038 | E61: -3.75 | F61: -3.528 | G61: -2.76 | H61: 0 | I61: 0 | J61: 0
C62: Notes | D62: -3.486 | E62: -0.996 | F62: -0.996 | G62: -0.996 | H62: -0.498 | I62: 0 | J62: 0
C63: Others | D63: -0.689 | E63: -0.313 | F63: -0.298 | G63: -0.078 | H63: 0 | I63: 0 | J63: 0
C65: Total | D65: -33.556 | E65: -16.244 | F65: -11.086 | G65: -5.728 | H65: -0.498 | I65: 0 | J65: 0
C67: As provided in Resolution CVM 604/09 (November 19, 2009), the amortization of fair value adjustment is as follows:
C69: Fair value adjustment | D69: Amount to be amortized | E69: Profile
E70: up to 12 months | F70: from 12 to 24 | G70: from 24 to 36 | H70: from 36 to 48 | I70: from 48 to 60 | J70: > 60 months
C71: Banco do Brasil | D71: 94.468 | E71: 30.735 | F71: 27.543 | G71: 36.191 | H71: 0 | I71: 0 | J71: 0
C73: Total | D73: 94.468 | E73: 30.735 | F73: 27.543 | G73: 36.191 | H73: 0 | I73: 0 | J73: 0

Sheet 3Q12
A7: Financing and debentures (R$ million) | D7: Index/ Currency ¹ | E7: Average weighted interest rate (% p.y.) ² | F7: Balance 4 Sep-12 | G7: Maturity | H7: Amortization Profile | N7: Transaction costs / fair value adjustment 4
H8: up to 12 months | I8: from 12 to 24 | J8: from 24 to 36 | K8: from 36 to 48 | L8: from 48 to 60 | M8: > 60 months
B9: Foreing Currency
C11: Notes | D11: US$ | E11: 7.2 | F11: 514.621 | G11: 2015-12-20 | H11: 10.224 | I11: 0 | J11: 0 | K11: 507.65 | L11: 0 | M11: 0 | N11: -3.252
C12: Foreign loan | D12: US$ + LIBOR | E12: 1 | F12: 121.85 | G12: 2014-06-30 | H12: 0.552 | I12: 121.836 | J12: 0 | K12: 0 | L12: 0 | M12: 0 | N12: -0.538
C13: Advances on Foreign Exchange Contracts (ACC) | D13: US$ | E13: 2.2 | F13: 98.931 | G13: < 319 days | H13: 98.931 | I13: 0 | J13: 0 | K13: 0 | L13: 0 | M13: 0 | N13: -
C14: Advances on Foreign Exchange Contracts (ACE) | D14: US$ | E14: 1.4 | F14: 74.951 | G14: < 116 days | H14: 74.951 | I14: 0 | J14: 0 | K14: 0 | L14: 0 | M14: 0 | N14: -
C15: BNDES | D15: US$ | E15: 5.5 | F15: 63.393 | G15: 2012 to 2018 | H15: 21.126 | I15: 18.377 | J15: 13.817 | K15: 8.834 | L15: 1.042 | M15: 0.198 | N15: -
C16: Financial institutions | D16: US$ | E16: 2.4 | F16: 41.024 | G16: 2017-04-11 | H16: 0.463 | I16: 0 | J16: 0 | K16: 0 | L16: 40.561 | M16: 0 | N16: -
C17: Financial institutions | D17: Bs | E17: 12.1 | F17: 39.472 | G17: 2012 to 2014 | H17: 25.27 | I17: 7.101 | J17: 4.734 | K17: 2.367 | L17: 0 | M17: 0 | N17: -
C18: Financial institutions | D18: MX$ + TIIE | E18: 1.3 | F18: 38.222 | G18: 2014 to 2016 | H18: 19.812 | I18: 5.967 | J18: 3.246 | K18: 9.198 | L18: 0 | M18: 0 | N18: -
C19: Import Financing (FINIMP) | D19: US$ | E19: 7 | F19: 1.002 | G19: 2012-12-17 | H19: 1.002 | I19: 0 | J19: 0 | K19: 0 | L19: 0 | M19: 0 | N19: -
C21: Sub Total foreing currency | F21: 993.467 | H21: 252.331 | I21: 153.281 | J21: 21.797 | K21: 528.049 | L21: 41.603 | M21: 0.198 | N21: -3.79
B23: Local Currency
C25: Banco do Brasil fixed rate ³ | D25: R$ | E25: 11.9 | F25: 1901.259 | G25: 2013 to 2015 | H25: 1048.236 | I25: 389.634 | J25: 390.049 | K25: 0 | L25: 0 | M25: 0 | N25: 73.34
C26: Debentures - 4th issuance | D26: CDI | E26: 108.2 | F26: 829.6958499 | G26: 2015-01-01 | H26: 38.340128 | I26: 0 | J26: 800 | K26: 0 | L26: 0 | M26: 0 | N26: -8.644278119
C27: BNDES | D27: TJLP | E27: 2.6 | F27: 685.695 | G27: 2012 to 2019 | H27: 216.121 | I27: 159.5 | J27: 131.215 | K27: 100.436 | L27: 58.506 | M27: 19.99 | N27: -0.074
C28: Banco do Brasil floating rate | D28: CDI | E28: 101.4 | F28: 656.794 | G28: 2014-04-15 | H28: 0 | I28: 661.498 | J28: 0 | K28: 0 | L28: 0 | M28: 0 | N28: -4.704
C29: Debentures - 3rd issuance | D29: CDI | E29: 108.5 | F29: 215.8634402 | G29: 2012-01-01 | H29: 216.186263 | I29: 0 | J29: 0 | K29: 0 | L29: 0 | M29: 0 | N29: -0.3228228415
C30: Banco do Nordeste do Brasil | D30: R$ | E30: 8.5 | F30: 122.034 | G30: 2018 to 2021 | H30: 13.832 | I30: 18.873 | J30: 18.873 | K30: 18.873 | L30: 18.873 | M30: 32.71 | N30: -
C31: Loan - MaxFácil | D31: CDI | E31: 100 | F31: 92.068 | G31: 2012-10-03 | H31: 92.068 | I31: 0 | J31: 0 | K31: 0 | L31: 0 | M31: 0 | N31: -
C32: BNDES | D32: R$ | E32: 5.8 | F32: 49.031 | G32: 2015 to 2021 | H32: 13.243 | I32: 13.278 | J32: 12.961 | K32: 7.635 | L32: 1.779 | M32: 0.135 | N32: -
C33: Financial leasing | D33: IGPM | E33: 5.6 | F33: 42.753 | G33: 2031-04-06 | H33: 1.516 | I33: 1.437 | J33: 1.517 | K33: 1.602 | L33: 1.692 | M33: 34.989 | N33: -
C34: Research and projects financing (FINEP) | D34: TJLP | E34: 0.3 | F34: 29.266 | G34: 2013 to 2014 | H34: 21.726 | I34: 6.61 | J34: 0.192 | K34: 0.192 | L34: 0.192 | M34: 0.353 | N34: -
C35: Research and projects financing (FINEP) | D35: R$ | E35: 4 | F35: 16.559 | G35: 2019 to 2021 | H35: 0.027 | I35: 0.343 | J35: 2.359 | K35: 2.624 | L35: 2.624 | M35: 8.582 | N35: -
C36: Agency for Financing Machinery and Equipment (FINAME) | D36: TJLP | E36: 2.8 | F36: 0.837 | G36: 2012 to 2013 | H36: 0.837 | I36: 0 | J36: 0 | K36: 0 | L36: 0 | M36: 0 | N36: -
C37: Financial leasing fixed rate | D37: R$ | E37: 14.7 | F37: 0.705 | G37: 2013 to 2014 | H37: 0.628 | I37: 0.077 | J37: 0 | K37: 0 | L37: 0 | M37: 0 | N37: -
C39: Sub Total local currency | F39: 4642.56 | H39: 1662.760391 | I39: 1251.25 | J39: 1357.166 | K39: 131.362 | L39: 83.666 | M39: 96.759 | N39: 59.59489904
C41: Unrealized losses on swaps transactions | F41: 6.541 | H41: 6.541 | I41: 0 | J41: 0 | K41: 0 | L41: 0 | M41: 0
B43: Total | F43: 5642.567 | H43: 1921.632391 | I43: 1404.531 | J43: 1378.963 | K43: 659.411 | L43: 125.269 | M43: 96.957 | N43: 55.80489904
C45: Transaction costs and fair value adjustment 4 | H45: 7.979 | I45: 15.835 | J45: 32.243 | K45: -0.25 | L45: 0 | M45: 0 | N45: 55.80489904
B47: Total | F47: 5642.567 | H47: 1929.609 | I47: 1420.365 | J47: 1411.204 | K47: 659.162 | L47: 125.27 | M47: 96.957
B49: 1. | C49: Libor = London Interbank Offered Rate / MX$ = Mexican Peso / TIIE = Mexican Interbank Interest Rate Even / Bs = Bolivar Forte from Venezuela / CDI = interbank certificate of deposit rate / TJLP = basic financing cost of BNDES (set by National Monetary Council. On September 30, 2012, TJLP was fixed at 5,5% p.a. / IGPM = General Index of Market Prices
B51: 2. | C51: The company contracted hedging against foreign exchange exposure and interest rate for some debt.
B53: 3. | C53: For this loan, a hedging instrument was hired with the objective of swapping the fixed to floating rate, equivalent to 98% of CDI.
B55: 4. | C55: As provided in IAS 39, transaction costs incurred in obtaining financial resources were deducted from the value of the financial instrument, and as provided in Resolution CVM 604/09, loans was recognised at fair value. The amount to be appropriated to income in the future is as follows:
C58: Transaction costs | D58: Amount to be appropriated | E58: Profile
E59: up to 12 months | F59: from 12 to 24 | G59: from 24 to 36 | H59: from 36 to 48 | I59: from 48 to 60 | J59: > 60 months
C60: Banco do Brasil | D60: -16.411 | E60: -10.089 | F60: -4.923 | G60: -1.399 | H60: 0 | I60: 0 | J60: 0
C61: Debentures | D61: -8.966 | E61: -3.551 | F61: -3.615 | G61: -1.8 | H61: 0 | I61: 0 | J61: 0
C62: Notes | D62: -3.253 | E62: -1.001 | F62: -1.001 | G62: -1.001 | H62: -0.25 | I62: 0 | J62: 0
C63: Others | D63: -0.611 | E63: -0.31 | F63: -0.239 | G63: -0.062 | H63: 0 | I63: 0 | J63: 0
C65: Total | D65: -29.241 | E65: -14.951 | F65: -9.778 | G65: -4.262 | H65: -0.25 | I65: 0 | J65: 0
C67: As provided in Resolution CVM 604/09 (November 19, 2009), the amortization of fair value adjustment is as follows:
C69: Fair value adjustment | D69: Amount to be amortized | E69: Profile
E70: up to 12 months | F70: from 12 to 24 | G70: from 24 to 36 | H70: from 36 to 48 | I70: from 48 to 60 | J70: > 60 months
C71: Banco do Brasil | D71: 85.047 | E71: 22.93 | F71: 25.612 | G71: 36.505 | H71: 0 | I71: 0 | J71: 0
C73: Total | D73: 85.047 | E73: 22.93 | F73: 25.612 | G73: 36.505 | H73: 0 | I73: 0 | J73: 0

Sheet 4Q12
A7: Financing and debentures (R$ million) | D7: Index/ Currency ¹ | E7: Average weighted interest rate (% p.y.) ² | F7: Balance 4 Dec-12 | G7: Maturity | H7: Amortization Profile | N7: Transaction costs / fair value adjustment 4
H8: up to 12 months | I8: from 12 to 24 | J8: from 24 to 36 | K8: from 36 to 48 | L8: from 48 to 60 | M8: > 60 months
B9: Foreing Currency
C11: Notes | D11: US$ | E11: 7.2 | F11: 508.883 | G11: 2015-12-20 | H11: 1.029 | I11: 0 | J11: 510.875 | K11: 0 | L11: 0 | M11: 0 | N11: -3.021
C12: Foreign loan | D12: US$ + LIBOR | E12: 0.8 | F12: 159.55 | G12: 2015-11-19 | H12: 0.22 | I12: 0 | J12: 163.48 | K12: 0 | L12: 0 | M12: 0 | N12: -4.15
C13: Foreign loan | D13: US$ + LIBOR | E13: 1 | F13: 122.152 | G13: 2014-06-30 | H13: 0.015 | I13: 122.61 | J13: 0 | K13: 0 | L13: 0 | M13: 0 | N13: -0.474
C14: Advances on Foreign Exchange Contracts (ACC) | D14: US$ | E14: 2 | F14: 114.76 | G14: < 350 days | H14: 114.76 | I14: 0 | J14: 0 | K14: 0 | L14: 0 | M14: 0 | N14: -
C15: Financial institutions | D15: US$ | E15: 2.5 | F15: 84.007 | G15: 2013 to 2017 | H15: 38.953 | I15: 4.325 | J15: 0 | K15: 0 | L15: 40.73 | M15: 0 | N15: 0
C16: BNDES | D16: US$ | E16: 5.5 | F16: 59.291 | G16: 2013 to 2020 | H16: 20.82 | I16: 17.353 | J16: 12.983 | K16: 7.001 | L16: 0.623 | M16: 0.51 | N16: -
C17: Advances on Foreign Exchange Contracts (ACE) | D17: US$ | E17: 1.6 | F17: 52.744 | G17: < 87 days | H17: 52.744 | I17: 0 | J17: 0 | K17: 0 | L17: 0 | M17: 0 | N17: -
C18: Financial institutions | D18: US$ + LIBOR | E18: 2 | F18: 40.641 | G18: 2017-10-02 | H18: 0.245 | I18: 0 | J18: 0 | K18: 13.577 | L18: 27.154 | M18: 0 | N18: -0.334
C19: Financial institutions | D19: Bs | E19: 11.3 | F19: 30.194 | G19: 2013 to 2015 | H19: 20.666 | I19: 7.146 | J19: 2.382 | K19: 0 | L19: 0 | M19: 0 | N19: -
C20: Financial institutions | D20: MX$ + TIIE | E20: 1.4 | F20: 25.259 | G20: 2014 to 2016 | H20: 7.539 | I20: 5.355 | J20: 3.225 | K20: 9.14 | L20: 0 | M20: 0 | N20: -
C22: Sub Total foreing currency | F22: 1197.481 | H22: 256.991 | I22: 156.789 | J22: 692.945 | K22: 29.718 | L22: 68.507 | M22: 0.51 | N22: -7.979
B24: Local Currency
C26: Banco do Brasil fixed rate ³ | D26: R$ | E26: 11.9 | F26: 1948.096 | G26: 2013 to 2015 | H26: 1077.948 | I26: 400.972 | J26: 401.445 | K26: 0 | L26: 0 | M26: 0 | N26: 67.731
C27: Debentures - 4th issuance | D27: CDI | E27: 108.2 | F27: 845.8914571 | G27: 2015-03-16 | H27: 53.75312 | I27: 0 | J27: 800 | K27: 0 | L27: 0 | M27: 0 | N27: -7.861662892
C28: BNDES | D28: TJLP | E28: 2.5 | F28: 677.84 | G28: 2013 to 2020 | H28: 180.785 | I28: 156.116 | J28: 138.261 | K28: 104.44 | L28: 63.286 | M28: 35.013 | N28: -0.061
C29: Banco do Brasil floating rate | D29: CDI | E29: 101.4 | F29: 668.9 | G29: 2014-04-15 | H29: 0 | I29: 672.887 | J29: 0 | K29: 0 | L29: 0 | M29: 0 | N29: -3.987
C30: Debentures - 1st issuance IPP | D30: CDI | E30: 107.9 | F30: 602.3282984 | G30: 2017-11-16 | H30: 2.58228 | I30: 0 | J30: 0 | K30: 0 | L30: 600 | M30: 0 | N30: -0.2539815737
C31: Banco do Nordeste do Brasil | D31: R$ | E31: 8.5 | F31: 118.754 | G31: 2018 to 2021 | H31: 15.27 | I31: 18.873 | J31: 18.873 | K31: 18.873 | L31: 18.873 | M31: 27.992 | N31: -
C32: BNDES | D32: R$ | E32: 5.8 | F32: 49.163 | G32: 2015 to 2021 | H32: 13.824 | I32: 13.954 | J32: 12.737 | K32: 7.001 | L32: 1.411 | M32: 0.236 | N32: -
C33: Financial leasing | D33: IGPM | E33: 5.6 | F33: 42.419 | G33: 2031-04-06 | H33: 1.533 | I33: 1.456 | J33: 1.538 | K33: 1.624 | L33: 1.715 | M33: 34.552 | N33: -
C34: Research and projects financing (FINEP) | D34: R$ | E34: 4 | F34: 30.789 | G34: 2019 to 2021 | H34: 0.035 | I34: 1.458 | J34: 4.933 | K34: 4.933 | L34: 4.933 | M34: 14.497 | N34: -
C35: Research and projects financing (FINEP) | D35: TJLP | E35: 0.2 | F35: 23.488 | G35: 2013 to 2014 | H35: 20.87 | I35: 1.737 | J35: 0.192 | K35: 0.192 | L35: 0.192 | M35: 0.305 | N35: -
C36: Agency for Financing Machinery and Equipment (FINAME) | D36: TJLP | E36: 2.8 | F36: 0.51 | G36: 2013-08-15 | H36: 0.51 | I36: 0 | J36: 0 | K36: 0 | L36: 0 | M36: 0 | N36: -
C37: Financial leasing fixed rate | D37: R$ | E37: 14.4 | F37: 0.494 | G37: 2013 to 2014 | H37: 0.441 | I37: 0.053 | J37: 0 | K37: 0 | L37: 0 | M37: 0 | N37: -
C39: Sub Total local currency | F39: 5008.673 | H39: 1367.5514 | I39: 1267.506 | J39: 1377.979 | K39: 137.063 | L39: 690.41 | M39: 112.595 | N39: 55.56735553
C41: Unrealized losses on swaps transactions | F41: 9.699 | H41: 5.94 | I41: 0 | J41: 0 | K41: 0 | L41: 3.759 | M41: 0
B43: Total | F43: 6215.852 | H43: 1630.4824 | I43: 1424.295 | J43: 2070.924 | K43: 166.781 | L43: 762.676 | M43: 113.105 | N43: 47.58835553
C45: Transaction costs and fair value adjustment 4 | H45: -2.527 | I45: 16.179 | J45: 34.191 | K45: -0.133 | L45: -0.121 | M45: 0 | N45: 47.58835553
B47: Total | F47: 6215.852 | H47: 1627.955 | I47: 1440.473 | J47: 2105.115 | K47: 166.648 | L47: 762.556 | M47: 113.105
B49: 1. | C49: Libor = London Interbank Offered Rate / MX$ = Mexican Peso / TIIE = Mexican Interbank Interest Rate Even / Bs = Bolivar Forte from Venezuela / CDI = interbank certificate of deposit rate / TJLP = basic financing cost of BNDES (set by National Monetary Council. On December 30, 2012, TJLP was fixed at 5,5% p.a. / IGPM = General Index of Market Prices
B51: 2. | C51: The company contracted hedging against foreign exchange exposure and interest rate for some debt.
B53: 3. | C53: For this loan, a hedging instrument was hired with the objective of swapping the fixed to floating rate, equivalent to 98.8% of CDI.
B55: 4. | C55: As provided in IAS 39, transaction costs incurred in obtaining financial resources were deducted from the value of the financial instrument, and as provided in Resolution CVM 604/09, loans was recognised at fair value. The amount to be appropriated to income in the future is as follows:
C58: Transaction costs | D58: Amount to be appropriated | E58: Profile
E59: up to 12 months | F59: from 12 to 24 | G59: from 24 to 36 | H59: from 36 to 48 | I59: from 48 to 60 | J59: > 60 months
C60: Banco do Brasil | D60: -13.315 | E60: -8.915 | F60: -3.528 | G60: -0.872 | H60: 0 | I60: 0 | J60: 0
C61: Debentures | D61: -8.116 | E61: -3.385 | F61: -3.766 | G61: -0.855 | H61: -0.055 | I61: -0.055 | J61: 0
C62: Notes | D62: -3.021 | E62: -1.007 | F62: -1.007 | G62: -1.007 | H62: 0 | I62: 0 | J62: 0
C63: Others | D63: -1.435 | E63: -0.54 | F63: -0.447 | G63: -0.304 | H63: -0.078 | I63: -0.066 | J63: 0
C65: Total | D65: -25.887 | E65: -13.847 | F65: -8.748 | G65: -3.038 | H65: -0.133 | I65: -0.121 | J65: 0
C67: As provided in Resolution CVM 604/09 (November 19, 2009), the amortization of fair value adjustment is as follows:
C69: Fair value adjustment | D69: Amount to be amortized | E69: Profile
E70: up to 12 months | F70: from 12 to 24 | G70: from 24 to 36 | H70: from 36 to 48 | I70: from 48 to 60 | J70: > 60 months
C71: Banco do Brasil | D71: 77.05779608 | E71: 12.283 | F71: 25.858 | G71: 38.917 | H71: 0 | I71: 0 | J71: 0
C72: Financial institutions | D72: -3.583399028 | E72: -0.9630602718 | F72: -0.9322189716 | G72: -1.688119784 | H72: 0 | I72: 0 | J72: 0
C73: Total | D73: 73.47439706 | E73: 11.31993973 | F73: 24.92578103 | G73: 37.22888022 | H73: 0 | I73: 0 | J73: 0

Sheet 1Q13
A7: Financing and debentures (R$ million) | D7: Index/ Currency ¹ | E7: Average weighted interest rate (% p.y.) ² | F7: Balance 4 Mar-13 | G7: Maturity | H7: Amortization Profile | N7: Transaction costs / fair value adjustment 4
H8: up to 12 months | I8: from 12 to 24 | J8: from 24 to 36 | K8: from 36 to 48 | L8: from 48 to 60 | M8: > 60 months
B9: Foreing Currency
C11: Notes | D11: US$ | E11: 7.2 | F11: 510.86 | G11: 2015-12-20 | H11: 10.139 | I11: 0 | J11: 503.45 | K11: 0 | L11: 0 | M11: 0 | N11: -2.729
C12: Foreign loan | D12: US$ + LIBOR | E12: 0.9 | F12: 277.798 | G12: 2014 to 2015 | H12: 0.695 | I12: 120.828 | J12: 161.104 | K12: 0 | L12: 0 | M12: 0 | N12: -4.829
C13: Advances on Foreign Exchange Contracts (ACC) | D13: US$ | E13: 1.7 | F13: 106.838 | G13: < 379 days | H13: 106.838 | I13: 0 | J13: 0 | K13: 0 | L13: 0 | M13: 0 | N13: -
C14: Financial institutions | D14: US$ | E14: 2.3 | F14: 81.885 | G14: 2013 to 2017 | H14: 37.802 | I14: 3.758 | J14: 0 | K14: 0 | L14: 40.325 | M14: 0 | N14: 0
C15: BNDES | D15: US$ | E15: 5.5 | F15: 53.8 | G15: 2013 to 2020 | H15: 20.286 | I15: 15.745 | J15: 11.787 | K15: 4.893 | L15: 0.606 | M15: 0.482 | N15: -
C16: Advances on Foreign Exchange Contracts (ACE) | D16: US$ | E16: 1.6 | F16: 46.26 | G16: < 260 days | H16: 46.26 | I16: 0 | J16: 0 | K16: 0 | L16: 0 | M16: 0 | N16: -
C17: Financial institutions | D17: US$ + LIBOR | E17: 2 | F17: 40.25 | G17: 2017-10-02 | H17: 0.237 | I17: 0 | J17: 0 | K17: 13.442 | L17: 26.884 | M17: 0 | N17: -0.313
C18: Financial institutions | D18: MX$ + TIIE | E18: 1.3 | F18: 25.675 | G18: 2014 to 2016 | H18: 10.529 | I18: 3.955 | J18: 3.358 | K18: 7.834 | L18: 0 | M18: 0 | N18: -
C19: Financial institutions | D19: Bs | E19: 10.7 | F19: 15.954 | G19: 2013 to 2015 | H19: 9.544 | I19: 4.808 | J19: 1.603 | K19: 0 | L19: 0 | M19: 0 | N19: -
C21: Sub Total foreing currency | F21: 1159.319 | H21: 242.33 | I21: 149.094 | J21: 681.302 | K21: 26.169 | L21: 67.815 | M21: 0.482 | N21: -7.871
B23: Local Currency
C25: Banco do Brasil fixed rate ³ | D25: R$ | E25: 12.1 | F25: 1279.032 | G25: 2013 to 2015 | H25: 411.583 | I25: 412.413 | J25: 412.947 | K25: 0 | L25: 0 | M25: 0 | N25: 42.088
C26: Banco do Brasil floating rate | D26: CDI | E26: 102.6 | F26: 1182.614 | G26: 2014 to 2016 | H26: 623.401 | I26: 395.799 | J26: 166.667 | K26: 0 | L26: 0 | M26: 0 | N26: -3.253
C27: Debentures - 4th issuance | D27: CDI | E27: 108.2 | F27: 794.784003 | G27: 2015-03-16 | H27: 1.859632 | I27: 800 | J27: 0 | K27: 0 | L27: 0 | M27: 0 | N27: -7.075628957
C28: BNDES | D28: TJLP | E28: 2.4 | F28: 640.726 | G28: 2013 to 2020 | H28: 181.395 | I28: 150.252 | J28: 133.985 | K28: 94.279 | L28: 53.693 | M28: 27.171 | N28: -0.05
C29: Debentures - 1st issuance IPP | D29: CDI | E29: 107.9 | F29: 612.8402129 | G29: 2017-11-16 | H29: 13.083426 | I29: 0 | J29: 0 | K29: 0 | L29: 600 | M29: 0 | N29: -0.243213071
C30: Banco do Nordeste do Brasil | D30: R$ | E30: 8.5 | F30: 115.442 | G30: 2018 to 2021 | H30: 16.677 | I30: 18.873 | J30: 18.873 | K30: 18.873 | L30: 18.873 | M30: 23.274 | N30: -
C31: BNDES | D31: R$ | E31: 5.8 | F31: 48.186 | G31: 2015 to 2018 | H31: 14.526 | I31: 14.406 | J31: 11.873 | K31: 5.983 | L31: 1.397 | M31: 0 | N31: -
C32: Financial leasing | D32: IGPM | E32: 5.6 | F32: 42.08 | G32: 2031-04-06 | H32: 1.551 | I32: 1.476 | J32: 1.559 | K32: 1.647 | L32: 1.739 | M32: 34.108 | N32: -
C33: Research and projects financing (FINEP) | D33: R$ | E33: 4 | F33: 30.808 | G33: 2019 to 2021 | H33: 0.054 | I33: 2.691 | J33: 4.933 | K33: 4.933 | L33: 4.933 | M33: 13.264 | N33: -
C34: Research and projects financing (FINEP) | D34: TJLP | E34: 0.1 | F34: 17.702 | G34: 2013 to 2014 | H34: 16.725 | I34: 0.144 | J34: 0.192 | K34: 0.192 | L34: 0.192 | M34: 0.256 | N34: -
C35: NCE | D35: R$ | E35: 8 | F35: 16.812 | G35: 2016-03-07 | H35: 0.08625861 | I35: 0 | J35: 17.5 | K35: 0 | L35: 0 | M35: 0 | N35: -0.7740977122
C36: Financial leasing fixed rate | D36: R$ | E36: 13.8 | F36: 0.312 | G36: 2013 to 2014 | H36: 0.283 | I36: 0.029 | J36: 0 | K36: 0 | L36: 0 | M36: 0 | N36: -
C37: Agency for Financing Machinery and Equipment (FINAME) | D37: TJLP | E37: 2.8 | F37: 0.23 | G37: 2013-08-15 | H37: 0.23 | I37: 0 | J37: 0 | K37: 0 | L37: 0 | M37: 0 | N37: -
C40: Sub Total local currency | F40: 4781.568 | H40: 1281.454317 | I40: 1796.083 | J40: 768.529 | K40: 125.907 | L40: 680.827 | M40: 98.073 | N40: 30.69206026
C42: Unrealized losses on swaps transactions | F42: 16.272 | H42: 9.42 | I42: 0 | J42: 6.852 | K42: 0 | L42: 0 | M42: 0
B44: Total | F44: 5957.16 | H44: 1533.204317 | I44: 1945.177 | J44: 1456.683 | K44: 152.076 | L44: 748.642 | M44: 98.555 | N44: 22.82106026
C46: Transaction costs and fair value adjustment 4 | H46: -11.269 | I46: 9.623 | J46: 24.689 | K46: -0.134 | L46: -0.086 | M46: 0 | N46: 22.82106026
B48: Total | F48: 5957.16 | H48: 1521.933 | I48: 1954.801 | J48: 1481.373 | K48: 151.942 | L48: 748.556 | M48: 98.555
B50: 1. | C50: Libor = London Interbank Offered Rate / MX$ = Mexican Peso / TIIE = Mexican Interbank Interest Rate Even / Bs = Bolivar Forte from Venezuela / CDI = interbank certificate of deposit rate / TJLP = basic financing cost of BNDES (set by National Monetary Council. On March 31, 2013, TJLP was fixed at 5% p.a. / IGPM = General Index of Market Prices
B52: 2. | C52: The company contracted hedging against foreign exchange exposure and interest rate for some debt.
B54: 3. | C54: For this loan, a hedging instrument was hired with the objective of swapping the fixed to floating rate, equivalent to 99% of CDI.
B56: 4. | C56: As provided in IAS 39, transaction costs incurred in obtaining financial resources were deducted from the value of the financial instrument, and as provided in Resolution CVM 604/09, loans was recognised at fair value. The amount to be appropriated to income in the future is as follows:
C59: Transaction costs | D59: Amount to be appropriated | E59: Profile
E60: up to 12 months | F60: from 12 to 24 | G60: from 24 to 36 | H60: from 36 to 48 | I60: from 48 to 60 | J60: > 60 months
C61: Banco do Brasil | D61: -10.353 | E61: -7.59 | F61: -2.438 | G61: -0.325 | H61: 0 | I61: 0 | J61: 0
C62: Debentures | D62: -7.319 | E62: -3.499 | F62: -3.67 | G62: -0.052 | H62: -0.056 | I62: -0.04 | J62: 0
C63: Notes | D63: -2.729 | E63: -0.992 | F63: -0.992 | G63: -0.744 | H63: 0 | I63: 0 | J63: 0
C64: Others | D64: -1.284 | E64: -0.534 | F64: -0.385 | G64: -0.241 | H64: -0.077 | I64: -0.046 | J64: 0
C66: Total | D66: -21.684 | E66: -12.615 | F66: -7.485 | G66: -1.363 | H66: -0.134 | I66: -0.086 | J66: 0
C68: As provided in Resolution CVM 604/09 (November 19, 2009), the amortization of fair value adjustment is as follows:
C70: Fair value adjustment | D70: Amount to be amortized | E70: Profile
E71: up to 12 months | F71: from 12 to 24 | G71: from 24 to 36 | H71: from 36 to 48 | I71: from 48 to 60 | J71: > 60 months
C72: Banco do Brasil | D72: 49.18805334 | E72: 2.454 | F72: 18.166 | G72: 28.568 | H72: 0 | I72: 0 | J72: 0
C73: Financial institutions | D73: -4.68242935 | E73: -1.107711007 | F73: -1.058199331 | G73: -2.516519012 | H73: 0 | I73: 0 | J73: 0
C74: Total | D74: 44.50562399 | E74: 1.346288993 | F74: 17.10780067 | G74: 26.05148099 | H74: 0 | I74: 0 | J74: 0

Sheet 2Q13
A7: Financing and debentures (R$ million) | D7: Index/ Currency ¹ | E7: Average weighted interest rate (% p.y.) ² | F7: Balance 4 Jun-13 | G7: Maturity | H7: Amortization Profile | N7: Transaction costs / fair value adjustment 4
H8: up to 12 months | I8: from 12 to 24 | J8: from 24 to 36 | K8: from 36 to 48 | L8: from 48 to 60 | M8: > 60 months
B9: Foreing Currency
C11: Notes | D11: US$ | E11: 7.3 | F11: 552.286 | G11: 2015-12-20 | H11: 1.115 | I11: 0 | J11: 553.9 | K11: 0 | L11: 0 | M11: 0 | N11: -2.729
C12: Foreign loan | D12: US$ + LIBOR | E12: 0.8 | F12: 174.598 | G12: 2015-11-19 | H12: 0.249 | I12: 0 | J12: 177.248 | K12: 0 | L12: 0 | M12: 0 | N12: -2.899
C13: Advances on Foreign Exchange Contracts (ACC) | D13: US$ | E13: 1.6 | F13: 136.042 | G13: < 348 days | H13: 136.042 | I13: 0 | J13: 0 | K13: 0 | L13: 0 | M13: 0 | N13: -
C14: Foreign loan | D14: US$ + LIBOR | E14: 1 | F14: 132.588 | G14: 2014-06-30 | H14: 132.947 | I14: 0 | J14: 0 | K14: 0 | L14: 0 | M14: 0 | N14: -0.358
C15: Financial institutions | D15: US$ | E15: 2.3 | F15: 91.805 | G15: 2013 to 2017 | H15: 46.427 | I15: 0.967 | J15: 0 | K15: 44.41 | L15: 0 | M15: 0 | N15: 0
C16: BNDES | D16: US$ | E16: 5.6 | F16: 52.604 | G16: 2013 to 2020 | H16: 21.047 | I16: 15.934 | J16: 11.534 | K16: 3.075 | L16: 0.591 | M16: 0.423 | N16: -
C17: Financial institutions | D17: US$ + LIBOR | E17: 2 | F17: 44.343 | G17: 2017-10-02 | H17: 0.257 | I17: 0 | J17: 0 | K17: 29.607 | L17: 14.803 | M17: 0 | N17: -0.324
C18: Advances on Foreign Exchange Contracts (ACE) | D18: US$ | E18: 1.5 | F18: 28.107 | G18: < 109 days | H18: 28.107 | I18: 0 | J18: 0 | K18: 0 | L18: 0 | M18: 0 | N18: -
C19: Financial institutions | D19: MX$ + TIIE | E19: 1.3 | F19: 24.352 | G19: 2014 to 2016 | H19: 9.153 | I19: 3.507 | J19: 3.508 | K19: 8.184 | L19: 0 | M19: 0 | N19: -
C20: Financial institutions | D20: Bs | E20: 10.4 | F20: 10.5 | G20: 2013 to 2015 | H20: 6.974 | I20: 1.763 | J20: 1.763 | K20: 0 | L20: 0 | M20: 0 | N20: -
C22: Sub Total foreing currency | F22: 1247.225 | H22: 382.318 | I22: 22.171 | J22: 747.953 | K22: 85.276 | L22: 15.394 | M22: 0.423 | N22: -6.31
B24: Local Currency
C26: Banco do Brasil floating rate | D26: CDI | E26: 103.3 | F26: 2293.069 | G26: 2014 to 2019 | H26: 696.293 | I26: 546.499 | J26: 266.667 | K26: 0 | L26: 0 | M26: 802.213 | N26: -18.602
C27: Banco do Brasil fixed rate ³ | D27: R$ | E27: 12.1 | F27: 867.806 | G27: 2014 to 2015 | H27: 424.314 | I27: 424.913 | J27: 0 | K27: 0 | L27: 0 | M27: 0 | N27: 18.579
C28: Debentures - 4th issuance | D28: CDI | E28: 108.3 | F28: 811.0809883 | G28: 2015-03-16 | H28: 17.369416 | I28: 800 | J28: 0 | K28: 0 | L28: 0 | M28: 0 | N28: -6.288427699
C29: BNDES | D29: TJLP | E29: 2.5 | F29: 678.542 | G29: 2013 to 2020 | H29: 173.032 | I29: 155.266 | J29: 142.963 | K29: 101.091 | L29: 57.347 | M29: 48.882 | N29: -0.039
C30: Debentures - 1st issuance IPP | D30: CDI | E30: 107.9 | F30: 605.4060045 | G30: 2017-11-16 | H30: 5.638152 | I30: 0 | J30: 0 | K30: 0 | L30: 600 | M30: 0 | N30: -0.2321475477
C31: Banco do Nordeste do Brasil | D31: R$ | E31: 8.5 | F31: 112.101 | G31: 2018 to 2021 | H31: 18.054 | I31: 18.873 | J31: 18.873 | K31: 18.873 | L31: 18.873 | M31: 18.556 | N31: -
C32: BNDES | D32: R$ | E32: 5.3 | F32: 54.881 | G32: 2015 to 2019 | H32: 15.034 | I32: 15.503 | J32: 12.341 | K32: 6.529 | L32: 3.006 | M32: 2.469 | N32: -
C33: Financial leasing | D33: IGPM | E33: 5.6 | F33: 45.096 | G33: 2031-04-06 | H33: 1.695 | I33: 1.617 | J33: 1.708 | K33: 1.804 | L33: 1.905 | M33: 36.367 | N33: -
C34: Research and projects financing (FINEP) | D34: R$ | E34: 4 | F34: 30.804 | G34: 2019 to 2021 | H34: 0.225 | I34: 3.75 | J34: 4.933 | K34: 4.933 | L34: 4.933 | M34: 12.031 | N34: -
C35: Export Credit Note | D35: R$ | E35: 8 | F35: 16.264 | G35: 2016-03-07 | H35: 0.08625861 | I35: 0 | J35: 17.5 | K35: 0 | L35: 0 | M35: 0 | N35: -1.321996142
C36: Research and projects financing (FINEP) | D36: TJLP | E36: 0 | F36: 12.486 | G36: 2014-01-15 | H36: 11.508 | I36: 0.192 | J36: 0.192 | K36: 0.192 | L36: 0.192 | M36: 0.208 | N36: -
C37: Financial leasing fixed rate | D37: R$ | E37: 13.7 | F37: 0.188 | G37: 2013 to 2014 | H37: 0.188 | I37: 0 | J37: 0 | K37: 0 | L37: 0 | M37: 0 | N37: -
C38: Agency for Financing Machinery and Equipment (FINAME) | D38: TJLP | E38: 2.8 | F38: 0.047 | G38: 2013-08-15 | H38: 0.047 | I38: 0 | J38: 0 | K38: 0 | L38: 0 | M38: 0 | N38: -
C41: Sub Total local currency | F41: 5527.771 | H41: 1363.483827 | I41: 1966.613 | J41: 465.177 | K41: 133.422 | L41: 686.256 | M41: 920.726 | N41: -7.904571389
C43: Unrealized losses on swaps transactions | F43: 4.071 | H43: 3.365 | I43: 0 | J43: 0.706 | K43: 0 | L43: 0 | M43: 0
B45: Total | F45: 6779.068 | H45: 1749.166827 | I45: 1988.784 | J45: 1213.836 | K45: 218.698 | L45: 701.65 | M45: 921.149 | N45: -14.21457139
C47: Transaction costs and fair value adjustment 4 | H47: -4.593 | I47: 5.503 | J47: -4.818 | K47: -3.095 | L47: -3.568 | M47: -3.646 | N47: -14.21457139
B49: Total | F49: 6779.068 | H49: 1744.575 | I49: 1994.288 | J49: 1209.018 | K49: 215.603 | L49: 698.082 | M49: 917.503
B51: 1. | C51: Libor = London Interbank Offered Rate / MX$ = Mexican Peso / TIIE = Mexican Interbank Interest Rate Even / Bs = Bolivar Forte from Venezuela / CDI = interbank certificate of deposit rate / TJLP = basic financing cost of BNDES (set by National Monetary Council. On June 30, 2013, TJLP was fixed at 5% p.a. / IGPM = General Index of Market Prices
B53: 2. | C53: The company contracted hedging against foreign exchange exposure and interest rate for some debt.
B55: 3. | C55: For this loan, a hedging instrument was hired with the objective of swapping the fixed to floating rate, equivalent to 99,25% of CDI.
B57: 4. | C57: As provided in IAS 39, transaction costs incurred in obtaining financial resources were deducted from the value of the financial instrument, and as provided in Resolution CVM 604/09, loans was recognised at fair value. The amount to be appropriated to income in the future is as follows:
C60: Transaction costs | D60: Amount to be appropriated | E60: Profile
E61: up to 12 months | F61: from 12 to 24 | G61: from 24 to 36 | H61: from 36 to 48 | I61: from 48 to 60 | J61: > 60 months
C62: Banco do Brasil | D62: -24.321 | E62: -7.868 | F62: -3.89 | G62: -2.452 | H62: -2.951 | I62: -3.514 | J62: -3.646
C63: Debentures | D63: -6.521 | E63: -3.575 | F63: -2.81 | G63: -0.053 | H63: -0.058 | I63: -0.025 | J63: 0
C64: Notes | D64: -2.729 | E64: -1.092 | F64: -1.092 | G64: -0.546 | H64: 0 | I64: 0 | J64: 0
C65: Others | D65: -1.193 | E65: -0.557 | F65: -0.332 | G65: -0.189 | H65: -0.086 | I65: -0.029 | J65: 0
C67: Total | D67: =+SUM(D62:D65) -> -34.764 | E67: =+SUM(E62:E65)+0.001 -> -13.091 | F67: =+SUM(F62:F65) -> -8.124 | G67: =+SUM(G62:G65) -> -3.24 | H67: =+SUM(H62:H65) -> -3.095 | I67: =+SUM(I62:I65) -> -3.568 | J67: =+SUM(J62:J65) -> -3.646
C69: As provided in Resolution CVM 604/09 (November 19, 2009), the amortization of fair value adjustment is as follows:
C71: Fair value adjustment | D71: Amount to be amortized | E71: Profile
E72: up to 12 months | F72: from 12 to 24 | G72: from 24 to 36 | H72: from 36 to 48 | I72: from 48 to 60 | J72: > 60 months
C73: Banco do Brasil | D73: 24.29858663 | E73: 9.606 | F73: 14.692 | G73: 0 | H73: 0 | I73: 0 | J73: 0
C74: Foreign loan | D74: -2.42804446 | E74: -0.9630602718 | F74: -0.9401680033 | G74: -0.5248161853 | H74: 0 | I74: 0 | J74: 0
C75: Export Credit Note | D75: -1.321996142 | E75: -0.1446507356 | F75: -0.1246963796 | G75: -1.052649026 | H75: 0 | I75: 0 | J75: 0
C76: Total | D76: 20.54854603 | E76: 8.498288993 | F76: 13.62713562 | G76: -1.577465212 | H76: 0 | I76: 0 | J76: 0

Sheet 3Q13
A7: Financing and debentures (R$ million) | D7: Index/ Currency ¹ | E7: Average weighted interest rate (% p.y.) ² | F7: Balance 6 Sep-13 | G7: Maturity | H7: Amortization Profile | N7: Transaction costs / fair value adjustment 6
H8: up to 12 months | I8: from 12 to 24 | J8: from 24 to 36 | K8: from 36 to 48 | L8: from 48 to 60 | M8: > 60 months
B9: Foreing Currency
C11: Notes | D11: US$ | E11: 7.3 | F11: 566.255 | G11: 2015-12-20 | H11: 11.227 | I11: 0 | J11: 557.5 | K11: 0 | L11: 0 | M11: 0 | N11: -2.472
C12: Foreign loan 4 | D12: US$ + LIBOR | E12: 0.8 | F12: 174.697 | G12: 2015-11-19 | H12: 0.254 | I12: 0 | J12: 178.4 | K12: 0 | L12: 0 | M12: 0 | N12: -3.957
C13: Foreign loan | D13: US$ + LIBOR | E13: 1 | F13: 134.009 | G13: 2014-06-30 | H13: 134.297 | I13: 0 | J13: 0 | K13: 0 | L13: 0 | M13: 0 | N13: -0.287
C14: Advances on Foreign Exchange Contracts (ACC) | D14: US$ | E14: 1.5 | F14: 127.846 | G14: < 326 days | H14: 127.846 | I14: 0 | J14: 0 | K14: 0 | L14: 0 | M14: 0 | N14: -
C15: Financial institutions | D15: US$ | E15: 2.3 | F15: 94.886 | G15: 2013 to 2017 | H15: 49.629 | I15: 0.695 | J15: 0 | K15: 44.562 | L15: 0 | M15: 0 | N15: 0
C16: BNDES | D16: US$ | E16: 5.6 | F16: 48.591 | G16: 2013 to 2020 | H16: 20.569 | I16: 15.566 | J16: 10.119 | K16: 1.458 | L16: 0.51 | M16: 0.368 | N16: -
C17: Financial institutions | D17: US$ + LIBOR | E17: 2 | F17: 44.517 | G17: 2017-10-02 | H17: 0.26 | I17: 0 | J17: 0 | K17: 29.708 | L17: 14.854 | M17: 0 | N17: -0.305
C18: Financial institutions | D18: MX$ + TIIE | E18: 1.2 | F18: 29.778 | G18: 2014 to 2016 | H18: 16.411 | I18: 3.487 | J18: 9.88 | K18: 0 | L18: 0 | M18: 0 | N18: -
C19: Advances on Foreign Exchange Contracts (ACE) | D19: US$ | E19: 1.1 | F19: 24.547 | G19: < 119 days | H19: 24.547 | I19: 0 | J19: 0 | K19: 0 | L19: 0 | M19: 0 | N19: -
C20: Financial institutions | D20: Bs | E20: 11.3 | F20: 3.55 | G20: 2015-09-26 | H20: 1.775 | I20: 1.775 | J20: 0 | K20: 0 | L20: 0 | M20: 0 | N20: -
C22: Sub Total foreing currency | F22: 1248.676 | H22: 386.815 | I22: 21.523 | J22: 755.899 | K22: 75.728 | L22: 15.364 | M22: 0.368 | N22: -7.021
B24: Local Currency
C26: Banco do Brasil floating rate | D26: CDI | E26: 103.3 | F26: 2344.877 | G26: 2014 to 2019 | H26: 711.232 | I26: 564.443 | J26: 266.667 | K26: 0 | L26: 0 | M26: 819.864 | N26: -17.328
C27: Banco do Brasil fixed rate ³ | D27: R$ | E27: 12.1 | F27: 885.789 | G27: 2014 to 2015 | H27: 436.695 | I27: 437.362 | J27: 0 | K27: 0 | L27: 0 | M27: 0 | N27: 11.731
C28: Debentures - 4th issuance | D28: CDI | E28: 108.3 | F28: 830.682477 | G28: 2015-03-16 | H28: 36.097312 | I28: 800 | J28: 0 | K28: 0 | L28: 0 | M28: 0 | N28: -5.41583497
C29: BNDES | D29: TJLP | E29: 2.5 | F29: 669.974 | G29: 2014 to 2020 | H29: 166.303 | I29: 159.337 | J29: 140.547 | K29: 98.553 | L29: 54.202 | M29: 51.062 | N29: -0.03
C30: Debentures - 1st issuance IPP | D30: CDI | E30: 107.9 | F30: 619.2484379 | G30: 2017-11-16 | H30: 19.469412 | I30: 0 | J30: 0 | K30: 0 | L30: 600 | M30: 0 | N30: -0.2209740978
C31: Banco do Nordeste do Brasil | D31: R$ | E31: 8.5 | F31: 108.79 | G31: 2018 to 2021 | H31: 19.461 | I31: 18.873 | J31: 18.873 | K31: 18.873 | L31: 15.582 | M31: 17.128 | N31: -
C32: BNDES | D32: R$ | E32: 5.3 | F32: 51.163 | G32: 2015 to 2020 | H32: 15.047 | I32: 15.668 | J32: 10.851 | K32: 4.994 | L32: 2.526 | M32: 2.077 | N32: -
C33: Financial leasing | D33: IGPM | E33: 5.6 | F33: 44.719 | G33: 2031-04-06 | H33: 1.715 | I33: 1.639 | J33: 1.731 | K33: 1.828 | L33: 1.931 | M33: 35.875 | N33: -
C34: Research and projects financing (FINEP) | D34: R$ | E34: 4 | F34: 38.841 | G34: 2019 to 2021 | H34: 0.761 | I34: 5.404 | J34: 6.066 | K34: 6.066 | L34: 6.066 | M34: 14.479 | N34: -
C35: Export Credit Note 5 | D35: R$ | E35: 8 | F35: 25.072 | G35: 2016-08-01 | H35: 0.2056704 | I35: 0 | J35: 27.5 | K35: 0 | L35: 0 | M35: 0 | N35: -2.634060535
C36: Research and projects financing (FINEP) | D36: TJLP | E36: 0 | F36: 8.533 | G36: 2014-01-15 | H36: 6.674 | I36: 0.385 | J36: 0.385 | K36: 0.385 | L36: 0.385 | M36: 0.321 | N36: -
C37: Financial leasing fixed rate | D37: R$ | E37: 14 | F37: 0.077 | G37: 2014-06-29 | H37: 0.077 | I37: 0 | J37: 0 | K37: 0 | L37: 0 | M37: 0 | N37: -
C40: Sub Total local currency | F40: 5627.765 | H40: 1413.737394 | I40: 2003.111 | J40: 472.62 | K40: 130.699 | L40: 680.692 | M40: 940.806 | N40: -13.8978696
C42: Unrealized losses on swaps transactions | F42: 4.678 | H42: 3.713 | I42: 0 | J42: 0.965 | K42: 0 | L42: 0 | M42: 0
B44: Total | F44: 6881.119 | H44: 1804.265394 | I44: 2024.634 | J44: 1229.484 | K44: 206.427 | L44: 696.056 | M44: 941.174 | N44: -20.9188696
C46: Transaction costs and fair value adjustment 6 | H46: -7.093 | I46: 2.388 | J46: -6.635 | K46: -3.223 | L46: -3.686 | M46: -2.67 | N46: -20.9188696
B48: Total | F48: 6881.119 | H48: 1797.173 | I48: 2027.022 | J48: 1222.848 | K48: 203.203 | L48: 692.37 | M48: 938.503
B50: 1. | C50: Libor = London Interbank Offered Rate / MX$ = Mexican Peso / TIIE = Mexican Interbank Interest Rate Even / Bs = Bolivar Forte from Venezuela / CDI = interbank certificate of deposit rate / TJLP = basic financing cost of BNDES (set by National Monetary Council. On September 30, 2013, TJLP was fixed at 5% p.a. / IGPM = General Index of Market Prices
B52: 2. | C52: The company contracted hedging against foreign exchange exposure and interest rate for some debt.
B54: 3. | C54: For this loan, a hedging instrument was hired with the objective of swapping the fixed to floating rate, equivalent to 99.25% of CDI.
B56: 4. | C56: For this loan, a hedging instrument was hired with the objective of swapping the fixed to floating rate, equivalent to 104.10% of CDI.
B58: 5. | C58: For this loan, a hedging instrument was hired with the objective of swapping the fixed to floating rate, equivalent to 88.78% of CDI.
B60: 6. | C60: As provided in IAS 39, transaction costs incurred in obtaining financial resources were deducted from the value of the financial instrument, and as provided in Resolution CVM 604/09, loans was recognised at fair value. The amount to be appropriated to income in the future is as follows:
C62: Transaction costs | D62: Amount to be appropriated | E62: Profile
E63: up to 12 months | F63: from 12 to 24 | G63: from 24 to 36 | H63: from 36 to 48 | I63: from 48 to 60 | J63: > 60 months
C64: Banco do Brasil | D64: -22.113 | E64: -6.621 | F64: -3.502 | G64: -2.575 | H64: -3.078 | I64: -3.668 | J64: -2.67
C65: Debentures | D65: -5.637 | E65: -3.662 | F65: -1.851 | G65: -0.054 | H65: -0.059 | I65: -0.01 | J65: 0
C66: Notes | D66: -2.472 | E66: -1.099 | F66: -1.099 | G66: -0.275 | H66: 0 | I66: 0 | J66: 0
C67: Others | D67: -1.045 | E67: -0.493 | F67: -0.329 | G67: -0.129 | H67: -0.087 | I67: -0.007 | J67: 0
C69: Total | D69: =+SUM(D64:D67) -> -31.267 | E69: -11.875 | F69: -6.781 | G69: -3.033 | H69: -3.224 | I69: -3.685 | J69: -2.67
C71: As provided in Resolution CVM 604/09 (November 19, 2009), the amortization of fair value adjustment is as follows:
C73: Fair value adjustment | D73: Amount to be amortized | E73: Profile
E74: up to 12 months | F74: from 12 to 24 | G74: from 24 to 36 | H74: from 36 to 48 | I74: from 48 to 60 | J74: > 60 months
C75: Banco do Brasil | D75: 16.51630721 | E75: 6.091 | F75: 10.425 | G75: 0 | H75: 0 | I75: 0 | J75: 0
C76: Foreign loan | D76: -3.533942349 | E76: -0.9630602718 | F76: -0.9441679011 | G76: -1.626714176 | H76: 0 | I76: 0 | J76: 0
C77: Export Credit Note | D77: -2.634060535 | E77: -0.3462776314 | F77: -0.3124613601 | G77: -1.975321543 | H77: 0 | I77: 0 | J77: 0
C78: Total | D78: 10.34830432 | E78: 4.781662097 | F78: 9.168370739 | G78: -3.602035719 | H78: 0 | I78: 0 | J78: 0

Sheet 4Q13
A7: Financing and debentures (R$ million) | D7: Index/ Currency ¹ | E7: Average weighted interest rate (% p.y.) ² | F7: Balance 6 Dec-13 | G7: Maturity | H7: Amortization Profile | N7: Transaction costs / fair value adjustment 6
H8: up to 12 months | I8: from 12 to 24 | J8: from 24 to 36 | K8: from 36 to 48 | L8: from 48 to 60 | M8: > 60 months
B9: Foreing Currency
C11: Notes | D11: US$ | E11: 7.3 | F11: 584.521 | G11: 2015-12-20 | H11: 1.179 | I11: 585.65 | J11: 0 | K11: 0 | L11: 0 | M11: 0 | N11: -2.309
C12: Foreign loan 4 | D12: US$ + LIBOR | E12: 0.8 | F12: 187.34 | G12: 2015-11-19 | H12: 0.261 | I12: 187.408 | J12: 0 | K12: 0 | L12: 0 | M12: 0 | N12: -0.328
C13: Foreign loan | D13: US$ + LIBOR | E13: 1 | F13: 140.341 | G13: 2014-06-30 | H13: 140.561 | I13: 0 | J13: 0 | K13: 0 | L13: 0 | M13: 0 | N13: -0.221
C14: Advances on Foreign Exchange Contracts (ACC) | D14: US$ | E14: 1.4 | F14: 136.753 | G14: < 349 days | H14: 136.753 | I14: 0 | J14: 0 | K14: 0 | L14: 0 | M14: 0 | N14: -
C15: Financial institutions | D15: US$ | E15: 2.1 | F15: 95.792 | G15: 2014 to 2017 | H15: 49.019 | I15: 0 | J15: 0 | K15: 46.773 | L15: 0 | M15: 0 | N15: 0
C16: Financial institutions | D16: US$ + LIBOR | E16: 2 | F16: 46.74 | G16: 2017-10-02 | H16: 0.266 | I16: 0 | J16: 15.591 | K16: 31.182 | L16: 0 | M16: 0 | N16: -0.299
C17: BNDES | D17: US$ | E17: 5.6 | F17: 46.623 | G17: 2014 to 2020 | H17: 20.048 | I17: 15.327 | J17: 8.507 | K17: 1.196 | L17: 0.814 | M17: 0.731 | N17: -
C18: Financial institutions | D18: MX$ + TIIE | E18: 1.2 | F18: 31.241 | G18: 2014 to 2016 | H18: 17.125 | I18: 3.682 | J18: 10.434 | K18: 0 | L18: 0 | M18: 0 | N18: -
C19: Advances on Foreign Exchange Contracts (ACE) | D19: US$ | E19: 1.2 | F19: 25.511 | G19: < 112 days | H19: 25.512 | I19: 0 | J19: 0 | K19: 0 | L19: 0 | M19: 0 | N19: -
C21: Sub Total foreing currency | F21: 1294.862 | H21: 390.724 | I21: 792.067 | J21: 34.532 | K21: 79.151 | L21: 0.814 | M21: 0.731 | N21: -3.157
B23: Local Currency
C25: Banco do Brasil floating rate | D25: CDI | E25: 103.3 | F25: 2402.553 | G25: 2014 to 2019 | H25: 727.884 | I25: 584.459 | J25: 266.667 | K25: 0 | L25: 0 | M25: 839.551 | N25: -16.008
C26: Banco do Brasil fixed rate ³ | D26: R$ | E26: 12.1 | F26: 905.947 | G26: 2014 to 2015 | H26: 449.437 | I26: 450.176 | J26: 0 | K26: 0 | L26: 0 | M26: 0 | N26: 6.334
C27: Debentures - 4th issuance | D27: CDI | E27: 108.3 | F27: 852.4830495 | G27: 2015-03-16 | H27: 57.005032 | I27: 800 | J27: 0 | K27: 0 | L27: 0 | M27: 0 | N27: -4.52098251
C28: BNDES | D28: TJLP | E28: 2.5 | F28: 633.829 | G28: 2014 to 2020 | H28: 161.084 | I28: 160.821 | J28: 131.511 | K28: 90.236 | L28: 48.485 | M28: 41.713 | N28: -0.022
C29: Debentures - 1st issuance IPP | D29: CDI | E29: 107.9 | F29: 606.9285059 | G29: 2017-11-16 | H29: 7.138002 | I29: 0 | J29: 0 | K29: 600 | L29: 0 | M29: 0 | N29: -0.209496117
C30: Banco do Nordeste do Brasil | D30: R$ | E30: 8.5 | F30: 104.072 | G30: 2018 to 2021 | H30: 19.462 | I30: 18.873 | J30: 18.873 | K30: 18.873 | L30: 12.291 | M30: 15.701 | N30: -
C31: BNDES | D31: R$ | E31: 5.3 | F31: 47.428 | G31: 2015 to 2020 | H31: 15.092 | I31: 15.112 | J31: 9.541 | K31: 3.951 | L31: 2.047 | M31: 1.684 | N31: -
C32: Financial leasing | D32: IGPM | E32: 5.6 | F32: 44.338 | G32: 2031-04-06 | H32: 1.735 | I32: 1.662 | J32: 1.755 | K32: 1.853 | L32: 1.957 | M32: 35.375 | N32: -
C33: Research and projects financing (FINEP) | D33: R$ | E33: 4 | F33: 38.845 | G33: 2019 to 2021 | H33: 1.62 | I33: 6.066 | J33: 6.066 | K33: 6.066 | L33: 6.066 | M33: 12.962 | N33: -
C34: Export Credit Note 5 | D34: R$ | E34: 8 | F34: 24.994 | G34: 2016-08-01 | H34: 0.21159397 | I34: 0 | J34: 27.5 | K34: 0 | L34: 0 | M34: 0 | N34: -2.904067557
C35: Research and projects financing (FINEP) | D35: TJLP | E35: 0 | F35: 6.718 | G35: 2014 to 2023 | H35: 1.844 | I35: 0.42 | J35: 0.652 | K35: 0.824 | L35: 0.824 | M35: 2.154 | N35: -
C36: Financial leasing fixed rate | D36: R$ | E36: 14 | F36: 0.052 | G36: 2014-06-29 | H36: 0.053 | I36: 0 | J36: 0 | K36: 0 | L36: 0 | M36: 0 | N36: -
C39: Sub Total local currency | F39: 5668.189 | H39: 1442.565628 | I39: 2037.589 | J39: 462.565 | K39: 721.803 | L39: 71.67 | M39: 949.14 | N39: -17.33054618
C41: Unrealized losses on swaps transactions | F41: 6.575 | H41: 5.429 | I41: 0 | J41: 1.146 | K41: 0 | L41: 0 | M41: 0
B43: Total | F43: 6969.626 | H43: 1838.718628 | I43: 2829.656 | J43: 498.243 | K43: 800.954 | L43: 72.484 | M43: 949.871 | N43: -20.48754618
C45: Transaction costs and fair value adjustment 6 | H45: -8.729 | I45: 2.143 | J45: -4.887 | K45: -3.349 | L45: -3.844 | M45: -1.635 | N45: -20.48754618
B47: Total | F47: 6969.626 | H47: 1829.99 | I47: 2831.799 | J47: 493.356 | K47: 797.605 | L47: 68.641 | M47: 948.238
B49: 1. | C49: Libor = London Interbank Offered Rate / MX$ = Mexican Peso / TIIE = Mexican Interbank Interest Rate Even / CDI = interbank certificate of deposit rate / TJLP = basic financing cost of BNDES (set by National Monetary Council. On December 31, 2013, TJLP was fixed at 5% p.a. / IGPM = General Index of Market Prices
B51: 2. | C51: The company contracted hedging against foreign exchange exposure and interest rate for some debt.
B53: 3. | C53: For this loan, a hedging instrument was hired with the objective of swapping the fixed to floating rate, equivalent to 99.25% of CDI.
B55: 4. | C55: For this loan, a hedging instrument was hired with the objective of swapping the fixed to floating rate, equivalent to 104.10% of CDI.
B57: 5. | C57: For this loan, a hedging instrument was hired with the objective of swapping the fixed to floating rate, equivalent to 88.78% of CDI.
B59: 6. | C59: As provided in IAS 39, transaction costs incurred in obtaining financial resources were deducted from the value of the financial instrument, and as provided in Resolution CVM 604/09, loans was recognised at fair value. The amount to be appropriated to income in the future is as follows:
C61: Transaction costs | D61: Amount to be appropriated | E61: Profile
E62: up to 12 months | F62: from 12 to 24 | G62: from 24 to 36 | H62: from 36 to 48 | I62: from 48 to 60 | J62: > 60 months
C63: Banco do Brasil | D63: -19.797 | E63: -5.323 | F63: -3.086 | G63: -2.691 | H63: -3.218 | I63: -3.844 | J63: -1.635
C64: Debentures | D64: -4.73 | E64: -3.766 | F64: -0.854 | G64: -0.055 | H64: -0.055 | I64: 0 | J64: 0
C65: Notes | D65: -2.309 | E65: -1.154 | F65: -1.155 | G65: 0 | H65: 0 | I65: 0 | J65: 0
C66: Others | D66: -0.916 | E66: -0.436 | F66: -0.315 | G66: -0.089 | H66: -0.076 | I66: 0 | J66: 0
C68: Total | D68: =+SUM(D63:D66) -> -27.752 | E68: -10.679 | F68: -5.41 | G68: -2.835 | H68: -3.349 | I68: -3.844 | J68: -1.635
C70: As provided in Resolution CVM 604/09 (November 19, 2009), the amortization of fair value adjustment is as follows:
C72: Fair value adjustment | D72: Amount to be amortized | E72: Profile
E73: up to 12 months | F73: from 12 to 24 | G73: from 24 to 36 | H73: from 36 to 48 | I73: from 48 to 60 | J73: > 60 months
C74: Banco do Brasil | D74: 10.12268338 | E74: 3.259 | F74: 6.864 | G74: 0 | H74: 0 | I74: 0 | J74: 0
C75: Foreign loan | D75: 0.04630879505 | E75: -0.9630602718 | F75: 1.009369067 | G75: 0 | H75: 0 | I75: 0 | J75: 0
C76: Export Credit Note | D76: -2.717925196 | E76: -0.3462776314 | F76: -0.3200146939 | G76: -2.051632871 | H76: 0 | I76: 0 | J76: 0
C77: Total | D77: 7.45106698 | E77: 1.949662097 | F77: 7.553354373 | G77: -2.051632871 | H77: 0 | I77: 0 | J77: 0

Sheet 1Q14
A7: Financing and debentures (R$ million) | D7: Index/ Currency ¹ | E7: Average weighted interest rate (% p.y.) ² | F7: Balance 6 Mar-14 | G7: Maturity | H7: Amortization Profile | N7: Transaction costs / fair value adjustment 6
H8: up to 12 months | I8: from 12 to 24 | J8: from 24 to 36 | K8: from 36 to 48 | L8: from 48 to 60 | M8: > 60 months
B9: Foreing Currency
C11: Notes | D11: US$ | E11: +7,3 | F11: 575.192 | G11: 2015-12-20 | H11: 11.394 | I11: 565.75 | J11: 0 | K11: 0 | L11: 0 | M11: 0 | N11: -1.951
C12: Foreign loan 4 | D12: US$ + LIBOR | E12: +0,8 | F12: 179.554 | G12: 2015-11-19 | H12: 0.239 | I12: 181.04 | J12: 0 | K12: 0 | L12: 0 | M12: 0 | N12: -1.725
C13: Foreign loan | D13: US$ + LIBOR | E13: +1,0 | F13: 134.74 | G13: 2017-01-17 | H13: 0.463 | I13: 0 | J13: 135.78 | K13: 0 | L13: 0 | M13: 0 | N13: -1.503
C14: Advances on Foreign Exchange Contracts (ACC) | D14: US$ | E14: +1,4 | F14: 129.822 | G14: < 340 days | H14: 129.822 | I14: 0 | J14: 0 | K14: 0 | L14: 0 | M14: 0 | N14: -
C15: Financial institutions | D15: US$ | E15: +2,1 | F15: 91.384 | G15: 2014 to 2017 | H15: 46.034 | I15: 0 | J15: 0 | K15: 45.349 | L15: 0 | M15: 0 | N15: 0
C16: Financial institutions | D16: US$ + LIBOR | E16: +2,0 | F16: 45.333 | G16: 2017-10-02 | H16: 0.252 | I16: 0 | J16: 15.116 | K16: 30.233 | L16: 0 | M16: 0 | N16: -0.269
C17: BNDES | D17: US$ | E17: +5,9 | F17: 39.525 | G17: 2014 to 2020 | H17: 17.817 | I17: 13.574 | J17: 5.854 | K17: 1.053 | L17: 0.684 | M17: 0.542 | N17: -
C18: Financial institutions | D18: MX$ + TIIE | E18: +1,1 | F18: 28.705 | G18: 2014 to 2016 | H18: 16.821 | I18: 3.566 | J18: 8.318 | K18: 0 | L18: 0 | M18: 0 | N18: -
C19: Advances on Foreign Exchange Contracts (ACE) | D19: US$ | E19: +1,3 | F19: 15.792 | G19: < 109 days | H19: 15.792 | I19: 0 | J19: 0 | K19: 0 | L19: 0 | M19: 0 | N19: -
C21: Sub Total foreing currency | F21: 1240.047 | H21: 238.634 | I21: 763.93 | J21: 165.068 | K21: 76.635 | L21: 0.684 | M21: 0.542 | N21: -5.448
B23: Local Currency
C25: Banco do Brasil floating rate | D25: CDI | E25: 104.6 | F25: 2643.429 | G25: 2016 to 2019 | H25: 381.91 | I25: 390.518 | J25: 1025.491 | K25: 0 | L25: 0 | M25: 860.503 | N25: -14.993
C26: Debentures - 1st and 2nd issuances IPP | D26: CDI | E26: 107.9 | F26: 1440.059219 | G26: 2017 to 2018 | H26: 41.624778 | I26: 0 | J26: 0 | K26: 600 | L26: 800 | M26: 0 | N26: -1.565559138
C27: Debentures - 4th issuance | D27: CDI | E27: 108.3 | F27: 799.8399371 | G27: 2015-03-16 | H27: 803.461608 | I27: 0 | J27: 0 | K27: 0 | L27: 0 | M27: 0 | N27: -3.621670852
C28: BNDES | D28: TJLP | E28: +2,5 | F28: 595.095 | G28: 2014 to 2020 | H28: 156.961 | I28: 159.119 | J28: 120.956 | K28: 80.275 | L28: 44.949 | M28: 32.849 | N28: -0.015
C29: Banco do Brasil fixed rate ³ | D29: R$ | E29: +12,1 | F29: 463.517 | G29: 2015-05-21 | H29: 0 | I29: 463.075 | J29: 0 | K29: 0 | L29: 0 | M29: 0 | N29: 0.442
C30: Working capital loan - floating rate | D30: CDI | E30: +3,0 | F30: 124.658 | G30: 2014 to 2017 | H30: 107.225 | I30: 13.187 | J30: 3.561 | K30: 0.685 | L30: 0 | M30: 0 | N30: -
C31: Banco do Nordeste do Brasil | D31: R$ | E31: +8,5 | F31: 99.326 | G31: 2018 to 2021 | H31: 19.434 | I31: 18.873 | J31: 18.873 | K31: 18.873 | L31: 9 | M31: 14.274 | N31: -
C32: BNDES | D32: R$ | E32: +4,9 | F32: 58.508 | G32: 2015 to 2022 | H32: 17.559 | I32: 17.054 | J32: 11.098 | K32: 6.23 | L32: 4.288 | M32: 2.28 | N32: -
C33: Research and projects financing (FINEP) | D33: R$ | E33: +4,0 | F33: 49.303 | G33: 2019 to 2021 | H33: 4.866 | I33: 8.119 | J33: 8.119 | K33: 8.119 | L33: 8.119 | M33: 11.959 | N33: -
C34: Financial leasing | D34: IGPM | E34: +5,6 | F34: 43.951 | G34: 2031-04-06 | H34: 1.755 | I34: 1.685 | J34: 1.779 | K34: 1.879 | L34: 1.984 | M34: 34.869 | N34: -
C35: Export Credit Note 5 | D35: R$ | E35: +8,0 | F35: 25.073 | G35: 2016-08-01 | H35: 0.21045526 | I35: 17.5 | J35: 10 | K35: 0 | L35: 0 | M35: 0 | N35: -2.637424785
C36: Working capital loan - fixed rate | D36: R$ | E36: +11,4 | F36: 9.057 | G36: 2014 to 2016 | H36: 6.176 | I36: 2.201 | J36: 0.679 | K36: 0 | L36: 0 | M36: 0 | N36: -
C37: Research and projects financing (FINEP) | D37: TJLP | E37: +0,0 | F37: 5.075 | G37: 2023-10-16 | H37: 0.297 | I37: 0.472 | J37: 0.71 | K37: 0.824 | L37: 0.824 | M37: 1.948 | N37: -
C38: Financial leasing fixed rate | D38: R$ | E38: +15,6 | F38: 1.541 | G38: 2014 to 2017 | H38: 1.13 | I38: 0.338 | J38: 0.042 | K38: 0.032 | L38: 0 | M38: 0 | N38: -
C39: Agency for Financing Machinery and Equipment (FINAME) | D39: TJLP | E39: +5,5 | F39: 0.656 | G39: 2016 to 2022 | H39: 0.24 | I39: 0.237 | J39: 0.132 | K39: 0.01 | L39: 0.01 | M39: 0.028 | N39: -
C40: Financial leasing floating rate | D40: CDI | E40: +2,8 | F40: 0.568 | G40: 2017-05-14 | H40: 0.159 | I40: 0.179 | J40: 0.184 | K40: 0.047 | L40: 0 | M40: 0 | N40: -
C43: Sub Total local currency | F43: 6359.657 | H43: 1543.008841 | I43: 1092.557 | J43: 1201.624 | K43: 716.974 | L43: 869.174 | M43: 958.71 | N43: -22.39065478
C45: Unrealized losses on swaps transactions | F45: 9.717 | H45: 8.523 | I45: 1.194 | J45: 0 | K45: 0 | L45: 0 | M45: 0
B47: Total | F47: 7609.421 | H47: 1790.165841 | I47: 1857.681 | J47: 1366.692 | K47: 793.609 | L47: 869.858 | M47: 959.252 | N47: -27.83865478
C49: Transaction costs and fair value adjustment 6 | H49: -11.24 | I49: -3.419 | J49: -4.56 | K49: -3.775 | L49: -4.255 | M49: -0.59 | N49: -27.83865478
B51: Total | F51: 7609.421 | H51: 1778.924 | I51: 1854.263 | J51: 1362.133 | K51: 789.835 | L51: 865.604 | M51: 958.663
B53: 1. | C53: Libor = London Interbank Offered Rate / MX$ = Mexican Peso / TIIE = Mexican Interbank Interest Rate Even / CDI = interbank certificate of deposit rate / TJLP = basic financing cost of BNDES (set by National Monetary Council. On March 31, 2014, TJLP was fixed at 5% p.a. / IGPM = General Index of Market Prices
B55: 2. | C55: The company contracted hedging against foreign exchange exposure and interest rate for some debt.
B57: 3. | C57: For this loan, a hedging instrument was hired with the objective of swapping the fixed to floating rate, equivalent to 99.50% of CDI.
B59: 4. | C59: For this loan, a hedging instrument was hired with the objective of swapping the fixed to floating rate, equivalent to 104.10% of CDI.
B61: 5. | C61: For this loan, a hedging instrument was hired with the objective of swapping the fixed to floating rate, equivalent to 88.79% of CDI.
B63: 6. | C63: As provided in IAS 39, transaction costs incurred in obtaining financial resources were deducted from the value of the financial instrument, and as provided in Resolution CVM 604/09, loans was recognised at fair value. The amount to be appropriated to income in the future is as follows:
C65: Transaction costs | D65: Amount to be appropriated | E65: Profile
E66: up to 12 months | F66: from 12 to 24 | G66: from 24 to 36 | H66: from 36 to 48 | I66: from 48 to 60 | J66: > 60 months
C67: Banco do Brasil | D67: -17.348 | E67: -3.924 | F67: -2.66 | G67: -2.819 | H67: -3.364 | I67: -3.992 | J67: -0.59
C68: Debentures | D68: -5.187 | E68: -3.906 | F68: -0.313 | G68: -0.345 | H68: -0.36 | I68: -0.263 | J68: 0
C69: Notes | D69: -1.951 | E69: -1.115 | F69: -0.836 | G69: 0 | H69: 0 | I69: 0 | J69: 0
C70: Others | D70: -2.113 | E70: -0.751 | F70: -0.777 | G70: -0.533 | H70: -0.052 | I70: 0 | J70: 0
D71: 0 | E71: 0 | F71: 0 | G71: 0 | H71: 0 | I71: 0 | J71: 0
C72: Total | D72: -26.6 | E72: -9.696 | F72: -4.587 | G72: -3.697 | H72: -3.776 | I72: -4.255 | J72: -0.59
C74: As provided in Resolution CVM 604/09 (November 19, 2009), the amortization of fair value adjustment is as follows:
C76: Fair value adjustment | D76: Amount to be amortized | E76: Profile
E77: up to 12 months | F77: from 12 to 24 | G77: from 24 to 36 | H77: from 36 to 48 | I77: from 48 to 60 | J77: > 60 months
C78: Banco do Brasil | D78: 2.797111773 | E78: -0.235 | F78: 3.032 | G78: 0 | H78: 0 | I78: 0 | J78: 0
C79: Foreign loan | D79: -1.399050779 | E79: -0.9630602718 | F79: -0.435990507 | G79: 0 | H79: 0 | I79: 0 | J79: 0
C80: Export Credit Note | D80: -2.637424785 | E80: -0.3462776314 | F80: -1.427875785 | G80: -0.8632713692 | H80: 0 | I80: 0 | J80: 0
C81: Total | D81: -1.239363792 | E81: -1.544337903 | F81: 1.168133708 | G81: -0.8632713692 | H81: 0 | I81: 0 | J81: 0

Sheet 2Q14
A7: Financing and debentures (R$ million) | D7: Index/ Currency ¹ | E7: Average weighted interest rate (% p.y.) ² | F7: Balance 6 Jun-14 | G7: Maturity | H7: Amortization Profile | N7: Transaction costs / fair value adjustment 6
H8: up to 12 months | I8: from 12 to 24 | J8: from 24 to 36 | K8: from 36 to 48 | L8: from 48 to 60 | M8: > 60 months
B9: Foreing Currency
C11: Notes | D11: US$ | E11: +7,3 | F11: 550.106 | G11: 2015-12-20 | H11: 1.109 | I11: 550.625 | J11: 0 | K11: 0 | L11: 0 | M11: 0 | N11: -1.628 | O11: =+SUM(H11:N11)-F11 -> 0
C12: Foreign loan 4 | D12: US$ + LIBOR | E12: +0,8 | F12: 175.492 | G12: 2015-11-19 | H12: 0.242 | I12: 176.2 | J12: 0 | K12: 0 | L12: 0 | M12: 0 | N12: -0.951 | O12: =+SUM(H12:N12)-F12 -> -0.001
C13: Foreign loan | D13: US$ + LIBOR | E13: +1,0 | F13: 130.758 | G13: 2017-01-17 | H13: 0 | I13: 0 | J13: 132.15 | K13: 0 | L13: 0 | M13: 0 | N13: -1.392 | O13: =+SUM(H13:N13)-F13 -> 0
C14: Advances on Foreign Exchange Contracts (ACC) | D14: US$ | E14: +1,2 | F14: 111.879 | G14: < 360 days | H14: 111.879 | I14: 0 | J14: 0 | K14: 0 | L14: 0 | M14: 0 | N14: - | O14: =+SUM(H14:N14)-F14 -> 0
C15: Financial institutions | D15: US$ | E15: +2,0 | F15: 93.494 | G15: 2014 to 2017 | H15: 49.346 | I15: 0 | J15: 44.149 | K15: 0 | L15: 0 | M15: 0 | N15: -
C16: Financial institutions | D16: US$ + LIBOR | E16: +2,0 | F16: 44.156 | G16: 2016 to 2017 | H16: 0.248 | I16: 0 | J16: 29.432 | K16: 14.716 | L16: 0 | M16: 0 | N16: -0.241 | O16: =+SUM(H16:N16)-F16 -> -0.001
C17: Financial institutions | D17: MX$ + TIIE | E17: +1,0 | F17: 34.753 | G17: 2015 to 2016 | H17: 23.109 | I17: 3.494 | J17: 8.15 | K17: 0 | L17: 0 | M17: 0 | N17: - | O17: =+SUM(H17:N17)-F17 -> 0
C18: BNDES | D18: US$ | E18: +6,0 | F18: 33.674 | G18: 2014 to 2020 | H18: 16.29 | I18: 11.966 | J18: 3.458 | K18: 0.959 | L18: 0.633 | M18: 0.369 | N18: - | O18: =+SUM(H18:N18)-F18 -> 0.001
C19: Advances on Foreign Exchange Contracts (ACE) | D19: US$ | E19: +1,2 | F19: 16.193 | G19: < 91 days | H19: 16.193 | I19: 0 | J19: 0 | K19: 0 | L19: 0 | M19: 0 | N19: - | O19: =+SUM(H19:N19)-F19 -> 0
O20: =+SUM(H20:N20)-F20 -> 0
C21: Sub Total foreing currency | F21: 1190.505 | H21: 218.416 | I21: 742.285 | J21: 217.339 | K21: 15.675 | L21: 0.633 | M21: 0.369 | N21: -4.212 | O21: 0
O22: 0
B23: Local Currency | O23: 0
O24: 0
C25: Banco do Brasil floating rate | D25: CDI | E25: 104.6 | F25: 2713.739 | G25: 2015 to 2019 | H25: 628.622 | I25: 266.667 | J25: 950.024 | K25: 0 | L25: 882.985 | M25: 0 | N25: -14.559 | O25: =+SUM(H25:N25)-F25 -> 0
C26: Debentures - 1st and 2nd issuances IPP | D26: CDI | E26: 107.9 | F26: 1408.571976 | G26: 2017 to 2018 | H26: 10.067736 | I26: 0 | J26: 0 | K26: 600 | L26: 800 | M26: 0 | N26: -1.495760218 | O26: =+SUM(H26:N26)-F26 -> 0
C27: Debentures - 4th issuance | D27: CDI | E27: 108.3 | F27: 822.5627486 | G27: 2015-03-16 | H27: 825.32272 | I27: 0 | J27: 0 | K27: 0 | L27: 0 | M27: 0 | N27: -2.759971362 | O27: =+SUM(H27:N27)-F27 -> 0
C28: BNDES | D28: TJLP | E28: +2,5 | F28: 558.36 | G28: 2014 to 2020 | H28: 160.257 | I28: 152.89 | J28: 111.108 | K28: 67.364 | L28: 43.785 | M28: 22.965 | N28: -0.01 | O28: =+SUM(H28:N28)-F28 -> -0.001
C29: Banco do Brasil fixed rate ³ | D29: R$ | E29: +12,1 | F29: 479.12 | G29: 2015-05-21 | H29: 476.493 | I29: 0 | J29: 0 | K29: 0 | L29: 0 | M29: 0 | N29: 2.627 | O29: 0
C30: Banco do Nordeste do Brasil | D30: R$ | E30: +8,5 | F30: 94.555 | G30: 2018 to 2021 | H30: 19.381 | I30: 18.873 | J30: 18.873 | K30: 18.873 | L30: 5.709 | M30: 12.846 | N30: - | O30: 0
C31: BNDES | D31: R$ | E31: +4,8 | F31: 56.536 | G31: 2015 to 2022 | H31: 18.658 | I31: 15.883 | J31: 9.921 | K31: 6.19 | L31: 4.392 | M31: 1.492 | N31: - | O31: 0
C32: Research and projects financing (FINEP) | D32: R$ | E32: +4,0 | F32: 48.951 | G32: 2019 to 2021 | H32: 6.544 | I32: 8.119 | J32: 8.119 | K32: 8.119 | L32: 8.119 | M32: 9.929 | N32: - | O32: -0.002
C33: Financial leasing | D33: IGPM | E33: +5,6 | F33: 46.742 | G33: 2031-04-06 | H33: 1.905 | I33: 1.833 | J33: 1.935 | K33: 2.044 | L33: 2.158 | M33: 36.867 | N33: - | O33: 0
C34: Working capital loan - floating rate | D34: CDI | E34: +2,6 | F34: 45.396 | G34: 2014 to 2017 | H34: 33.911 | I34: 8.373 | J34: 2.872 | K34: 0.24 | L34: 0 | M34: 0 | N34: - | O34: 0
C35: Export Credit Note 5 | D35: R$ | E35: +8,0 | F35: 25.686 | G35: 2016-08-01 | H35: 0.2056704 | I35: 17.5 | J35: 10 | K35: 0 | L35: 0 | M35: 0 | N35: -2.019514939 | O35: 0.0001554613346
C36: Working capital loan - fixed rate | D36: R$ | E36: +11,4 | F36: 5.318 | G36: 2014 to 2016 | H36: 3.012 | I36: 1.993 | J36: 0.312 | K36: 0 | L36: 0 | M36: 0 | N36: - | O36: -0.001
C37: Research and projects financing (FINEP) | D37: TJLP | E37: +0,0 | F37: 5.074 | G37: 2023-10-16 | H37: 0.392 | I37: 0.525 | J37: 0.767 | K37: 0.824 | L37: 0.824 | M37: 1.742 | N37: - | O37: 0
C38: Financial leasing fixed rate | D38: R$ | E38: +15,6 | F38: 1.226 | G38: 2014 to 2017 | H38: 1.002 | I38: 0.164 | J38: 0.038 | K38: 0.021 | L38: 0 | M38: 0 | N38: - | O38: -0.001
C39: Agency for Financing Machinery and Equipment (FINAME) | D39: TJLP | E39: +5,5 | F39: 0.598 | G39: 2016 to 2022 | H39: 0.24 | I39: 0.222 | J39: 0.09 | K39: 0.01 | L39: 0.01 | M39: 0.025 | N39: - | O39: -0.001
C40: Financial leasing floating rate | D40: CDI | E40: +2,8 | F40: 0.538 | G40: 2017-05-14 | H40: 0.18 | I40: 0.184 | J40: 0.173 | K40: 0 | L40: 0 | M40: 0 | N40: - | O40: -0.001
C43: Sub Total local currency | F43: 6312.974 | H43: 2186.194126 | I43: 493.226 | J43: 1114.232 | K43: 703.685 | L43: 1747.982 | M43: 85.866 | N43: -18.21724652 | O43: =+SUM(H43:N43)-F43 -> -0.006120118182
C45: Unrealized losses on swaps transactions | F45: 10.9 | H45: 10.139 | I45: 0.605 | J45: 0.155 | K45: 0 | L45: 0 | M45: 0 | O45: =+SUM(H45:N45)-F45 -> -0.001
B47: Total | F47: 7514.379 | H47: 2414.749126 | I47: 1236.116 | J47: 1331.726 | K47: 719.36 | L47: 1748.615 | M47: 86.235 | N47: -22.42924652 | O47: =+SUM(H47:N47)-F47 -> -0.007120118181
O48: =+SUM(H48:N48)-F48 -> 0
C49: Transaction costs and fair value adjustment 6 | H49: -5.614 | I49: -4.8 | J49: -4.295 | K49: -3.895 | L49: -3.823 | M49: 0 | N49: -22.42924652 | O49: =+N49-SUM(H49:M49) -> -0.002246518189
O50: =+SUM(H50:N50)-F50 -> 0
B51: Total | F51: 7514.379 | H51: 2409.133 | I51: 1231.316 | J51: 1327.433 | K51: 715.466 | L51: 1744.794 | M51: 86.237 | O51: =+SUM(H51:N51)-F51 -> 0
B53: 1. | C53: Libor = London Interbank Offered Rate / MX$ = Mexican Peso / TIIE = Mexican Interbank Interest Rate Even / CDI = interbank certificate of deposit rate / TJLP = basic financing cost of BNDES (set by National Monetary Council). On June 30, 2014, TJLP was fixed at 5% p.a. / IGPM = General Index of Market Prices
B55: 2. | C55: The company contracted hedging against foreign exchange exposure and interest rate for some debt.
B57: 3. | C57: For this loan, a hedging instrument was hired with the objective of swapping the fixed to floating rate, equivalent to 99.50% of CDI.
B59: 4. | C59: For this loan, a hedging instrument was hired with the objective of swapping the fixed to floating rate, equivalent to 104.10% of CDI.
B61: 5. | C61: For this loan, a hedging instrument was hired with the objective of swapping the fixed to floating rate, equivalent to 88.81% of CDI.
B63: 6. | C63: As provided in IAS 39, transaction costs incurred in obtaining financial resources were deducted from the value of the financial instrument, and as provided in Resolution CVM 604/09, loans was recognised at fair value. The amount to be appropriated to income in the future is as follows:
C65: Transaction costs | D65: Amount to be appropriated | E65: Profile
E66: up to 12 months | F66: from 12 to 24 | G66: from 24 to 36 | H66: from 36 to 48 | I66: from 48 to 60 | J66: > 60 months
C67: Banco do Brasil | D67: -16.453 | E67: -3.89 | F67: -2.452 | G67: -2.951 | H67: -3.514 | I67: -3.646 | J67: 0 | O67: =+D67-SUM(E67:J67) -> 0
C68: Debentures | D68: -4.257 | E68: -3.052 | F68: -0.321 | G68: -0.354 | H68: -0.353 | I68: -0.177 | J68: 0 | O68: 0
C69: Notes | D69: -1.628 | E69: -1.085 | F69: -0.543 | G69: 0 | H69: 0 | I69: 0 | J69: 0 | O69: 0
C70: Others | D70: -1.921 | E70: -0.8 | F70: -0.703 | G70: -0.389 | H70: -0.029 | I70: 0 | J70: 0 | O70: 0
D71: 0 | E71: 0 | F71: 0 | G71: 0 | H71: 0 | I71: 0 | J71: 0 | O71: 0
C72: Total | D72: -24.259 | E72: -8.827 | F72: -4.019 | G72: -3.694 | H72: -3.896 | I72: -3.823 | J72: 0 | O72: 0
C74: As provided in Resolution CVM 604/09 (November 19, 2009), the amortization of fair value adjustment is as follows:
C76: Fair value adjustment | D76: Amount to be amortized | E76: Profile
E77: up to 12 months | F77: from 12 to 24 | G77: from 24 to 36 | H77: from 36 to 48 | I77: from 48 to 60 | J77: > 60 months
C78: Banco do Brasil | D78: 4.521865608 | E78: 4.522 | F78: 0 | G78: 0 | H78: 0 | I78: 0 | J78: 0 | O78: =+D78-SUM(E78:J78) -> -0.000134392205
C79: Foreign loan | D79: -0.6727631948 | E79: -0.9630602718 | F79: 0.290297077 | G79: 0 | H79: 0 | I79: 0 | J79: 0 | O79: =+D79-SUM(E79:J79) -> 0
C80: Export Credit Note | D80: -2.019514939 | E80: -0.3462776314 | F80: -1.071806256 | G80: -0.6014310512 | H80: 0 | I80: 0 | J80: 0
C81: Total | D81: 1.829587474 | E81: 3.212662097 | F81: -0.7815091791 | G81: -0.6014310512 | H81: 0 | I81: 0 | J81: 0 | O81: =+D81-SUM(E81:J81) -> -0.000134392205

Sheet 3Q14
A7: Financing and debentures (R$ million) | D7: Index/ Currency ¹ | E7: Average weighted interest rate (% p.y.) ² | F7: Balance 6 Sep-14 | G7: Maturity | H7: Amortization Profile | N7: Transaction costs / fair value adjustment 6
H8: up to 12 months | I8: from 12 to 24 | J8: from 24 to 36 | K8: from 36 to 48 | L8: from 48 to 60 | M8: > 60 months
B9: Foreing Currency
C11: Notes | D11: US$ | E11: +7,3 | F11: 623.58 | G11: 2015-12-20 | H11: 12.34 | I11: 612.75 | J11: 0 | K11: 0 | L11: 0 | M11: 0 | N11: -1.51
C12: Foreign loan 4 | D12: US$ + LIBOR | E12: +0,6 | F12: 562.286 | G12: 2015 to 2017 | H12: 0.458 | I12: 196.08 | J12: 367.65 | K12: 0 | L12: 0 | M12: 0 | N12: -1.902
C13: Advances on Foreign Exchange Contracts (ACC) | D13: US$ | E13: +1,2 | F13: 156.238 | G13: < 358 days | H13: 156.238 | I13: 0 | J13: 0 | K13: 0 | L13: 0 | M13: 0 | N13: -
C14: Foreign loan | D14: US$ + LIBOR | E14: +1,0 | F14: 146.167 | G14: 2017-01-17 | H14: 0.498 | I14: 0 | J14: 147.06 | K14: 0 | L14: 0 | M14: 0 | N14: -1.392
C15: Financial institutions | D15: US$ | E15: +2,1 | F15: 106.558 | G15: 2014 to 2017 | H15: 57.322 | I15: 0 | J15: 49.235 | K15: 0 | L15: 0 | M15: 0 | N15: -
C16: Financial institutions | D16: US$ + LIBOR | E16: +2,0 | F16: 49.269 | G16: 2017-10-02 | H16: 0.28 | I16: 0 | J16: 32.823 | K16: 16.412 | L16: 0 | M16: 0 | N16: -0.246
C17: BNDES | D17: US$ | E17: +6,1 | F17: 35.261 | G17: 2014 to 2020 | H17: 17.67 | I17: 11.93 | J17: 2.521 | K17: 1.491 | L17: 1.236 | M17: 0.412 | N17: -
C18: Financial institutions | D18: MX$ + TIIE | E18: +1,0 | F18: 32.677 | G18: 2015 to 2016 | H18: 22.039 | I18: 10.638 | J18: 0 | K18: 0 | L18: 0 | M18: 0 | N18: -
C19: Advances on Foreign Exchange Contracts (ACE) | D19: US$ | E19: +0,7 | F19: 5.026 | G19: < 88 days | H19: 5.026 | I19: 0 | J19: 0 | K19: 0 | L19: 0 | M19: 0 | N19: -
C21: Sub Total foreing currency | F21: 1717.063 | H21: 271.871 | I21: 831.398 | J21: 599.289 | K21: 17.903 | L21: 1.236 | M21: 0.412 | N21: -5.05
B23: Local Currency
C25: Banco do Brasil floating rate | D25: CDI | E25: 104.6 | F25: 2792.03 | G25: 2015 to 2019 | H25: 654.081 | I25: 266.667 | J25: 977.355 | K25: 0 | L25: 908.021 | M25: 0 | N25: -14.093
C26: Debentures - 1st and 2nd issuances IPP | D26: CDI | E26: 107.9 | F26: 1450.142351 | G26: 2017 to 2018 | H26: 51.569014 | I26: 0 | J26: 0 | K26: 600 | L26: 800 | M26: 0 | N26: -1.426663241
C27: Debentures - 4th issuance | D27: CDI | E27: 108.3 | F27: 847.8933055 | G27: 2015-03-16 | H27: 849.693648 | I27: 0 | J27: 0 | K27: 0 | L27: 0 | M27: 0 | N27: -1.800342527
C28: BNDES | D28: TJLP | E28: +2,6 | F28: 561.495 | G28: 2014 to 2020 | H28: 170.04 | I28: 151.508 | J28: 109.513 | K28: 65.163 | L28: 50.035 | M28: 15.24 | N28: -0.005
C29: Banco do Brasil fixed rate ³ | D29: R$ | E29: +12,1 | F29: 491.275 | G29: 2015-05-21 | H29: 490.454 | I29: 0 | J29: 0 | K29: 0 | L29: 0 | M29: 0 | N29: 0.822
C30: Banco do Nordeste do Brasil | D30: R$ | E30: +8,5 | F30: 89.789 | G30: 2018 to 2021 | H30: 19.333 | I30: 18.873 | J30: 18.873 | K30: 15.582 | L30: 5.709 | M30: 11.419 | N30: -
C31: Research and projects financing (FINEP) | D31: R$ | E31: +4,0 | F31: 59.7 | G31: 2019 to 2021 | H31: 10.043 | I31: 10.607 | J31: 10.607 | K31: 10.607 | L31: 8.948 | M31: 8.936 | N31: -
C32: BNDES | D32: R$ | E32: +4,6 | F32: 56.371 | G32: 2015 to 2022 | H32: 19.734 | I32: 15.231 | J32: 9.15 | K32: 6.544 | L32: 4.7 | M32: 1.012 | N32: -
C33: Financial leasing | D33: IGPM | E33: +5,6 | F33: 46.316 | G33: 2031-04-06 | H33: 1.927 | I33: 1.858 | J33: 1.962 | K33: 2.072 | L33: 2.188 | M33: 36.309 | N33: -
C34: Working capital loan - floating rate | D34: CDI | E34: +2,5 | F34: 28.164 | G34: 2014 to 2017 | H34: 22.92 | I34: 3.67 | J34: 1.525 | K34: 0.049 | L34: 0 | M34: 0 | N34: -
C35: Export Credit Note 5 | D35: R$ | E35: +8,0 | F35: 25.699 | G35: 2016-08-01 | H35: 0.21159398 | I35: 27.5 | J35: 0 | K35: 0 | L35: 0 | M35: 0 | N35: -2.012454407
C36: Research and projects financing (FINEP) | D36: TJLP | E36: -1.2 | F36: 8.214 | G36: 2023-10-16 | H36: 0.876 | I36: 1.173 | J36: 1.43 | K36: 1.43 | L36: 1.287 | M36: 2.017 | N36: -
C37: Working capital loan - fixed rate | D37: R$ | E37: +10,9 | F37: 4.278 | G37: 2014 to 2016 | H37: 2.548 | I37: 1.73 | J37: 0 | K37: 0 | L37: 0 | M37: 0 | N37: -
C38: Financial leasing fixed rate | D38: R$ | E38: +15,6 | F38: 0.951 | G38: 2014 to 2017 | H38: 0.82 | I38: 0.081 | J38: 0.04 | K38: 0.011 | L38: 0 | M38: 0 | N38: -
C39: Agency for Financing Machinery and Equipment (FINAME) | D39: TJLP | E39: +5,6 | F39: 0.543 | G39: 2016 to 2022 | H39: 0.245 | I39: 0.198 | J39: 0.057 | K39: 0.01 | L39: 0.01 | M39: 0.023 | N39: -
C40: Financial leasing floating rate | D40: CDI | E40: +2,8 | F40: 0.507 | G40: 2017-05-14 | H40: 0.186 | I40: 0.191 | J40: 0.13 | K40: 0 | L40: 0 | M40: 0 | N40: -
C43: Sub Total local currency | F43: 6463.418 | H43: 2294.682256 | I43: 499.287 | J43: 1130.642 | K43: 701.468 | L43: 1780.898 | M43: 74.956 | N43: -18.51546017
C45: Unrealized losses on swaps transactions | F45: 12.256 | H45: 11.381 | I45: 0.875 | J45: 0 | K45: 0 | L45: 0 | M45: 0
B47: Total | F47: 8192.736 | H47: 2577.934256 | I47: 1331.56 | J47: 1729.931 | K47: 719.371 | L47: 1782.134 | M47: 75.368 | N47: -23.56546017
C49: Transaction costs and fair value adjustment 6 | H49: -7.545 | I49: -4.287 | J49: -4.95 | K49: -4.023 | L49: -2.76 | M49: 0 | N49: -23.56546017
B51: Total | F51: 8192.736 | H51: 2570.388 | I51: 1327.272 | J51: 1724.983 | K51: 715.348 | L51: 1779.375 | M51: 75.369
B53: 1. | C53: Libor = London Interbank Offered Rate / MX$ = Mexican Peso / TIIE = Mexican Interbank Interest Rate Even / CDI = interbank certificate of deposit rate / TJLP = basic financing cost of BNDES (set by National Monetary Council). On September 30, 2014, TJLP was fixed at 5% p.a. / IGPM = General Index of Market Prices
B55: 2. | C55: The company contracted hedging against foreign exchange exposure and interest rate for some debt.
B57: 3. | C57: For this loan, a hedging instrument was hired with the objective of swapping the fixed to floating rate, equivalent to 99.50% of CDI.
B59: 4. | C59: For this loan, a hedging instrument was hired with the objective of swapping the fixed to floating rate, equivalent to 103.83% of CDI.
B61: 5. | C61: For this loan, a hedging instrument was hired with the objective of swapping the fixed to floating rate, equivalent to 88.81% of CDI.
B63: 6. | C63: As provided in IAS 39, transaction costs incurred in obtaining financial resources were deducted from the value of the financial instrument, and as provided in Resolution CVM 604/09, loans was recognised at fair value. The amount to be appropriated to income in the future is as follows:
C65: Transaction costs | D65: Amount to be appropriated | E65: Profile
E66: up to 12 months | F66: from 12 to 24 | G66: from 24 to 36 | H66: from 36 to 48 | I66: from 48 to 60 | J66: > 60 months
C67: Banco do Brasil | D67: -15.492 | E67: -3.502 | F67: -2.575 | G67: -3.078 | H67: -3.668 | I67: -2.67 | J67: 0
C68: Debentures | D68: -3.227 | E68: -2.099 | F68: -0.329 | G68: -0.362 | H68: -0.346 | I68: -0.091 | J68: 0
C69: Notes | D69: -1.51 | E69: -1.208 | F69: -0.302 | G69: 0 | H69: 0 | I69: 0 | J69: 0
C70: Others | D70: -3.554 | E70: -1.416 | F70: -1.273 | G70: -0.856 | H70: -0.008 | I70: 0 | J70: 0
D71: 0 | E71: 0 | F71: 0 | G71: 0 | H71: 0 | I71: 0 | J71: 0
C72: Total | D72: -23.783 | E72: -8.225 | F72: -4.479 | G72: -4.296 | H72: -4.022 | I72: -2.761 | J72: 0
C74: As provided in Resolution CVM 604/09 (November 19, 2009), the amortization of fair value adjustment is as follows:
C76: Fair value adjustment | D76: Amount to be amortized | E76: Profile
E77: up to 12 months | F77: from 12 to 24 | G77: from 24 to 36 | H77: from 36 to 48 | I77: from 48 to 60 | J77: > 60 months
C78: Banco do Brasil | D78: 2.220646855 | E78: 2.221 | F78: 0 | G78: 0 | H78: 0 | I78: 0 | J78: 0
C79: Foreign loan | D79: 0.009083434655 | E79: -1.19491811 | F79: 1.85824165 | G79: -0.6542401052 | H79: 0 | I79: 0 | J79: 0
C80: Export Credit Note | D80: -2.012454407 | E80: -0.3462776314 | F80: -1.666176775 | G80: 0 | H80: 0 | I80: 0 | J80: 0
C81: Total | D81: 0.2172758836 | E81: 0.6798042586 | F81: 0.1920648747 | G81: -0.6542401052 | H81: 0 | I81: 0 | J81: 0

Sheet 4Q14
A7: Financing and debentures (R$ million) | D7: Index/ Currency ¹ | E7: Average weighted interest rate (% p.y.) ² | F7: Balance 6 Dec-14 | G7: Maturity | H7: Amortization Profile | N7: Transaction costs / fair value adjustment 6
H8: up to 12 months | I8: from 12 to 24 | J8: from 24 to 36 | K8: from 36 to 48 | L8: from 48 to 60 | M8: > 60 months
B9: Foreing Currency
C11: Notes | D11: US$ | E11: +7,3 | F11: 664.078 | G11: 2015-12-20 | H11: 665.387 | I11: 0 | J11: 0 | K11: 0 | L11: 0 | M11: 0 | N11: -1.309
C12: Foreign loan 4 | D12: US$ + LIBOR | E12: +0,6 | F12: 603.002 | G12: 2015 to 2017 | H12: 213.002 | I12: 0 | J12: 398.43 | K12: 0 | L12: 0 | M12: 0 | N12: -8.431
C13: Advances on Foreign Exchange Contracts (ACC) | D13: US$ | E13: +1,1 | F13: 184.057 | G13: < 344 days | H13: 184.057 | I13: 0 | J13: 0 | K13: 0 | L13: 0 | M13: 0 | N13: -
C14: Foreign loan | D14: US$ + LIBOR | E14: +1,0 | F14: 158.039 | G14: 2017-01-17 | H14: 0.006 | I14: 0 | J14: 159.372 | K14: 0 | L14: 0 | M14: 0 | N14: -1.339
C15: Financial institutions | D15: US$ | E15: +2,9 | F15: 113.873 | G15: 2015 to 2017 | H15: 60.681 | I15: 0 | J15: 53.193 | K15: 0 | L15: 0 | M15: 0 | N15: -
C16: Financial institutions | D16: US$ + LIBOR | E16: +2,0 | F16: 53.254 | G16: 2016 to 2017 | H16: 0.302 | I16: 17.731 | J16: 35.462 | K16: 0 | L16: 0 | M16: 0 | N16: -0.241
C17: BNDES | D17: US$ | E17: +6,0 | F17: 33.16 | G17: 2015 to 2020 | H17: 18.062 | I17: 10.221 | J17: 1.93 | K17: 1.497 | L17: 1.339 | M17: 0.112 | N17: -
C18: Financial institutions | D18: MX$ + TIIE | E18: +1,0 | F18: 32.343 | G18: 2015 to 2016 | H18: 21.822 | I18: 10.521 | J18: 0 | K18: 0 | L18: 0 | M18: 0 | N18: -
C19: Advances on Foreign Exchange Contracts (ACE) | D19: US$ | E19: +5,4 | F19: 25.409 | G19: < 55 days | H19: 25.409 | I19: 0 | J19: 0 | K19: 0 | L19: 0 | M19: 0 | N19: -
C21: Sub Total foreing currency | F21: 1867.216 | H21: 1188.728 | I21: 38.473 | J21: 648.387 | K21: 1.497 | L21: 1.339 | M21: 0.112 | N21: -11.32
B23: Local Currency
C25: Banco do Brasil floating rate | D25: CDI | E25: 104.6 | F25: 2873.622 | G25: 2015 to 2019 | H25: 631.517 | I25: 315.758 | J25: 1005.842 | K25: 0 | L25: 934.106 | M25: 0 | N25: -13.602
C26: Debentures - 1st and 2nd issuances IPP | D26: CDI | E26: 107.9 | F26: 1409.541158 | G26: 2017 to 2018 | H26: 10.894638 | I26: 0 | J26: 600 | K26: 800 | L26: 0 | M26: 0 | N26: -1.35348006
C27: Debentures - 4th issuance | D27: CDI | E27: 108.3 | F27: 874.3117338 | G27: 2015-03-16 | H27: 875.115048 | I27: 0 | J27: 0 | K27: 0 | L27: 0 | M27: 0 | N27: -0.8033142225
C28: BNDES | D28: TJLP | E28: +2,6 | F28: 530.983 | G28: 2015 to 2021 | H28: 171.963 | I28: 142.728 | J28: 101.52 | K28: 59.771 | L28: 48.03 | M28: 6.973 | N28: -0.002
C29: Banco do Brasil fixed rate ³ | D29: R$ | E29: +12,1 | F29: 503.898 | G29: 2015-05-21 | H29: 504.823 | I29: 0 | J29: 0 | K29: 0 | L29: 0 | M29: 0 | N29: -0.926
C30: Banco do Nordeste do Brasil | D30: R$ | E30: +8,5 | F30: 85.068 | G30: 2015 to 2021 | H30: 19.33 | I30: 18.873 | J30: 18.873 | K30: 12.291 | L30: 5.709 | M30: 9.992 | N30: -
C31: Research and projects financing (FINEP) | D31: R$ | E31: +4,0 | F31: 74.774 | G31: 2015 to 2021 | H31: 13.158 | I31: 13.034 | J31: 13.034 | K31: 13.034 | L31: 9.716 | M31: 12.797 | N31: -
C32: BNDES | D32: R$ | E32: +4,6 | F32: 62.581 | G32: 2015 to 2022 | H32: 21.151 | I32: 16.062 | J32: 10.17 | K32: 8.204 | L32: 6.15 | M32: 0.844 | N32: -0.029
C33: Financial leasing | D33: IGPM | E33: +5,6 | F33: 45.883 | G33: 2015 to 2031 | H33: 1.95 | I33: 1.883 | J33: 1.989 | K33: 2.1 | L33: 2.218 | M33: 35.743 | N33: -
C34: Export Credit Note 5 | D34: R$ | E34: +8,0 | F34: 25.744 | G34: 2016-08-01 | H34: 0.21102329 | I34: 27.5 | J34: 0 | K34: 0 | L34: 0 | M34: 0 | N34: -1.967313281
C35: Research and projects financing (FINEP) | D35: TJLP | E35: -1.3 | F35: 9.078 | G35: 2015 to 2023 | H35: 0.932 | I35: 1.297 | J35: 1.583 | K35: 1.583 | L35: 1.225 | M35: 2.459 | N35: -
C36: Working capital loan - fixed rate | D36: R$ | E36: +10,4 | F36: 3.445 | G36: 2015 to 2016 | H36: 2.291 | I36: 1.155 | J36: 0 | K36: 0 | L36: 0 | M36: 0 | N36: -
C37: Financial leasing fixed rate | D37: R$ | E37: +15,6 | F37: 0.686 | G37: 2015 to 2017 | H37: 0.591 | I37: 0.054 | J37: 0.041 | K37: 0 | L37: 0 | M37: 0 | N37: -
C38: Agency for Financing Machinery and Equipment (FINAME) | D38: TJLP | E38: +5,6 | F38: 0.484 | G38: 2015 to 2022 | H38: 0.245 | I38: 0.175 | J38: 0.024 | K38: 0.01 | L38: 0.01 | M38: 0.021 | N38: -
C39: Financial leasing floating rate | D39: CDI | E39: +2,8 | F39: 0.474 | G39: 2015 to 2017 | H39: 0.193 | I39: 0.197 | J39: 0.084 | K39: 0 | L39: 0 | M39: 0 | N39: -
C42: Sub Total local currency | F42: 6500.572 | H42: 2254.365709 | I42: 538.716 | J42: 1753.16 | K42: 896.993 | L42: 1007.164 | M42: 68.829 | N42: -18.68310756
C44: Unrealized losses on swaps transactions | F44: 7.424 | H44: 6.456 | I44: 0.968 | J44: 0 | K44: 0 | L44: 0 | M44: 0
B46: Total | F46: 8375.213 | H46: 3449.549709 | I46: 578.157 | J46: 2401.547 | K46: 898.49 | L46: 1008.503 | M46: 68.941 | N46: -30.00310756
C48: Transaction costs and fair value adjustment 6 | H48: -7.19 | I48: -6.174 | J48: -10.805 | K48: -4.193 | L48: -1.638 | M48: -0.001 | N48: -30.00310756
B50: Total | F50: 8375.213 | H50: 3442.365 | I50: 571.991 | J50: 2390.747 | K50: 894.301 | L50: 1006.868 | M50: 68.94
B52: 1. | C52: Libor = London Interbank Offered Rate / MX$ = Mexican Peso / TIIE = Mexican Interbank Interest Rate Even / CDI = interbank certificate of deposit rate / TJLP = basic financing cost of BNDES (set by National Monetary Council). On December 31, 2014, TJLP was fixed at 5% p.a. / IGPM = General Index of Market Prices
B54: 2. | C54: The company contracted hedging against foreign exchange exposure and interest rate for some debt.
B56: 3. | C56: For this loan, a hedging instrument was hired with the objective of swapping the fixed to floating rate, equivalent to 99.50% of CDI.
B58: 4. | C58: For this loan, a hedging instrument was hired with the objective of swapping the fixed to floating rate, equivalent to 103.83% of CDI.
B60: 5. | C60: For this loan, a hedging instrument was hired with the objective of swapping the fixed to floating rate, equivalent to 88.79% of CDI.
B62: 6. | C62: As provided in IAS 39, transaction costs incurred in obtaining financial resources were deducted from the value of the financial instrument, and as provided in Resolution CVM 604/09, loans was recognised at fair value. The amount to be appropriated to income in the future is as follows:
C64: Transaction costs | D64: Amount to be appropriated | E64: Profile
E65: up to 12 months | F65: from 12 to 24 | G65: from 24 to 36 | H65: from 36 to 48 | I65: from 48 to 60 | J65: > 60 months
C66: Banco do Brasil | D66: -14.474 | E66: -3.086 | F66: -2.69 | G66: -3.218 | H66: -3.844 | I66: -1.635 | J66: 0
C67: Debentures | D67: -2.157 | E67: -1.109 | F67: -0.337 | G67: -0.366 | H67: -0.345 | I67: 0 | J67: 0
C68: Notes | D68: -1.309 | E68: -1.309 | F68: 0 | G68: 0 | H68: 0 | I68: 0 | J68: 0
C69: Others | D69: -3.334 | E69: -1.46 | F69: -1.297 | G69: -0.569 | H69: -0.004 | I69: -0.003 | J69: -0.001
D70: 0 | E70: 0 | F70: 0 | G70: 0 | H70: 0 | I70: 0 | J70: 0
C71: Total | D71: -21.274 | E71: -6.964 | F71: -4.324 | G71: -4.153 | H71: -4.193 | I71: -1.638 | J71: -0.001
C73: As provided in Resolution CVM 604/09 (November 19, 2009), the amortization of fair value adjustment is as follows:
C75: Fair value adjustment | D75: Amount to be amortized | E75: Profile
E76: up to 12 months | F76: from 12 to 24 | G76: from 24 to 36 | H76: from 36 to 48 | I76: from 48 to 60 | J76: > 60 months
C77: Banco do Brasil | D77: -0.05349161092 | E77: -0.053 | F77: 0 | G77: 0 | H77: 0 | I77: 0 | J77: 0
C78: Foreign loan | D78: -6.70700825 | E78: 0.1725153077 | F78: -0.2285095782 | G78: -6.65101398 | H78: 0 | I78: 0 | J78: 0
C79: Export Credit Note | D79: -1.967313281 | E79: -0.3462776314 | F79: -1.62103565 | G79: 0 | H79: 0 | I79: 0 | J79: 0
C80: Total | D80: -8.727813142 | E80: -0.2267623236 | F80: -1.849545228 | G80: -6.65101398 | H80: 0 | I80: 0 | J80: 0

Sheet 1Q15
A7: Financing and debentures (R$ million) | D7: Index/ Currency ¹ | E7: Average weighted interest rate (% p.y.) ² | F7: Balance 7 Mar-15 | G7: Maturity | H7: Amortization Profile | N7: Transaction costs / fair value adjustment 7
H8: up to 12 months | I8: from 12 to 24 | J8: from 24 to 36 | K8: from 36 to 48 | L8: from 48 to 60 | M8: > 60 months
B9: Foreing Currency
C11: Notes | D11: US$ | E11: +7,3 | F11: 816.966 | G11: 2015-12-21 | H11: 818.151 | I11: 0 | J11: 0 | K11: 0 | L11: 0 | M11: 0 | N11: -1.186
C12: Foreign loan 4 | D12: US$ + LIBOR | E12: +0,6 | F12: 715.645 | G12: 2015 to 2017 | H12: 257.252 | I12: 0 | J12: 481.2 | K12: 0 | L12: 0 | M12: 0 | N12: -22.807
C13: Advances on Foreign Exchange Contracts (ACC) | D13: US$ | E13: +1,2 | F13: 232.104 | G13: < 356 days | H13: 232.104 | I13: 0 | J13: 0 | K13: 0 | L13: 0 | M13: 0 | N13: -
C14: Foreign loan 6 | D14: US$ | E14: +2,0 | F14: 217.124 | G14: 2017-03-30 | H14: 0.015 | I14: 224.56 | J14: 0 | K14: 0 | L14: 0 | M14: 0 | N14: -7.45
C15: Foreign loan | D15: US$ + LIBOR | E15: +1,0 | F15: 191.728 | G15: 2017-01-17 | H15: 0.66 | I15: 192.48 | J15: 0 | K15: 0 | L15: 0 | M15: 0 | N15: -1.413
C16: Financial institutions | D16: US$ | E16: +2,9 | F16: 141.435 | G16: 2015 to 2017 | H16: 77.294 | I16: 0 | J16: 64.141 | K16: 0 | L16: 0 | M16: 0 | N16: -
C17: Financial institutions | D17: US$ + LIBOR | E17: +2,0 | F17: 64.256 | G17: 2016 to 2017 | H17: 0.375 | I17: 21.38 | J17: 42.761 | K17: 0 | L17: 0 | M17: 0 | N17: -0.26
C18: Financial institutions | D18: MX$ + TIIE | E18: +1,0 | F18: 60.877 | G18: 2015 to 2016 | H18: 50.777 | I18: 10.099 | J18: 0 | K18: 0 | L18: 0 | M18: 0 | N18: -
C19: BNDES | D19: US$ | E19: +6,0 | F19: 36.409 | G19: 2015 to 2020 | H19: 20.703 | I19: 9.48 | J19: 2.556 | K19: 2.024 | L19: 1.646 | M19: 0 | N19: -
C20: Advances on Foreign Exchange Contracts (ACE) | D20: US$ | E20: +1,1 | F20: 11.414 | G20: < 56 days | H20: 11.414 | I20: 0 | J20: 0 | K20: 0 | L20: 0 | M20: 0 | N20: -
C22: Sub Total foreing currency | F22: 2487.958 | H22: 1468.745 | I22: 457.999 | J22: 590.658 | K22: 2.024 | L22: 1.646 | M22: 0 | N22: -33.116
B24: Local Currency
C26: Banco do Brasil floating rate | D26: CDI | E26: 104.8 | F26: 2887.853 | G26: 2015 to 2019 | H26: 449.953 | I26: 1156.286 | J26: 333.333 | K26: 0 | L26: 961.381 | M26: 0 | N26: -13.1
C27: Debentures - 1st and 2nd issuances IPP | D27: CDI | E27: 107.9 | F27: 1452.377941 | G27: 2017 to 2018 | H27: 53.658856 | I27: 0 | J27: 600 | K27: 800 | L27: 0 | M27: 0 | N27: -1.280915385
C28: Debentures - 4th issuance | D28: CDI | E28: 108.3 | F28: 803.5420381 | G28: 2018-03-16 | H28: 4.500016 | I28: 0 | J28: 800 | K28: 0 | L28: 0 | M28: 0 | N28: -0.9579779093
C29: Banco do Brasil fixed rate ³ | D29: R$ | E29: +12,1 | F29: 518.845 | G29: 2015-05-21 | H29: 519.288 | I29: 0 | J29: 0 | K29: 0 | L29: 0 | M29: 0 | N29: -0.443
C30: BNDES | D30: TJLP | E30: +2,1 | F30: 500.705 | G30: 2015 to 2021 | H30: 171.852 | I30: 133.627 | J30: 92.947 | K30: 57.623 | L30: 41.454 | M30: 3.203 | N30: 0
C31: Banco do Nordeste do Brasil | D31: R$ | E31: +8,5 | F31: 80.342 | G31: 2015 to 2021 | H31: 19.323 | I31: 18.873 | J31: 18.873 | K31: 9 | L31: 5.709 | M31: 8.564 | N31: -
C32: Research and projects financing (FINEP) | D32: R$ | E32: +4,0 | F32: 71.516 | G32: 2015 to 2021 | H32: 13.159 | I32: 13.034 | J32: 13.034 | K32: 13.034 | L32: 8.057 | M32: 11.198 | N32: -
C33: BNDES | D33: R$ | E33: +4,7 | F33: 64.642 | G33: 2015 to 2022 | H33: 21.651 | I33: 16.022 | J33: 11.155 | K33: 9.212 | L33: 6.114 | M33: 0.488 | N33: -0.027
C34: Financial leasing | D34: IGPM | E34: +5,6 | F34: 45.445 | G34: 2015 to 2031 | H34: 1.973 | I34: 1.909 | J34: 2.016 | K34: 2.129 | L34: 2.248 | M34: 35.169 | N34: -
C35: Export Credit Note 5 | D35: R$ | E35: +8,0 | F35: 25.953 | G35: 2016-08-01 | H35: 17.70509985 | I35: 10 | J35: 0 | K35: 0 | L35: 0 | M35: 0 | N35: -1.752036071
C36: Research and projects financing (FINEP) | D36: TJLP | E36: -1.3 | F36: 8.864 | G36: 2016 to 2023 | H36: 1.018 | I36: 1.392 | J36: 1.583 | K36: 1.583 | L36: 1.01 | M36: 2.278 | N36: -
C37: Working capital loan - fixed rate | D37: R$ | E37: +10,4 | F37: 2.895 | G37: 2015 to 2016 | H37: 2.215 | I37: 0.679 | J37: 0 | K37: 0 | L37: 0 | M37: 0 | N37: -
C38: BNDES | D38: SELIC | E38: +2,2 | F38: 1.966277203 | G38: 2015 to 2020 | H38: 0.1680812 | I38: 0.42 | J38: 0.42 | K38: 0.42 | L38: 0.42 | M38: 0.28 | N38: -0.161803997
C39: Financial leasing floating rate | D39: CDI | E39: +2,8 | F39: 0.438 | G39: 2015 to 2017 | H39: 0.199 | I39: 0.204 | J39: 0.035 | K39: 0 | L39: 0 | M39: 0 | N39: -
C40: Agency for Financing Machinery and Equipment (FINAME) | D40: TJLP | E40: +5,1 | F40: 0.424 | G40: 2015 to 2022 | H40: 0.244 | I40: 0.132 | J40: 0.01 | K40: 0.01 | L40: 0.01 | M40: 0.018 | N40: -
C41: Financial leasing fixed rate | D41: R$ | E41: +15,4 | F41: 0.413 | G41: 2015 to 2017 | H41: 0.339 | I41: 0.042 | J41: 0.032 | K41: 0 | L41: 0 | M41: 0 | N41: -
C44: Sub Total local currency | F44: 6466.221 | H44: 1277.247053 | I44: 1352.62 | J44: 1873.438 | K44: 893.011 | L44: 1026.403 | M44: 61.198 | N44: -17.72273336
C46: Unrealized losses on swaps transactions | F46: 23.872 | H46: 13.32 | I46: 10.552 | J46: 0 | K46: 0 | L46: 0 | M46: 0
B48: Total | F48: 8978.051 | H48: 2759.312053 | I48: 1821.171 | J48: 2464.096 | K48: 895.035 | L48: 1028.049 | M48: 61.198 | N48: -50.83873336
C50: Transaction costs and fair value adjustment 7 | H50: -13.017 | I50: -11.319 | J50: -21.606 | K50: -4.284 | L50: -0.607 | M50: -0.004 | N50: -50.83873336
B52: Total | F52: 8978.051 | H52: 2746.301 | I52: 1809.86 | J52: 2442.495 | K52: 890.755 | L52: 1027.446 | M52: 61.194 | N52: 0
B54: 1. | C54: Libor = London Interbank Offered Rate / MX$ = Mexican Peso / TIIE = Mexican Interbank Interest Rate Even / CDI = interbank certificate of deposit rate / TJLP = basic financing cost of BNDES (set by National Monetary Council). On March 31, 2015, TJLP was fixed at 5.5% p.a. / IGPM = General Index of Market Prices / SELIC = base interest rate set by the Brazilian Central Bank
B56: 2. | C56: The company contracted hedging against foreign exchange exposure and interest rate for some debt.
B58: 3. | C58: For this loan, a hedging instrument was hired with the objective of swapping the fixed to floating rate, equivalent to 99.50% of CDI.
B60: 4. | C60: For this loan, a hedging instrument was hired with the objective of swapping the fixed to floating rate, equivalent to 103.83% of CDI.
B62: 5. | C62: For this loan, a hedging instrument was hired with the objective of swapping the fixed to floating rate, equivalent to 88.80% of CDI.
B64: 6. | C64: For this loan, a hedging instrument was hired with the objective of swapping the fixed to floating rate, equivalent to 99.50% of CDI.
B66: 7. | C66: As provided in IAS 39, transaction costs incurred in obtaining financial resources were deducted from the value of the financial instrument, and as provided in Resolution CVM 604/09, loans was recognised at fair value. The amount to be appropriated to income in the future is as follows:
C68: Transaction costs | D68: Amount to be appropriated | E68: Profile
E69: up to 12 months | F69: from 12 to 24 | G69: from 24 to 36 | H69: from 36 to 48 | I69: from 48 to 60 | J69: > 60 months
C70: Banco do Brasil | D70: -13.424 | E70: -2.66 | F70: -2.819 | G70: -3.364 | H70: -3.992 | I70: -0.59 | J70: 0
C71: Debentures | D71: -2.239 | E71: -0.593 | F71: -0.663 | G71: -0.721 | H71: -0.263 | I71: 0 | J71: 0
C72: Notes | D72: -1.186 | E72: -1.186 | F72: 0 | G72: 0 | H72: 0 | I72: 0 | J72: 0
C73: Foreign loan | D73: -2.914 | E73: -1.435 | F73: -1.196 | G73: -0.284 | H73: 0 | I73: 0 | J73: 0
C74: Others | D74: -0.483 | E74: -0.15 | F74: -0.171 | G74: -0.112 | H74: -0.029 | I74: -0.017 | J74: -0.004
C75: Total | D75: -20.246 | E75: -6.024 | F75: -4.849 | G75: -4.481 | H75: -4.284 | I75: -0.607 | J75: -0.004
C77: As provided in Resolution CVM 604/09 (November 19, 2009), the amortization of fair value adjustment is as follows:
C79: Fair value adjustment | D79: Amount to be amortized | E79: Profile
E80: up to 12 months | F80: from 12 to 24 | G80: from 24 to 36 | H80: from 36 to 48 | I80: from 48 to 60 | J80: > 60 months
C81: Banco do Brasil | D81: -0.1184088294 | E81: -0.118 | F81: 0 | G81: 0 | H81: 0 | I81: 0 | J81: 0
C82: Foreign loan | D82: -21.27087818 | E82: -3.916086985 | F82: -0.2289849243 | G82: -17.12580627 | H82: 0 | I82: 0 | J82: 0
C83: Foreign loan 6 | D83: -7.450473429 | E83: -1.886084919 | F83: -5.56438851 | G83: 0 | H83: 0 | I83: 0 | J83: 0
C84: Export Credit Note | D84: -1.752036071 | E84: -1.074372991 | F84: -0.6776630807 | G84: 0 | H84: 0 | I84: 0 | J84: 0
C85: Total | D85: -30.5917965 | E85: -6.994544895 | F85: -6.471036515 | G85: -17.12580627 | H85: 0 | I85: 0 | J85: 0

Sheet 2Q15
A7: Financing and debentures (R$ million) | D7: Index/ Currency ¹ | E7: Average weighted interest rate (% p.y.) ² | F7: Balance 6 Jun-15 | G7: Maturity | H7: Amortization Profile | N7: Transaction costs / fair value adjustment 6
H8: up to 12 months | I8: from 12 to 24 | J8: from 24 to 36 | K8: from 36 to 48 | L8: from 48 to 60 | M8: > 60 months
B9: Foreing Currency
C11: Notes | D11: US$ | E11: +7,3 | F11: 776.448 | G11: 2015-12-21 | H11: 777.212 | I11: 0 | J11: 0 | K11: 0 | L11: 0 | M11: 0 | N11: -0.764
C12: Foreign loan 3 | D12: US$ + LIBOR | E12: +0,6 | F12: 712.545 | G12: 2015 to 2017 | H12: 248.816 | I12: 0 | J12: 465.39 | K12: 0 | L12: 0 | M12: 0 | N12: -1.662
C13: Foreign loan 5 | D13: US$ | E13: +2,0 | F13: 217.85 | G13: 2017-03-30 | H13: 1.309 | I13: 217.182 | J13: 0 | K13: 0 | L13: 0 | M13: 0 | N13: -0.641
C14: Advances on Foreign Exchange Contracts (ACC) | D14: US$ | E14: +1,2 | F14: 195.093 | G14: < 359 days | H14: 195.093 | I14: 0 | J14: 0 | K14: 0 | L14: 0 | M14: 0 | N14: -
C15: Foreign loan | D15: US$ + LIBOR | E15: +1,0 | F15: 184.981 | G15: 2017-01-17 | H15: 0 | I15: 186.156 | J15: 0 | K15: 0 | L15: 0 | M15: 0 | N15: -1.176
C16: Financial institutions | D16: US$ | E16: +2,8 | F16: 124.359 | G16: 2015 to 2017 | H16: 62.441 | I16: 61.919 | J16: 0 | K16: 0 | L16: 0 | M16: 0 | N16: -
C17: Financial institutions | D17: US$ + LIBOR | E17: +2,0 | F17: 62.055 | G17: 2016 to 2017 | H17: 0.358 | I17: 41.279 | J17: 20.64 | K17: 0 | L17: 0 | M17: 0 | N17: -0.222
C18: Financial institutions | D18: MX$ + TIIE | E18: +1,0 | F18: 33.728 | G18: 2015 to 2016 | H18: 33.728 | I18: 0 | J18: 0 | K18: 0 | L18: 0 | M18: 0 | N18: -
C19: BNDES | D19: US$ | E19: +6,0 | F19: 29.639 | G19: 2015 to 2020 | H19: 18.2 | I19: 5.971 | J19: 2.402 | K19: 1.937 | L19: 1.13 | M19: 0 | N19: -
C20: Advances on Foreign Exchange Contracts (ACE) | D20: US$ | E20: +1,1 | F20: 16.022 | G20: < 57 days | H20: 16.022 | I20: 0 | J20: 0 | K20: 0 | L20: 0 | M20: 0 | N20: -
C22: Sub Total foreing currency | F22: 2352.719 | H22: 1353.179 | I22: 512.507 | J22: 488.432 | K22: 1.937 | L22: 1.13 | M22: 0 | N22: -4.465
B24: Local Currency
C26: Banco do Brasil floating rate | D26: CDI | E26: 105 | F26: 2934.28 | G26: 2016 to 2019 | H26: 353.74 | I26: 1068.711 | J26: 533.333 | K26: 991.636 | L26: 0 | M26: 0 | N26: -13.139
C27: Debentures - 1st and 2nd issuances IPP | D27: CDI | E27: 107.9 | F27: 1411.211243 | G27: 2017 to 2018 | H27: 12.415422 | I27: 0 | J27: 600 | K27: 800 | L27: 0 | M27: 0 | N27: -1.204178991
C28: Debentures - 5th issuance | D28: CDI | E28: 108.3 | F28: 829.9758711 | G28: 2018-03-16 | H28: 30.868944 | I28: 0 | J28: 800 | K28: 0 | L28: 0 | M28: 0 | N28: -0.8930728829
C29: BNDES | D29: TJLP | E29: +2,5 | F29: 463.31 | G29: 2015 to 2021 | H29: 166.956 | I29: 124.798 | J29: 81.054 | K29: 57.476 | L29: 31.585 | M29: 1.465 | N29: -0.02464292713
C30: Export Credit Note floating rate | D30: CDI | E30: 101.5 | F30: 158.572 | G30: 2018-05-29 | H30: 1.772 | I30: 0 | J30: 156.8 | K30: 0 | L30: 0 | M30: 0 | N30: -
C31: Banco do Nordeste do Brasil | D31: R$ | E31: +8,5 | F31: 75.557 | G31: 2015 to 2021 | H31: 19.256 | I31: 18.873 | J31: 18.873 | K31: 5.709 | L31: 5.709 | M31: 7.137 | N31: -
C32: Research and projects financing (FINEP) | D32: R$ | E32: +4,0 | F32: 68.245 | G32: 2015 to 2021 | H32: 13.146 | I32: 13.034 | J32: 13.034 | K32: 13.034 | L32: 6.399 | M32: 9.598 | N32: -
C33: BNDES | D33: R$ | E33: +4,7 | F33: 60.53411246 | G33: 2015 to 2022 | H33: 20.595 | I33: 14.741 | J33: 11.011 | K33: 9.212 | L33: 4.751 | M33: 0.263 | N33: -0.04
C34: Financial leasing | D34: IGPM | E34: +5,6 | F34: 46.416 | G34: 2015 to 2031 | H34: 2.059 | I34: 1.996 | J34: 2.108 | K34: 2.226 | L34: 2.351 | M34: 35.676 | N34: -
C35: Export Credit Note 4 | D35: R$ | E35: +8,0 | F35: 26.175 | G35: 2016-08-01 | H35: 17.70509985 | I35: 10 | J35: 0 | K35: 0 | L35: 0 | M35: 0 | N35: -1.530300707
C36: Research and projects financing (FINEP) | D36: TJLP | E36: -1.3 | F36: 8.65 | G36: 2015 to 2023 | H36: 1.104 | I36: 1.488 | J36: 1.583 | K36: 1.583 | L36: 0.795 | M36: 2.097 | N36: -
C37: BNDES | D37: SELIC | E37: +2,2 | F37: 4.500475091 | G37: 2015 to 2020 | H37: 0.5520575917 | I37: 0.9282186177 | J37: 0.9282186177 | K37: 0.9282186177 | L37: 0.9282186177 | M37: 0.3867577574 | N37: -0.1512147295
C38: Working capital loan - fixed rate | D38: R$ | E38: +10,4 | F38: 2.316 | G38: 2015 to 2016 | H38: 2.003 | I38: 0.312 | J38: 0 | K38: 0 | L38: 0 | M38: 0 | N38: -
C39: Financial leasing floating rate | D39: CDI | E39: +2,8 | F39: 0.401 | G39: 2015 to 2017 | H39: 0.207 | I39: 0.194 | J39: 0 | K39: 0 | L39: 0 | M39: 0 | N39: -
C40: Agency for Financing Machinery and Equipment (FINAME) | D40: TJLP | E40: +5,6 | F40: 0.364 | G40: 2015 to 2022 | H40: 0.229 | I40: 0.09 | J40: 0.01 | K40: 0.01 | L40: 0.01 | M40: 0.016 | N40: -
C41: Financial leasing fixed rate | D41: R$ | E41: +15,4 | F41: 0.228 | G41: 2015 to 2017 | H41: 0.168 | I41: 0.038 | J41: 0.021 | K41: 0 | L41: 0 | M41: 0 | N41: -
C44: Sub Total local currency | F44: 6090.736 | H44: 642.7775234 | I44: 1255.203219 | J44: 2218.755219 | K44: 1881.814219 | L44: 52.52821862 | M44: 56.63875776 | N44: -16.98241024
C46: Unrealized losses on swaps transactions | F46: 24.797 | H46: 12.682 | I46: 12.115 | J46: 0 | K46: 0 | L46: 0 | M46: 0
B48: Total | F48: 8468.252 | H48: 2008.638523 | I48: 1779.825219 | J48: 2707.187219 | K48: 1883.751219 | L48: 53.65821862 | M48: 56.63875776 | N48: -21.44741024
C50: Transaction costs and fair value adjustment 6 | H50: -5.857 | I50: -4.616 | J50: -7.104 | K50: -3.853 | L50: -0.015 | M50: -0.002 | N50: -21.44741024
B52: Total | F52: 8468.252 | H52: 2002.779 | I52: 1775.211 | J52: 2700.084 | K52: 1879.898 | L52: 53.643 | M52: 56.637
B54: 1. | C54: Libor = London Interbank Offered Rate / MX$ = Mexican Peso / TIIE = Mexican Interbank Interest Rate Even / CDI = interbank certificate of deposit rate / TJLP = basic financing cost of BNDES (set by National Monetary Council). On June 30, 2015, TJLP was fixed at 6% p.a. / IGPM = General Index of Market Prices / SELIC = base interest rate set by the Brazilian Central Bank
B56: 2. | C56: The company contracted hedging against foreign exchange exposure and interest rate for some debt.
B58: 3. | C58: For this loan, a hedging instrument was hired with the objective of swapping the fixed to floating rate, equivalent to 103.83% of CDI.
B60: 4. | C60: For this loan, a hedging instrument was hired with the objective of swapping the fixed to floating rate, equivalent to 88.80% of CDI.
B62: 5. | C62: For this loan, a hedging instrument was hired with the objective of swapping the fixed to floating rate, equivalent to 99.50% of CDI.
B64: 6. | C64: As provided in IAS 39, transaction costs incurred in obtaining financial resources were deducted from the value of the financial instrument, and as provided in Resolution CVM 604/09, loans was recognised at fair value. The amount to be appropriated to income in the future is as follows:
C66: Transaction costs | D66: Amount to be appropriated | E66: Profile
E67: up to 12 months | F67: from 12 to 24 | G67: from 24 to 36 | H67: from 36 to 48 | I67: from 48 to 60 | J67: > 60 months
C68: Banco do Brasil | D68: -13.139 | E68: -2.627 | F68: -3.187 | G68: -3.679 | H68: -3.646 | I68: 0 | J68: 0
C69: Debentures | D69: -2.097 | E69: -0.609 | F69: -0.682 | G69: -0.63 | H69: -0.177 | I69: 0 | J69: 0
C70: Notes | D70: -0.764 | E70: -0.764 | F70: 0 | G70: 0 | H70: 0 | I70: 0 | J70: 0
C71: Foreign loan | D71: -2.501 | E71: -1.366 | F71: -0.992 | G71: -0.142 | H71: 0 | I71: 0 | J71: 0
C72: Others | D72: -0.46 | E72: -0.151 | F72: -0.177 | G72: -0.085 | H72: -0.031 | I72: -0.015 | J72: -0.002
C73: Total | D73: -18.961 | E73: -5.517 | F73: -5.038 | G73: -4.536 | H73: -3.854 | I73: -0.015 | J73: -0.002
C75: As provided in Resolution CVM 604/09 (November 19, 2009), the amortization of fair value adjustment is as follows:
C77: Fair value adjustment | D77: Amount to be amortized | E77: Profile
E78: up to 12 months | F78: from 12 to 24 | G78: from 24 to 36 | H78: from 36 to 48 | I78: from 48 to 60 | J78: > 60 months
C79: Foreign loan | D79: -0.314046949 | E79: 2.48292026 | F79: -0.2294612592 | G79: -2.567505949 | H79: 0 | I79: 0 | J79: 0
C80: Foreign loan 6 | D80: -0.6411596313 | E80: -1.886084919 | F80: 1.244925288 | G80: 0 | H80: 0 | I80: 0 | J80: 0
C81: Export Credit Note | D81: -1.530300707 | E81: -0.9360494975 | F81: -0.5942512096 | G81: 0 | H81: 0 | I81: 0 | J81: 0
C82: Total | D82: -2.485507287 | E82: -0.3392141567 | F82: 0.4212128188 | G82: -2.567505949 | H82: 0 | I82: 0 | J82: 0

Sheet 3Q15
A7: Financing and debentures (R$ million) | D7: Index/ Currency ¹ | E7: Average weighted interest rate (% p.y.) ² | F7: Balance 6 Sep-15 | G7: Maturity | H7: Amortization Profile | N7: Transaction costs / fair value adjustment 6
H8: up to 12 months | I8: from 12 to 24 | J8: from 24 to 36 | K8: from 36 to 48 | L8: from 48 to 60 | M8: > 60 months
B9: Foreing Currency
C11: Foreign loan 3 | D11: US$ + LIBOR | E11: +0,6 | F11: 1061.844 | G11: 2017 to 2018 | H11: 1.414 | I11: 595.935 | J11: 238.374 | K11: 317.832 | L11: 0 | M11: 0 | N11: -91.71
C12: Notes | D12: US$ | E12: +7,3 | F12: 1012.738 | G12: 2015-12-21 | H12: 1013.227 | I12: 0 | J12: 0 | K12: 0 | L12: 0 | M12: 0 | N12: -0.489
C13: Foreign loan 5 | D13: US$ | E13: +2,1 | F13: 553.232 | G13: 2017 to 2018 | H13: 0.136 | I13: 278.103 | J13: 317.832 | K13: 0 | L13: 0 | M13: 0 | N13: -42.839
C14: Advances on Foreign Exchange Contracts (ACC) | D14: US$ | E14: +1,4 | F14: 303.76 | G14: < 352 days | H14: 303.76 | I14: 0 | J14: 0 | K14: 0 | L14: 0 | M14: 0 | N14: -
C15: Foreign loan | D15: US$ + LIBOR | E15: +1,0 | F15: 237.997 | G15: 2017-01-17 | H15: 0.881 | I15: 238.374 | J15: 0 | K15: 0 | L15: 0 | M15: 0 | N15: -1.258
C16: Financial institutions | D16: US$ | E16: +2,8 | F16: 150.996 | G16: 2015 to 2017 | H16: 70.734 | I16: 80.262 | J16: 0 | K16: 0 | L16: 0 | M16: 0 | N16: -
C17: Financial institutions | D17: US$ + LIBOR | E17: +2,0 | F17: 80.482 | G17: 2016 to 2017 | H17: 0.469 | I17: 53.508 | J17: 26.754 | K17: 0 | L17: 0 | M17: 0 | N17: -0.249
C18: Advances on Foreign Exchange Contracts (ACE) | D18: US$ | E18: +1,1 | F18: 45.074 | G18: < 121 days | H18: 45.074 | I18: 0 | J18: 0 | K18: 0 | L18: 0 | M18: 0 | N18: -
C19: BNDES | D19: US$ | E19: +6,0 | F19: 31.625 | G19: 2015 to 2020 | H19: 20.574 | I19: 4.697 | J19: 2.967 | K19: 2.54 | L19: 0.847 | M19: 0 | N19: -
C20: Financial institutions | D20: MX$ + TIIE | E20: +1,0 | F20: 28.323 | G20: 2016 | H20: 28.323 | I20: 0 | J20: 0 | K20: 0 | L20: 0 | M20: 0 | N20: -
C22: Sub Total foreing currency | F22: 3506.071 | H22: 1484.592 | I22: 1250.879 | J22: 585.927 | K22: 320.372 | L22: 0.847 | M22: 0 | N22: -136.545
B24: Local Currency
C26: Banco do Brasil floating rate | D26: CDI | E26: 105 | F26: 3022.66 | G26: 2016 to 2019 | H26: 367.424 | I26: 1274.074 | J26: 366.667 | K26: 1027.023 | L26: 0 | M26: 0 | N26: -12.528
C27: Debentures - 1st and 2nd issuances IPP | D27: CDI | E27: 107.9 | F27: 1463.614141 | G27: 2017 to 2018 | H27: 64.742114 | I27: 0 | J27: 600 | K27: 800 | L27: 0 | M27: 0 | N27: -1.12797346
C28: Debentures - 5th issuance | D28: CDI | E28: 108.3 | F28: 803.7318526 | G28: 2018-03-16 | H28: 4.554752 | I28: 0 | J28: 800 | K28: 0 | L28: 0 | M28: 0 | N28: -0.8228994303
C29: BNDES | D29: TJLP | E29: +2,6 | F29: 439.079 | G29: 2015 to 2021 | H29: 161.232 | I29: 119.028 | J29: 74.624 | K29: 59.479 | L29: 23.121 | M29: 1.618 | N29: -0.02302568955
C30: Export Credit Note floating rate | D30: CDI | E30: 101.5 | F30: 158.647 | G30: 2018-05-29 | H30: 1.847 | I30: 0 | J30: 156.8 | K30: 0 | L30: 0 | M30: 0 | N30: -
C31: Banco do Nordeste do Brasil | D31: R$ | E31: +8,5 | F31: 70.823 | G31: 2015 to 2021 | H31: 19.239 | I31: 18.873 | J31: 15.582 | K31: 5.709 | L31: 5.709 | M31: 5.709 | N31: -
C32: Research and projects financing (FINEP) | D32: R$ | E32: +4,0 | F32: 64.981 | G32: 2015 to 2021 | H32: 13.14 | I32: 13.034 | J32: 13.034 | K32: 11.375 | L32: 6.399 | M32: 7.998 | N32: -
C33: BNDES | D33: R$ | E33: +4,7 | F33: 54.91156951 | G33: 2015 to 2022 | H33: 19.251 | I33: 13.163 | J33: 10.57 | K33: 8.731 | L33: 3.097 | M33: 0.135 | N33: -0.036
C34: Financial leasing | D34: IGPM | E34: +5,6 | F34: 45.951 | G34: 2015 to 2031 | H34: 2.083 | I34: 2.024 | J34: 2.137 | K34: 2.257 | L34: 2.383 | M34: 35.067 | N34: -
C35: Export Credit Note 4 | D35: R$ | E35: +8,0 | F35: 26.515 | G35: 2016-08-01 | H35: 27.70726409 | I35: 0 | J35: 0 | K35: 0 | L35: 0 | M35: 0 | N35: -1.191954458
C36: BNDES | D36: SELIC | E36: +2,2 | F36: 19.1994413 | G36: 2015 to 2021 | H36: 2.927988271 | I36: 3.855415422 | J36: 3.855415422 | K36: 3.855415422 | L36: 3.855415422 | M36: 0.9899754992 | N36: -0.1401841568
C37: Research and projects financing (FINEP) | D37: TJLP | E37: -1.3 | F37: 8.445 | G37: 2015 to 2023 | H37: 1.191 | I37: 1.585 | J37: 1.585 | K37: 1.441 | L37: 0.724 | M37: 1.919 | N37: -
C38: Working capital loan - fixed rate | D38: R$ | E38: +10,3 | F38: 1.738 | G38: 2015 to 2016 | H38: 1.738 | I38: 0 | J38: 0 | K38: 0 | L38: 0 | M38: 0 | N38: -
C39: Financial leasing floating rate | D39: CDI | E39: +2,8 | F39: 0.362 | G39: 2015 to 2017 | H39: 0.215 | I39: 0.146 | J39: 0 | K39: 0 | L39: 0 | M39: 0 | N39: -
C40: Agency for Financing Machinery and Equipment (FINAME) | D40: TJLP | E40: +5,6 | F40: 0.31 | G40: 2015 to 2022 | H40: 0.21 | I40: 0.057 | J40: 0.01 | K40: 0.01 | L40: 0.01 | M40: 0.013 | N40: -
C41: Financial leasing fixed rate | D41: R$ | E41: +15,4 | F41: 0.132 | G41: 2015 to 2017 | H41: 0.081 | I41: 0.04 | J41: 0.011 | K41: 0 | L41: 0 | M41: 0 | N41: -
C44: Sub Total local currency | F44: 6181.099 | H44: 687.5841184 | I44: 1445.879415 | J44: 2044.875415 | K44: 1919.880415 | L44: 45.29841542 | M44: 53.4489755 | N44: -15.8700372
C46: Unrealized losses on swaps transactions | F46: 53.879 | H46: 17.585 | I46: 0 | J46: 5.901 | K46: 30.393 | L46: 0 | M46: 0
B48: Total | F48: 9741.049 | H48: 2189.761118 | I48: 2696.758415 | J48: 2636.703415 | K48: 2270.645415 | L48: 46.14541542 | M48: 53.4489755 | N48: -152.4150372
C50: Transaction costs and fair value adjustment 6 | H50: -20.313 | I50: -61.865 | J50: -48.407 | K50: -21.82 | L50: -0.011 | M50: 0 | N50: -152.4150372
B52: Total | F52: 9741.049 | H52: 2169.449 | I52: 2634.895 | J52: 2588.297 | K52: 2248.825 | L52: 46.135 | M52: 53.449
B54: 1. | C54: Libor = London Interbank Offered Rate / MX$ = Mexican Peso / TIIE = Mexican Interbank Interest Rate Even / CDI = interbank certificate of deposit rate / TJLP = basic financing cost of BNDES (set by National Monetary Council). On September 30, 2015, TJLP was fixed at 6.5% p.a. / IGPM = General Index of Market Prices / SELIC = base interest rate set by the Brazilian Central Bank
B56: 2. | C56: The company contracted hedging against foreign exchange exposure and interest rate for some debt.
B58: 3. | C58: For this loan, a hedging instrument was hired with the objective of swapping the fixed to floating rate, equivalent to 102.66% of CDI.
B60: 4. | C60: For this loan, a hedging instrument was hired with the objective of swapping the fixed to floating rate, equivalent to 88.80% of CDI.
B62: 5. | C62: For this loan, a hedging instrument was hired with the objective of swapping the fixed to floating rate, equivalent to 100.63% of CDI.
B64: 6. | C64: As provided in IAS 39, transaction costs incurred in obtaining financial resources were deducted from the value of the financial instrument, and as provided in Resolution CVM 604/09, loans was recognised at fair value. The amount to be appropriated to income in the future is as follows:
C66: Transaction costs | D66: Amount to be appropriated | E66: Profile
E67: up to 12 months | F67: from 12 to 24 | G67: from 24 to 36 | H67: from 36 to 48 | I67: from 48 to 60 | J67: > 60 months
C68: Banco do Brasil | D68: -12.528 | E68: -2.764 | F68: -3.331 | G68: -3.764 | H68: -2.67 | I68: 0 | J68: 0
C69: Foreign loan | D69: -5.464 | E69: -2.624 | F69: -1.835 | G69: -0.906 | H69: -0.1 | I69: 0 | J69: 0
C70: Debentures | D70: -1.951 | E70: -0.627 | F70: -0.701 | G70: -0.533 | H70: -0.091 | I70: 0 | J70: 0
C71: Notes | D71: -0.489 | E71: -0.489 | F71: 0 | G71: 0 | H71: 0 | I71: 0 | J71: 0
C72: Others | D72: -0.459 | E72: -0.156 | F72: -0.21 | G72: -0.055 | H72: -0.027 | I72: -0.011 | J72: 0
C73: Total | D73: -20.891 | E73: -6.66 | F73: -6.077 | G73: -5.258 | H73: -2.888 | I73: -0.011 | J73: 0
C75: As provided in Resolution CVM 604/09 (November 19, 2009), the amortization of fair value adjustment is as follows:
C77: Fair value adjustment | D77: Amount to be amortized | E77: Profile
E78: up to 12 months | F78: from 12 to 24 | G78: from 24 to 36 | H78: from 36 to 48 | I78: from 48 to 60 | J78: > 60 months
C79: Foreign loan | D79: -87.49365887 | E79: -5.891739595 | F79: -40.94121159 | G79: -21.72772023 | H79: -18.93298746 | I79: 0 | J79: 0
C80: Foreign loan 6 | D80: -42.83901845 | E80: -6.568913106 | F80: -14.84707508 | G80: -21.42303026 | H80: 0 | I80: 0 | J80: 0
C81: Export Credit Note | D81: -1.191954458 | E81: -1.191954458 | F81: 0 | G81: 0 | H81: 0 | I81: 0 | J81: 0
C82: Total | D82: -131.5246318 | E82: -13.65260716 | F82: -55.78828667 | G82: -43.15075049 | H82: -18.93298746 | I82: 0 | J82: 0

Sheet 4Q15
A7: Financing and debentures (R$ million) | D7: Index/ Currency ¹ | E7: Average weighted interest rate (% p.y.) ² | F7: Balance 6 Dec-15 | G7: Maturity | H7: Amortization Profile | N7: Transaction costs / fair value adjustment 6
H8: up to 12 months | I8: from 12 to 24 | J8: from 24 to 36 | K8: from 36 to 48 | L8: from 48 to 60 | M8: > 60 months
B9: Foreing Currency
C11: Foreign loan 3 | D11: US$ + LIBOR | E11: +0,7 | F11: 1111.721 | G11: 2017 to 2018 | H11: 1.634 | I11: 585.72 | J11: 546.672 | K11: 0 | L11: 0 | M11: 0 | N11: -22.304
C12: Foreign loan 5 | D12: US$ | E12: +2,1 | F12: 576.645 | G12: 2017 to 2018 | H12: 3.825 | I12: 273.336 | J12: 312.384 | K12: 0 | L12: 0 | M12: 0 | N12: -12.9
C13: Foreign loan | D13: US$ + LIBOR | E13: +1,4 | F13: 397.586 | G13: 2017 to 2018 | H13: 0.293 | I13: 234.288 | J13: 164.002 | K13: 0 | L13: 0 | M13: 0 | N13: -0.997
C14: Advances on Foreign Exchange Contracts (ACC) | D14: US$ | E14: +1,5 | F14: 222.478 | G14: < 351 days | H14: 222.478 | I14: 0 | J14: 0 | K14: 0 | L14: 0 | M14: 0 | N14: -
C15: Financial institutions | D15: US$ | E15: +2,8 | F15: 142.779 | G15: 2016 to 2017 | H15: 64.785 | I15: 77.994 | J15: 0 | K15: 0 | L15: 0 | M15: 0 | N15: -
C16: Financial institutions | D16: US$ + LIBOR | E16: +2,0 | F16: 77.8 | G16: 2016 to 2017 | H16: 26.008 | I16: 51.996 | J16: 0 | K16: 0 | L16: 0 | M16: 0 | N16: -0.204
C17: Advances on Foreign Exchange Contracts (ACE) | D17: US$ | E17: +1,3 | F17: 50.132 | G17: < 60 days | H17: 50.132 | I17: 0 | J17: 0 | K17: 0 | L17: 0 | M17: 0 | N17: -
C18: Financial institutions | D18: MX$ + TIIE | E18: +1,0 | F18: 27.11 | G18: 2016-02-12 | H18: 27.11 | I18: 0 | J18: 0 | K18: 0 | L18: 0 | M18: 0 | N18: -
C19: BNDES | D19: US$ | E19: +6,0 | F19: 24.057 | G19: 2016 to 2020 | H19: 15.529 | I19: 3.278 | J19: 2.641 | K19: 2.409 | L19: 0.201 | M19: 0 | N19: -
C21: Sub Total foreing currency | F21: 2630.309 | H21: 411.794 | I21: 1226.612 | J21: 1025.699 | K21: 2.409 | L21: 0.201 | M21: 0 | N21: -36.405
B23: Local Currency
C25: Banco do Brasil floating rate | D25: CDI | E25: 105 | F25: 3115.752 | G25: 2016 to 2019 | H25: 384.644 | I25: 1413.378 | J25: 266.667 | K25: 1062.946 | L25: 0 | M25: 0 | N25: -11.883
C26: Debentures - 1st and 2nd issuances IPP | D26: CDI | E26: 107.9 | F26: 1413.101426 | G26: 2017 to 2018 | H26: 14.148932 | I26: 600 | J26: 800 | K26: 0 | L26: 0 | M26: 0 | N26: -1.047506387
C27: Debentures - 5th issuance | D27: CDI | E27: 108.3 | F27: 833.1136063 | G27: 2018-03-16 | H27: 33.867176 | I27: 0 | J27: 800 | K27: 0 | L27: 0 | M27: 0 | N27: -0.7535697108
C28: BNDES | D28: TJLP | E28: 2.7 | F28: 409.339 | G28: 2016 to 2021 | H28: 152.971 | I28: 112.014 | J28: 70.153 | K28: 58.242 | L28: 15.069 | M28: 1.069 | N28: -0.1799108916
C29: Export Credit Note floating rate | D29: CDI | E29: 101.5 | F29: 158.648 | G29: 2018-05-29 | H29: 1.848 | I29: 0 | J29: 156.8 | K29: 0 | L29: 0 | M29: 0 | N29: -
C30: Banco do Nordeste do Brasil | D30: R$ | E30: +8,5 | F30: 66.096 | G30: 2016 to 2021 | H30: 19.231 | I30: 18.873 | J30: 12.291 | K30: 5.709 | L30: 5.709 | M30: 4.282 | N30: -
C31: Research and projects financing (FINEP) | D31: R$ | E31: +4,0 | F31: 61.724 | G31: 2016 to 2021 | H31: 13.142 | I31: 13.034 | J31: 13.034 | K31: 9.716 | L31: 6.399 | M31: 6.399 | N31: -
C32: BNDES | D32: R$ | E32: +4,6 | F32: 49.68138548 | G32: 2016 to 2022 | H32: 18.027 | I32: 12.037 | J32: 10.089 | K32: 8.035 | L32: 1.501 | M32: 0.023 | N32: -0.032
C33: Financial leasing | D33: IGPM | E33: +5,6 | F33: 45.48 | G33: 2016 to 2031 | H33: 2.108 | I33: 2.051 | J33: 2.166 | K33: 2.288 | L33: 2.416 | M33: 34.451 | N33: -
C34: BNDES | D34: SELIC | E34: +2,2 | F34: 30.87788711 | G34: 2016 to 2021 | H34: 4.443 | I34: 6.442 | J34: 6.483 | K34: 6.483 | L34: 6.151 | M34: 1.005 | N34: -0.1286796664
C35: Export Credit Note 4 | D35: R$ | E35: +8,0 | F35: 27.039 | G35: 2016-08-01 | H35: 27.71478329 | I35: 0 | J35: 0 | K35: 0 | L35: 0 | M35: 0 | N35: -0.6760829745
C36: Research and projects financing (FINEP) | D36: TJLP | E36: -1.4 | F36: 11.174 | G36: 2016 to 2023 | H36: 1.429 | I36: 2.009 | J36: 2.009 | K36: 1.649 | L36: 1.146 | M36: 2.932 | N36: -
C37: Working capital loan - fixed rate | D37: R$ | E37: +10,3 | F37: 1.16 | G37: 2016-09-13 | H37: 1.16 | I37: 0 | J37: 0 | K37: 0 | L37: 0 | M37: 0 | N37: -
C38: Financial leasing floating rate | D38: CDI | E38: +2,8 | F38: 0.319 | G38: 2016 to 2017 | H38: 0.224 | I38: 0.095 | J38: 0 | K38: 0 | L38: 0 | M38: 0 | N38: -
C39: Agency for Financing Machinery and Equipment (FINAME) | D39: TJLP | E39: +5,6 | F39: 0.255 | G39: 2016 to 2022 | H39: 0.19 | I39: 0.024 | J39: 0.01 | K39: 0.01 | L39: 0.01 | M39: 0.011 | N39: -
C40: Financial leasing fixed rate | D40: R$ | E40: +15,4 | F40: 0.095 | G40: 2016 to 2017 | H40: 0.054 | I40: 0.041 | J40: 0 | K40: 0 | L40: 0 | M40: 0 | N40: -
C43: Sub Total local currency | F43: 6223.856 | H43: 675.2028913 | I43: 2179.998 | J43: 2139.702 | K43: 1155.078 | L43: 38.401 | M43: 50.172 | N43: -14.70074963
C45: Unrealized losses on swaps transactions | F45: 47.445 | H45: 30.15 | I45: 0 | J45: 17.295 | K45: 0 | L45: 0 | M45: 0
B47: Total | F47: 8901.609 | H47: 1117.146891 | I47: 3406.61 | J47: 3182.696 | K47: 1157.487 | L47: 38.602 | M47: 50.172 | N47: -51.10574963
C49: Transaction costs and fair value adjustment 6 | H49: -19.29 | I49: -13.026 | J49: -17.093 | K49: -1.68 | L49: -0.016 | M49: -0.001 | N49: -51.10574963
B51: Total | F51: 8901.609 | H51: 1097.856 | I51: 3393.586 | J51: 3165.603 | K51: 1155.809 | L51: 38.585 | M51: 50.17 | N51: 0
B53: 1. | C53: Libor = London Interbank Offered Rate / MX$ = Mexican Peso / TIIE = Mexican Interbank Interest Rate Even / CDI = interbank certificate of deposit rate / TJLP = basic financing cost of BNDES (set by National Monetary Council). On December 31, 2015, TJLP was fixed at 7% p.a. / IGPM = General Index of Market Prices / SELIC = base interest rate set by the Brazilian Central Bank
B55: 2. | C55: The company contracted hedging against foreign exchange exposure and interest rate for some debt.
B57: 3. | C57: For this loan, a hedging instrument was hired with the objective of swapping the fixed to floating rate, equivalent to 102.66% of CDI.
B59: 4. | C59: For this loan, a hedging instrument was hired with the objective of swapping the fixed to floating rate, equivalent to 88.80% of CDI.
B61: 5. | C61: For this loan, a hedging instrument was hired with the objective of swapping the fixed to floating rate, equivalent to 100.63% of CDI.
B63: 6. | C63: As provided in IAS 39, transaction costs incurred in obtaining financial resources were deducted from the value of the financial instrument, and as provided in Resolution CVM 604/09, loans was recognised at fair value. The amount to be appropriated to income in the future is as follows:
C65: Transaction costs | D65: Amount to be appropriated | E65: Profile
E66: up to 12 months | F66: from 12 to 24 | G66: from 24 to 36 | H66: from 36 to 48 | I66: from 48 to 60 | J66: > 60 months
C67: Banco do Brasil | D67: -11.883 | E67: -2.894 | F67: -3.473 | G67: -3.881 | H67: -1.635 | I67: 0 | J67: 0
C68: Foreign loan | D68: -4.649 | E68: -2.425 | F68: -1.459 | G68: -0.765 | H68: 0 | I68: 0 | J68: 0
C69: Debentures | D69: -1.801 | E69: -0.644 | F69: -0.716 | G69: -0.441 | H69: 0 | I69: 0 | J69: 0
C70: Others | D70: -0.545 | E70: -0.189 | F70: -0.222 | G70: -0.071 | H70: -0.045 | I70: -0.016 | J70: -0.001
C71: Total | D71: -18.878 | E71: -6.152 | F71: -5.87 | G71: -5.158 | H71: -1.68 | I71: -0.016 | J71: -0.001
C73: As provided in Resolution CVM 604/09 (November 19, 2009), the amortization of fair value adjustment is as follows:
C75: Fair value adjustment | D75: Amount to be amortized | E75: Profile
E76: up to 12 months | F76: from 12 to 24 | G76: from 24 to 36 | H76: from 36 to 48 | I76: from 48 to 60 | J76: > 60 months
C77: Foreign loan | D77: -18.65200457 | E77: -5.891739595 | F77: -6.07929361 | G77: -6.680971361 | H77: 0 | I77: 0 | J77: 0
C78: Foreign loan 6 | D78: -12.89982686 | E78: -6.568913106 | F78: -1.07680955 | G78: -5.254104206 | H78: 0 | I78: 0 | J78: 0
C79: Export Credit Note | D79: -0.6760829745 | E79: -0.6760829745 | F79: 0 | G79: 0 | H79: 0 | I79: 0 | J79: 0
C80: Total | D80: -32.2279144 | E80: -13.13673568 | F80: -7.15610316 | G80: -11.93507557 | H80: 0 | I80: 0 | J80: 0

Sheet 1Q16
A7: Financing and debentures (R$ million) | D7: Index/ Currency ¹ | E7: Average weighted interest rate (% p.y.) ² | F7: Balance 6 Mar-16 | G7: Maturity | H7: Amortization Profile | N7: Transaction costs / fair value adjustment 6
H8: up to 12 months | I8: from 12 to 24 | J8: from 24 to 36 | K8: from 36 to 48 | L8: from 48 to 60 | M8: > 60 months
B9: Foreing Currency
C11: Foreign loan 3 | D11: US$ + LIBOR | E11: +0,7 | F11: 996.504 | G11: 2017 to 2018 | H11: 1.777 | I11: 533.835 | J11: 498.246 | K11: 0 | L11: 0 | M11: 0 | N11: -37.353
C12: Foreign loan 5 | D12: US$ | E12: +2,1 | F12: 516.173 | G12: 2017 to 2018 | H12: 249.281 | I12: 0 | J12: 284.712 | K12: 0 | L12: 0 | M12: 0 | N12: -17.82
C13: Foreign loan | D13: US$ + LIBOR | E13: +1,4 | F13: 363.582 | G13: 2017 to 2018 | H13: 214.81 | I13: 0 | J13: 149.474 | K13: 0 | L13: 0 | M13: 0 | N13: -0.702
C14: Financial institutions | D14: US$ + LIBOR | E14: +2,7 | F14: 213.616 | G14: 2016 to 2021 | H14: 24.294 | I14: 47.543 | J14: 0 | K14: 71.315 | L14: 71.315 | M14: 0 | N14: -0.852
C15: Advances on Foreign Exchange Contracts (ACC) | D15: US$ | E15: +1,9 | F15: 158.401 | G15: < 260 days | H15: 158.401 | I15: 0 | J15: 0 | K15: 0 | L15: 0 | M15: 0 | N15: -
C16: Financial institutions | D16: US$ | E16: +2,8 | F16: 131.058 | G16: 2016 to 2017 | H16: 59.743 | I16: 71.315 | J16: 0 | K16: 0 | L16: 0 | M16: 0 | N16: -
C17: Advances on Foreign Exchange Contracts (ACE) | D17: US$ | E17: +1,4 | F17: 57.551 | G17: < 61 days | H17: 57.551 | I17: 0 | J17: 0 | K17: 0 | L17: 0 | M17: 0 | N17: -
C18: Financial institutions | D18: MX$ + TIIE | E18: +1,0 | F18: 24.959 | G18: 2016 to 2017 | H18: 24.959 | I18: 0 | J18: 0 | K18: 0 | L18: 0 | M18: 0 | N18: -
C19: BNDES | D19: US$ | E19: +6,0 | F19: 17.597 | G19: 2016 to 2020 | H19: 10.588 | I19: 2.871 | J19: 2.282 | K19: 1.857 | L19: 0 | M19: 0 | N19: -
C21: Sub Total foreing currency | F21: 2479.441 | H21: 801.404 | I21: 655.564 | J21: 934.714 | K21: 73.172 | L21: 71.315 | M21: 0 | N21: -56.727
B23: Local Currency
C25: Banco do Brasil floating rate | D25: CDI | E25: 105.5 | F25: 3133.503 | G25: 2016 to 2019 | H25: 1346.293 | I25: 433.333 | J25: 266.667 | K25: 1098.913 | L25: 0 | M25: 0 | N25: -11.704
C26: Debentures - 1st and 2nd issuances IPP | D26: CDI | E26: 107.9 | F26: 1462.857282 | G26: 2017 to 2018 | H26: 63.82476 | I26: 600 | J26: 800 | K26: 0 | L26: 0 | M26: 0 | N26: -0.967478116
C27: Debentures - 5th issuance | D27: CDI | E27: 108.3 | F27: 803.8759254 | G27: 2018-03-16 | H27: 4.554752 | I27: 800 | J27: 0 | K27: 0 | L27: 0 | M27: 0 | N27: -0.6788266278
C28: BNDES | D28: TJLP | E28: +2,7 | F28: 369.729 | G28: 2016 to 2021 | H28: 142.524 | I28: 101.689 | J28: 66.11 | K28: 49.775 | L28: 9.306 | M28: 0.489 | N28: -0.165456
C29: Export Credit Note floating rate | D29: CDI | E29: 101.5 | F29: 158.647 | G29: 2018-05-29 | H29: 1.847 | I29: 0 | J29: 156.8 | K29: 0 | L29: 0 | M29: 0 | N29: -
C30: Banco do Nordeste do Brasil | D30: R$ | E30: +8,5 | F30: 61.35 | G30: 2016 to 2021 | H30: 19.203 | I30: 18.873 | J30: 9 | K30: 5.709 | L30: 5.709 | M30: 2.855 | N30: -
C31: Research and projects financing (FINEP) | D31: R$ | E31: +4,0 | F31: 58.459 | G31: 2016 to 2021 | H31: 13.136 | I31: 13.034 | J31: 13.034 | K31: 8.057 | L31: 6.399 | M31: 4.799 | N31: -
C32: Financial leasing | D32: IGPM | E32: +5,6 | F32: 45.003 | G32: 2016 to 2031 | H32: 2.133 | I32: 2.08 | J32: 2.196 | K32: 2.319 | L32: 2.449 | M32: 33.826 | N32: -
C33: BNDES | D33: R$ | E33: +4,6 | F33: 44.76904992 | G33: 2016 to 2022 | H33: 16.49 | I33: 11.54 | J33: 9.61 | K33: 6.489 | L33: 0.653 | M33: 0.015 | N33: -0.028
C34: BNDES | D34: SELIC | E34: +2,2 | F34: 32.1165222 | G34: 2016 to 2021 | H34: 5.391 | I34: 6.961 | J34: 6.961 | K34: 6.961 | L34: 5.454 | M34: 0.506 | N34: -0.1174551616
C35: Research and projects financing (FINEP) | D35: TJLP | E35: -1.4 | F35: 10.911 | G35: 2016 to 2023 | H35: 1.635 | I35: 2.016 | J35: 2.016 | K35: 1.439 | L35: 1.15 | M35: 2.655 | N35: -
C36: Export Credit Note 4 | D36: R$ | E36: +8,0 | F36: 9.873 | G36: 2016-08-01 | H36: 10.12692939 | I36: 0 | J36: 0 | K36: 0 | L36: 0 | M36: 0 | N36: -0.2534467932
C37: Working capital loan - fixed rate | D37: R$ | E37: +10,1 | F37: 0.683 | G37: 2016-09-13 | H37: 0.683 | I37: 0 | J37: 0 | K37: 0 | L37: 0 | M37: 0 | N37: -
C38: Financial leasing floating rate | D38: CDI | E38: +2,8 | F38: 0.272 | G38: 2016 to 2017 | H38: 0.233 | I38: 0.039 | J38: 0 | K38: 0 | L38: 0 | M38: 0 | N38: -
C39: Agency for Financing Machinery and Equipment (FINAME) | D39: TJLP | E39: +5,7 | F39: 0.196 | G39: 2016 to 2022 | H39: 0.148 | I39: 0.01 | J39: 0.01 | K39: 0.01 | L39: 0.01 | M39: 0.008 | N39: -
C40: Financial leasing fixed rate | D40: R$ | E40: +15,5 | F40: 0.074 | G40: 2016 to 2017 | H40: 0.042 | I40: 0.032 | J40: 0 | K40: 0 | L40: 0 | M40: 0 | N40: -
C43: Sub Total local currency | F43: 6192.318 | H43: 1628.265441 | I43: 1989.607 | J43: 1332.404 | K43: 1179.672 | L43: 31.13 | M43: 45.153 | N43: -13.9146627
C45: Unrealized losses on swaps transactions | F45: 157.64 | H45: 86.658 | I45: 0 | J45: 70.982 | K45: 0 | L45: 0 | M45: 0
B47: Total | F47: 8829.4 | H47: 2516.327441 | I47: 2645.171 | J47: 2338.1 | K47: 1252.844 | L47: 102.445 | M47: 45.153 | N47: -70.6416627
C49: Transaction costs and fair value adjustment 6 | H49: -20.505 | I49: -24.676 | J49: -24.514 | K49: -0.798 | L49: -0.15 | M49: 0 | N49: -70.6416627
B51: Total | F51: 8829.4 | H51: 2495.822 | I51: 2620.495 | J51: 2313.586 | K51: 1252.048 | L51: 102.296 | M51: 45.153
B53: 1. | C53: Libor = London Interbank Offered Rate / MX$ = Mexican Peso / TIIE = Mexican Interbank Interest Rate Even / CDI = interbank certificate of deposit rate / TJLP = basic financing cost of BNDES (set by National Monetary Council). On March 31, 2016, TJLP was fixed at 7.5% p.a. / IGPM = General Index of Market Prices / SELIC = base interest rate set by the Brazilian Central Bank
B55: 2. | C55: The company contracted hedging against foreign exchange exposure and interest rate for some debt.
B57: 3. | C57: For this loan, a hedging instrument was hired with the objective of swapping the fixed to floating rate, equivalent to 102.66% of CDI.
B59: 4. | C59: For this loan, a hedging instrument was hired with the objective of swapping the fixed to floating rate, equivalent to 79.90% of CDI.
B61: 5. | C61: For this loan, a hedging instrument was hired with the objective of swapping the fixed to floating rate, equivalent to 100.63% of CDI.
B63: 6. | C63: As provided in IAS 39, transaction costs incurred in obtaining financial resources were deducted from the value of the financial instrument, and as provided in Resolution CVM 604/09, loans was recognised at fair value. The amount to be appropriated to income in the future is as follows:
C65: Transaction costs | D65: Amount to be appropriated | E65: Profile
E66: up to 12 months | F66: from 12 to 24 | G66: from 24 to 36 | H66: from 36 to 48 | I66: from 48 to 60 | J66: > 60 months
C67: Banco do Brasil | D67: -11.704 | E67: -3.182 | F67: -3.752 | G67: -4.18 | H67: -0.59 | I67: 0 | J67: 0
C68: Foreign loan | D68: -3.979 | E68: -2.212 | F68: -1.245 | G68: -0.523 | H68: 0 | I68: 0 | J68: 0
C69: Debentures | D69: -1.646 | E69: -0.663 | F69: -0.721 | G69: -0.263 | H69: 0 | I69: 0 | J69: 0
C70: Others | D70: -1.164 | E70: -0.246 | F70: -0.33 | G70: -0.229 | H70: -0.208 | I70: -0.15 | J70: 0
C71: Total | D71: -18.493 | E71: -6.303 | F71: -6.048 | G71: -5.195 | H71: -0.798 | I71: -0.15 | J71: 0
C73: As provided in Resolution CVM 604/09 (November 19, 2009), the amortization of fair value adjustment is as follows:
C75: Fair value adjustment | D75: Amount to be amortized | E75: Profile
E76: up to 12 months | F76: from 12 to 24 | G76: from 24 to 36 | H76: from 36 to 48 | I76: from 48 to 60 | J76: > 60 months
C77: Foreign loan | D77: -34.0755171 | E77: -5.891739595 | F77: -14.20195849 | G77: -13.98181901 | H77: 0 | I77: 0 | J77: 0
C78: Foreign loan 6 | D78: -17.82034601 | E78: -8.056665423 | F78: -4.426862508 | G78: -5.33681808 | H78: 0 | I78: 0 | J78: 0
C79: Export Credit Note | D79: -0.2534467932 | E79: -0.2534467932 | F79: 0 | G79: 0 | H79: 0 | I79: 0 | J79: 0
C80: Total | D80: -52.1493099 | E80: -14.20185181 | F80: -18.628821 | G80: -19.31863709 | H80: 0 | I80: 0 | J80: 0

Sheet 2Q16
A7: Financing and debentures (R$ million) | D7: Index/ Currency ¹ | E7: Average weighted interest rate (% p.y.) ² | F7: Balance 6 Jun-16 | G7: Maturity | H7: Amortization Profile | N7: Transaction costs / fair value adjustment 6
H8: up to 12 months | I8: from 12 to 24 | J8: from 24 to 36 | K8: from 36 to 48 | L8: from 48 to 60 | M8: > 60 months
B9: Foreing Currency
C11: Foreign loan 3 | D11: US$ + LIBOR | E11: +0,7 | F11: 906.505 | G11: 2017 to 2018 | H11: 1.611 | I11: 481.47 | J11: 449.372 | K11: 0 | L11: 0 | M11: 0 | N11: -25.948
C12: Foreign loan 5 | D12: US$ | E12: +2,1 | F12: 472.21 | G12: 2017 to 2018 | H12: 227.83 | I12: 0 | J12: 256.784 | K12: 0 | L12: 0 | M12: 0 | N12: -12.404
C13: Foreign loan | D13: US$ + LIBOR | E13: +1,4 | F13: 327.184 | G13: 2017 to 2018 | H13: 192.815 | I13: 0 | J13: 134.812 | K13: 0 | L13: 0 | M13: 0 | N13: -0.443
C14: Financial institutions | D14: US$ + LIBOR | E14: +2,7 | F14: 192.943 | G14: 2016 to 2021 | H14: 43.412 | I14: 21.462 | J14: 0 | K14: 64.386 | L14: 64.386 | M14: 0 | N14: -0.703
C15: Advances on Foreign Exchange Contracts (ACC) | D15: US$ | E15: +2,6 | F15: 150.75 | G15: < 329 days | H15: 150.75 | I15: 0 | J15: 0 | K15: 0 | L15: 0 | M15: 0 | N15: -
C16: Financial institutions | D16: US$ | E16: +2,7 | F16: 114.701 | G16: 2016 to 2017 | H16: 114.702 | I16: 0 | J16: 0 | K16: 0 | L16: 0 | M16: 0 | N16: -
C17: Advances on Foreign Exchange Contracts (ACE) | D17: US$ | E17: +1,7 | F17: 47.893 | G17: < 117 days | H17: 47.893 | I17: 0 | J17: 0 | K17: 0 | L17: 0 | M17: 0 | N17: -
C18: Financial institutions | D18: MX$ + TIIE | E18: +1,0 | F18: 20.965 | G18: 2016 to 2017 | H18: 20.965 | I18: 0 | J18: 0 | K18: 0 | L18: 0 | M18: 0 | N18: -
C19: BNDES | D19: US$ | E19: +6,0 | F19: 11.85 | G19: 2016 to 2020 | H19: 6.2 | I19: 2.482 | J19: 2.001 | K19: 1.167 | L19: 0 | M19: 0 | N19: -
C21: Sub Total foreing currency | F21: 2245.002 | H21: 806.178 | I21: 505.414 | J21: 842.969 | K21: 65.553 | L21: 64.386 | M21: 0 | N21: -39.498
B23: Local Currency
C25: Banco do Brasil floating rate | D25: CDI | E25: 107.5 | F25: 2874.471 | G25: 2017 to 2022 | H25: 41.632 | I25: 533.333 | J25: 1303.998 | K25: 336.5 | L25: 336.5 | M25: 336.5 | N25: -13.993
C26: Debentures IPP | D26: CDI | E26: 107.1 | F26: 1914.331133 | G26: 2017 to 2021 | H26: 21.525287 | I26: 600 | J26: 966.6666667 | K26: 166.6666667 | L26: 166.6666667 | M26: 0 | N26: -7.194154182
C27: Debentures - 5th issuance | D27: CDI | E27: 108.3 | F27: 833.2472464 | G27: 2018-03-16 | H27: 33.852024 | I27: 800 | J27: 0 | K27: 0 | L27: 0 | M27: 0 | N27: -0.604777593
C28: BNDES | D28: TJLP | E28: +2,8 | F28: 367.343 | G28: 2016 to 2021 | H28: 137.836 | I28: 97.486 | J28: 73.638 | K28: 47.45 | L28: 10.555 | M28: 0.727 | N28: -0.3491698192
C29: Export Credit Note floating rate | D29: CDI | E29: 101.5 | F29: 158.647 | G29: 2018-05-29 | H29: 1.847 | I29: 156.8 | J29: 0 | K29: 0 | L29: 0 | M29: 0 | N29: -
C30: BNDES | D30: SELIC | E30: +2,3 | F30: 62.14098404 | G30: 2016 to 2021 | H30: 9.8 | I30: 14.663 | J30: 14.679 | K30: 14.697 | L30: 8.198 | M30: 0.209 | N30: -0.106614807
C31: Banco do Nordeste do Brasil | D31: R$ | E31: +8,5 | F31: 56.597 | G31: 2016 to 2021 | H31: 19.169 | I31: 18.873 | J31: 5.709 | K31: 5.709 | L31: 5.709 | M31: 1.427 | N31: -
C32: Research and projects financing (FINEP) | D32: R$ | E32: +4,0 | F32: 55.189 | G32: 2016 to 2021 | H32: 13.124 | I32: 13.034 | J32: 13.034 | K32: 6.399 | L32: 6.399 | M32: 3.199 | N32: -
C33: Financial leasing | D33: IGPM | E33: +5,6 | F33: 49.669 | G33: 2016 to 2031 | H33: 2.407 | I33: 2.352 | J33: 2.484 | K33: 2.623 | L33: 2.77 | M33: 37.033 | N33: -
C34: BNDES | D34: R$ | E34: +5,1 | F34: 45.3139867 | G34: 2016 to 2022 | H34: 15.416 | I34: 12.312 | J34: 10.522 | K34: 6.061 | L34: 1.017 | M34: 0.01 | N34: -0.025
C35: Research and projects financing (FINEP) | D35: TJLP | E35: -1.4 | F35: 10.644 | G35: 2016 to 2023 | H35: 1.841 | I35: 2.023 | J35: 2.023 | K35: 1.227 | L35: 1.154 | M35: 2.376 | N35: -
C36: Export Credit Note 4 | D36: R$ | E36: +8,0 | F36: 10.061 | G36: 2016-08-01 | H36: 10.12692939 | I36: 0 | J36: 0 | K36: 0 | L36: 0 | M36: 0 | N36: -0.06603950384
C37: Working capital loan - fixed rate | D37: R$ | E37: +10,0 | F37: 0.314 | G37: 2016-09-13 | H37: 0.314 | I37: 0 | J37: 0 | K37: 0 | L37: 0 | M37: 0 | N37: -
C38: Financial leasing floating rate | D38: CDI | E38: +2,8 | F38: 0.222 | G38: 2016 to 2017 | H38: 0.222 | I38: 0 | J38: 0 | K38: 0 | L38: 0 | M38: 0 | N38: -
C39: Agency for Financing Machinery and Equipment (FINAME) | D39: TJLP | E39: +5,7 | F39: 0.151 | G39: 2016 to 2022 | H39: 0.106 | I39: 0.01 | J39: 0.01 | K39: 0.01 | L39: 0.01 | M39: 0.006 | N39: -
C40: Financial leasing fixed rate | D40: R$ | E40: +15,6 | F40: 0.06 | G40: 2016 to 2017 | H40: 0.039 | I40: 0.021 | J40: 0 | K40: 0 | L40: 0 | M40: 0 | N40: -
C43: Sub Total local currency | F43: 6438.401 | H43: 309.2582404 | I43: 2250.907 | J43: 2392.763667 | K43: 587.3426667 | L43: 538.9786667 | M43: 381.487 | N43: -22.3387559
C45: Unrealized losses on swaps transactions | F45: 239.238 | H45: 114.858 | I45: 0 | J45: 124.38 | K45: 0 | L45: 0 | M45: 0
B47: Total | F47: 8922.641 | H47: 1230.29424 | I47: 2756.321 | J47: 3360.112667 | K47: 652.8956667 | L47: 603.3646667 | M47: 381.487 | N47: -61.8367559
C49: Transaction costs and fair value adjustment 6 | H49: -19.476 | I49: -19.906 | J49: -18.895 | K49: -2.093 | L49: -1.202 | M49: -0.265 | N49: -61.8367559
B51: Total | F51: 8922.641 | H51: 1210.817 | I51: 2736.417 | J51: 3341.218 | K51: 650.804 | L51: 602.163 | M51: 381.222
B53: 1. | C53: Libor = London Interbank Offered Rate / MX$ = Mexican Peso / TIIE = Mexican Interbank Interest Rate Even / CDI = interbank certificate of deposit rate / TJLP = basic financing cost of BNDES (set by National Monetary Council). On June 30, 2016, TJLP was fixed at 7.5% p.a. / IGPM = General Index of Market Prices / SELIC = base interest rate set by the Brazilian Central Bank
B55: 2. | C55: The company contracted hedging against foreign exchange exposure and interest rate for some debt.
B57: 3. | C57: For this loan, a hedging instrument was hired with the objective of swapping the fixed to floating rate, equivalent to 102.66% of CDI.
B59: 4. | C59: For this loan, a hedging instrument was hired with the objective of swapping the fixed to floating rate, equivalent to 79.90% of CDI.
B61: 5. | C61: For this loan, a hedging instrument was hired with the objective of swapping the fixed to floating rate, equivalent to 100.63% of CDI.
B63: 6. | C63: As provided in IAS 39, transaction costs incurred in obtaining financial resources were deducted from the value of the financial instrument, and as provided in Resolution CVM 604/09, loans was recognised at fair value. The amount to be appropriated to income in the future is as follows:
C65: Transaction costs | D65: Amount to be appropriated | E65: Profile
E66: up to 12 months | F66: from 12 to 24 | G66: from 24 to 36 | H66: from 36 to 48 | I66: from 48 to 60 | J66: > 60 months
C67: Banco do Brasil | D67: -13.993 | E67: -3.785 | F67: -4.372 | G67: -4.38 | H67: -0.695 | I67: -0.496 | J67: -0.265
C68: Foreign loan | D68: -3.345 | E68: -1.958 | F68: -1.107 | G68: -0.281 | H68: 0 | I68: 0 | J68: 0
C69: Debentures | D69: -7.799 | E69: -1.994 | F69: -2.143 | G69: -1.865 | H69: -1.187 | I69: -0.609 | J69: 0
C70: Others | D70: -1.184 | E70: -0.297 | F70: -0.329 | G70: -0.251 | H70: -0.21 | I70: -0.096 | J70: 0
C71: Total | D71: -26.321 | E71: -8.034 | F71: -7.951 | G71: -6.777 | H71: -2.092 | I71: -1.201 | J71: -0.265
C73: As provided in Resolution CVM 604/09 (November 19, 2009), the amortization of fair value adjustment is as follows:
C75: Fair value adjustment | D75: Amount to be amortized | E75: Profile
E76: up to 12 months | F76: from 12 to 24 | G76: from 24 to 36 | H76: from 36 to 48 | I76: from 48 to 60 | J76: > 60 months
C77: Foreign loan | D77: -23.04576251 | E77: -5.891739595 | F77: -7.486288393 | G77: -9.667734525 | H77: 0 | I77: 0 | J77: 0
C78: Foreign loan 6 | D78: -12.40350635 | E78: -5.483543461 | F78: -4.468530556 | G78: -2.451432334 | H78: 0 | I78: 0 | J78: 0
C79: Export Credit Note | D79: -0.06603950384 | E79: -0.06603950384 | F79: 0 | G79: 0 | H79: 0 | I79: 0 | J79: 0
C80: Total | D80: -35.51530837 | E80: -11.44132256 | F80: -11.95481895 | G80: -12.11916686 | H80: 0 | I80: 0 | J80: 0

Sheet 3Q16
A7: Financing and debentures (R$ million) | D7: Index/ Currency ¹ | E7: Average weighted interest rate (% p.y.) ² | F7: Balance 6 Sep-16 | G7: Maturity | H7: Amortization Profile | N7: Transaction costs / fair value adjustment 6
H8: up to 12 months | I8: from 12 to 24 | J8: from 24 to 36 | K8: from 36 to 48 | L8: from 48 to 60 | M8: > 60 months
B9: Foreing Currency
C11: Foreign loan 3 | D11: US$ + LIBOR | E11: +0,7 | F11: 919.023 | G11: 2017 to 2018 | H11: 488.714 | I11: 194.772 | J11: 259.696 | K11: 0 | L11: 0 | M11: 0 | N11: -24.159
C12: Foreign loan 4 | D12: US$ | E12: +2,1 | F12: 472.913 | G12: 2017 to 2018 | H12: 227.308 | I12: 259.696 | J12: 0 | K12: 0 | L12: 0 | M12: 0 | N12: -14.091
C13: Foreign loan | D13: US$ + LIBOR | E13: +1,4 | F13: 332.054 | G13: 2017 to 2018 | H13: 195.972 | I13: 0 | J13: 136.34 | K13: 0 | L13: 0 | M13: 0 | N13: -0.257
C14: Financial institutions | D14: US$ + LIBOR | E14: +3,0 | F14: 194.499 | G14: 2019 to 2021 | H14: 0.523 | I14: 0 | J14: 32.587 | K14: 130.348 | L14: 32.587 | M14: 0 | N14: -1.546
C15: Advances on Foreign Exchange Contracts (ACC) | D15: US$ | E15: +2,9 | F15: 155.909 | G15: < 311 days | H15: 155.909 | I15: 0 | J15: 0 | K15: 0 | L15: 0 | M15: 0 | N15: -
C16: Financial institutions | D16: US$ | E16: +2,7 | F16: 113.267 | G16: 2016 to 2017 | H16: 113.267 | I16: 0 | J16: 0 | K16: 0 | L16: 0 | M16: 0 | N16: -
C17: Advances on Foreign Exchange Contracts (ACE) | D17: US$ | E17: +2,6 | F17: 29.992 | G17: < 115 days | H17: 29.992 | I17: 0 | J17: 0 | K17: 0 | L17: 0 | M17: 0 | N17: -
C18: Financial institutions | D18: MX$ | E18: +5,5 | F18: 13.481 | G18: 2016 | H18: 13.481 | I18: 0 | J18: 0 | K18: 0 | L18: 0 | M18: 0 | N18: -
C19: Financial institutions | D19: MX$ + TIIE | E19: +1,0 | F19: 10.155 | G19: 2016 to 2017 | H19: 10.155 | I19: 0 | J19: 0 | K19: 0 | L19: 0 | M19: 0 | N19: -
C20: BNDES | D20: US$ | E20: +6,0 | F20: 8.674 | G20: 2016 to 2020 | H20: 3.699 | I20: 2.323 | J20: 1.989 | K20: 0.663 | L20: 0 | M20: 0 | N20: -
C22: Sub Total foreing currency | F22: 2249.967 | H22: 1239.02 | I22: 456.791 | J22: 430.612 | K22: 131.011 | L22: 32.587 | M22: 0 | N22: -40.053
B24: Local Currency
C26: Banco do Brasil floating rate | D26: CDI | E26: 107.4 | F26: 2912.406 | G26: 2017 to 2022 | H26: 204.297 | I26: 366.667 | J26: 1345.045 | K26: 336.5 | L26: 336.5 | M26: 336.5 | N26: -13.103
C27: Debentures IPP | D27: CDI | E27: 107.1 | F27: 1986.198784 | G27: 2017 to 2021 | H27: 93.00143 | I27: 600 | J27: 966.6666667 | K27: 166.6666667 | L27: 166.6666667 | M27: 0 | N27: -6.802646308
C28: Debentures - 5th issuance | D28: CDI | E28: 108.3 | F28: 804.0295914 | G28: 2018-03-16 | H28: 4.554752 | I28: 800 | J28: 0 | K28: 0 | L28: 0 | M28: 0 | N28: -0.5251606066
C29: BNDES | D29: TJLP | E29: +2,4 | F29: 338.909 | G29: 2016 to 2021 | H29: 132.415 | I29: 89.01 | J29: 73.648 | K29: 36.793 | L29: 7.185 | M29: 0.291 | N29: -0.4330953899
C30: Export Credit Note floating rate | D30: CDI | E30: 101.5 | F30: 158.647 | G30: 2018-05-29 | H30: 1.847 | I30: 156.8 | J30: 0 | K30: 0 | L30: 0 | M30: 0 | N30: -
C31: BNDES | D31: SELIC | E31: +2,3 | F31: 69.37210489 | G31: 2016 to 2021 | H31: 13.781 | I31: 16.666 | J31: 16.682 | K31: 16.701 | L31: 5.638 | M31: 0 | N31: -0.09617510724
C32: BNDES EXIM | D32: TJLP | E32: +3,5 | F32: 61.847 | G32: 2018 | H32: 0.233 | I32: 61.613 | J32: 0 | K32: 0 | L32: 0 | M32: 0 | N32: -
C33: Research and projects financing (FINEP) | D33: R$ | E33: +4,0 | F33: 51.925 | G33: 2016 to 2021 | H33: 13.119 | I33: 13.034 | J33: 11.375 | K33: 6.399 | L33: 6.399 | M33: 1.6 | N33: -
C34: Banco do Nordeste do Brasil | D34: R$ | E34: +8,5 | F34: 51.853 | G34: 2016 to 2021 | H34: 19.142 | I34: 15.582 | J34: 5.709 | K34: 5.709 | L34: 5.709 | M34: 0 | N34: -
C35: Financial leasing | D35: IGPM | E35: +5,6 | F35: 49.121 | G35: 2016 to 2031 | H35: 2.436 | I35: 2.384 | J35: 2.518 | K35: 2.659 | L35: 2.808 | M35: 36.316 | N35: -
C36: BNDES | D36: R$ | E36: +5,3 | F36: 43.52668672 | G36: 2016 to 2022 | H36: 14.636 | I36: 12.462 | J36: 10.622 | K36: 4.988 | L36: 0.834 | M36: 0.007 | N36: -0.022
C37: Research and projects financing (FINEP) | D37: TJLP | E37: +0,8 | F37: 35.116 | G37: 2016 to 2023 | H37: 2.428 | I37: 3.393 | J37: 6.631 | K37: 5.904 | L37: 5.904 | M37: 10.855 | N37: -
C38: BNDES EXIM | D38: SELIC | E38: +3,9 | F38: 27.169 | G38: 2018 | H38: 0.045 | I38: 27.123 | J38: 0 | K38: 0 | L38: 0 | M38: 0 | N38: -
C39: Financial leasing floating rate | D39: CDI | E39: +2,8 | F39: 0.167 | G39: 2016 to 2017 | H39: 0.167 | I39: 0 | J39: 0 | K39: 0 | L39: 0 | M39: 0 | N39: -
C40: Agency for Financing Machinery and Equipment (FINAME) | D40: TJLP | E40: +5,7 | F40: 0.116 | G40: 2016 to 2022 | H40: 0.072 | I40: 0.01 | J40: 0.01 | K40: 0.01 | L40: 0.01 | M40: 0.003 | N40: -
C41: Financial leasing fixed rate | D41: R$ | E41: +15,6 | F41: 0.051 | G41: 2016 to 2017 | H41: 0.04 | I41: 0.011 | J41: 0 | K41: 0 | L41: 0 | M41: 0 | N41: -
C44: Sub Total local currency | F44: 6590.454 | H44: 502.215182 | I44: 2164.755 | J44: 2438.906667 | K44: 582.3296667 | L44: 537.6536667 | M44: 385.572 | N44: -20.98207741
C46: Unrealized losses on swaps transactions | F46: 168.107 | H46: 51.124 | I46: 44.685 | J46: 72.298 | K46: 0 | L46: 0 | M46: 0
B48: Total | F48: 9008.528 | H48: 1792.359182 | I48: 2666.231 | J48: 2941.816667 | K48: 713.3406667 | L48: 570.2406667 | M48: 385.572 | N48: -61.03507741
C50: Transaction costs and fair value adjustment 5 | H50: -25.79 | I50: -22.764 | J50: -9.17 | K50: -2.159 | L50: -0.95 | M50: -0.202 | N50: -61.03507741
B52: Total | F52: 9008.528 | H52: 1766.57 | I52: 2643.468 | J52: 2932.646 | K52: 711.182 | L52: 569.291 | M52: 385.37
B54: 1. | C54: Libor = London Interbank Offered Rate / MX$ = Mexican Peso / TIIE = Mexican Interbank Interest Rate Even / CDI = interbank certificate of deposit rate / TJLP = basic financing cost of BNDES (set by National Monetary Council). On September 30, 2016, TJLP was fixed at 7.5% p.a. / IGPM = General Index of Market Prices / SELIC = base interest rate set by the Brazilian Central Bank
B56: 2. | C56: The company contracted hedging against foreign exchange exposure and interest rate for some debt.
B58: 3. | C58: For this loan, a hedging instrument was hired with the objective of swapping the fixed to floating rate, equivalent to 102.66% of CDI.
B60: 4. | C60: For this loan, a hedging instrument was hired with the objective of swapping the fixed to floating rate, equivalent to 100.63% of CDI.
B62: 5. | C62: As provided in IAS 39, transaction costs incurred in obtaining financial resources were deducted from the value of the financial instrument, and as provided in Resolution CVM 604/09, loans was recognised at fair value. The amount to be appropriated to income in the future is as follows:
C64: Transaction costs | D64: Amount to be appropriated | E64: Profile
E65: up to 12 months | F65: from 12 to 24 | G65: from 24 to 36 | H65: from 36 to 48 | I65: from 48 to 60 | J65: > 60 months
C66: Banco do Brasil | D66: -13.103 | E66: -3.951 | F66: -4.483 | G66: -3.378 | H66: -0.648 | I66: -0.441 | J66: -0.202
C67: Foreign loan | D67: -2.783 | E67: -1.777 | F67: -0.906 | G67: -0.1 | H67: 0 | I67: 0 | J67: 0
C68: Debentures | D68: -7.328 | E68: -2.061 | F68: -2.101 | G68: -1.662 | H68: -1.052 | I68: -0.452 | J68: 0
C69: Others | D69: -2.097 | E69: -0.532 | F69: -0.544 | G69: -0.506 | H69: -0.459 | I69: -0.056 | J69: 0
C70: Total | D70: -25.311 | E70: -8.321 | F70: -8.034 | G70: -5.646 | H70: -2.159 | I70: -0.949 | J70: -0.202
C72: As provided in Resolution CVM 604/09 (November 19, 2009), the amortization of fair value adjustment is as follows:
C74: Fair value adjustment | D74: Amount to be amortized | E74: Profile
E75: up to 12 months | F75: from 12 to 24 | G75: from 24 to 36 | H75: from 36 to 48 | I75: from 48 to 60 | J75: > 60 months
C76: Foreign loan | D76: -21.63376401 | E76: -9.802084465 | F76: -8.30645697 | G76: -3.525222578 | H76: 0 | I76: 0 | J76: 0
C77: Foreign loan 6 | D77: -14.0907292 | E77: -7.667003113 | F77: -6.423726082 | G77: 0 | H77: 0 | I77: 0 | J77: 0
C78: Export Credit Note | D78: 0 | E78: 0 | F78: 0 | G78: 0 | H78: 0 | I78: 0 | J78: 0
C79: Total | D79: -35.72449321 | E79: -17.46908758 | F79: -14.73018305 | G79: -3.525222578 | H79: 0 | I79: 0 | J79: 0

Sheet 4Q16
A7: Financing and debentures (R$ million) | D7: Index/ Currency ¹ | E7: Average weighted interest rate (% p.y.) ² | F7: Balance 6 Dec-16 | G7: Maturity | H7: Amortization Profile | N7: Transaction costs / discount to the face value / fair value adjustment 6
H8: up to 12 months | I8: from 12 to 24 | J8: from 24 to 36 | K8: from 36 to 48 | L8: from 48 to 60 | M8: > 60 months
B9: Foreing Currency
C11: Notes 5 | D11: US$ | E11: +5,3 | F11: 2412.112 | G11: 2026 | H11: 29.94260155 | I11: -0.0001733930932 | J11: 0.0005225365487 | K11: -0.0002248906421 | L11: 0.000675093402 | M11: 2444.324623 | N11: -62.15588569
C12: Foreign loan 3 | D12: US$ + LIBOR | E12: +0,7 | F12: 942.456 | G12: 2017 to 2018 | H12: 490.793 | I12: 456.274 | J12: 0 | K12: 0 | L12: 0 | M12: 0 | N12: -4.611
C13: Foreign loan 4 | D13: US$ | E13: +2,1 | F13: 486.451 | G13: 2017 to 2018 | H13: 231.292 | I13: 260.728 | J13: 0 | K13: 0 | L13: 0 | M13: 0 | N13: -5.569
C14: Foreign loan | D14: US$ + LIBOR | E14: +1,4 | F14: 332.65 | G14: 2017 to 2018 | H14: 195.831 | I14: 136.882 | J14: 0 | K14: 0 | L14: 0 | M14: 0 | N14: -0.064
C15: Financial institutions | D15: US$ + LIBOR | E15: +3,0 | F15: 195.021 | G15: 2019 to 2021 | H15: 0.582 | I15: 0 | J15: 32.649 | K15: 130.596 | L15: 32.649 | M15: 0 | N15: -1.456
C16: Advances on Foreign Exchange Contracts (ACC) | D16: US$ | E16: +3,0 | F16: 111.066 | G16: < 219 days | H16: 111.066 | I16: 0 | J16: 0 | K16: 0 | L16: 0 | M16: 0 | N16: -
C17: Financial institutions | D17: US$ | E17: +2,7 | F17: 109.859 | G17: 2017 | H17: 109.859 | I17: 0 | J17: 0 | K17: 0 | L17: 0 | M17: 0 | N17: -
C18: Advances on Foreign Exchange Contracts (ACE) | D18: US$ | E18: +2,7 | F18: 32.582 | G18: < 82 days | H18: 32.582 | I18: 0 | J18: 0 | K18: 0 | L18: 0 | M18: 0 | N18: -
C19: Financial institutions | D19: MXN | E19: +6,6 | F19: 24.586 | G19: 2017 | H19: 24.586 | I19: 0 | J19: 0 | K19: 0 | L19: 0 | M19: 0 | N19: -
C20: Financial institutions | D20: MX$ + TIIE | E20: +1,0 | F20: 9.569 | G20: 2017 | H20: 9.569 | I20: 0 | J20: 0 | K20: 0 | L20: 0 | M20: 0 | N20: -
C21: BNDES | D21: US$ | E21: +6,0 | F21: 7.137 | G21: 2017 to 2020 | H21: 2.755 | I21: 2.204 | J21: 2.011 | K21: 0.168 | L21: 0 | M21: 0 | N21: -
C22: Financial institutions | D22: Bs$ | E22: +24,0 | F22: 0.435 | G22: 2017 | H22: 0.435 | I22: 0 | J22: 0 | K22: 0 | L22: 0 | M22: 0 | N22: -
C24: Sub Total foreing currency | F24: 4663.924 | H24: 1239.292602 | I24: 856.0878266 | J24: 34.66052254 | K24: 130.7637751 | L24: 32.64967509 | M24: 2444.324623 | N24: -73.85588569
B26: Local Currency
C28: Banco do Brasil floating rate | D28: CDI | E28: 107.4 | F28: 2956.547 | G28: 2017 to 2022 | H28: 307.758 | I28: 266.667 | J28: 1384.804 | K28: 336.5 | L28: 336.5 | M28: 336.5 | N28: -12.182
C29: Debentures IPP | D29: CDI | E29: 107.1 | F29: 1914.498148 | G29: 2017 to 2021 | H29: 620.887112 | I29: 800 | J29: 166.6666667 | K29: 166.6666667 | L29: 166.6666667 | M29: 0 | N29: -6.38896433
C30: Debentures - 5th issuance | D30: CDI | E30: 108.3 | F30: 832.383202 | G30: 2018-03-16 | H30: 32.82928 | I30: 800 | J30: 0 | K30: 0 | L30: 0 | M30: 0 | N30: -0.4460780166
C31: BNDES | D31: TJLP | E31: +2,4 | F31: 307.593 | G31: 2017 to 2021 | H31: 125.623 | I31: 82.467 | J31: 70.368 | K31: 26.302 | L31: 3.225 | M31: 0 | N31: -0.3913402225
C32: Export Credit Note floating rate | D32: CDI | E32: 101.5 | F32: 158.753 | G32: 2018-05-29 | H32: 1.953 | I32: 156.8 | J32: 0 | K32: 0 | L32: 0 | M32: 0 | N32: -
C33: BNDES | D33: SELIC | E33: +2,3 | F33: 71.43006744 | G33: 2017 to 2021 | H33: 16.94 | I33: 17.659 | J33: 17.676 | K33: 17.075 | L33: 2.166 | M33: 0 | N33: -0.08615327602
C34: BNDES EXIM | D34: TJLP | E34: +3,5 | F34: 62.084 | G34: 2018 | H34: 0.25 | I34: 61.834 | J34: 0 | K34: 0 | L34: 0 | M34: 0 | N34: -
C35: Research and projects financing (FINEP) | D35: R$ | E35: +4,0 | F35: 48.667 | G35: 2017 to 2021 | H35: 13.119 | I35: 13.034 | J35: 9.716 | K35: 6.399 | L35: 6.399 | M35: 0 | N35: -
C36: Financial leasing | D36: IGPM | E36: +5,6 | F36: 48.566 | G36: 2017 to 2031 | H36: 2.465 | I36: 2.417 | J36: 2.552 | K36: 2.695 | L36: 2.847 | M36: 35.59 | N36: -
C37: Banco do Nordeste do Brasil | D37: R$ | E37: +8,5 | F37: 47.12 | G37: 2017 to 2021 | H37: 19.128 | I37: 12.291 | J37: 5.709 | K37: 5.709 | L37: 4.282 | M37: 0 | N37: -
C38: BNDES | D38: R$ | E38: +5,5 | F38: 40.30945341 | G38: 2017 to 2022 | H38: 14.111 | I38: 12.173 | J38: 10.143 | K38: 3.608 | L38: 0.292 | M38: 0.001 | N38: -0.019
C39: Research and projects financing (FINEP) | D39: TJLP | E39: +0,9 | F39: 34.613 | G39: 2017 to 2023 | H39: 2.376 | I39: 4.537 | J39: 6.436 | K39: 5.926 | L39: 5.926 | M39: 9.413 | N39: -
C40: BNDES EXIM | D40: SELIC | E40: +3,9 | F40: 28.056 | G40: 2018 | H40: 0.051 | I40: 28.005 | J40: 0 | K40: 0 | L40: 0 | M40: 0 | N40: -
C41: Financial leasing floating rate | D41: CDI | E41: +2,8 | F41: 0.108 | G41: 2017 | H41: 0.108 | I41: 0 | J41: 0 | K41: 0 | L41: 0 | M41: 0 | N41: -
C42: Agency for Financing Machinery and Equipment (FINAME) | D42: TJLP | E42: +5,7 | F42: 0.08 | G42: 2017 to 2022 | H42: 0.039 | I42: 0.01 | J42: 0.01 | K42: 0.01 | L42: 0.01 | M42: 0.001 | N42: -
C43: Financial leasing fixed rate | D43: R$ | E43: +15,6 | F43: 0.041 | G43: 2017 | H43: 0.041 | I43: 0 | J43: 0 | K43: 0 | L43: 0 | M43: 0 | N43: -
C46: Sub Total local currency | F46: 6550.849 | H46: 1157.679392 | I46: 2257.894 | J46: 1674.080667 | K46: 570.8906667 | L46: 528.3136667 | M46: 381.505 | N46: -19.51353585
C48: Unrealized losses on swaps transactions | F48: 202.358 | H48: 97.729 | I48: 104.629 | J48: 0 | K48: 0 | L48: 0 | M48: 0
B50: Total | F50: 11417.132 | H50: 2494.700994 | I50: 3218.610827 | J50: 1708.741189 | K50: 701.6544418 | L50: 560.9633418 | M50: 2825.829623 | N50: -93.36942154
C52: Transaction costs, discount to the face value and fair value adjustment 6 | H52: -19.097 | I52: -15.23 | J52: -9.733 | K52: -7.662 | L52: -6.799 | M52: -34.849 | N52: -93.36942154
B54: Total | F54: 11417.132 | H54: 2475.605 | I54: 3203.383 | J54: 1699.009 | K54: 693.993 | L54: 554.162 | M54: 2790.981
B56: 1. | C56: Libor = London Interbank Offered Rate / Bs$ = Bolivar / MX$ = Mexican Peso / TIIE = Mexican Interbank Interest Rate Even / CDI = interbank certificate of deposit rate / TJLP = basic financing cost of BNDES (set by National Monetary Council). On December 31, 2016, TJLP was fixed at 7.5% p.a. / IGPM = General Index of Market Prices / SELIC = base interest rate set by the Brazilian Central Bank
B58: 2. | C58: The company contracted hedging against foreign exchange exposure and interest rate for some debt.
B60: 3. | C60: For this loan, a hedging instrument was hired with the objective of swapping the fixed to floating rate, equivalent to 102.66% of CDI.
B62: 4. | C62: For this loan, a hedging instrument was hired with the objective of swapping the fixed to floating rate, equivalent to 100.63% of CDI.
B63: 5. | C63: These transactions were designated for hedge accounting (see Note 31 – Hedge Accounting).
B64: 6. | C64: As provided in IAS 39, transaction costs incurred in obtaining financial resources were deducted from the value of the financial instrument, and as provided in Resolution CVM 604/09, loans were recognised at fair value. The amount to be appropriated to income in the future is as follows:
C66: Transaction costs | D66: Amount to be appropriated | E66: Profile
E67: up to 12 months | F67: from 12 to 24 | G67: from 24 to 36 | H67: from 36 to 48 | I67: from 48 to 60 | J67: > 60 months
C68: Banco do Brasil | D68: -12.182 | E68: -4.117 | F68: -4.628 | G68: -2.317 | H68: -0.599 | I68: -0.385 | J68: -0.136
C69: Foreign loan | D69: -2.211 | E69: -1.446 | F69: -0.765 | G69: 0 | H69: 0 | I69: 0 | J69: 0
C70: Debentures | D70: -6.835 | E70: -2.125 | F70: -2.067 | G70: -1.447 | H70: -0.909 | I70: -0.288 | J70: 0
C71: Notes | D71: -16.612 | E71: -1.314 | F71: -1.387 | G71: -1.464 | H71: -1.546 | I71: -1.632 | J71: -9.269
C72: Others | D72: -1.952 | E72: -0.524 | F72: -0.536 | G72: -0.496 | H72: -0.374 | I72: -0.022 | J72: 0
C73: Total | D73: -39.792 | E73: -9.526 | F73: -9.383 | G73: -5.724 | H73: -3.428 | I73: -2.327 | J73: -9.405
C75: As provided in Resolution CVM 604/09 (November 19, 2009), the amortization of fair value adjustment is as follows:
C77: Fair value adjustment | D77: Amount to be amortized | E77: Profile
E78: up to 12 months | F78: from 12 to 24 | G78: from 24 to 36 | H78: from 36 to 48 | I78: from 48 to 60 | J78: > 60 months
C79: Foreign loan | D79: -8.033214443 | E79: -5.979561287 | F79: -2.053653156 | G79: 0 | H79: 0 | I79: 0 | J79: 0
C80: Total | D80: -8.033214443 | E80: -5.979561287 | F80: -2.053653156 | G80: 0 | H80: 0 | I80: 0 | J80: 0
C82: As provided in IAS 39, discount to the face value incurred in obtaining financial resources was deducted from the value of the financial instrument, and as provided in Resolution CVM 604/09, loans were recognised at fair value. The amount to be appropriated to income in the future is as follows:
C84: Discount to the face value | D84: Amount to be appropriated | E84: Profile
E85: up to 12 months | F85: from 12 to 24 | G85: from 24 to 36 | H85: from 36 to 48 | I85: from 48 to 60 | J85: > 60 months
C86: Notes | D86: -45.543 | E86: -9.526 | F86: -9.382 | G86: -5.725 | H86: -3.428 | I86: -2.327 | J86: -9.405
C87: Total | D87: -45.543 | E87: -9.526 | F87: -9.382 | G87: -5.725 | H87: -3.428 | I87: -2.327 | J87: -9.405

Sheet 1Q17
A7: Financing and debentures (R$ million) | D7: Index/ Currency ¹ | E7: Average weighted interest rate (% p.y.) ² | F7: Balance 6 Mar-17 | G7: Maturity | H7: Amortization Profile | N7: Transaction costs / discount to the face value / fair value adjustment 6
H8: up to 12 months | I8: from 12 to 24 | J8: from 24 to 36 | K8: from 36 to 48 | L8: from 48 to 60 | M8: > 60 months
B9: Foreing Currency
C11: Notes 5 | D11: US$ | E11: +5,3 | F11: 2375.649 | G11: 2026 | H11: 60.29777443 | I11: 0.0003594272251 | J11: -0.0005637135213 | K11: 9.200095523e-05 | L11: 0.0004186339104 | M11: 2376.300258 | N11: -60.95009142
C12: Foreign loan 3 | D12: US$ + LIBOR | E12: +0,7 | F12: 900.21 | G12: 2017 to 2018 | H12: 477.24 | I12: 443.576 | J12: 0 | K12: 0 | L12: 0 | M12: 0 | N12: -20.606
C13: Foreign loan | D13: US$ + LIBOR | E13: +1,9 | F13: 324.132 | G13: 2018 to 2020 | H13: 1.502 | I13: 133.073 | J13: 0 | K13: 190.104 | L13: 0 | M13: 0 | N13: -0.546
C14: Foreign loan 4 | D14: US$ | E14: +2,2 | F14: 243.491 | G14: 2018 | H14: 0.126 | I14: 253.472 | J14: 0 | K14: 0 | L14: 0 | M14: 0 | N14: -10.108
C15: Financial institutions | D15: US$ + LIBOR | E15: +3,0 | F15: 188.153 | G15: 2019 to 2021 | H15: 0.554 | I15: 0 | J15: 62.971 | K15: 125.942 | L15: 0 | M15: 0 | N15: -1.313
C16: Financial institutions | D16: US$ | E16: +2,7 | F16: 105.217 | G16: 2017 | H16: 105.217 | I16: 0 | J16: 0 | K16: 0 | L16: 0 | M16: 0 | N16: -
C17: Advances on Foreign Exchange Contracts (ACC) | D17: US$ | E17: +3,0 | F17: 45.891 | G17: < 129 days | H17: 45.891 | I17: 0 | J17: 0 | K17: 0 | L17: 0 | M17: 0 | N17: -
C18: Advances on Foreign Exchange Contracts (ACE) | D18: US$ | E18: +2,9 | F18: 42.397 | G18: < 55 days | H18: 42.397 | I18: 0 | J18: 0 | K18: 0 | L18: 0 | M18: 0 | N18: -
C19: Financial institutions | D19: MXN | E19: +7,4 | F19: 33.055 | G19: 2017 | H19: 33.055 | I19: 0 | J19: 0 | K19: 0 | L19: 0 | M19: 0 | N19: -
C20: BNDES | D20: US$ | E20: +6,2 | F20: 6.081 | G20: 2017 to 2020 | H20: 2.501 | I20: 1.974 | J20: 1.606 | K20: 0 | L20: 0 | M20: 0 | N20: -
C21: Financial institutions | D21: MX$ + TIIE | E21: +1,5 | F21: 3.377 | G21: 2017 | H21: 3.377 | I21: 0 | J21: 0 | K21: 0 | L21: 0 | M21: 0 | N21: -
C22: Financial institutions | D22: Bs$ | E22: +24,0 | F22: 0.201 | G22: 2017 | H22: 0.201 | I22: 0 | J22: 0 | K22: 0 | L22: 0 | M22: 0 | N22: -
C24: Sub Total foreing currency | F24: 4267.853 | H24: 772.3587744 | I24: 832.0953594 | J24: 64.57643629 | K24: 316.046092 | L24: 0.0004186339104 | M24: 2376.300258 | N24: -93.52309142
B26: Local Currency
C28: Banco do Brasil floating rate | D28: CDI | E28: 107.4 | F28: 2987.318 | G28: 2017 to 2022 | H28: 465.77 | I28: 266.667 | J28: 1256.598 | K28: 336.5 | L28: 336.5 | M28: 336.5 | N28: -11.217
C29: Debentures IPP | D29: CDI | E29: 107.1 | F29: 1977.423957 | G29: 2017 to 2021 | H29: 683.394193 | I29: 800 | J29: 166.6666667 | K29: 166.6666667 | L29: 166.6666667 | M29: 0 | N29: -5.970236223
C30: Debentures - 5th issuance | D30: CDI | E30: 108.3 | F30: 803.9782014 | G30: 2018-03-16 | H30: 804.339464 | I30: 0 | J30: 0 | K30: 0 | L30: 0 | M30: 0 | N30: -0.3612625934
C31: BNDES | D31: TJLP | E31: +2,4 | F31: 275.049 | G31: 2017 to 2021 | H31: 115.322 | I31: 78.229 | J31: 61.642 | K31: 18.682 | L31: 1.522 | M31: 0 | N31: -0.3486637746
C32: Export Credit Note floating rate | D32: CDI | E32: 101.5 | F32: 158.472 | G32: 2018-05-29 | H32: 1.672 | I32: 156.8 | J32: 0 | K32: 0 | L32: 0 | M32: 0 | N32: -
C33: BNDES | D33: SELIC | E33: +2,3 | F33: 70.29999465 | G33: 2017 to 2021 | H33: 18.358 | I33: 18.298 | J33: 18.316 | K33: 14.679 | L33: 0.726 | M33: 0 | N33: -0.07656726669
C34: BNDES EXIM | D34: TJLP | E34: +3,5 | F34: 62.303 | G34: 2018 | H34: 0.251 | I34: 62.052 | J34: 0 | K34: 0 | L34: 0 | M34: 0 | N34: -
C35: Financial leasing | D35: IGPM | E35: +5,6 | F35: 48.004 | G35: 2017 to 2031 | H35: 2.494 | I35: 2.45 | J35: 2.587 | K35: 2.732 | L35: 2.886 | M35: 34.854 | N35: -
C36: Research and projects financing (FINEP) | D36: R$ | E36: +4,0 | F36: 45.402 | G36: 2017 to 2021 | H36: 13.113 | I36: 13.034 | J36: 8.057 | K36: 6.399 | L36: 4.799 | M36: 0 | N36: -
C37: Banco do Nordeste do Brasil | D37: R$ | E37: +8,5 | F37: 42.374 | G37: 2017 to 2021 | H37: 19.1 | I37: 9 | J37: 5.709 | K37: 5.709 | L37: 2.855 | M37: 0 | N37: -
C38: BNDES | D38: R$ | E38: +5,5 | F38: 36.50688885 | G38: 2017 to 2022 | H38: 13.709 | I38: 11.694 | J38: 8.607 | K38: 2.451 | L38: 0.063 | M38: 0 | N38: -0.016
C39: Research and projects financing (FINEP) | D39: TJLP | E39: +0,9 | F39: 34.163 | G39: 2017 to 2023 | H39: 2.383 | I39: 5.689 | J39: 6.239 | K39: 5.946 | L39: 5.946 | M39: 7.959 | N39: -
C40: BNDES EXIM | D40: SELIC | E40: +3,9 | F40: 28.91 | G40: 2018 | H40: 0.053 | I40: 28.857 | J40: 0 | K40: 0 | L40: 0 | M40: 0 | N40: -
C41: Agency for Financing Machinery and Equipment (FINAME) | D41: TJLP | E41: +5,7 | F41: 0.063 | G41: 2017 to 2022 | H41: 0.024 | I41: 0.01 | J41: 0.01 | K41: 0.01 | L41: 0.008 | M41: 0 | N41: -
C42: Financial leasing floating rate | D42: CDI | E42: +2,8 | F42: 0.045 | G42: 2017 | H42: 0.045 | I42: 0 | J42: 0 | K42: 0 | L42: 0 | M42: 0 | N42: -
C43: Financial leasing fixed rate | D43: R$ | E43: +15,6 | F43: 0.032 | G43: 2017 | H43: 0.032 | I43: 0 | J43: 0 | K43: 0 | L43: 0 | M43: 0 | N43: -
C46: Sub Total local currency | F46: 6570.344 | H46: 2140.060657 | I46: 1452.78 | J46: 1534.431667 | K46: 559.7746667 | L46: 521.9716667 | M46: 379.313 | N46: -17.98972986
C48: Unrealized losses on swaps transactions | F48: 200.718 | H48: 63.148 | I48: 127.482 | J48: 0 | K48: 10.088 | L48: 0 | M48: 0
B50: Total | F50: 11038.915 | H50: 2975.567431 | I50: 2412.357359 | J50: 1599.008103 | K50: 885.9087587 | L50: 521.9720853 | M50: 2755.613258 | N50: -111.5128213
C52: Transaction costs, discount to the face value and fair value adjustment 6 | H52: -31.429 | I52: -24.058 | J52: -8.755 | K52: -7.439 | L52: -6.634 | M52: -33.198 | N52: -111.5128213
B54: Total | F54: 11038.915 | H54: 2944.198 | I54: 2388.316 | J54: 1590.244 | K54: 878.405 | L54: 515.337 | M54: 2722.415
B56: 1. | C56: Libor = London Interbank Offered Rate / Bs$ = Bolivar / MX$ = Mexican Peso / TIIE = Mexican Interbank Interest Rate Even / CDI = interbank certificate of deposit rate / TJLP = basic financing cost of BNDES (set by National Monetary Council). On March 31, 2017, TJLP was fixed at 7.5% p.a. / IGPM = General Index of Market Prices / SELIC = base interest rate set by the Brazilian Central Bank
B58: 2. | C58: The company contracted hedging against foreign exchange exposure and interest rate for some debt.
B60: 3. | C60: Para estes empréstimos foram contratados instrumentos de proteção com o objetivo de transformar a taxa de juros fixa para taxa flutuante, correspondente a 102,9% do CDI em média.
B62: 4. | C62: For this loan, a hedging instrument was hired with the objective of swapping the fixed to floating rate, equivalent to 101.5% of CDI.
B63: 5. | C63: These transactions were designated for hedge accounting (see Note 31 – Hedge Accounting).
B64: 6. | C64: As provided in IAS 39, transaction costs incurred in obtaining financial resources were deducted from the value of the financial instrument, and as provided in Resolution CVM 604/09, loans were recognised at fair value. The amount to be appropriated to income in the future is as follows:
C66: Transaction costs | D66: Amount to be appropriated | E66: Profile
E67: up to 12 months | F67: from 12 to 24 | G67: from 24 to 36 | H67: from 36 to 48 | I67: from 48 to 60 | J67: > 60 months
C68: Banco do Brasil | D68: -11.217 | E68: -4.253 | F68: -4.76 | G68: -1.262 | H68: -0.548 | I68: -0.326 | J68: -0.068
C69: Foreign loan | D69: -2.314 | E69: -1.4 | F69: -0.683 | G69: -0.165 | H69: -0.065 | I69: 0 | J69: 0
C70: Debentures | D70: -6.331 | E70: -2.181 | F70: -1.948 | G70: -1.321 | H70: -0.763 | I70: -0.119 | J70: 0
C71: Notes | D71: -16.289 | E71: -1.332 | F71: -1.406 | G71: -1.484 | H71: -1.567 | I71: -1.654 | J71: -8.845
C72: Others | D72: -1.754 | E72: -0.562 | F72: -0.528 | G72: -0.46 | H72: -0.204 | I72: 0 | J72: 0
C73: Total | D73: -37.905 | E73: -9.728 | F73: -9.325 | G73: -4.692 | H73: -3.147 | I73: -2.099 | J73: -8.913
C75: As provided in Resolution CVM 604/09 (November 19, 2009), the amortization of fair value adjustment is as follows:
C77: Fair value adjustment | D77: Amount to be amortized | E77: Profile
E78: up to 12 months | F78: from 12 to 24 | G78: from 24 to 36 | H78: from 36 to 48 | I78: from 48 to 60 | J78: > 60 months
C79: Foreign loan | D79: -28.94577874 | E79: -18.05932733 | F79: -10.88645141 | G79: 0 | H79: 0 | I79: 0 | J79: 0
C80: Total | D80: -28.94577874 | E80: -18.05932733 | F80: -10.88645141 | G80: 0 | H80: 0 | I80: 0 | J80: 0
C82: As provided in IAS 39, discount to the face value incurred in obtaining financial resources was deducted from the value of the financial instrument, and as provided in Resolution CVM 604/09, loans were recognised at fair value. The amount to be appropriated to income in the future is as follows:
C84: Discount to the face value | D84: Amount to be appropriated | E84: Profile
E85: up to 12 months | F85: from 12 to 24 | G85: from 24 to 36 | H85: from 36 to 48 | I85: from 48 to 60 | J85: > 60 months
C86: Notes | D86: -44.661 | E86: -3.641 | F86: -3.846 | G86: -4.063 | H86: -4.292 | I86: -4.534 | J86: -24.284
C87: Total | D87: -44.661 | E87: -3.641 | F87: -3.846 | G87: -4.063 | H87: -4.292 | I87: -4.534 | J87: -24.284

Sheet 2Q17
A7: Financing and debentures (R$ million) | D7: Index/ Currency ¹ | E7: Average weighted interest rate (% p.y.) ² | F7: Balance 7 Jun-17 | G7: Maturity | H7: Amortization Profile | N7: Transaction costs / discount to the face value / fair value adjustment 7
H8: up to 12 months | I8: from 12 to 24 | J8: from 24 to 36 | K8: from 36 to 48 | L8: from 48 to 60 | M8: > 60 months
B9: Foreing Currency
C11: Notes 5 | D11: US$ | E11: +5,3 | F11: 2451.808 | G11: 2026 | H11: 30.39503539 | I11: -1.453432406e-05 | J11: -0.0005513098973 | K11: -0.0004867012435 | L11: -0.0007273314378 | M11: 2481.149984 | N11: -59.73658496
C12: Foreign loan 3 | D12: US$ + LIBOR | E12: +0,8 | F12: 1282.532 | G12: 2017 to 2022 | H12: 498.5 | I12: 463.148 | J12: 0 | K12: 0 | L12: 330.82 | M12: 0 | N12: -9.936
C13: Foreign loan | D13: US$ + LIBOR | E13: +1,9 | F13: 338.492 | G13: 2018 to 2020 | H13: 1.584 | I13: 138.944 | J13: 198.492 | K13: 0 | L13: 0 | M13: 0 | N13: -0.53
C14: Foreign loan 4 | D14: US$ | E14: +2,2 | F14: 260.447 | G14: 2018 | H14: 1.844 | I14: 264.656 | J14: 0 | K14: 0 | L14: 0 | M14: 0 | N14: -6.054
C15: Financial institutions | D15: US$ + LIBOR | E15: +3,0 | F15: 197.255 | G15: 2019 to 2021 | H15: 0.589 | I15: 0 | J15: 65.982 | K15: 131.964 | L15: 0 | M15: 0 | N15: -1.28
C16: Financial institutions | D16: US$ | E16: +2,9 | F16: 109.693 | G16: 2017 to 2022 | H16: 43.711 | I16: 0 | J16: 0 | K16: 0 | L16: 65.982 | M16: 0 | N16: -
C17: Financial institutions | D17: MXN | E17: +8,0 | F17: 36.23 | G17: 2017 | H17: 36.23 | I17: 0 | J17: 0 | K17: 0 | L17: 0 | M17: 0 | N17: -
C18: Advances on Foreign Exchange Contracts (ACE) | D18: US$ | E18: +2,7 | F18: 23.984 | G18: < 59 days | H18: 23.984 | I18: 0 | J18: 0 | K18: 0 | L18: 0 | M18: 0 | N18: -
C19: Advances on Foreign Exchange Contracts (ACC) | D19: US$ | E19: +2,4 | F19: 15.185 | G19: < 102 days | H19: 15.185 | I19: 0 | J19: 0 | K19: 0 | L19: 0 | M19: 0 | N19: -
C20: BNDES | D20: US$ | E20: +6,2 | F20: 5.754 | G20: 2017 to 2020 | H20: 2.535 | I20: 2.033 | J20: 1.186 | K20: 0 | L20: 0 | M20: 0 | N20: -
C21: Financial institutions | D21: MX$ + TIIE | E21: +1,5 | F21: 3.679 | G21: 2017 | H21: 3.679 | I21: 0 | J21: 0 | K21: 0 | L21: 0 | M21: 0 | N21: -
C22: Financial institutions | D22: Bs$ | E22: +24,0 | F22: 0.125 | G22: 2017 | H22: 0.125 | I22: 0 | J22: 0 | K22: 0 | L22: 0 | M22: 0 | N22: -
C24: Sub Total foreing currency | F24: 4725.184 | H24: 658.3610354 | I24: 868.7809855 | J24: 265.6594487 | K24: 131.9635133 | L24: 396.8012727 | M24: 2481.149984 | N24: -77.53658496
B26: Local Currency
C28: Banco do Brasil floating rate | D28: CDI | E28: 107.3 | F28: 3021.29 | G28: 2017 to 2022 | H28: 565.425 | I28: 1456.573 | J28: 336.5 | K28: 336.5 | L28: 336.5 | M28: 0 | N28: -10.208
C29: Debentures IPP | D29: CDI | E29: 107.1 | F29: 1910.544776 | G29: 2017 to 2021 | H29: 616.073169 | I29: 966.6666667 | J29: 166.6666667 | K29: 166.6666667 | L29: 0 | M29: 0 | N29: -5.528393318
C30: Debentures - 5th issuance | D30: CDI | E30: 108.3 | F30: 826.2655007 | G30: 2018-03-16 | H30: 826.542312 | I30: 0 | J30: 0 | K30: 0 | L30: 0 | M30: 0 | N30: -0.2768112843
C31: Debentures - CRA | D31: CDI | E31: 95 | F31: 654.3660276 | G31: 2022-04-14 | H31: 8.80484816 | I31: 0 | J31: 0 | K31: 0 | L31: 660.139 | M31: 0 | N31: -14.57782055
C32: Debentures - CRA 6 | D32: IPCA | E32: +4,7 | F32: 332.8524224 | G32: 2024-04-15 | H32: 2.18817738 | I32: 0 | J32: 0 | K32: 0 | L32: 0 | M32: 353.7502537 | N32: -23.08600867
C33: BNDES | D33: TJLP | E33: +2,4 | F33: 242.42 | G33: 2017 to 2021 | H33: 102.069 | I33: 76.936 | J33: 50.508 | K33: 12.371 | L33: 0.845 | M33: 0 | N33: -0.3082781391
C34: Export Credit Note floating rate | D34: CDI | E34: 101.5 | F34: 158.159 | G34: 2018-05-29 | H34: 158.159 | I34: 0 | J34: 0 | K34: 0 | L34: 0 | M34: 0 | N34: -
C35: BNDES | D35: SELIC | E35: +2,3 | F35: 67.41000701 | G35: 2017 to 2021 | H35: 18.816 | I35: 18.772 | J35: 18.79 | K35: 10.802 | L35: 0.298 | M35: 0 | N35: -0.06743580389
C36: BNDES EXIM | D36: TJLP | E36: +3,5 | F36: 62.422 | G36: 2018 | H36: 62.422 | I36: 0 | J36: 0 | K36: 0 | L36: 0 | M36: 0 | N36: -
C37: Financial leasing | D37: IGPM | E37: +5,6 | F37: 49.736 | G37: 2017 to 2031 | H37: 2.647 | I37: 2.604 | J37: 2.75 | K37: 2.904 | L37: 3.067 | M37: 35.763 | N37: -
C38: Research and projects financing (FINEP) | D38: R$ | E38: +4,0 | F38: 42.134 | G38: 2017 to 2021 | H38: 13.103 | I38: 13.034 | J38: 6.399 | K38: 6.399 | L38: 3.199 | M38: 0 | N38: -
C39: Banco do Nordeste do Brasil | D39: R$ | E39: +8,5 | F39: 37.618 | G39: 2017 to 2021 | H39: 19.063 | I39: 5.709 | J39: 5.709 | K39: 5.709 | L39: 1.427 | M39: 0 | N39: -
C40: Research and projects financing (FINEP) | D40: TJLP | E40: +0,9 | F40: 33.665 | G40: 2017 to 2023 | H40: 2.381 | I40: 6.841 | J40: 6.034 | K40: 5.961 | L40: 5.961 | M40: 6.488 | N40: -
C41: BNDES | D41: R$ | E41: +5,5 | F41: 33.08397516 | G41: 2017 to 2022 | H41: 13.207 | I41: 11.353 | J41: 6.929 | K41: 1.579 | L41: 0.03 | M41: 0 | N41: -0.013
C42: BNDES EXIM | D42: SELIC | E42: +3,9 | F42: 29.64 | G42: 2018 | H42: 29.64 | I42: 0 | J42: 0 | K42: 0 | L42: 0 | M42: 0 | N42: -
C43: Agency for Financing Machinery and Equipment (FINAME) | D43: TJLP | E43: +5,7 | F43: 0.06 | G43: 2017 to 2022 | H43: 0.024 | I43: 0.01 | J43: 0.01 | K43: 0.01 | L43: 0.006 | M43: 0 | N43: -
C44: Financial leasing fixed rate | D44: R$ | E44: +15,6 | F44: 0.021 | G44: 2017 | H44: 0.021 | I44: 0 | J44: 0 | K44: 0 | L44: 0 | M44: 0 | N44: -
C47: Sub Total local currency | F47: 7501.689 | H47: 2440.586507 | I47: 2558.498667 | J47: 600.2956667 | K47: 548.9016667 | L47: 1011.472 | M47: 396.0012537 | N47: -54.06574777
C49: Unrealized losses on swaps transactions | F49: 131.529 | H49: 21.73 | I49: 98.023 | J49: 0 | K49: 0 | L49: 9.941 | M49: 1.836
B51: Total | F51: 12358.402 | H51: 3120.677542 | I51: 3525.302652 | J51: 865.9551154 | K51: 680.86518 | L51: 1418.214273 | M51: 2878.987238 | N51: -131.6023327
C53: Transaction costs, discount to the face value and fair value adjustment 7 | H53: -28.902 | I53: -17.005 | J53: -12.299 | K53: -11.722 | L53: -12.698 | M53: -48.975 | N53: -131.6023327
B55: Total | F55: 12358.402 | H55: 3091.774 | I55: 3508.297 | J55: 853.656 | K55: 669.144 | L55: 1405.518 | M55: 2830.013
B57: 1. | C57: Libor = London Interbank Offered Rate / Bs$ = Bolivar / MX$ = Mexican Peso / TIIE = Mexican Interbank Interest Rate Even / CDI = interbank certificate of deposit rate / TJLP = basic financing cost of BNDES (set by National Monetary Council). On June 30, 2017, TJLP was fixed at 7.0% p.a. / IGPM = General Index of Market Prices / SELIC = base interest rate set by the Brazilian Central Bank / IPCA = National Consumer Price Index
B59: 2. | C59: The company contracted hedging against foreign exchange exposure and interest rate for some debt.
B61: 3. | C61: For this loan, a hedging instrument was hired with the objective of swapping the fixed to floating rate, equivalent to 103.5% of CDI.
B63: 4. | C63: For this loan, a hedging instrument was hired with the objective of swapping the fixed to floating rate, equivalent to 101.5% of CDI.
B64: 5. | C64: These transactions were designated for hedge accounting (see Note 31 – Hedge Accounting).
B65: 6. | C65: For this loan, a hedging instrument was hired with the objective of swapping the fixed to floating rate, equivalent to 93.9% of CDI.
B66: 7. | C66: As provided in IAS 39, transaction costs incurred in obtaining financial resources were deducted from the value of the financial instrument, and as provided in Resolution CVM 604/09, loans were recognised at fair value. The amount to be appropriated to income in the future is as follows:
C68: Transaction costs | D68: Amount to be appropriated | E68: Profile
E69: up to 12 months | F69: from 12 to 24 | G69: from 24 to 36 | H69: from 36 to 48 | I69: from 48 to 60 | J69: > 60 months
C70: Banco do Brasil | D70: -10.208 | E70: -4.372 | F70: -4.38 | G70: -0.695 | H70: -0.496 | I70: -0.265 | J70: 0
C71: Foreign loan | D71: -1.917 | E71: -1.27 | F71: -0.449 | G71: -0.174 | H71: -0.023 | I71: 0 | J71: 0
C72: Debentures | D72: -28.172 | E72: -5.674 | F72: -5.691 | G72: -5.327 | H72: -5.098 | I72: -4.237 | J72: -2.145
C73: Notes | D73: -15.964 | E73: -1.35 | F73: -1.425 | G73: -1.505 | H73: -1.589 | I73: -1.677 | J73: -8.419
C74: Others | D74: -1.669 | E74: -0.504 | F74: -0.521 | G74: -0.479 | H74: -0.166 | I74: 0 | J74: 0
C75: Total | D75: -57.93 | E75: -13.17 | F75: -12.466 | G75: -8.18 | H75: -7.372 | I75: -6.179 | J75: -10.564
C77: As provided in Resolution CVM 604/09 (November 19, 2009), the amortization of fair value adjustment is as follows:
C79: Fair value adjustment | D79: Amount to be amortized | E79: Profile
E80: up to 12 months | F80: from 12 to 24 | G80: from 24 to 36 | H80: from 36 to 48 | I80: from 48 to 60 | J80: > 60 months
C81: Foreign loan | D81: -14.60258054 | E81: -12.04063584 | F81: -0.6402024328 | G81: 0 | H81: 0 | I81: -1.921742269 | J81: 0
C82: Debentures | D82: -15.29735795 | E82: 0 | F82: 0 | G82: 0 | H82: 0 | I82: 0 | J82: -15.29735795
C83: Total | D83: -29.89993849 | E83: -12.04063584 | F83: -0.6402024328 | G83: 0 | H83: 0 | I83: -1.921742269 | J83: -15.29735795
C85: As provided in IAS 39, discount to the face value incurred in obtaining financial resources was deducted from the value of the financial instrument, and as provided in Resolution CVM 604/09, loans were recognised at fair value. The amount to be appropriated to income in the future is as follows:
C87: Discount to the face value | D87: Amount to be appropriated | E87: Profile
E88: up to 12 months | F88: from 12 to 24 | G88: from 24 to 36 | H88: from 36 to 48 | I88: from 48 to 60 | J88: > 60 months
C89: Notes | D89: -43.772 | E89: -3.691 | F89: -3.899 | G89: -4.119 | H89: -4.351 | I89: -4.597 | J89: -23.114
C90: Total | D90: -43.772 | E90: -3.691 | F90: -3.899 | G90: -4.119 | H90: -4.351 | I90: -4.597 | J90: -23.114

Sheet 3Q17
A7: Financing and debentures (R$ million) | D7: Index/ Currency ¹ | E7: Average weighted interest rate (% p.y.) ² | F7: Balance 7 Sep-17 | G7: Maturity | H7: Amortization Profile | N7: Transaction costs / discount to the face value / fair value adjustment 7
H8: up to 12 months | I8: from 12 to 24 | J8: from 24 to 36 | K8: from 36 to 48 | L8: from 48 to 60 | M8: > 60 months
B9: Foreing Currency
C11: Notes 5 | D11: US$ | E11: +5,3 | F11: 2377.793 | G11: 2026 | H11: 60.29138569 | I11: -0.0002939475924 | J11: 0.0005611551303 | K11: 4.049255502e-05 | L11: 0.0002387740207 | M11: 2375.999871 | N11: -58.49750668
C12: Foreign loan 3 | D12: US$ + LIBOR | E12: +1,0 | F12: 757.02 | G12: 2018 to 2022 | H12: 191.808 | I12: 253.44 | J12: 0 | K12: 0 | L12: 316.8 | M12: 0 | N12: -5.029
C13: Foreign loan | D13: US$ + LIBOR | E13: +1,9 | F13: 324.269 | G13: 2018 to 2020 | H13: 1.601 | I13: 133.056 | J13: 190.08 | K13: 0 | L13: 0 | M13: 0 | N13: -0.468
C14: Foreign loan 4 | D14: US$ | E14: +2,2 | F14: 248.172 | G14: 2018 | H14: 253.53 | I14: 0 | J14: 0 | K14: 0 | L14: 0 | M14: 0 | N14: -5.358
C15: Financial institutions | D15: US$ + LIBOR | E15: +3,0 | F15: 190.819 | G15: 2019 to 2021 | H15: 1.317 | I15: 31.774 | J15: 127.094 | K15: 31.774 | L15: 0 | M15: 0 | N15: -1.139
C16: Financial institutions | D16: US$ | E16: +2,9 | F16: 104.29 | G16: 2017 to 2022 | H16: 40.743 | I16: 0 | J16: 0 | K16: 0 | L16: 63.547 | M16: 0 | N16: -
C17: Financial institutions | D17: MXN | E17: +8,0 | F17: 29.035 | G17: 2017 | H17: 29.035 | I17: 0 | J17: 0 | K17: 0 | L17: 0 | M17: 0 | N17: -
C18: Advances on Foreign Exchange Contracts (ACE) | D18: US$ | E18: +2,6 | F18: 17.221 | G18: < 70 days | H18: 17.221 | I18: 0 | J18: 0 | K18: 0 | L18: 0 | M18: 0 | N18: -
C19: Advances on Foreign Exchange Contracts (ACC) | D19: US$ | E19: +2,2 | F19: 15.929 | G19: < 134 days | H19: 15.929 | I19: 0 | J19: 0 | K19: 0 | L19: 0 | M19: 0 | N19: -
C20: BNDES | D20: US$ | E20: +6,2 | F20: 4.902 | G20: 2017 to 2020 | H20: 2.295 | I20: 1.956 | J20: 0.651 | K20: 0 | L20: 0 | M20: 0 | N20: -
C21: Financial institutions | D21: MX$ + TIIE | E21: +1,5 | F21: 3.513 | G21: 2017 | H21: 3.513 | I21: 0 | J21: 0 | K21: 0 | L21: 0 | M21: 0 | N21: -
C22: Financial institutions | D22: Bs$ | E22: +24,0 | F22: 0.047 | G22: 2017 | H22: 0.047 | I22: 0 | J22: 0 | K22: 0 | L22: 0 | M22: 0 | N22: -
C24: Sub Total foreing currency | F24: 4073.009 | H24: 617.3303857 | I24: 420.2257061 | J24: 317.8255612 | K24: 31.77404049 | L24: 380.3472388 | M24: 2375.999871 | N24: -70.49150668
B26: Local Currency
C28: Debentures IPP | D28: CDI | E28: 106.2 | F28: 3466.025072 | G28: 2017 to 2022 | H28: 673.715646 | I28: 966.6666667 | J28: 166.6666667 | K28: 916.6666667 | L28: 750 | M28: 0 | N28: -7.690573817
C29: Banco do Brasil floating rate | D29: CDI | E29: 107.4 | F29: 2874.222 | G29: 2017 to 2022 | H29: 386.964 | I29: 1486.909 | J29: 336.5 | K29: 336.5 | L29: 336.5 | M29: 0 | N29: -9.152
C30: Debentures - 5th issuance | D30: CDI | E30: 108.3 | F30: 802.2375487 | G30: 2018-03-16 | H30: 802.424 | I30: 0 | J30: 0 | K30: 0 | L30: 0 | M30: 0 | N30: -0.1864512819
C31: Debentures - CRA | D31: CDI | E31: 95 | F31: 669.3039343 | G31: 2022-04-14 | H31: 23.16166336 | I31: 0 | J31: 0 | K31: 0 | L31: 660.139 | M31: 0 | N31: -13.9967291
C32: Debentures - CRA 6 | D32: IPCA | E32: +4,7 | F32: 361.5817582 | G32: 2024-04-15 | H32: 6.42159644 | I32: 0 | J32: 0 | K32: 0 | L32: 0 | M32: 354.4557956 | N32: 0.7043661075
C33: BNDES | D33: TJLP | E33: +2,4 | F33: 211.93 | G33: 2017 to 2021 | H33: 91.532 | I33: 75.062 | J33: 37.859 | K33: 7.476 | L33: 0.272 | M33: 0 | N33: -0.2703925006
C34: Export Credit Note floating rate | D34: CDI | E34: 101.5 | F34: 157.932 | G34: 2018-05-29 | H34: 157.932 | I34: 0 | J34: 0 | K34: 0 | L34: 0 | M34: 0 | N34: -
C35: BNDES | D35: SELIC | E35: +2,3 | F35: 64.16050092 | G35: 2017 to 2021 | H35: 19.249 | I35: 19.203 | J35: 19.233 | K35: 6.534 | L35: 0 | M35: 0 | N35: -0.05877841678
C36: BNDES EXIM | D36: TJLP | E36: +3,5 | F36: 62.588 | G36: 2018 | H36: 62.588 | I36: 0 | J36: 0 | K36: 0 | L36: 0 | M36: 0 | N36: -
C37: Financial leasing | D37: IGPM | E37: +5,6 | F37: 49.13 | G37: 2017 to 2031 | H37: 2.678 | I37: 2.64 | J37: 2.788 | K37: 2.944 | L37: 3.109 | M37: 34.97 | N37: -
C38: Research and projects financing (FINEP) | D38: R$ | E38: +4,0 | F38: 38.87 | G38: 2017 to 2021 | H38: 13.098 | I38: 11.375 | J38: 6.399 | K38: 6.399 | L38: 1.6 | M38: 0 | N38: -
C39: Research and projects financing (FINEP) | D39: TJLP | E39: +1,0 | F39: 33.172 | G39: 2017 to 2021 | H39: 3.527 | I39: 6.71 | J39: 5.975 | K39: 5.975 | L39: 5.975 | M39: 5.01 | N39: -
C40: Banco do Nordeste do Brasil | D40: R$ | E40: +8,5 | F40: 32.874 | G40: 2017 to 2023 | H40: 15.745 | I40: 5.709 | J40: 5.709 | K40: 5.709 | L40: 0 | M40: 0 | N40: -
C41: BNDES EXIM | D41: SELIC | E41: +3,9 | F41: 30.318 | G41: 2017 to 2022 | H41: 30.318 | I41: 0 | J41: 0 | K41: 0 | L41: 0 | M41: 0 | N41: -
C42: BNDES | D42: R$ | E42: +5,5 | F42: 29.67587168 | G42: 2017 a 2022 | H42: 12.72 | I42: 10.828 | J42: 5.221 | K42: 0.912 | L42: 0.007 | M42: 0 | N42: -0.011
C43: Agency for Financing Machinery and Equipment (FINAME) | D43: TJLP | E43: +5,7 | F43: 0.058 | G43: 2017 to 2022 | H43: 0.024 | I43: 0.01 | J43: 0.01 | K43: 0.01 | L43: 0.003 | M43: 0 | N43: -
C44: Financial leasing fixed rate | D44: R$ | E44: +15,6 | F44: 0.011 | G44: 2017 | H44: 0.011 | I44: 0 | J44: 0 | K44: 0 | L44: 0 | M44: 0 | N44: -
C47: Sub Total local currency | F47: 8884.088 | H47: 2302.109906 | I47: 2585.112667 | J47: 586.3606667 | K47: 1289.125667 | L47: 1757.605 | M47: 394.4357956 | N47: -30.66155901
C49: Unrealized losses on swaps transactions | F49: 165.325 | H49: 64.389 | I49: 73.425 | J49: 6.775 | K49: 0 | L49: 20.736 | M49: 0
B51: Total | F51: 13122.422 | H51: 2983.829291 | I51: 3078.763373 | J51: 910.9612278 | K51: 1320.899707 | L51: 2158.688239 | M51: 2770.435667 | N51: -101.1530657
C53: Transaction costs, discount to the face value and fair value adjustment 7 | H53: -28.402 | I53: -14.902 | J53: -12.829 | K53: -12.182 | L53: -9.294 | M53: -23.543 | N53: -101.1530657
B55: Total | F55: 13122.422 | H55: 2955.425 | I55: 3063.862 | J55: 898.133 | K55: 1308.716 | L55: 2149.393 | M55: 2746.893
B57: 1. | C57: Libor = London Interbank Offered Rate / Bs$ = Bolivar / MX$ = Mexican Peso / TIIE = Mexican Interbank Interest Rate Even / CDI = interbank certificate of deposit rate / TJLP = basic financing cost of BNDES (set by National Monetary Council). On June 30, 2017, TJLP was fixed at 7.0% p.a. / IGPM = General Index of Market Prices / SELIC = base interest rate set by the Brazilian Central Bank / IPCA = National Consumer Price Index
B59: 2. | C59: The company contracted hedging against foreign exchange exposure and interest rate for some debt.
B61: 3. | C61: For this loan, a hedging instrument was hired with the objective of swapping the fixed to floating rate, equivalent to 103.3% of CDI.
B63: 4. | C63: For this loan, a hedging instrument was hired with the objective of swapping the fixed to floating rate, equivalent to 101.5% of CDI.
B64: 5. | C64: These transactions were designated for hedge accounting (see Note 31 – Hedge Accounting).
B65: 6. | C65: For this loan, a hedging instrument was hired with the objective of swapping the fixed to floating rate, equivalent to 93.9% of CDI.
B66: 7. | C66: As provided in IAS 39, transaction costs incurred in obtaining financial resources were deducted from the value of the financial instrument, and as provided in Resolution CVM 604/09, loans were recognised at fair value. The amount to be appropriated to income in the future is as follows:
C68: Transaction costs | D68: Amount to be appropriated | E68: Profile
E69: up to 12 months | F69: from 12 to 24 | G69: from 24 to 36 | H69: from 36 to 48 | I69: from 48 to 60 | J69: > 60 months
C70: Banco do Brasil | D70: -9.152 | E70: -4.483 | F70: -3.378 | G70: -0.648 | H70: -0.441 | I70: -0.202 | J70: 0
C71: Foreign loan | D71: -1.474 | E71: -1.063 | F71: -0.263 | G71: -0.148 | H71: 0 | I71: 0 | J71: 0
C72: Debentures | D72: -29.388 | E72: -6.219 | F72: -6.127 | G72: -5.895 | H72: -5.654 | I72: -3.638 | J72: -1.855
C73: Notes | D73: -15.632 | E73: -1.369 | F73: -1.445 | G73: -1.525 | H73: -1.61 | I73: -1.7 | J73: -7.984
C74: Others | D74: -1.48 | E74: -0.479 | F74: -0.496 | G74: -0.438 | H74: -0.066 | I74: 0 | J74: 0
C75: Total | D75: -57.126 | E75: -13.613 | F75: -11.709 | G75: -8.654 | H75: -7.771 | I75: -5.54 | J75: -9.839
C77: As provided in Resolution CVM 604/09 (November 19, 2009), the amortization of fair value adjustment is as follows:
C79: Fair value adjustment | D79: Amount to be amortized | E79: Profile
E80: up to 12 months | F80: from 12 to 24 | G80: from 24 to 36 | H80: from 36 to 48 | I80: from 48 to 60 | J80: > 60 months
C81: Foreign loan | D81: -9.380968286 | E81: -11.04642514 | F81: 0.7599255096 | G81: 0 | H81: 0 | I81: 0.9055313392 | J81: 0
C82: Debêntures | D82: 8.218333826 | E82: 0 | F82: 0 | G82: 0 | H82: 0 | I82: 0 | J82: 8.218333826
C83: Total | D83: -1.16263446 | E83: -11.04642514 | F83: 0.7599255096 | G83: 0 | H83: 0 | I83: 0.9055313392 | J83: 8.218333826
C85: As provided in IAS 39, discount to the face value incurred in obtaining financial resources was deducted from the value of the financial instrument, and as provided in Resolution CVM 604/09, loans were recognised at fair value. The amount to be appropriated to income in the future is as follows:
C87: Discount to the face value | D87: Amount to be appropriated | E87: Profile
E88: up to 12 months | F88: from 12 to 24 | G88: from 24 to 36 | H88: from 36 to 48 | I88: from 48 to 60 | J88: > 60 months
C89: Notes | D89: -42.865 | E89: -3.742 | F89: -3.953 | G89: -4.176 | H89: -4.411 | I89: -4.66 | J89: -21.922
C90: Total | D90: -42.865 | E90: -3.742 | F90: -3.953 | G90: -4.176 | H90: -4.411 | I90: -4.66 | J90: -21.922

Sheet 4Q17
A7: Financing and debentures (R$ million) | D7: Index/ Currency ¹ | E7: Average weighted interest rate (% p.y.) ² | F7: Balance 7 Dec-17 | G7: Maturity | H7: Amortization Profile | N7: Transaction costs / discount to the face value / fair value adjustment 7
H8: up to 12 months | I8: from 12 to 24 | J8: from 24 to 36 | K8: from 36 to 48 | L8: from 48 to 60 | M8: > 60 months
B9: Foreing Currency
C11: Notes 5 | D11: US$ | E11: +5,3 | F11: 2454.142 | G11: 2026 | H11: 30.39182661 | I11: 0.0005225365487 | J11: -0.0002248906421 | K11: 0.000675093402 | L11: 0.0003185494469 | M11: 2481.000248 | N11: -57.25025816
C12: Foreign loan 3 | D12: US$ + LIBOR | E12: +1 | F12: 788.795 | G12: 2018 to 2022 | H12: 465.064 | I12: 0 | J12: 0 | K12: 0 | L12: 330.8 | M12: 0 | N12: -7.072
C13: Foreign loan | D13: US$ + LIBOR | E13: +1,9 | F13: 298.928 | G13: 2018 to 2020 | H13: 100.896 | I13: 0 | J13: 198.48 | K13: 0 | L13: 0 | M13: 0 | N13: -0.448
C14: Foreign loan 4 | D14: US$ | E14: +2,2 | F14: 259.015 | G14: 2018 | H14: 266.465 | I14: 0 | J14: 0 | K14: 0 | L14: 0 | M14: 0 | N14: -7.45
C15: Financial institutions | D15: US$ + LIBOR | E15: +3,0 | F15: 330.755 | G15: 2019 to 2022 | H15: 1.397 | I15: 33.175 | J15: 132.701 | K15: 33.175 | L15: 132.701 | M15: 0 | N15: -2.394
C16: Financial institutions | D16: US$ | E16: +2,8 | F16: 106.745 | G16: 2018 to 2022 | H16: 40.394 | I16: 0 | J16: 0 | K16: 0 | L16: 66.35 | M16: 0 | N16: -
C17: Financial institutions | D17: MXN | E17: +8,5 | F17: 27.048 | G17: 2018 | H17: 27.048 | I17: 0 | J17: 0 | K17: 0 | L17: 0 | M17: 0 | N17: -
C18: Advances on Foreign Exchange Contracts (ACE) | D18: US$ | E18: +2,2 | F18: 26.079 | G18: < 54 days | H18: 26.079 | I18: 0 | J18: 0 | K18: 0 | L18: 0 | M18: 0 | N18: -
C19: Advances on Foreign Exchange Contracts (ACC) | D19: US$ | E19: +2,4 | F19: 44.515 | G19: < 92 days | H19: 44.515 | I19: 0 | J19: 0 | K19: 0 | L19: 0 | M19: 0 | N19: -
C20: BNDES | D20: US$ | E20: +6,4 | F20: 4.46 | G20: 2018 to 2020 | H20: 2.25 | I20: 2.041 | J20: 0.17 | K20: 0 | L20: 0 | M20: 0 | N20: -
C21: Financial institutions | D21: MX$ + TIIE | E21: +1,5 | F21: 3.383 | G21: 2018 | H21: 3.383 | I21: 0 | J21: 0 | K21: 0 | L21: 0 | M21: 0 | N21: -
C22: Financial institutions | D22: Bs$ | E22: +24,0 | F22: 0.593 | G22: 2018 | H22: 0.593 | I22: 0 | J22: 0 | K22: 0 | L22: 0 | M22: 0 | N22: -
C24: Sub Total foreing currency | F24: 4344.458 | H24: 1008.475827 | I24: 35.21652254 | J24: 331.3507751 | K24: 33.17567509 | L24: 529.8513185 | M24: 2481.000248 | N24: -74.61425816
B26: Local Currency
C28: Debentures IPP | D28: CDI | E28: 105.8 | F28: 2836.740702 | G28: 2018 to 2022 | H28: 843.844903 | I28: 166.6666667 | J28: 166.6666667 | K28: 916.6666667 | L28: 750 | M28: 0 | N28: -7.104200641
C29: Banco do Brasil floating rate | D29: CDI | E29: 107.3 | F29: 2794.272 | G29: 2018 to 2022 | H29: 281.711 | I29: 1511.126 | J29: 336.5 | K29: 336.5 | L29: 336.5 | M29: 0 | N29: -8.065
C30: Debentures - 5th issuance | D30: CDI | E30: 108.3 | F30: 817.6535102 | G30: 2018-03-16 | H30: 817.749784 | I30: 0 | J30: 0 | K30: 0 | L30: 0 | M30: 0 | N30: -0.09627377265
C31: Debentures - CRA | D31: CDI | E31: 95 | F31: 1380.85149 | G31: 2022-04-14 | H31: 16.77421104 | I31: 0 | J31: 0 | K31: 0 | L31: 1390.523 | M31: 0 | N31: -26.44572132
C32: Debentures - CRA 6 | D32: IPCA | E32: +4,6 | F32: 554.4017194 | G32: 2024-04-15 | H32: 11.97961386 | I32: 0 | J32: 0 | K32: 0 | L32: 0 | M32: 572.6039497 | N32: -30.1818441
C33: BNDES | D33: TJLP | E33: +2,4 | F33: 206.423 | G33: 2018 to 2021 | H33: 88.005 | I33: 75.569 | J33: 31.13 | K33: 7.646 | L33: 4.076 | M33: 0.301 | N33: -0.3029589071
C34: Export Credit Note floating rate | D34: CDI | E34: 101.5 | F34: 157.749 | G34: 2018-05-29 | H34: 157.749 | I34: 0 | J34: 0 | K34: 0 | L34: 0 | M34: 0 | N34: -
C35: BNDES | D35: SELIC | E35: +2,3 | F35: 69.42241315 | G35: 2018 to 2021 | H35: 21.138 | I35: 21.415 | J35: 20.752 | K35: 4.317 | L35: 1.724 | M35: 0.127 | N35: -0.05061547355
C36: BNDES EXIM | D36: TJLP | E36: +3,5 | F36: 62.754 | G36: 2018 | H36: 62.754 | I36: 0 | J36: 0 | K36: 0 | L36: 0 | M36: 0 | N36: -
C37: Financial leasing | D37: IGPM | E37: +5,6 | F37: 48.516 | G37: 2018 to 2031 | H37: 2.71 | I37: 2.676 | J37: 2.826 | K37: 2.985 | L37: 3.152 | M37: 34.166 | N37: -
C38: Research and projects financing (FINEP) | D38: R$ | E38: +4,0 | F38: 35.61 | G38: 2018 to 2021 | H38: 13.096 | I38: 9.716 | J38: 6.399 | K38: 6.399 | L38: 0 | M38: 0 | N38: -
C39: Research and projects financing (FINEP) | D39: TJLP | E39: +1 | F39: 32.682 | G39: 2018 to 2023 | H39: 4.684 | I39: 6.505 | J39: 5.989 | K39: 5.989 | L39: 5.96 | M39: 3.554 | N39: -
C40: Banco do Nordeste do Brasil | D40: R$ | E40: +8,5 | F40: 28.136 | G40: 2018 to 2021 | H40: 12.435 | I40: 5.709 | J40: 5.709 | K40: 4.282 | L40: 0 | M40: 0 | N40: -
C41: BNDES EXIM | D41: SELIC | E41: +3,9 | F41: 30.85 | G41: 2018 | H41: 30.85 | I41: 0 | J41: 0 | K41: 0 | L41: 0 | M41: 0 | N41: -
C42: BNDES | D42: R$ | E42: +5,6 | F42: 26.27011675 | G42: 2018 to 2022 | H42: 12.235 | I42: 10.143 | J42: 3.608 | K42: 0.292 | L42: 0.001 | M42: 0 | N42: -0.009
C43: Agency for Financing Machinery and Equipment (FINAME) | D43: TJLP | E43: +5,7 | F43: 0.056 | G43: 2018 to 2022 | H43: 0.024 | I43: 0.01 | J43: 0.01 | K43: 0.01 | L43: 0.001 | M43: 0 | N43: -
C46: Sub Total local currency | F46: 9082.388 | H46: 2377.740512 | I46: 1809.535667 | J46: 579.5896667 | K46: 1285.086667 | L46: 2491.937 | M46: 610.7519497 | N46: -72.25561421
C48: Unrealized losses on swaps transactions | F48: 163.749 | H48: 154.211 | I48: 0 | J48: 0 | K48: 0 | L48: 4.778 | M48: 4.76
B50: Total | F50: 13590.595 | H50: 3540.427339 | I50: 1844.752189 | J50: 910.9404418 | K50: 1318.262342 | L50: 3026.566319 | M50: 3096.512197 | N50: -146.8698724
C52: Transaction costs, discount to the face value and fair value adjustment 7 | H52: -36.775 | I52: -17.861 | J52: -16.309 | K52: -15.814 | L52: -10.161 | M52: -49.995 | N52: -146.8698724
B54: Total | F54: 13590.595 | H54: 3503.675 | I54: 1826.907 | J54: 894.64 | K54: 1302.45 | L54: 3016.406 | M54: 3046.517
B56: 1. | C56: Libor = London Interbank Offered Rate / Bs$ = Bolivar / MX$ = Mexican Peso / TIIE = Mexican Interbank Interest Rate Even / CDI = interbank certificate of deposit rate / TJLP = basic financing cost of BNDES (set by National Monetary Council). On September 30, 2017, TJLP was fixed at 7.0% p.a. / IGPM = General Index of Market Prices / SELIC = base interest rate set by the Brazilian Central Bank / IPCA = National Consumer Price Index
B58: 2. | C58: The company contracted hedging against foreign exchange exposure and interest rate for some debt.
B60: 3. | C60: For this loan, a hedging instrument was hired with the objective of swapping the fixed to floating rate, equivalent to 103.3% of CDI.
B62: 4. | C62: For this loan, a hedging instrument was hired with the objective of swapping the fixed to floating rate, equivalent to 101.5% of CDI.
B63: 5. | C63: These transactions were designated for hedge accounting (see Note 31 – Hedge Accounting).
B64: 6. | C64: For this loan, a hedging instrument was hired with the objective of swapping the fixed to floating rate, equivalent to 95.2% of CDI.
B65: 7. | C65: As provided in IAS 39, transaction costs incurred in obtaining financial resources were deducted from the value of the financial instrument, and as provided in Resolution CVM 604/09, loans were recognised at fair value. The amount to be appropriated to income in the future is as follows:
C67: Transaction costs | D67: Amount to be appropriated | E67: Profile
E68: up to 12 months | F68: from 12 to 24 | G68: from 24 to 36 | H68: from 36 to 48 | I68: from 48 to 60 | J68: > 60 months
C69: Banco do Brasil | D69: -8.065 | E69: -4.628 | F69: -2.317 | G69: -0.599 | H69: -0.385 | I69: -0.136 | J69: 0
C70: Foreign loan | D70: -1.213 | E70: -0.931 | F70: -0.171 | G70: -0.111 | H70: 0 | I70: 0 | J70: 0
C71: Debentures | D71: -44.709 | E71: -9.15 | F71: -9.069 | G71: -9.11 | H71: -8.971 | I71: -5.798 | J71: -2.61
C72: Notes | D72: -15.298 | E72: -1.387 | F72: -1.464 | G72: -1.546 | H72: -1.632 | I72: -1.723 | J72: -7.545
C73: Others | D73: -2.801 | E73: -0.643 | F73: -0.831 | G73: -0.71 | H73: -0.354 | I73: -0.264 | J73: 0
C74: Total | D74: -72.086 | E74: -16.739 | F74: -13.852 | G74: -12.076 | H74: -11.342 | I74: -7.921 | J74: -10.155
C76: As provided in Resolution CVM 604/09 (November 19, 2009), the amortization of fair value adjustment is as follows:
C78: Fair value adjustment | D78: Amount to be amortized | E78: Profile
E79: up to 12 months | F79: from 12 to 24 | G79: from 24 to 36 | H79: from 36 to 48 | I79: from 48 to 60 | J79: > 60 months
C80: Foreign loan | D80: -13.75817581 | E80: -16.24247225 | F80: 0 | G80: 0 | H80: 0 | I80: 2.484296439 | J80: 0
C81: Debêntures | D81: -19.11936144 | E81: 0 | F81: 0 | G81: 0 | H81: 0 | I81: 0 | J81: -19.11936144
C82: Total | D82: -32.87753725 | E82: -16.24247225 | F82: 0 | G82: 0 | H82: 0 | I82: 2.484296439 | J82: -19.11936144
C84: As provided in IAS 39, discount to the face value incurred in obtaining financial resources was deducted from the value of the financial instrument, and as provided in Resolution CVM 604/09, loans were recognised at fair value. The amount to be appropriated to income in the future is as follows:
C86: Discount to the face value | D86: Amount to be appropriated | E86: Profile
E87: up to 12 months | F87: from 12 to 24 | G87: from 24 to 36 | H87: from 36 to 48 | I87: from 48 to 60 | J87: > 60 months
C88: Notes | D88: -41.952 | E88: -3.794 | F88: -4.008 | G88: -4.234 | H88: -4.472 | I88: -4.724 | J88: -20.72
C89: Total | D89: -41.952 | E89: -3.794 | F89: -4.008 | G89: -4.234 | H89: -4.472 | I89: -4.724 | J89: -20.72

Sheet 1Q18
A7: Financing and debentures (R$ million) | D7: Index/ Currency ¹ | E7: Average weighted interest rate (% p.y.) ² | F7: Balance 7 Mar-18 | G7: Maturity | H7: Amortization Profile | N7: Transaction costs / discount to the face value / fair value adjustment 7
H8: up to 12 months | I8: from 12 to 24 | J8: from 24 to 36 | K8: from 36 to 48 | L8: from 48 to 60 | M8: > 60 months
B9: Foreing Currency
C11: Notes 5 | D11: US$ | E11: +5,3 | F11: 2500.129 | G11: 2026 | H11: 63.25635943 | I11: -0.0005637135213 | J11: 9.200095523e-05 | K11: 0.0004186339104 | L11: 0.0005136168205 | M11: 2492.850174 | N11: -55.97697347
C12: Foreign loan 3 | D12: US$ + LIBOR | E12: +1 | F12: 795.546 | G12: 2018 to 2022 | H12: 467.541 | I12: 0 | J12: 0 | K12: 0 | L12: 332.38 | M12: 0 | N12: -4.379
C13: Foreign loan | D13: US$ + LIBOR | E13: +1,9 | F13: 300.537 | G13: 2018 to 2020 | H13: 101.519 | I13: 0 | J13: 199.428 | K13: 0 | L13: 0 | M13: 0 | N13: -0.41
C14: Foreign loan 4 | D14: US$ | E14: +2,2 | F14: 259.647 | G14: 2018 | H14: 265.999 | I14: 0 | J14: 0 | K14: 0 | L14: 0 | M14: 0 | N14: -6.351
C15: Financial institutions | D15: US$ + LIBOR | E15: +3,0 | F15: 534.051 | G15: 2019 to 2022 | H15: 1.511 | I15: 66.847 | J15: 133.695 | K15: 100.271 | L15: 233.966 | M15: 0 | N15: -2.238
C16: Financial institutions | D16: US$ | E16: +2,8 | F16: 114.567 | G16: 2018 to 2022 | H16: 47.72 | I16: 0 | J16: 0 | K16: 0 | L16: 66.847 | M16: 0 | N16: -
C17: Financial institutions | D17: MXN | E17: +8,5 | F17: 33.452 | G17: 2018 | H17: 33.452 | I17: 0 | J17: 0 | K17: 0 | L17: 0 | M17: 0 | N17: -
C18: Advances on Foreign Exchange Contracts (ACE) | D18: US$ | E18: +2,6 | F18: 38.522 | G18: < 54 days | H18: 38.522 | I18: 0 | J18: 0 | K18: 0 | L18: 0 | M18: 0 | N18: -
C19: Advances on Foreign Exchange Contracts (ACC) | D19: US$ | E19: +2,9 | F19: 66.859 | G19: < 92 days | H19: 66.859 | I19: 0 | J19: 0 | K19: 0 | L19: 0 | M19: 0 | N19: -
C20: BNDES | D20: US$ | E20: +6,4 | F20: 3.819 | G20: 2018 to 2020 | H20: 2.111 | I20: 1.709 | J20: 0 | K20: 0 | L20: 0 | M20: 0 | N20: -
C21: Financial institutions | D21: MX$ + TIIE | E21: +1,5 | F21: 18.282 | G21: 2018 | H21: 18.282 | I21: 0 | J21: 0 | K21: 0 | L21: 0 | M21: 0 | N21: -
C22: Financial institutions | D22: Bs$ | E22: +24,0 | F22: 0.04 | G22: 2018 | H22: 0.04 | I22: 0 | J22: 0 | K22: 0 | L22: 0 | M22: 0 | N22: -
C24: Sub Total foreing currency | F24: 4665.454 | H24: 1106.812359 | I24: 68.55543629 | J24: 333.123092 | K24: 100.2714186 | L24: 633.1935136 | M24: 2492.850174 | N24: -69.35497347
B26: Local Currency
C28: Debentures IPP | D28: CDI | E28: 105.8 | F28: 2885.202045 | G28: 2018 to 2022 | H28: 891.716302 | I28: 166.6666667 | J28: 916.6666667 | K28: 166.6666667 | L28: 750 | M28: 0 | N28: -6.514256959
C29: Banco do Brasil floating rate | D29: CDI | E29: 107.4 | F29: 2646.192 | G29: 2018 to 2022 | H29: 276.957 | I29: 1366.699 | J29: 336.5 | K29: 336.5 | L29: 336.5 | M29: 0 | N29: -6.964
C30: Debentures - 6th issuance | D30: CDI | E30: 105.3 | F30: 1728.136536 | G30: 2023-03-06 | H30: 6.54104247 | I30: 0 | J30: 0 | K30: 0 | L30: 1725.335725 | M30: 0 | N30: -3.74023101
C31: Debentures - CRA | D31: CDI | E31: 95 | F31: 1403.28908 | G31: 2022-04-14 | H31: 38.02413488 | I31: 0 | J31: 0 | K31: 0 | L31: 1390.523 | M31: 0 | N31: -25.25805511
C32: Debentures - CRA 6 | D32: IPCA | E32: +4,6 | F32: 580.2125774 | G32: 2024-04-15 | H32: 18.50274995 | I32: 0 | J32: 0 | K32: 0 | L32: 0 | M32: 578.6542429 | N32: -16.94441544
C33: BNDES | D33: TJLP | E33: +2,4 | F33: 217.101 | G33: 2018 to 2021 | H33: 92.854 | I33: 75.682 | J33: 32.446 | K33: 11.695 | L33: 4.334 | M33: 0.353 | N33: -0.263812904
C34: Export Credit Note floating rate | D34: CDI | E34: 101.5 | F34: 157.648 | G34: 2018-05-29 | H34: 157.648 | I34: 0 | J34: 0 | K34: 0 | L34: 0 | M34: 0 | N34: -
C35: BNDES | D35: SELIC | E35: +2,3 | F35: 65.32504404 | G35: 2018 to 2021 | H35: 21.699 | I35: 21.762 | J35: 17.817 | K35: 2.684 | L35: 1.406 | M35: 0 | N35: -0.0429682175
C36: BNDES EXIM | D36: TJLP | E36: +3,5 | F36: 62.866 | G36: 2018 | H36: 62.866 | I36: 0 | J36: 0 | K36: 0 | L36: 0 | M36: 0 | N36: -
C37: Financial leasing | D37: IGPM | E37: +5,6 | F37: 47.893 | G37: 2018 to 2031 | H37: 2.743 | I37: 2.713 | J37: 2.865 | K37: 3.026 | L37: 3.195 | M37: 33.351 | N37: -
C38: Research and projects financing (FINEP) | D38: R$ | E38: +4,0 | F38: 32.346 | G38: 2018 to 2021 | H38: 13.091 | I38: 8.057 | J38: 6.399 | K38: 4.799 | L38: 0 | M38: 0 | N38: -
C39: Research and projects financing (FINEP) | D39: TJLP | E39: +1,1 | F39: 32.163 | G39: 2018 to 2021 | H39: 5.837 | I39: 6.295 | J39: 6 | K39: 6 | L39: 5.882 | M39: 2.148 | N39: -
C40: Banco do Nordeste do Brasil | D40: R$ | E40: +8,5 | F40: 23.39 | G40: 2018 to 2023 | H40: 9.117 | I40: 5.709 | J40: 5.709 | K40: 2.855 | L40: 0 | M40: 0 | N40: -
C41: BNDES EXIM | D41: SELIC | E41: +3,9 | F41: 31.346 | G41: 2018 to 2022 | H41: 31.346 | I41: 0 | J41: 0 | K41: 0 | L41: 0 | M41: 0 | N41: -
C42: BNDES | D42: R$ | E42: +5,6 | F42: 22.86217536 | G42: 2018 a 2022 | H42: 11.749 | I42: 8.607 | J42: 2.451 | K42: 0.063 | L42: 0 | M42: 0 | N42: -0.007
C43: Agency for Financing Machinery and Equipment (FINAME) | D43: TJLP | E43: +5,7 | F43: 0.053 | G43: 2018 to 2022 | H43: 0.024 | I43: 0.01 | J43: 0.01 | K43: 0.008 | L43: 0 | M43: 0 | N43: -
C47: Sub Total local currency | F47: 9936.025 | H47: 1640.716229 | I47: 1662.200667 | J47: 1326.863667 | K47: 534.2966667 | L47: 4217.175725 | M47: 614.5062429 | N47: -59.73473964
C49: Unrealized losses on swaps transactions | F49: 178.832 | H49: 177.434 | I49: 0 | J49: 0 | K49: 0 | L49: 1.398 | M49: 0
B51: Total | F51: 14780.311 | H51: 2924.962589 | I51: 1730.756103 | J51: 1659.986759 | K51: 634.5680853 | L51: 4851.767239 | M51: 3107.356417 | N51: -129.0897131
C53: Transaction costs, discount to the face value and fair value adjustment 7 | H53: -34.767 | I53: -17.709 | J53: -17.036 | K53: -16.56 | L53: -8.34 | M53: -35.065 | N53: -129.0897131
B55: Total | F55: 14780.311 | H55: 2890.357 | I55: 1713.168 | J55: 1643.024 | K55: 618.034 | L55: 4843.436 | M55: 3072.291
B57: 1. | C57: Libor = London Interbank Offered Rate / Bs$ = Bolivar / MX$ = Mexican Peso / TIIE = Mexican Interbank Interest Rate Even / CDI = interbank certificate of deposit rate / TJLP = basic financing cost of BNDES (set by National Monetary Council). On March 30, 2018, TJLP was fixed at 6.75% p.a. / IGPM = General Index of Market Prices / SELIC = base interest rate set by the Brazilian Central Bank / IPCA = National Consumer Price Index
B59: 2. | C59: The company contracted hedging against foreign exchange exposure and interest rate for some debt.
B61: 3. | C61: For this loan, a hedging instrument was hired with the objective of swapping the fixed to floating rate, equivalent to 103.3% of CDI.
B63: 4. | C63: For this loan, a hedging instrument was hired with the objective of swapping the fixed to floating rate, equivalent to 101.5% of CDI.
B64: 5. | C64: These transactions were designated for hedge accounting (see Note 31 – Hedge Accounting).
B65: 6. | C65: For this loan, a hedging instrument was hired with the objective of swapping the fixed to floating rate, equivalent to 95.2% of CDI.
B66: 7. | C66: As provided in IAS 39, transaction costs incurred in obtaining financial resources were deducted from the value of the financial instrument, and as provided in Resolution CVM 604/09, loans were recognised at fair value. The amount to be appropriated to income in the future is as follows:
C68: Transaction costs | D68: Amount to be appropriated | E68: Profile
E69: up to 12 months | F69: from 12 to 24 | G69: from 24 to 36 | H69: from 36 to 48 | I69: from 48 to 60 | J69: > 60 months
C70: Banco do Brasil | D70: -6.964 | E70: -4.76 | F70: -1.262 | G70: -0.548 | H70: -0.326 | I70: -0.068 | J70: 0
C71: Foreign loan | D71: -0.933 | E71: -0.691 | F71: -0.174 | G71: -0.068 | H71: 0 | I71: 0 | J71: 0
C72: Debentures | D72: -46.162 | E72: -9.827 | F72: -9.794 | G72: -9.877 | H72: -9.686 | I72: -4.801 | J72: -2.177
C73: Notes | D73: -14.957 | E73: -1.406 | F73: -1.484 | G73: -1.567 | H73: -1.654 | I73: -1.747 | J73: -7.099
C74: Others | D74: -2.941 | E74: -0.774 | F74: -0.932 | G74: -0.684 | H74: -0.36 | I74: -0.19 | J74: -0.001
C75: Total | D75: -71.957 | E75: -17.458 | F75: -13.646 | G75: -12.744 | H75: -12.026 | I75: -6.806 | J75: -9.277
C77: As provided in Resolution CVM 604/09 (November 19, 2009), the amortization of fair value adjustment is as follows:
C79: Fair value adjustment | D79: Amount to be amortized | E79: Profile
E80: up to 12 months | F80: from 12 to 24 | G80: from 24 to 36 | H80: from 36 to 48 | I80: from 48 to 60 | J80: > 60 months
C81: Foreign loan | D81: -10.20693638 | E81: -13.46245908 | F81: 0 | G81: 0 | H81: 0 | I81: 3.255522696 | J81: 0
C82: Debêntures | D82: -6.29533055 | E82: 0 | F82: 0 | G82: 0 | H82: 0 | I82: 0 | J82: -6.29533055
C83: Total | D83: -16.50226693 | E83: -13.46245908 | F83: 0 | G83: 0 | H83: 0 | I83: 3.255522696 | J83: -6.29533055
C85: As provided in IAS 39, discount to the face value incurred in obtaining financial resources was deducted from the value of the financial instrument, and as provided in Resolution CVM 604/09, loans were recognised at fair value. The amount to be appropriated to income in the future is as follows:
C87: Discount to the face value | D87: Amount to be appropriated | E87: Profile
E88: up to 12 months | F88: from 12 to 24 | G88: from 24 to 36 | H88: from 36 to 48 | I88: from 48 to 60 | J88: > 60 months
C89: Notes | D89: -41.02 | E89: -3.846 | F89: -4.063 | G89: -4.292 | H89: -4.534 | I89: -4.79 | J89: -19.494
C90: Total | D90: -41.02 | E90: -3.846 | F90: -4.063 | G90: -4.292 | H90: -4.534 | I90: -4.79 | J90: -19.494

Sheet 2Q18
A7: Financing and debentures (R$ million) | D7: Index/ Currency ¹ | E7: Average weighted interest rate (% p.y.) ² | F7: Balance 7 Jun-18 | G7: Maturity | H7: Amortization Profile | N7: Transaction costs / discount to the face value / fair value adjustment 7
H8: up to 12 months | I8: from 12 to 24 | J8: from 24 to 36 | K8: from 36 to 48 | L8: from 48 to 60 | M8: > 60 months
B9: Foreing Currency
C11: Notes 5 | D11: US$ | E11: +5,3 | F11: 2872.58 | G11: 2026 | H11: 35.42498547 | I11: -0.0005513098973 | J11: -0.0004867012435 | K11: -0.0007273314378 | L11: -0.0001743787346 | M11: 2891.849971 | N11: -54.6950478
C12: Foreign loan 3 | D12: US$ + LIBOR | E12: +1 | F12: 931.824 | G12: 2018 a 2022 | H12: 542.901 | I12: 0 | J12: 0 | K12: 385.58 | L12: 0 | M12: 0 | N12: 3.339
C13: Financial institutions | D13: US$ + LIBOR | E13: +2,1 | F13: 622.939 | G13: 2019 a 2023 | H13: 1.795 | I13: 77.944 | J13: 155.887 | K13: 116.915 | L13: 272.803 | M13: 0 | N13: -2.405
C14: Foreign loan | D14: US$ + LIBOR | E14: +2 | F14: 349.039 | G14: 2018 a 2020 | H14: 118.117 | I14: 231.348 | J14: 0 | K14: 0 | L14: 0 | M14: 0 | N14: -0.427
C15: Foreign loan 4 | D15: US$ | E15: +2,2 | F15: 310.617 | G15: 2018 | H15: 310.57 | I15: 0 | J15: 0 | K15: 0 | L15: 0 | M15: 0 | N15: 0.047
C16: Financial institutions | D16: US$ | E16: +2,8 | F16: 132.903 | G16: 2018 a 2022 | H16: 54.959 | I16: 0 | J16: 0 | K16: 77.944 | L16: 0 | M16: 0 | N16: -
C17: Advances on Foreign Exchange Contracts (ACE) | D17: US$ | E17: +3 | F17: 101.174 | G17: < 82 dias | H17: 101.174 | I17: 0 | J17: 0 | K17: 0 | L17: 0 | M17: 0 | N17: -
C18: Advances on Foreign Exchange Contracts (ACC) | D18: US$ | E18: +2,8 | F18: 53.988 | G18: < 70 dias | H18: 53.988 | I18: 0 | J18: 0 | K18: 0 | L18: 0 | M18: 0 | N18: -
C19: Financial institutions | D19: MXN | E19: +8,5 | F19: 35.975 | G19: 1905-07-10 | H19: 35.975 | I19: 0 | J19: 0 | K19: 0 | L19: 0 | M19: 0 | N19: -
C20: BNDES | D20: US$ | E20: +6,5 | F20: 3.776 | G20: 2018 a 2020 | H20: 2.389 | I20: 1.388 | J20: 0 | K20: 0 | L20: 0 | M20: 0 | N20: -
C21: Financial institutions | D21: MX$ + TIIE | E21: +1,5 | F21: 19.68 | G21: 2018 | H21: 19.68 | I21: 0 | J21: 0 | K21: 0 | L21: 0 | M21: 0 | N21: -
C24: Sub Total foreing currency | F24: 5434.496 | G24: 5434.496 | H24: 5434.496 | I24: 5434.496 | J24: 5434.496 | K24: 5434.496 | L24: 5434.496 | M24: 5434.496 | N24: 5434.496
B26: Local Currency
C28: Debentures IPP | D28: CDI | E28: 105.8 | F28: 2889.25474 | G28: 2018 a 2022 | H28: 1061.813691 | I28: 166.6666667 | J28: 166.6666667 | K28: 750 | L28: 750 | M28: 0 | N28: -5.892283657
C29: Banco do Brasil floating rate | D29: CDI | E29: 107.4 | F29: 2567.1 | G29: 2018 a 2022 | H29: 1563.436 | I29: 336.5 | J29: 336.5 | K29: 336.5 | L29: 0 | M29: 0 | N29: -5.836
C30: Debentures - 6th issuance | D30: CDI | E30: 105.3 | F30: 1756.751582 | G30: 2023-03-06 | H30: 34.99889693 | I30: 0 | J30: 0 | K30: 0 | L30: 1725.335725 | M30: 0 | N30: -3.583039859
C31: Debentures - CRA | D31: CDI | E31: 95 | F31: 1382.408406 | G31: 2022-04-14 | H31: 15.93814552 | I31: 0 | J31: 0 | K31: 660.139 | L31: 730.384 | M31: 0 | N31: -24.05273913
C32: Debentures - CRA 6 | D32: IPCA | E32: +4,6 | F32: 539.8389018 | G32: 2024-04-15 | H32: 9.64770275 | I32: 0 | J32: 0 | K32: 0 | L32: 0 | M32: 582.8362755 | N32: -52.64507648
C33: BNDES | D33: TJLP | E33: +2,4 | F33: 194.265 | G33: 2018 a 2023 | H33: 91.841 | I33: 64.307 | J33: 26.012 | K33: 9.007 | L33: 3.242 | M33: 0.084 | N33: -0.2273872078
C34: BNDES | D34: SELIC | E34: +2,3 | F34: 60.91888348 | G34: 2018 a 2023 | H34: 22.126 | I34: 22.108 | J34: 13.527 | K34: 2.246 | L34: 0.947 | M34: 0 | N34: -0.03585880464
C35: Research and projects financing (FINEP) | D35: TJLP | E35: +1,5 | F35: 59.167 | G35: 2018 a 2023 | H35: 12.442 | I35: 11.491 | J35: 11.417 | K35: 11.417 | L35: 11.211 | M35: 1.188 | N35: -
C36: Export Credit Note floating rate | D36: IGPM | E36: +5,6 | F36: 47.357 | G36: 2018 a 2031 | H36: 2.782 | I36: 2.756 | J36: 2.91 | K36: 3.073 | L36: 3.246 | M36: 32.59 | N36: -
C37: Research and projects financing (FINEP) | D37: R$ | E37: +4,0 | F37: 29.078 | G37: 2018 a 2021 | H37: 13.082 | I37: 6.399 | J37: 6.399 | K37: 3.199 | L37: 0 | M37: 0 | N37: -
C38: BNDES | D38: R$ | E38: +5,7 | F38: 19.93093307 | G38: 2018 a 2022 | H38: 11.398 | I38: 6.929 | J38: 1.579 | K38: 0.03 | L38: 0 | M38: 0 | N38: -0.005
C39: Banco do Nordeste do Brasil | D39: R$ | E39: +8,5 | F39: 18.639 | G39: 2018 a 2021 | H39: 5.793 | I39: 5.709 | J39: 5.709 | K39: 1.427 | L39: 0 | M39: 0 | N39: -
C40: FINAME | D40: TJLP | E40: +5,7 | F40: 0.051 | G40: 2018 a 2022 | H40: 0.024 | I40: 0.01 | J40: 0.01 | K40: 0.006 | L40: 0 | M40: 0 | N40: -
C42: Sub Total local currency | F42: 9564.761 | G42: 0 | H42: 2845.323436 | I42: 622.8756667 | J42: 570.7296667 | K42: 1777.044 | L42: 3224.365725 | M42: 616.6982755 | N42: -92.27738514
C44: Unrealized losses on swaps transactions | F44: 45.478 | G44: 0 | H44: 25.631 | I44: 0 | J44: 0 | K44: 0 | L44: 0 | M44: 19.847 | N44: 0
B46: Total | F46: 15044.735 | G46: 0 | H46: 4147.927421 | I46: 933.5551154 | J46: 726.61618 | K46: 2357.482273 | L46: 3497.168551 | M46: 3528.395247 | N46: -146.4184329
C48: Transaction costs, discount to the face value and fair value adjustment 7 | F48: 0 | G48: 0 | H48: -19.469 | I48: -17.368 | J48: -16.99 | K48: -13.507 | L48: -10.366 | M48: -69.064 | N48: -146.4184329
B50: Total | F50: 15044.735 | G50: 0 | H50: 4128.614 | I50: 916.295 | J50: 709.688 | K50: 2343.997 | L50: 3486.804 | M50: 3459.337 | N50: 0
B52: 1. | C52: Libor = London Interbank Offered Rate / Bs$ = Bolivar / MX$ = Mexican Peso / TIIE = Mexican Interbank Interest Rate Even / CDI = interbank certificate of deposit rate / TJLP = basic financing cost of BNDES (set by National Monetary Council). On March 30, 2018, TJLP was fixed at 6.75% p.a. / IGPM = General Index of Market Prices / SELIC = base interest rate set by the Brazilian Central Bank / IPCA = National Consumer Price Index
B54: 2. | C54: The company contracted hedging against foreign exchange exposure and interest rate for some debt.
B56: 3. | C56: For this loan, a hedging instrument was hired with the objective of swapping the fixed to floating rate, equivalent to 103.3% of CDI.
B58: 4. | C58: For this loan, a hedging instrument was hired with the objective of swapping the fixed to floating rate, equivalent to 101.5% of CDI.
B59: 5. | C59: These transactions were designated for hedge accounting (see Note 31 – Hedge Accounting).
B60: 6. | C60: For this loan, a hedging instrument was hired with the objective of swapping the fixed to floating rate, equivalent to 95.2% of CDI.
B61: 7. | C61: As provided in IAS 39, transaction costs incurred in obtaining financial resources were deducted from the value of the financial instrument, and as provided in Resolution CVM 604/09, loans were recognised at fair value. The amount to be appropriated to income in the future is as follows:
C63: Transaction costs | D63: Amount to be appropriated | E63: Profile
E64: up to 12 months | F64: from 12 to 24 | G64: from 24 to 36 | H64: from 36 to 48 | I64: from 48 to 60 | J64: > 60 months
C65: Banco do Brasil | D65: -5.836 | E65: -4.38 | F65: -0.695 | G65: -0.496 | H65: -0.265 | I65: 0 | J65: 0
C66: Foreign loan | D66: -0.707 | E66: -0.477 | F66: -0.203 | G66: -0.027 | H66: 0 | I66: 0 | J66: 0
C67: Debentures | D67: -43.763 | E67: -9.891 | F67: -9.816 | G67: -9.893 | H67: -8.806 | I67: -3.616 | J67: -1.743
C68: Notes | D68: -14.614 | E68: -1.425 | F68: -1.505 | G68: -1.589 | H68: -1.677 | I68: -1.77 | J68: -6.648
C69: Others | D69: -3.019 | E69: -0.826 | F69: -1.03 | G69: -0.636 | H69: -0.399 | I69: -0.124 | J69: -0.005
C70: Total | D70: -67.939 | E70: -16.999 | F70: -13.249 | G70: -12.641 | H70: -11.147 | I70: -5.51 | J70: -8.396
C72: As provided in Resolution CVM 604/09 (November 19, 2009), the amortization of fair value adjustment is as follows:
C74: Fair value adjustment | D74: Amount to be amortized | E74: Profile
E75: up to 12 months | F75: from 12 to 24 | G75: from 24 to 36 | H75: from 36 to 48 | I75: from 48 to 60 | J75: > 60 months
C76: Foreign loan | D76: 3.666709838 | E76: 1.429718371 | F76: 0 | G76: 0 | H76: 2.236991467 | I76: 0 | J76: 0
C77: Debêntures | D77: -42.40979472 | E77: 0 | F77: 0 | G77: 0 | H77: 0 | I77: 0 | J77: -42.40979472
C78: Total | D78: -38.74308488 | E78: 1.429718371 | F78: 0 | G78: 0 | H78: 2.236991467 | I78: 0 | J78: -42.40979472
C80: As provided in IAS 39, discount to the face value incurred in obtaining financial resources was deducted from the value of the financial instrument, and as provided in Resolution CVM 604/09, loans were recognised at fair value. The amount to be appropriated to income in the future is as follows:
C82: Discount to the face value | D82: Amount to be appropriated | E82: Profile
E83: up to 12 months | F83: from 12 to 24 | G83: from 24 to 36 | H83: from 36 to 48 | I83: from 48 to 60 | J83: > 60 months
C84: Notes | D84: -40.081 | E84: -3.899 | F84: -4.119 | G84: -4.351 | H84: -4.597 | I84: -4.856 | J84: -18.259
C85: Total | D85: -40.081 | E85: -3.899 | F85: -4.119 | G85: -4.351 | H85: -4.597 | I85: -4.856 | J85: -18.259

Sheet 3Q18
A7: Financing and debentures (R$ million) | D7: Index/ Currency ¹ | E7: Average weighted interest rate (% p.y.) ² | F7: Balance 7 Sep-18 | G7: Maturity | H7: Amortization Profile | N7: Transaction costs / discount to the face value / fair value adjustment 7
H8: up to 12 months | I8: from 12 to 24 | J8: from 24 to 36 | K8: from 36 to 48 | L8: from 48 to 60 | M8: > 60 months
B9: Foreing Currency
C11: Notes 5 | D11: US$ | E11: +5,3 | F11: 3025.738 | G11: 2026 | H11: 76.19870605 | I11: 0.0005611551303 | J11: 4.049255502e-05 | K11: 0.0002387740207 | L11: 0.0002562313806 | M11: 3002.924691 | N11: -53.38660872
C12: Foreign loan 3 | D12: US$ + LIBOR | E12: +1 | F12: 941.377 | G12: 2018 to 2023 | H12: 327.343 | I12: 0 | J12: 0 | K12: 400.39 | L12: 200.192 | M12: 0 | N12: 13.452
C13: Foreign loan 4 | D13: US$ | E13: +3,9 | F13: 757.465 | G13: 2021 to 2023 | H13: 2.79428869 | I13: 0 | J13: 240.234 | K13: 0 | L13: 500.4875 | M13: 0 | N13: 13.949
C14: Foreign loan | D14: US$ + LIBOR | E14: +2,1 | F14: 644.083 | G14: 2019 to 2023 | H14: 42.488 | I14: 161.031 | J14: 40.258 | K14: 120.773 | L14: 281.804 | M14: 0 | N14: -2.271
C15: Financial institutions | D15: US$ + LIBOR | E15: +2 | F15: 362.521 | G15: 2018 to 2022 | H15: 122.68 | I15: 240.234 | J15: 0 | K15: 0 | L15: 0 | M15: 0 | N15: -0.392
C16: Financial institutions | D16: US$ | E16: +2,9 | F16: 132.065 | G16: 2019 to 2022 | H16: 51.55 | I16: 0 | J16: 0 | K16: 80.515 | L16: 0 | M16: 0 | N16: -
C17: Advances on Foreign Exchange Contracts (ACE) | D17: US$ | E17: +3,1 | F17: 112.876 | G17: < 87 days | H17: 112.876 | I17: 0 | J17: 0 | K17: 0 | L17: 0 | M17: 0 | N17: -
C18: Advances on Foreign Exchange Contracts (ACC) | D18: US$ | E18: +3 | F18: 38.108 | G18: < 29 days | H18: 38.108 | I18: 0 | J18: 0 | K18: 0 | L18: 0 | M18: 0 | N18: -
C19: Financial institutions | D19: MXN | E19: +9,0 | F19: 34.972 | G19: 2018 | H19: 34.972 | I19: 0 | J19: 0 | K19: 0 | L19: 0 | M19: 0 | N19: -
C20: Financial institutions | D20: MX$ + TIIE | E20: +1,5 | F20: 17.171 | G20: 2019 | H20: 17.171 | I20: 0 | J20: 0 | K20: 0 | L20: 0 | M20: 0 | N20: -
C21: BNDES | D21: US$ | E21: +6,5 | F21: 3.301 | G21: 2018 to 2020 | H21: 2.478 | I21: 0.823 | J21: 0 | K21: 0 | L21: 0 | M21: 0 | N21: -
C24: Sub Total foreing currency | F24: 6069.677 | G24: 0 | H24: 828.6589947 | I24: 402.0885612 | J24: 280.4920405 | K24: 601.6782388 | L24: 982.4837562 | M24: 3002.924691 | N24: -28.64860872
B26: Local Currency
C28: Debentures IPP | D28: CDI | E28: 105.8 | F28: 2838.166957 | G28: 2018 to 2022 | H28: 1010.098847 | I28: 166.6666667 | J28: 916.6666667 | K28: 750 | L28: 0 | M28: 0 | N28: -5.265223466
C29: Banco do Brasil floating rate | D29: CDI | E29: 107.3 | F29: 2590.651 | G29: 2019 to 2022 | H29: 1585.82 | I29: 336.5 | J29: 336.5 | K29: 336.5 | L29: 0 | M29: 0 | N29: -4.669
C30: Debentures - 6th issuance | D30: CDI | E30: 105.3 | F30: 1728.735344 | G30: 2023-03-06 | H30: 7.1549895 | I30: 0 | J30: 0 | K30: 0 | L30: 1725 | M30: 0 | N30: -3.419645203
C31: Debentures - CRA | D31: CDI | E31: 95 | F31: 1404.842392 | G31: 2022-04-14 | H31: 37.12559012 | I31: 0 | J31: 0 | K31: 660.139 | L31: 730.384 | M31: 0 | N31: -22.80619787
C32: Debentures - CRA 6 | D32: IPCA | E32: +4,6 | F32: 541.2824444 | G32: 2024-04-15 | H32: 16.61334825 | I32: 0 | J32: 0 | K32: 0 | L32: 0 | M32: 591.3560701 | N32: -66.68343093
C33: BNDES | D33: TJLP | E33: +2,4 | F33: 170.879 | G33: 2018 to 2023 | H33: 89.865 | I33: 51.632 | J33: 21.179 | K33: 6.304 | L33: 2.093 | M33: 0 | N33: -0.1937807365
C34: BNDES | D34: SELIC | E34: +2,3 | F34: 56.29905142 | G34: 2018 to 2023 | H34: 22.496 | I34: 22.471 | J34: 8.932 | K34: 1.897 | L34: 0.532 | M34: 0 | N34: -0.02931034286
C35: Research and projects financing (FINEP) | D35: TJLP | E35: +1,5 | F35: 56.198 | G35: 2019 to 2023 | H35: 12.343 | I35: 11.433 | J35: 11.433 | K35: 11.433 | L35: 9.469 | M35: 0.089 | N35: -
C36: Financial leasing | D36: IGPM | E36: +5,6 | F36: 46.716 | G36: 2018 to 2031 | H36: 2.815 | I36: 2.794 | J36: 2.95 | K36: 3.116 | L36: 3.29 | M36: 31.751 | N36: -
C37: Research and projects financing (FINEP) | D37: R$ | E37: +4,0 | F37: 25.814 | G37: 2018 to 2021 | H37: 11.417 | I37: 6.399 | J37: 6.399 | K37: 1.6 | L37: 0 | M37: 0 | N37: -
C38: Banco do Nordeste do Brasil | D38: R$ | E38: +8,5 | F38: 17.206 | G38: 2018 to 2021 | H38: 5.787 | I38: 5.709 | J38: 5.709 | K38: 0 | L38: 0 | M38: 0 | N38: -
C39: BNDES | D39: R$ | E39: +6 | F39: 16.99764815 | G39: 2018 to 2022 | H39: 10.862 | I39: 5.221 | J39: 0.912 | K39: 0.007 | L39: 0 | M39: 0 | N39: -0.004
C40: Agency for Financing Machinery and Equipment (FINAME) | D40: TJLP | E40: +5,7 | F40: 0.036 | G40: 2018 a 2022 | H40: 0.012 | I40: 0.01 | J40: 0.01 | K40: 0.003 | L40: 0 | M40: 0 | N40: -
C42: Sub Total local currency | F42: 9493.824 | G42: 0 | H42: 2812.410775 | I42: 608.8356667 | J42: 1310.690667 | K42: 1770.999 | L42: 2470.768 | M42: 623.1960701 | N42: -103.0705885
C44: Unrealized losses on swaps transactions | F44: 56.629 | G44: 0 | H44: 18.3 | I44: 0 | J44: 0 | K44: 0 | L44: 0 | M44: 38.329
B46: Total | F46: 15620.131 | G46: 0 | H46: 3659.369769 | I46: 1010.924228 | J46: 1591.182707 | K46: 2372.677239 | L46: 3453.251756 | M46: 3664.449761 | N46: -131.7191973
C48: Transaction costs, discount to the face value and fair value adjustment 7 | F48: 0 | G48: 0 | H48: -17.909 | I48: -17.402 | J48: -14.216 | K48: -5.157 | L48: 2.574 | M48: -79.914 | N48: -131.7191973
B50: Total | F50: 15620.131 | G50: 0 | H50: 3641.596245 | I50: 993.6179907 | J50: 1577.015633 | K50: 2367.533816 | L50: 3455.830296 | M50: 3584.536532
B52: 1. | C52: Libor = London Interbank Offered Rate / Bs$ = Bolivar / MX$ = Mexican Peso / TIIE = Mexican Interbank Interest Rate Even / CDI = interbank certificate of deposit rate / TJLP = basic financing cost of BNDES (set by National Monetary Council). On Sep 30, 20
B54: 2. | C54: The company contracted hedging against foreign exchange exposure and interest rate for some debt.
C55: 0
B56: 3. | C56: For this loan, a hedging instrument was hired with the objective of swapping the fixed to floating rate, equivalent to 103.7% of CDI.
C57: 0
B58: 4. | C58: For this loan, a hedging instrument was hired with the objective of swapping the fixed to floating rate, equivalent to 103.9% of CDI.
B59: 5. | C59: These transactions were designated for hedge accounting (see Note 31 – Hedge Accounting).
B60: 6. | C60: For this loan, a hedging instrument was hired with the objective of swapping the fixed to floating rate, equivalent to 95.2% of CDI.
B61: 7. | C61: As provided in IAS 39, transaction costs incurred in obtaining financial resources were deducted from the value of the financial instrument, and as provided in Resolution CVM 604/09, loans were recognised at fair value. The amount to be appropriated to in
C63: Transaction costs | D63: Amount to be appropriated | E63: Profile
E64: up to 12 months | F64: from 12 to 24 | G64: from 24 to 36 | H64: from 36 to 48 | I64: from 48 to 60 | J64: > 60 months
C65: Banco do Brasil | D65: 4.66902203 | E65: -3.378 | F65: -0.648 | G65: -0.441 | H65: -0.202 | I65: 0 | J65: 0
C66: Foreign loan | D66: 0.4922633509 | E66: -0.306 | F66: -0.186 | G66: 0 | H66: 0 | I66: 0 | J66: 0
C67: Debentures | D67: 41.31150276 | E67: -9.927 | F67: -9.838 | G67: -9.85 | H67: -8.011 | I67: -1.988 | J67: -1.697
C68: Notes | D68: 14.26387534 | E68: -1.445 | F68: -1.525 | G68: -1.61 | H68: -1.7 | I68: -1.795 | J68: -6.189
C69: Others | D69: 2.802208259 | E69: -0.819 | F69: -1.028 | G69: -0.519 | H69: -0.382 | I69: -0.054 | J69: 0
C70: Total | D70: =SUM(D65:D69) -> 63.53887174 | E70: -15.875 | F70: -13.225 | G70: -12.42 | H70: -10.295 | I70: -3.837 | J70: -7.886
C72: As provided in Resolution CVM 604/09 (November 19, 2009), the amortization of fair value adjustment is as follows:
C74: Fair value adjustment | D74: Amount to be amortized | E74: Profile
E75: up to 12 months | F75: from 12 to 24 | G75: from 24 to 36 | H75: from 36 to 48 | I75: from 48 to 60 | J75: > 60 months
C76: Foreign loan | D76: 27.50108114 | E76: 1.918700818 | F76: 0 | G76: 2.615407708 | H76: 9.797772366 | I76: 11.33393182 | J76: 1.835268428
C77: Debêntures | D77: 1381.33721 | E77: 31.87525899 | F77: -5.74559954 | G77: -6.289384714 | H77: 654.8874039 | I77: 730.1147136 | J77: -23.50518222
C78: Total | D78: =SUM(D76:D77) -> 1408.838291 | E78: 33.7939598 | F78: -5.74559954 | G78: -3.673977006 | H78: 664.6851763 | I78: 741.4486454 | J78: -21.66991379
C80: As provided in IAS 39, discount to the face value incurred in obtaining financial resources was deducted from the value of the financial instrument, and as provided in Resolution CVM 604/09, loans were recognised at fair value. The amount to be appropriated to income in the future is as follows:
C82: Discount to the face value | D82: Amount to be appropriated | E82: Profile
E83: up to 12 months | F83: from 12 to 24 | G83: from 24 to 36 | H83: from 36 to 48 | I83: from 48 to 60 | J83: > 60 months
C84: Notes | D84: -39.123 | E84: -3.953 | F84: -4.176 | G84: -4.411 | H84: -4.66 | I84: -4.923 | J84: -16.999
C85: Total | D85: =D84 -> -39.123 | E85: -3.953 | F85: -4.176 | G85: -4.411 | H85: -4.66 | I85: -4.923 | J85: -16.999

Sheet 4Q18
A7: Financing and debentures (R$ million) | D7: Index/ Currency ¹ | E7: Average weighted interest rate (% p.y.) ² | F7: Balance 7 Dec-18 | G7: Maturity | H7: Amortization Profile | N7: Transaction costs / discount to the face value / fair value adjustment 7
H8: up to 12 months | I8: from 12 to 24 | J8: from 24 to 36 | K8: from 36 to 48 | L8: from 48 to 60 | M8: > 60 months
B9: Foreing Currency
C11: Notas no mercado externo 5 | D11: US$ | E11: +5,3 | F11: 2889.631 | G11: 2026 | H11: 35.59952254 | I11: -0.0002248906421 | J11: 0.000675093402 | K11: 0.0003185494469 | L11: -0.0001928604259 | M11: 2906.09965 | N11: -52.06901072
C12: Financiamento externo 4 | D12: US$ | E12: +3,9 | F12: 985.268 | G12: 2021 a 2023 | H12: 12.02530025 | I12: 0 | J12: 232.488 | K12: 0 | L12: 716.838 | M12: 0 | N12: 23.917
C13: Instituições financeiras | D13: US$ + LIBOR | E13: +2,1 | F13: 620.605 | G13: 2019 a 2023 | H13: 41.142 | I13: 155.051 | J13: 38.763 | K13: 271.34 | L13: 116.288 | M13: 0 | N13: -1.979
C14: Financiamento externo 3 | D14: US$ + LIBOR | E14: +0,9 | F14: 582.106 | G14: 2022 a 2023 | H14: 1.703 | I14: 0 | J14: 0 | K14: 387.48 | L14: 193.74 | M14: 0 | N14: -0.817
C15: Financiamento externo | D15: US$ + LIBOR | E15: +2 | F15: 234.363 | G15: 2020 | H15: 2.206 | I15: 232.488 | J15: 0 | K15: 0 | L15: 0 | M15: 0 | N15: -0.331
C16: Instituições financeiras | D16: US$ | E16: +2,9 | F16: 127.288 | G16: 2019 a 2022 | H16: 49.762 | I16: 0 | J16: 0 | K16: 77.526 | L16: 0 | M16: 0 | N16: -
C17: Instituições financeiras | D17: MXN | E17: +9,0 | F17: 27.845 | G17: 2019 | H17: 27.845 | I17: 0 | J17: 0 | K17: 0 | L17: 0 | M17: 0 | N17: -
C18: ACC | D18: US$ | E18: +3,2 | F18: 11.702 | G18: < 26 dias | H18: 11.702 | I18: 0 | J18: 0 | K18: 0 | L18: 0 | M18: 0 | N18: -
C19: Instituições financeiras | D19: MX$ + TIIE | E19: +1,5 | F19: 3.95 | G19: 2019 | H19: 3.95 | I19: 0 | J19: 0 | K19: 0 | L19: 0 | M19: 0 | N19: -
C20: BNDES | D20: US$ | E20: +6,5 | F20: 2.596 | G20: 2019 a 2020 | H20: 2.397 | I20: 0.199 | J20: 0 | K20: 0 | L20: 0 | M20: 0 | N20: -
C21: ACE | D21: US$ | E21: +2,8 | F21: 1.486 | G21: < 29 dias | H21: 1.486 | I21: 0 | J21: 0 | K21: 0 | L21: 0 | M21: 0 | N21: -
C24: Sub Total foreing currency | F24: 5486.839 | H24: 189.8178228 | I24: 387.7377751 | J24: 271.2516751 | K24: 736.3463185 | L24: 1026.865807 | M24: 2906.09965 | N24: -31.27901072
B26: Local Currency
C28: Banco do Brasil pós-fixado | D28: CDI | E28: 107.3 | F28: 2614.703 | G28: 2019 a 2022 | H28: 1608.64 | I28: 336.5 | J28: 336.5 | K28: 336.5 | L28: 0 | M28: 0 | N28: -3.437
C29: Debêntures IPP | D29: CDI | E29: 105 | F29: 2039.742 | G29: 2019 a 2022 | H29: 211.0192217 | I29: 166.6666667 | J29: 916.6666667 | K29: 750 | L29: 0 | M29: 0 | N29: -4.610224418
C30: Debêntures - CRA | D30: CDI | E30: 95.8 | F30: 2029.544826 | G30: 2022 a 2023 | H30: 16.58010273 | I30: 0 | J30: 0 | K30: 1390.523 | L30: 660 | M30: 0 | N30: -37.55827647
C31: Debêntures - 6ª emissão | D31: CDI | E31: 105.3 | F31: 1756.953932 | G31: 44991 | H31: 35.20381725 | I31: 0 | J31: 0 | K31: 0 | L31: 1725 | M31: 0 | N31: -3.24988514
C32: Debêntures - CRA 6 | D32: IPCA | E32: +4,6 | F32: 833.2128772 | G32: 2024 a 2025 | H32: 14.09795253 | I32: 0 | J32: 0 | K32: 0 | L32: 0 | M32: 835.8740696 | N32: -16.75914487
C33: BNDES | D33: TJLP | E33: +2,4 | F33: 147.922 | G33: 2019 a 2023 | H33: 85.951 | I33: 40.466 | J33: 15.584 | K33: 5.164 | L33: 0.92 | M33: 0 | N33: -0.1627882064
C34: FINEP | D34: TJLP | E34: +1,5 | F34: 53.245 | G34: 2019 a 2023 | H34: 12.151 | I34: 11.459 | J34: 11.459 | K34: 11.43 | L34: 6.745 | M34: 0 | N34: -
C35: BNDES | D35: SELIC | E35: +2,3 | F35: 51.46655968 | G35: 2019 a 2023 | H35: 22.837 | I35: 22.087 | J35: 4.595 | K35: 1.835 | L35: 0.135 | M35: 0 | N35: -0.02334693289
C36: Capital de giro | D36: CDI | E36: 124 | F36: 50.07636861 | G36: 2019 | H36: 50.07636861 | I36: 0 | J36: 0 | K36: 0 | L36: 0 | M36: 0 | N36: 0
C37: Arrendamento mercantil financeiro | D37: IGPM | E37: +5,6 | F37: 46.066 | G37: 2019 a 2031 | H37: 2.849 | I37: 2.832 | J37: 2.991 | K37: 3.158 | L37: 3.335 | M37: 30.9 | N37: -
C38: FINEP | D38: R$ | E38: +4,0 | F38: 22.553 | G38: 2019 a 2021 | H38: 9.756 | I38: 6.399 | J38: 6.399 | K38: 0 | L38: 0 | M38: 0 | N38: -
C39: Banco do Nordeste do Brasil | D39: R$ | E39: +8,5 | F39: 15.776 | G39: 2019 a 2021 | H39: 5.784 | I39: 5.709 | J39: 4.282 | K39: 0 | L39: 0 | M39: 0 | N39: -
C40: BNDES | D40: R$ | E40: +6 | F40: 14.07240176 | G40: 2019 a 2022 | H40: 10.174 | I40: 3.608 | J40: 0.292 | K40: 0.001 | L40: 0 | M40: 0 | N40: -0.003
C41: FINAME | D41: TJLP | E41: +5,7 | F41: 0.032 | G41: 2019 a 2022 | H41: 0.01 | I41: 0.01 | J41: 0.01 | K41: 0.001 | L41: 0 | M41: 0 | N41: -
C43: Sub Total local currency | F43: 9675.365 | H43: 2085.130463 | I43: 595.7376667 | J43: 1298.779667 | K43: 2498.613 | L43: 2396.136 | M43: 866.7750696 | N43: -65.80366604
C45: Unrealized losses on swaps transactions | F45: 43.945 | H45: 20.864 | I45: 0 | J45: 0 | K45: 0 | L45: 0 | M45: 23.081
B47: Total | F47: 15206.149 | H47: 2295.812286 | I47: 983.4754418 | J47: 1570.031342 | K47: 3234.959319 | L47: 3423.001807 | M47: 3795.955719 | N47: -97.08267676
C49: Transaction costs, discount to the face value and fair value adjustment 7 | H49: -21.37765697 | I49: -19.94435377 | J49: -18.58741375 | K49: -15.21674052 | L49: 8.36561664 | M49: -28.57750016 | N49: -97.08267676
B51: Total | F51: 15206.149 | H51: 2273.997118 | I51: 962.8702201 | J51: 1551.083382 | K51: 3219.450803 | L51: 3431.465173 | M51: 3767.282402
B53: 1. | C53: Libor = London Interbank Offered Rate / Bs$ = Bolivar / MX$ = Mexican Peso / TIIE = Mexican Interbank Interest Rate Even / CDI = interbank certificate of deposit rate / TJLP = basic financing cost of BNDES (set by National Monetary Council). On Sep 30, 20
B55: 2. | C55: The company contracted hedging against foreign exchange exposure and interest rate for some debt.
C56: 0
B57: 3. | C57: For this loan, a hedging instrument was hired with the objective of swapping the fixed to floating rate, equivalent to 105.0% of CDI.
C58: 0
B59: 4. | C59: For this loan, a hedging instrument was hired with the objective of swapping the fixed to floating rate, equivalent to 104.0% of CDI.
B60: 5. | C60: These transactions were designated for hedge accounting (see Note 31 – Hedge Accounting).
B61: 6. | C61: For this loan, a hedging instrument was hired with the objective of swapping the fixed to floating rate, equivalent to 96.0% of CDI.
B62: 7. | C62: As provided in IAS 39, transaction costs incurred in obtaining financial resources were deducted from the value of the financial instrument, and as provided in Resolution CVM 604/09, loans were recognised at fair value. The amount to be appropriated to in
C64: Transaction costs | D64: Amount to be appropriated | E64: Profile
E65: up to 12 months | F65: from 12 to 24 | G65: from 24 to 36 | H65: from 36 to 48 | I65: from 48 to 60 | J65: > 60 months
C66: Banco do Brasil | D66: -3437.48762 | E66: -2317.39354 | F66: -599.0952 | G66: -384.71453 | H66: -136.28435 | I66: 0 | J66: 0
C67: Foreign loan | D67: -56375.77795 | E67: -13170.93131 | F67: -13298.11814 | G67: -13217.28098 | H67: -10114.80965 | I67: -5254.78732 | J67: -1319.85055
C68: Debentures | D68: -330.7043768 | E68: -200.7888424 | F68: -129.9155343 | G68: 0 | H68: 0 | I68: 0 | J68: 0
C69: Notes | D69: -13881.21733 | E69: -1434.49325 | F69: -1546.03048 | G69: -1632.14187 | H69: -1723.05483 | I69: -1819.03729 | J69: -5726.45961
C70: Others | D70: -2431.507819 | E70: -772.917173 | F70: -893.781811 | G70: -444.9068782 | H70: -317.8832071 | I70: -2.01875 | J70: 0
C71: Total | D71: -76456.6951 | E71: -17896.52412 | F71: -16466.94117 | G71: -15679.04426 | H71: -12292.03204 | I71: -7075.84336 | J71: -7046.31016
C73: As provided in Resolution CVM 604/09 (November 19, 2009), the amortization of fair value adjustment is as follows:
C75: Fair value adjustment | D75: Amount to be amortized | E75: Profile
E76: up to 12 months | F76: from 12 to 24 | G76: from 24 to 36 | H76: from 36 to 48 | I76: from 48 to 60 | J76: > 60 months
C77: Foreign loan | D77: 23.09949975 | E77: 0 | F77: 0 | G77: 1.169267991 | H77: 1.497804756 | I77: 20.432427 | J77: 0
C78: Debêntures | D78: -5.301533081 | E78: 0 | F78: 0 | G78: 0 | H78: 0 | I78: 0 | J78: -5.301533081
C79: Total | D79: 17.79796667 | E79: 0 | F79: 0 | G79: 1.169267991 | H79: 1.497804756 | I79: 20.432427 | J79: -5.301533081
C81: As provided in IAS 39, discount to the face value incurred in obtaining financial resources was deducted from the value of the financial instrument, and as provided in Resolution CVM 604/09, loans were recognised at fair value. The amount to be appropriated to income in the future is as follows:
C83: Discount to the face value | D83: Amount to be appropriated | E83: Profile
E84: up to 12 months | F84: from 12 to 24 | G84: from 24 to 36 | H84: from 36 to 48 | I84: from 48 to 60 | J84: > 60 months
C85: Notes | D85: -39.123 | E85: -3.953 | F85: -4.176 | G85: -4.411 | H85: -4.66 | I85: -4.923 | J85: -16.999
C86: Total | D86: -39.123 | E86: -3.953 | F86: -4.176 | G86: -4.411 | H86: -4.66 | I86: -4.923 | J86: -16.999

Sheet 1Q19
A7: Financing and debentures (R$ million) | D7: Index/ Currency ¹ | E7: Average weighted interest rate (% p.y.) ² | F7: Balance 7 Mar-19 | G7: Maturity | H7: Amortization Profile | N7: Transaction costs / discount to the face value / fair value adjustment 7
H8: up to 12 months | I8: from 12 to 24 | J8: from 24 to 36 | K8: from 36 to 48 | L8: from 48 to 60 | M8: > 60 months
B9: Foreing Currency
C11: Notes 3 | D11: US$ | E11: +5,3 | F11: 2945.96 | G11: 2026 | H11: 74.15843629 | I11: 9.200095523e-05 | J11: 0.0004186339104 | K11: 0.0005136168205 | L11: 0.0004800624036 | M11: 2922.524875 | N11: -50.72444355
C12: Foreign loan 4 | D12: US$ | E12: +3,9 | F12: 989.714 | G12: 2022 to 2023 | H12: 6.240397336 | I12: 0 | J12: 233.802 | K12: 0 | L12: 720.8895 | M12: 0 | N12: 28.782
C13: Foreign loan 5 | D13: US$ + LIBOR | E13: +2,1 | F13: 623.715 | G13: 2021 to 2023 | H13: 80.431 | I13: 155.732 | J13: 116.799 | K13: 272.531 | L13: 0 | M13: 0 | N13: -1.778
C14: Foreign loan | D14: US$ + LIBOR | E14: +0,9 | F14: 588.101 | G14: 2019 to 2023 | H14: 1.811 | I14: 0 | J14: 0 | K14: 389.67 | L14: 194.835 | M14: 0 | N14: 1.785
C15: Financial institutions | D15: US$ + LIBOR | E15: +2,0 | F15: 235.882 | G15: 2022 | H15: 2.368 | I15: 233.802 | J15: 0 | K15: 0 | L15: 0 | M15: 0 | N15: -0.283
C16: Financial institutions | D16: US$ | E16: +2,9 | F16: 128.69 | G16: 2019 to 2022 | H16: 50.824 | I16: 0 | J16: 0 | K16: 77.866 | L16: 0 | M16: 0 | N16: -
C17: Advances on Foreign Exchange Contracts (ACE) | D17: MXN | E17: +9,0 | F17: 24.219 | G17: < 26 days | H17: 24.219 | I17: 0 | J17: 0 | K17: 0 | L17: 0 | M17: 0 | N17: -
C18: Advances on Foreign Exchange Contracts (ACC) | D18: US$ | E18: +3,5 | F18: 21.476 | G18: < 29 days | H18: 21.476 | I18: 0 | J18: 0 | K18: 0 | L18: 0 | M18: 0 | N18: -
C19: Financial institutions | D19: MX$ + TIIE | E19: +1,5 | F19: 18.167 | G19: 2019 | H19: 18.167 | I19: 0 | J19: 0 | K19: 0 | L19: 0 | M19: 0 | N19: -
C20: Financial institutions | D20: US$ | E20: +6,5 | F20: 2.009 | G20: 2019 | H20: 2.009 | I20: 0 | J20: 0 | K20: 0 | L20: 0 | M20: 0 | N20: -
C21: BNDES | D21: US$ | E21: +0 | F21: 0.091 | G21: 2019 to 2020 | H21: 0.091 | I21: 0 | J21: 0 | K21: 0 | L21: 0 | M21: 0 | N21: -
C24: Sub Total foreing currency | F24: 5578.023 | H24: 281.7948336 | I24: 389.534092 | J24: 350.6014186 | K24: 740.0675136 | L24: 915.7249801 | M24: 2922.524875 | N24: -22.21844355
B26: Local Currency
C28: Banco do Brasil floating rate | D28: CDI | E28: 106.8 | F28: 2469.754 | G28: 2019 to 2022 | H28: 1462.459 | I28: 336.5 | J28: 336.5 | K28: 336.5 | L28: 0 | M28: 0 | N28: -2.205
C29: Debentures IPP | D29: CDI | E29: 105 | F29: 2072.812 | G29: 2019 to 2022 | H29: 243.5081217 | I29: 166.6666667 | J29: 916.6666667 | K29: 750 | L29: 0 | M29: 0 | N29: -4.02938291
C30: Debentures - 6th issuance | D30: CDI | E30: 95.8 | F30: 2061.938035 | G30: 2022 to 2023 | H30: 46.88400152 | I30: 0 | J30: 0 | K30: 1390.523 | L30: 660 | M30: 0 | N30: -35.46896634
C31: Debentures - CRA | D31: CDI | E31: 105.3 | F31: 1729.53659 | G31: 2023 | H31: 7.614633 | I31: 0 | J31: 0 | K31: 1725 | L31: 0 | M31: 0 | N31: -3.07804341
C32: Debentures - CRA 6 | D32: IPCA | E32: +4,6 | F32: 864.3976328 | G32: 2024 to 2025 | H32: 23.69365225 | I32: 0 | J32: 0 | K32: 0 | L32: 0 | M32: 843.881985 | N32: -3.178004401
C33: BNDES | D33: TJLP | E33: +2,4 | F33: 125.88 | G33: 2019 to 2023 | H33: 76.92 | I33: 32.587 | J33: 11.784 | K33: 4.367 | L33: 0.356 | M33: 0 | N33: -0.1337867216
C34: FINEP | D34: TJLP | E34: +1,5 | F34: 50.269 | G34: 2019 to 2023 | H34: 11.947 | I34: 11.487 | J34: 11.487 | K34: 11.369 | L34: 3.979 | M34: 0 | N34: -
C35: BNDES | D35: SELIC | E35: +2,3 | F35: 46.47190719 | G35: 2019 to 2023 | H35: 23.192 | I35: 18.948 | J35: 2.855 | K35: 1.496 | L35: 0 | M35: 0 | N35: -0.0179937
C36: Working capital | D36: CDI | E36: 124 | F36: 51.0175116 | G36: 2019 | H36: 51.0175116 | I36: 0 | J36: 0 | K36: 0 | L36: 0 | M36: 0 | N36: 0
C37: Research and projects financing (FINEP) | D37: R$ | E37: +4,0 | F37: 19.289 | G37: 2019 a 2021 | H37: 8.091 | I37: 6.399 | J37: 4.799 | K37: 0 | L37: 0 | M37: 0 | N37: -
C38: Banco do Nordeste do Brasil | D38: R$ | E38: +8,5 | F38: 14.342 | G38: 2019 a 2021 | H38: 5.778 | I38: 5.709 | J38: 2.855 | K38: 0 | L38: 0 | M38: 0 | N38: -
C39: BNDES | D39: R$ | E39: +6,2 | F39: 11.14794596 | G39: 2019 a 2022 | H39: 8.636 | I39: 2.451 | J39: 0.063 | K39: 0 | L39: 0 | M39: 0 | N39: -0.002
C40: Agency for Financing Machinery and Equipment (FINAME) | D40: TJLP | E40: +5,7 | F40: 0.029 | G40: 2019 a 2022 | H40: 0.01 | I40: 0.01 | J40: 0.009 | K40: 0 | L40: 0 | M40: 0 | N40: -
C42: Sub Total local currency | F42: 9516.884539 | H42: 1969.75192 | I42: 580.7586667 | J42: 1287.019667 | K42: 4219.256 | L42: 664.336 | M42: 843.882985 | N42: -48.11217748
C44: Unrealized losses on swaps transactions | F44: 17.1 | H44: 15.062 | I44: 0 | J44: 0 | K44: 0 | L44: 0 | M44: 2.038
B46: Total | F46: 15112.00754 | H46: 2266.608754 | I46: 970.2927587 | J46: 1637.621085 | K46: 4959.323514 | L46: 1580.06098 | M46: 3768.44586 | N46: -70.33062103
C48: Transaction costs, discount to the face value and fair value adjustment 7 | H48: -21.16631462 | I48: -20.431471 | J48: -18.46617471 | K48: -11.7311279 | L48: 14.65658377 | M48: -13.19626935 | N48: -70.33062103
B50: Total | F50: 15112.00754 | H50: 2245.443117 | I50: 949.8568159 | J50: 1619.154695 | K50: 4947.592951 | L50: 1594.71661 | M50: 3755.248197
B52: 1. | C52: Libor = London Interbank Offered Rate / Bs$ = Bolivar / MX$ = Mexican Peso / TIIE = Mexican Interbank Interest Rate Even / CDI = interbank certificate of deposit rate / TJLP = basic financing cost of BNDES (set by National Monetary Council). On Sep 30, 2018, TJLP was fixed at 6.6% p.a. / IGPM = General Index of Market Prices / SELIC = base interest rate set by the Brazilian Central Bank / IPCA = National Consumer Price Index
B54: 2. | C54: The company contracted hedging against foreign exchange exposure and interest rate for some debt.
B55: 3. | C55: These transactions were designated for hedge accounting (see Note 31 – Hedge Accounting).
B56: 4. | C56: For this loan, a hedging instrument was hired with the objective of swapping the fixed to floating rate, equivalent to 103.7% of CDI.
B57: 5. | C57: For this loan, a hedging instrument was hired with the objective of swapping the fixed to floating rate, equivalent to 103.9% of CDI.
B58: 6. | C58: For this loan, a hedging instrument was hired with the objective of swapping the fixed to floating rate, equivalent to 95.2% of CDI.
B59: 7. | C59: As provided in IAS 39, transaction costs incurred in obtaining financial resources were deducted from the value of the financial instrument, and as provided in Resolution CVM 604/09, loans were recognised at fair value. The amount to be appropriated to income in the future is as follows:
C61: Transaction costs | D61: Amount to be appropriated | E61: Profile
E62: up to 12 months | F62: from 12 to 24 | G62: from 24 to 36 | H62: from 36 to 48 | I62: from 48 to 60 | J62: > 60 months
C63: Banco do Brasil | D63: -2204.61471 | E63: -1261.95183 | F63: -548.4253 | G63: -325.99684 | H63: -68.24074 | I63: 0 | J63: 0
C64: Foreign loan | D64: -53064.31394 | E64: -13222.95206 | F64: -13312.28535 | G64: -13137.24012 | H64: -8269.02014 | I64: -4306.42157 | J64: -816.3947
C65: Debentures | D65: -282.9612865 | E65: -203.5150551 | F65: -79.44623134 | G65: 0 | H65: 0 | I65: 0 | J65: 0
C66: Notes | D66: -13551.28359 | E66: -1484.44465 | F66: -1567.12231 | G66: -1654.40975 | H66: -1746.56438 | I66: -1843.85785 | J66: -5254.88465
C67: Others | D67: -2160.413203 | E67: -1047.440788 | F67: -709.4657005 | G67: -309.7224969 | H67: -93.07740753 | I67: -0.70681 | J67: 0
C68: Total | D68: -71263.58673 | E68: -17220.30438 | F68: -16216.74489 | G68: -15427.36921 | H68: -10176.90267 | I68: -6150.98623 | J68: -6071.27935
C70: As provided in Resolution CVM 604/09 (November 19, 2009), the amortization of fair value adjustment is as follows:
C72: Fair value adjustment | D72: Amount to be amortized | E72: Profile
E73: up to 12 months | F73: from 12 to 24 | G73: from 24 to 36 | H73: from 36 to 48 | I73: from 48 to 60 | J73: > 60 months
C74: Foreign loan | D74: 30.5675653 | E74: 0 | F74: 0 | G74: 1.470995065 | H74: 3.229128353 | I74: 25.86744188 | J74: 0
C75: Debentures | D75: 1.752022891 | E75: 0 | F75: 0 | G75: 0 | H75: 0 | I75: 0 | J75: 1.752022891
C76: Total | D76: 32.31958819 | E76: 0 | F76: 0 | G76: 1.470995065 | H76: 3.229128353 | I76: 25.86744188 | J76: 1.752022891
C78: As provided in IAS 39, discount to the face value incurred in obtaining financial resources was deducted from the value of the financial instrument, and as provided in Resolution CVM 604/09, loans were recognised at fair value. The amount to be appropriated to income in the future is as follows:
C80: Discount to the face value | D80: Amount to be appropriated | E80: Profile
E81: up to 12 months | F81: from 12 to 24 | G81: from 24 to 36 | H81: from 36 to 48 | I81: from 48 to 60 | J81: > 60 months
C82: Notes | D82: -37.173 | E82: -4.063 | F82: -4.292 | G82: -4.534 | H82: -4.79 | I82: -5.059 | J82: -14.435
C83: Total | D83: -37.173 | E83: -4.063 | F83: -4.292 | G83: -4.534 | H83: -4.79 | I83: -5.059 | J83: -14.435

Sheet 2Q19
A7: Financing and debentures (R$ million) | D7: Index/ Currency ¹ | E7: Average weighted interest rate (% p.y.) ² | F7: Balance 7 Jun-19 | G7: Maturity | H7: Amortization Profile | N7: Transaction costs / discount to the face value / fair value adjustment 7
H8: up to 12 months | I8: from 12 to 24 | J8: from 24 to 36 | K8: from 36 to 48 | L8: from 48 to 60 | M8: > 60 months
B9: Foreing Currency
C11: Notes 3 | D11: US$ | E11: +5,3 | F11: 4000.024 | G11: 2026 to 2029 | H11: 28.91386283 | I11: -3.61207392 | J11: -3.61207392 | K11: -3.61207392 | L11: -3.61207392 | M11: 4015.393324 | N11: -29.83445946
C12: Foreign loan 4 | D12: US$ | E12: +3,9 | F12: 1025.693 | G12: 2021 to 2023 | H12: 11.72009628 | I12: 0 | J12: 229.932 | K12: 0 | L12: 708.957 | M12: 0 | N12: 75.084
C13: Financial institutions | D13: US$ + LIBOR | E13: +2,1 | F13: 612.585 | G13: 2019 to 2023 | H13: 78.747 | I13: 152.965 | J13: 114.723 | K13: 267.688 | L13: 0 | M13: 0 | N13: -1.538
C14: Foreign loan 5 | D14: US$ + LIBOR | E14: +0,9 | F14: 589.536 | G14: 2022 to 2023 | H14: 5.758 | I14: 0 | J14: 383.22 | K14: 0 | L14: 191.61 | M14: 0 | N14: 8.947
C15: Foreign loan | D15: US$ + LIBOR | E15: +2,0 | F15: 231.979 | G15: 2020 | H15: 232.163 | I15: 0 | J15: 0 | K15: 0 | L15: 0 | M15: 0 | N15: -0.184
C16: Financial institutions | D16: US$ | E16: +2,9 | F16: 125.724 | G16: 2019 to 2022 | H16: 49.241 | I16: 0 | J16: 76.482 | K16: 0 | L16: 0 | M16: 0 | N16: 0
C17: Financial institutions | D17: MXN | E17: +9,6 | F17: 20.192 | G17: 2019 | H17: 20.192 | I17: 0 | J17: 0 | K17: 0 | L17: 0 | M17: 0 | N17: 0
C18: Advances on Foreign Exchange Contracts (ACC) | D18: US$ | E18: 0 | F18: 0 | G18: 0 | H18: 0 | I18: 0 | J18: 0 | K18: 0 | L18: 0 | M18: 0 | N18: 0
C19: Financial institutions | D19: MX$ + TIIE | E19: +1,5 | F19: 18.056 | G19: 2019 | H19: 18.056 | I19: 0 | J19: 0 | K19: 0 | L19: 0 | M19: 0 | N19: 0
C20: Financial institutions | D20: US$ | E20: +6,5 | F20: 1.394 | G20: 2019 to 2020 | H20: 1.394 | I20: 0 | J20: 0 | K20: 0 | L20: 0 | M20: 0 | N20: 0
C21: BNDES | D21: US$ | E21: +3,6 | F21: 0.119 | G21: 10 days | H21: 0.119 | I21: 0 | J21: 0 | K21: 0 | L21: 0 | M21: 0 | N21: 0
C22: Advances on Foreign Exchange Contracts (ACE)
C24: Sub Total foreing currency | F24: 6625.303 | H24: 446.3039591 | I24: 149.3529261 | J24: 800.7449261 | K24: 264.0759261 | L24: 896.9549261 | M24: 4015.393324 | N24: 52.47454054
B26: Local Currency
C28: Debentures - CRA | D28: CDI | E28: 95.8 | F28: 2036.040494 | G28: 2022 to 2023 | H28: 17.08496644 | I28: 0 | J28: 660.139 | K28: 730.384 | L28: 660 | M28: 0 | N28: -31.56747241
C29: Debentures IPP | D29: CDI | E29: 105 | F29: 1923.198 | G29: 2020 to 2022 | H29: 259.6828587 | I29: 166.6833323 | J29: 750 | K29: 750 | L29: 0 | M29: 0 | N29: -3.16836628
C30: Debentures - 6th issuance | D30: CDI | E30: 105.3 | F30: 1757.910628 | G30: 2023-03-06 | H30: 35.67156825 | I30: 0 | J30: 0 | K30: 1725 | L30: 0 | M30: 0 | N30: -2.76094071
C31: Banco do Brasil floating rate | D31: CDI | E31: 110.9 | F31: 1013.923 | G31: 2020 to 2022 | H31: 342.08 | I31: 336.5 | J31: 336.5 | K31: 0 | L31: 0 | M31: 0 | N31: -1.157
C32: Debentures - CRA 6 | D32: IPCA | E32: +4,6 | F32: 902.8114224 | G32: 2024 to 2025 | H32: 15.91854849 | I32: 0 | J32: 0 | K32: 0 | L32: 380.7989394 | M32: 474.7988959 | N32: 31.29988638
C33: BNDES | D33: TJLP | E33: +2,4 | F33: 103.663 | G33: 2019 to 2023 | H33: 65.256 | I33: 26.085 | J33: 9.07 | K33: 3.26 | L33: 0.089 | M33: 0 | N33: -0.09825628235
C34: Working capital | D34: CDI | E34: 124 | F34: 51.99221032 | G34: 2019 | H34: 51.99221032 | I34: 0 | J34: 0 | K34: 0 | L34: 0 | M34: 0 | N34: 0
C35: FINEP | D35: TJLP | E35: +1,6 | F35: 47.184 | G35: 2019 to 2023 | H35: 11.712 | I35: 11.494 | J35: 11.494 | K35: 11.287 | L35: 1.196 | M35: 0 | N35: 0
C36: BNDES | D36: SELIC | E36: +2,3 | F36: 41.31206349 | G36: 2019 to 2023 | H36: 23.544 | I36: 14.384 | J36: 2.388 | K36: 1.006 | L36: 0 | M36: 0 | N36: -0.01122251844
C37: Research and projects financing (FINEP) | D37: R$ | E37: +4,0 | F37: 16.031 | G37: 2019 to 2021 | H37: 6.433 | I37: 6.399 | J37: 3.199 | K37: 0 | L37: 0 | M37: 0 | N37: 0
C38: Banco do Nordeste do Brasil | D38: R$ | E38: +8,5 | F38: 12.904 | G38: 2019 to 2021 | H38: 5.767 | I38: 5.709 | J38: 1.427 | K38: 0 | L38: 0 | M38: 0 | N38: 0
C39: BNDES | D39: R$ | E39: +6,5 | F39: 8.560072998 | G39: 2019 to 2022 | H39: 6.952 | I39: 1.579 | J39: 0.03 | K39: 0 | L39: 0 | M39: 0 | N39: -0.001
C40: Agency for Financing Machinery and Equipment (FINAME) | D40: TJLP | E40: +5,7 | F40: 0.027 | G40: 2019 to 2022 | H40: 0.01 | I40: 0.01 | J40: 0.006 | K40: 0 | L40: 0 | M40: 0 | N40: 0
C42: Sub Total local currency | F42: 7915.556068 | H42: 842.1051522 | I42: 568.8443323 | J42: 1774.254 | K42: 3220.938 | L42: 1042.084939 | M42: 474.7998959 | N42: -7.463371822
C44: Unrealized losses on swaps transactions | F44: 29.728 | H44: 25.71 | I44: 0 | J44: 0 | K44: 0 | L44: 0 | M44: 4.019
B46: Total | F46: 14570.58707 | H46: 1314.119111 | I46: 718.1972584 | J46: 2574.998926 | K46: 3485.013926 | L46: 1939.039865 | M46: 4494.21222 | N46: 45.01116871
C48: Transaction costs, discount to the face value and fair value adjustment 7 | F48: 0 | H48: -17.95633529 | I48: -17.08001184 | J48: -3.276274914 | K48: -10.13610669 | L48: 85.86908084 | M48: 7.594904669 | N48: 45.01116871
F49: 0
B50: Total | F50: 14570.58707 | H50: 1296.158214 | I50: 701.1127841 | J50: 2571.72612 | K50: 3474.874165 | L50: 2024.909551 | M50: 4501.805972
B52: 1. | C52: Libor = London Interbank Offered Rate / MX$ = Mexican Peso / TIIE = Mexican Interbank Interest Rate Even / CDI = interbank certificate of deposit rate / TJLP = basic financing cost of BNDES (set by National Monetary Council). On June 28, 2019, TJLP was fixed at 6.3% p.a. / SELIC = base interest rate set by the Brazilian Central Bank / IPCA = National Consumer Price Index
B53: 2. | C53: The company contracted hedging against foreign exchange exposure and interest rate for some debt.
B54: 3. | C54: These transactions were designated for hedge accounting (see Note 34 – Hedge Accounting).
B55: 4. | C55: For this loan, a hedging instrument was hired with the objective of swapping the fixed to floating rate, equivalent to 104.0% of CDI.
B56: 5. | C56: For this loan, a hedging instrument was hired with the objective of swapping the fixed to floating rate, equivalent to 105.3% of CDI.
B57: 6. | C57: For this loan, a hedging instrument was hired with the objective of swapping the fixed to floating rate, equivalent to 95.8% of CDI.
B58: 7. | C58: As provided in IAS 39, transaction costs incurred in obtaining financial resources were deducted from the value of the financial instrument, and as provided in Resolution CVM 604/09, loans were recognised at fair value. The amount to be appropriated to income in the future is as follows:
C60: Transaction costs | D60: Amount to be appropriated | E60: Profile
E61: up to 12 months | F61: from 12 to 24 | G61: from 24 to 36 | H61: from 36 to 48 | I61: from 48 to 60 | J61: > 60 months
C62: Banco do Brasil | D62: -1156.68952 | E62: -587.41199 | F62: -385.17576 | G62: -184.10177 | H62: 0 | I62: 0 | J62: 0
C63: Foreign loan | D63: -183.8511746 | E63: -183.8511746 | F63: 0 | G63: 0 | H63: 0 | I63: 0 | J63: 0
C64: Debentures | D64: -47268.2306 | E64: -13160.34761 | F64: -12635.01661 | G64: -11164.41719 | H64: -6565.69204 | I64: -3223.40584 | J64: -519.35131
C65: Notes | D65: -29834.45946 | E65: -3426.860433 | F65: -3419.645294 | G65: -3421.791607 | H65: -3423.939559 | I65: -3435.47855 | J65: -12706.74402
C66: Others | D66: -1833.393863 | E66: -703.3390553 | F66: -585.4508093 | G66: -389.6481176 | H66: -154.9211069 | I66: -0.03477395336 | J66: 0
C67: Total | D67: -80276.62462 | E67: -18061.81026 | F67: -17025.28847 | G67: -15159.95868 | H67: -10144.55271 | I67: -6658.919163 | J67: -13226.09533
C69: As provided in Resolution CVM 604/09 (November 19, 2009), the amortization of fair value adjustment is as follows:
C71: Fair value adjustment | D71: Amount to be amortized | E71: Profile
E72: up to 12 months | F72: from 12 to 24 | G72: from 24 to 36 | H72: from 36 to 48 | I72: from 48 to 60 | J72: > 60 months
C73: Foreign loan | D73: 84.03148678 | E73: 0 | F73: 0 | G73: 11.86873025 | H73: 0 | I73: 72.16275652 | J73: 0
C74: Debentures | D74: 20.80829447 | E74: 0 | F74: 0 | G74: 0 | H74: 0 | I74: 0 | J74: 20.80829447
C75: Total | D75: 104.8397813 | E75: 0 | F75: 0 | G75: 11.86873025 | H75: 0 | I75: 72.16275652 | J75: 20.80829447
C77: As provided in IAS 39, discount to the face value incurred in obtaining financial resources was deducted from the value of the financial instrument, and as provided in Resolution CVM 604/09, loans were recognised at fair value. The amount to be appropriated to income in the future is as follows:
C79: Discount to the face value | D79: Amount to be appropriated | E79: Profile
E80: up to 12 months | F80: from 12 to 24 | G80: from 24 to 36 | H80: from 36 to 48 | I80: from 48 to 60 | J80: > 60 months
C81: Notes | D81: -26.48854366 | E81: -3.6120755 | F81: -3.61207392 | G81: -3.61207392 | H81: -3.61207392 | I81: -3.61207392 | J81: -8.42817248
C82: Total | D82: -26.48854366 | E82: -3.6120755 | F82: -3.61207392 | G82: -3.61207392 | H82: -3.61207392 | I82: -3.61207392 | J82: -8.42817248

Sheet 3Q19
A7: Financing and debentures (R$ million) | D7: Index/ Currency ¹ | E7: Average weighted interest rate (% p.y.) ² | F7: Balance 7 Sep-19 | G7: Maturity | H7: Amortization Profile | N7: Transaction costs / discount to the face value / fair value adjustment 7
H8: up to 12 months | I8: from 12 to 24 | J8: from 24 to 36 | K8: from 36 to 48 | L8: from 48 to 60 | M8: > 60 months
B9: Foreing Currency
C11: Notes 3 | D11: US$ | E11: +5,3 | F11: 4410.808 | G11: 2026 a 2029 | H11: 92.73629949 | I11: 0 | J11: 0 | K11: 0 | L11: 0 | M11: 4372.632493 | N11: -54.56044294
C12: Foreign loan 4 | D12: US$ | E12: +3,9 | F12: 1101.316 | G12: 2021 a 2023 | H12: 6.820084646 | I12: 249.864 | J12: 0 | K12: 520.55 | L12: 249.864 | M12: 0 | N12: 74.218
C13: Foreign loan 5 | D13: US$ + LIBOR | E13: +0,9 | F13: 632.252 | G13: 2022 a 2023 | H13: 1.635 | I13: 0 | J13: 416.44 | K13: 208.22 | L13: 0 | M13: 0 | N13: 5.957
C14: Financial institutions | D14: US$ + LIBOR | E14: +2,0 | F14: 623.447 | G14: 2020 a 2023 | H14: 168.102 | I14: 41.526 | J14: 124.579 | K14: 290.685 | L14: 0 | M14: 0 | N14: -1.446
C15: Foreign loan | D15: US$ + LIBOR | E15: +2,0 | F15: 252.015 | G15: 2020 | H15: 252.164 | I15: 0 | J15: 0 | K15: 0 | L15: 0 | M15: 0 | N15: -0.148
C16: Financial institutions | D16: US$ | E16: +2,8 | F16: 136.79 | G16: 2020 a 2022 | H16: 53.737 | I16: 0 | J16: 83.053 | K16: 0 | L16: 0 | M16: 0 | N16: -
C17: Financial institutions | D17: MXN | E17: +9,4 | F17: 40.411 | G17: 2019 | H17: 40.411 | I17: 0 | J17: 0 | K17: 0 | L17: 0 | M17: 0 | N17: -
C18: Advances on Foreign Exchange Contracts (ACC) | D18: US$ | E18: 0 | F18: 0 | G18: 0 | H18: 0 | I18: 0 | J18: 0 | K18: 0 | L18: 0 | M18: 0 | N18: -
C19: Financial institutions | D19: MX$ + TIIE | E19: +1,5 | F19: 0 | G19: 2019 | H19: 0 | I19: 0 | J19: 0 | K19: 0 | L19: 0 | M19: 0 | N19: -
C20: BNDES | D20: US$ | E20: +6,5 | F20: 0.857 | G20: 2019 a 2020 | H20: 0.857 | I20: 0 | J20: 0 | K20: 0 | L20: 0 | M20: 0 | N20: -
C21: BNDES | D21: US$ | E21: +0 | F21: 0 | G21: 10 dias | H21: 0 | I21: 0 | J21: 0 | K21: 0 | L21: 0 | M21: 0 | N21: -
C22: Advances on Foreign Exchange Contracts (ACE)
C24: Sub Total foreing currency | F24: 7197.896 | H24: 616.4623841 | I24: 291.39 | J24: 624.072 | K24: 1019.455 | L24: 249.864 | M24: 4372.632493 | N24: 24.02055706
B26: Local Currency
C28: Debentures - CRA | D28: CDI | E28: 95.8 | F28: 2068.456859 | G28: 2022 a 2023 | H28: 47.39082799 | I28: 0 | J28: 660.139 | K28: 730.384 | L28: 660 | M28: 0 | N28: -29.45696928
C29: Debentures IPP | D29: CDI | E29: 105 | F29: 1854.238 | G29: 2020 a 2022 | H29: 190.1857574 | I29: 916.6833323 | J29: 750 | K29: 0 | L29: 0 | M29: 0 | N29: -2.63141367
C30: Debentures - 6th issuance Ultrapar | D30: CDI | E30: 105.3 | F30: 1729.223529 | G30: 2023-03-06 | H30: 6.79575825 | I30: 0 | J30: 0 | K30: 1725 | L30: 0 | M30: 0 | N30: -2.57222914
C31: Banco do Brasil floating rate | D31: CDI | E31: 110.9 | F31: 1013.989 | G31: 2020 a 2022 | H31: 341.994 | I31: 336.5 | J31: 336.5 | K31: 0 | L31: 0 | M31: 0 | N31: -1.005
C32: Debentures - CRA 6 | D32: IPCA | E32: +4,6 | F32: 934.7371341 | G32: 2024 a 2025 | H32: 26.08977185 | I32: 0 | J32: 0 | K32: 0 | L32: 381.9806851 | M32: 476.2299512 | N32: 50.43672598
C33: BNDES | D33: TJLP | E33: +2,3 | F33: 81.937 | G33: 2019 a 2023 | H33: 52.476 | I33: 21.23 | J33: 6.353 | K33: 2.108 | L33: 0 | M33: 0 | N33: -0.2304009268
C34: Working capital | D34: CDI | E34: 124 | F34: 52.99002542 | G34: 2019 | H34: 52.99002542 | I34: 0 | J34: 0 | K34: 0 | L34: 0 | M34: 0 | N34: -
C35: FINEP | D35: TJLP | E35: +1,6 | F35: 44.226 | G35: 2019 a 2023 | H35: 11.628 | I35: 11.494 | J35: 11.494 | K35: 9.52 | L35: 0.089 | M35: 0 | N35: -
C36: BNDES | D36: SELIC | E36: +2,3 | F36: 35.98783024 | G36: 2019 a 2023 | H36: 23.912 | I36: 9.501 | J36: 2.016 | K36: 0.566 | L36: 0 | M36: 0 | N36: -0.007606954261
C37: Research and projects financing (FINEP) | D37: R$ | E37: +4,0 | F37: 14.42 | G37: 2019 a 2021 | H37: 6.422 | I37: 6.399 | J37: 1.6 | K37: 0 | L37: 0 | M37: 0 | N37: -
C38: Banco do Nordeste do Brasil | D38: R$ | E38: +8,5 | F38: 11.47 | G38: 2019 a 2021 | H38: 5.761 | I38: 5.709 | J38: 0 | K38: 0 | L38: 0 | M38: 0 | N38: -
C39: BNDES | D39: R$ | E39: +6,9 | F39: 6.158704397 | G39: 2019 a 2022 | H39: 5.241 | I39: 0.912 | J39: 0.007 | K39: 0 | L39: 0 | M39: 0 | N39: -
C40: Agency for Financing Machinery and Equipment (FINAME) | D40: TJLP | E40: +5,7 | F40: 0.024 | G40: 2019 a 2022 | H40: 0.01 | I40: 0.01 | J40: 0.003 | K40: 0 | L40: 0 | M40: 0 | N40: -
C45: Sub Total local currency | F45: 7847.858 | H45: 770.896141 | I45: 1308.438332 | J45: 1768.112 | K45: 2467.578 | L45: 1042.069685 | M45: 476.2299512 | N45: 14.53310601
C47: Unrealized losses on swaps transactions | F47: 23.476 | H47: 23.476 | I47: 0 | J47: 0 | K47: 0 | L47: 0 | M47: 0
B49: Total | F49: 15069.231 | H49: 1410.834525 | I49: 1599.828332 | J49: 2392.184 | K49: 3487.033 | L49: 1291.933685 | M49: 4848.862444 | N49: 38.55366307
C51: Transaction costs, discount to the face value and fair value adjustment 7 | F51: - | H51: -21.48232467 | I51: -20.30628967 | J51: -10.06801121 | K51: -6.569465507 | L51: 85.60714393 | M51: 11.37261284 | N51: 38.55366307
F52: 0
B53: Total | F53: 15069.231 | H53: 1389.352292 | I53: 1579.522275 | J53: 2382.116302 | K53: 3480.463939 | L53: 1377.541202 | M53: 4860.235057
B55: 1. | C55: Libor = London Interbank Offered Rate / Bs$ = Bolivar / MX$ = Mexican Peso / TIIE = Mexican Interbank Interest Rate Even / CDI = interbank certificate of deposit rate / TJLP = Long term interest rate / IGPM = General Index of Market Prices / SELIC = base interest rate set by the Brazilian Central Bank / IPCA = National Consumer Price Index
B56: 2. | C56: The company contracted hedging against foreign exchange exposure and interest rate for some debt.
B57: 3. | C57: These transactions were designated for hedge accounting (see Note 34 – Hedge Accounting).
B58: 4. | C58: For this loan, a hedging instrument was hired with the objective of swapping the fixed to floating rate, equivalent to 104.0% of CDI.
B59: 5. | C59: For this loan, a hedging instrument was hired with the objective of swapping the fixed to floating rate, equivalent to 105.0% of CDI.
B60: 6. | C60: For this loan, a hedging instrument was hired with the objective of swapping the fixed to floating rate, equivalent to 95.8% of CDI.
B61: 7. | C61: As provided in IAS 39, transaction costs incurred in obtaining financial resources were deducted from the value of the financial instrument, and as provided in Resolution CVM 604/09, loans were recognised at fair value. The amount to be appropriated to income in the future is as follows:
C63: Transaction costs | D63: Amount to be appropriated | E63: Profile
E64: up to 12 months | F64: from 12 to 24 | G64: from 24 to 36 | H64: from 36 to 48 | I64: from 48 to 60 | J64: > 60 months
C65: Banco do Brasil | D65: -1.00478349 | E65: -0.53690042 | F65: -0.33454019 | G65: -0.13334288 | H65: 0 | I65: 0 | J65: 0
C66: Foreign loan | D66: -0.1484615263 | E66: -0.1484615263 | F66: 0 | G66: 0 | H66: 0 | I66: 0 | J66: 0
C67: Debentures | D67: -44.05474287 | E67: -13.03724619 | F67: -12.45886881 | G67: -10.45168631 | H67: -5.6844886 | I67: -2.11337745 | J67: -0.30907551
C68: Notes | D68: -28.97491776 | E68: -3.427573226 | F68: -3.420356492 | G68: -3.422503282 | H68: -3.424651678 | I68: -3.436193102 | J68: -11.84363998
C69: Others | D69: -1.684357868 | E69: -0.72006781 | F69: -0.4814502587 | G69: -0.4145219351 | H69: -0.06831786464 | I69: 0 | J69: 0
C70: Total | D70: -75.86726351 | E70: -17.87024917 | F70: -16.69521575 | G70: -14.42205441 | H70: -9.177458143 | I70: -5.549570552 | J70: -12.15271549
C72: As provided in Resolution CVM 604/09 (November 19, 2009), the amortization of fair value adjustment is as follows:
C74: Fair value adjustment | D74: Amount to be amortized | E74: Profile
E75: up to 12 months | F75: from 12 to 24 | G75: from 24 to 36 | H75: from 36 to 48 | I75: from 48 to 60 | J75: > 60 months
C76: Foreign loan | D76: 80.17459764 | E76: 0 | F76: 0 | G76: 7.966117116 | H76: 6.220066556 | I76: 65.98841396 | J76: 0
C77: Debêntures | D77: 59.83085676 | E77: 0 | F77: 0 | G77: 0 | H77: 0 | I77: 28.78037443 | J77: 31.05048233
C78: Total | D78: 140.0054544 | E78: 0 | F78: 0 | G78: 7.966117116 | H78: 6.220066556 | I78: 94.7687884 | J78: 31.05048233
C80: As provided in IAS 39, discount to the face value incurred in obtaining financial resources was deducted from the value of the financial instrument, and as provided in Resolution CVM 604/09, loans were recognised at fair value. The amount to be appropriated to income in the future is as follows:
C82: Discount to the face value | D82: Amount to be appropriated | E82: Profile
E83: up to 12 months | F83: from 12 to 24 | G83: from 24 to 36 | H83: from 36 to 48 | I83: from 48 to 60 | J83: > 60 months
C84: Notes | D84: -25.58552518 | E84: -3.6120755 | F84: -3.61207392 | G84: -3.61207392 | H84: -3.61207392 | I84: -3.61207392 | J84: -7.525154
C85: Total | D85: -25.58552518 | E85: -3.6120755 | F85: -3.61207392 | G85: -3.61207392 | H85: -3.61207392 | I85: -3.61207392 | J85: -7.525154

Sheet 4Q19
A7: Financing and debentures (R$ million) | D7: Index/ Currency ¹ | E7: Average weighted interest rate (% p.y.) ² | F7: Balance 8 Dec-19 | G7: Maturity | H7: Amortization Profile | N7: Transaction costs / discount to the face value / fair value adjustment 8
H8: up to 12 months | I8: from 12 to 24 | J8: from 24 to 36 | K8: from 36 to 48 | L8: from 48 to 60 | M8: > 60 months
B9: Foreing Currency
C11: Notes 3 | D11: US$ | E11: +5,3 | F11: 4213.661755 | G11: 2026 a 2029 | H11: 34.21071438 | I11: 0 | J11: 0 | K11: 0 | L11: 0 | M11: 4232.247092 | N11: -52.79605158
C12: Foreign loan 4 | D12: US$ | E12: +3,9 | F12: 1057.40679 | G12: 2021 a 2023 | H12: 12.67035817 | I12: 241.842 | J12: 0 | K12: 745.6795 | L12: 0 | M12: 0 | N12: 57.21493202
C13: Foreign loan 5 | D13: US$ + LIBOR | E13: +0,9 | F13: 608.6851107 | G13: 2022 a 2023 | H13: 1.431098297 | I13: 0 | J13: 403.07 | K13: 201.535 | L13: 0 | M13: 0 | N13: 2.649012404
C14: Financial institutions | D14: US$ + LIBOR | E14: +2,0 | F14: 604.7413409 | G14: 2020 a 2023 | H14: 162.915509 | I14: 40.2743418 | J14: 281.9203926 | K14: 120.8230254 | L14: 0 | M14: 0 | N14: -1.191927865
C15: Foreign loan | D15: US$ + LIBOR | E15: +2,0 | F15: 243.8366905 | G15: 2020 | H15: 243.9306962 | I15: 0 | J15: 0 | K15: 0 | L15: 0 | M15: 0 | N15: -0.0940057186
C16: Financial institutions | D16: US$ | E16: +2,8 | F16: 132.4167688 | G16: 2020 a 2022 | H16: 51.86808517 | I16: 0 | J16: 80.5486836 | K16: 0 | L16: 0 | M16: 0 | N16: -
C17: Financial institutions | D17: MXN | E17: +8,9 | F17: 41.16356593 | G17: 2020 | H17: 41.16356593 | I17: 0 | J17: 0 | K17: 0 | L17: 0 | M17: 0 | N17: -
C18: Advances on Foreign Exchange Contracts (ACC) | D18: US$ | E18: 0 | F18: 0 | G18: 0 | H18: 0 | I18: 0 | J18: 0 | K18: 0 | L18: 0 | M18: 0 | N18: -
C19: Financial institutions | D19: MX$ + TIIE | E19: +1,5 | F19: 0 | G19: 2019 | H19: 0 | I19: 0 | J19: 0 | K19: 0 | L19: 0 | M19: 0 | N19: -
C20: BNDES | D20: US$ | E20: +7,0 | F20: 0.207754508 | G20: 2020 | H20: 0.207754508 | I20: 0 | J20: 0 | K20: 0 | L20: 0 | M20: 0 | N20: -
C21: BNDES | D21: MX$ + TIIE | E21: +1,5 | F21: 0 | G21: 2019 | H21: 0 | I21: 0 | J21: 0 | K21: 0 | L21: 0 | M21: 0 | N21: -
C22: Advances on Foreign Exchange Contracts (ACE)
C24: Sub Total foreing currency | F24: 6902.119777 | H24: 548.3977817 | I24: 282.1163418 | J24: 765.5390762 | K24: 1068.037525 | L24: 0 | M24: 4232.247092 | N24: 5.781959257
B26: Local Currency
C28: Debentures - CRA | D28: CDI | E28: 95.8 | F28: 2036.646506 | G28: 2022 a 2023 | H28: 13.34587799 | I28: 0 | J28: 1390.523 | K28: 660 | L28: 0 | M28: 0 | N28: -27.22237199
C29: Debentures IPP | D29: CDI | E29: 105 | F29: 1868.611566 | G29: 2020 a 2022 | H29: 204.1386152 | I29: 916.6833323 | J29: 750 | K29: 0 | L29: 0 | M29: 0 | N29: -2.21038115
C30: Debentures - 6th issuance Ultrapar | D30: CDI | E30: 105.3 | F30: 1752.080124 | G30: 2023-03-06 | H30: 29.463621 | I30: 0 | J30: 0 | K30: 1725 | L30: 0 | M30: 0 | N30: -2.38349688
C31: Debentures - CRA 6 | D31: IPCA | E31: +4,6 | F31: 941.6136165 | G31: 2024 a 2025 | H31: 15.02646694 | I31: 0 | J31: 0 | K31: 0 | L31: 597.9412354 | M31: 266.3686169 | N31: 62.27729721
C32: Banco do Brasil floating rate | D32: CDI | E32: 110.9 | F32: 611.2756237 | G32: 2020 a 2022 | H32: 205.7127817 | I32: 203.1666667 | J32: 203.1666667 | K32: 0 | L32: 0 | M32: 0 | N32: -0.77049126
C33: Debentures - CRA 7 | D33: R$ | E33: +6,5 | F33: 89.27778094 | G33: 2024 | H33: 0.65117912 | I33: 0 | J33: 0 | K33: 0 | L33: 90 | M33: 0 | N33: -1.373398175
C34: BNDES | D34: TJLP | E34: +2,3 | F34: 62.57819831 | G34: 2020 a 2023 | H34: 41.07630176 | I34: 15.56975205 | J34: 5.187816765 | K34: 0.9282591484 | L34: 0 | M34: 0 | N34: -0.1839314193
C35: Capital de giro | D35: CDI | E35: 124 | F35: 0 | G35: 2019 | H35: 0 | I35: 0 | J35: 0 | K35: 0 | L35: 0 | M35: 0 | N35: -
C36: FINEP | D36: TJLP | E36: +1,6 | F36: 41.3454804 | G36: 2020 a 2023 | H36: 11.6206404 | I36: 11.49434326 | J36: 11.46471857 | K36: 6.765778166 | L36: 0 | M36: 0 | N36: -
C37: BNDES | D37: SELIC | E37: +2,3 | F37: 30.39190553 | G37: 2020 a 2023 | H37: 23.43906296 | I37: 4.869723929 | J37: 1.944589027 | K37: 0.1432127032 | L37: 0 | M37: 0 | N37: -0.004683088672
C38: Research and projects financing (FINEP) | D38: R$ | E38: +4,0 | F38: 12.81954848 | G38: 2020 a 2021 | H38: 6.420939819 | I38: 6.398608657 | J38: 0 | K38: 0 | L38: 0 | M38: 0 | N38: -
C39: Banco do Nordeste do Brasil | D39: R$ | E39: +8,5 | F39: 10.0392397 | G39: 2020 a 2021 | H39: 5.75716336 | I39: 4.28207634 | J39: 0 | K39: 0 | L39: 0 | M39: 0 | N39: -
C40: BNDES | D40: R$ | E40: +7,6 | F40: 3.912761591 | G40: 2020 a 2022 | H40: 3.619658574 | I40: 0.2916572851 | J40: 0.001457231481 | K40: 0 | L40: 0 | M40: 0 | N40: -1.15e-05
C41: Agency for Financing Machinery and Equipment (FINAME) | D41: TJLP | E41: +5,7 | F41: 0.02145091071 | G41: 2020 a 2022 | H41: 0.01034595415 | I41: 0.01025072913 | J41: 0.0008542274273 | K41: 0 | L41: 0 | M41: 0 | N41: -
C45: Sub Total local currency | F45: 7460.613803 | H45: 560.2826548 | I45: 1162.766411 | J45: 2362.289102 | K45: 2392.83725 | L45: 687.9412354 | M45: 266.3686169 | N45: 28.12853175
C47: Unrealized losses on swaps transactions | F47: 29.98485826 | H47: 29.98485826 | I47: 0 | J47: 0 | K47: 0 | L47: 0 | M47: 0 | N47: -
B49: Total | F49: 14392.71844 | H49: 1138.665295 | I49: 1444.882753 | J49: 3127.828179 | K49: 3460.874775 | L49: 687.9412354 | M49: 4498.615709 | N49: 33.91049101
C51: Transaction costs, discount to the face value and fair value adjustment 8 | F51: 14392.71844 | H51: -21.2272287 | I51: -20.10806778 | J51: -12.33332043 | K51: -8.887099873 | L51: 77.3219813 | M51: 19.14422649 | N51: 33.91049101
F52: 0
B53: Total | F53: 14392.71844 | H53: 1117.438066 | I53: 1424.774685 | J53: 3115.494858 | K53: 3451.987676 | L53: 765.2632167 | M53: 4517.759935
B56: 2. | C56: The company contracted hedging against foreign exchange exposure and interest rate for some debt.
B57: 3. | C57: These transactions were designated for hedge accounting.
B58: 4. | C58: For this loan, a hedging instrument was hired with the objective of swapping the fixed to floating rate, equivalent to 104.0% of CDI.
B59: 5. | C59: For this loan, a hedging instrument was hired with the objective of swapping the fixed to floating rate, equivalent to 105.0% of CDI.
B60: 6. | C60: For this loan, a hedging instrument was hired with the objective of swapping the fixed to floating rate, equivalent to 95.8% of CDI
B61: 7. | C61: For this loan, a hedging instrument was hired with the objective of swapping the fixed to floating rate, equivalent to 99.9% of CDI
B62: 8. | C62: As provided in IAS 39, transaction costs incurred in obtaining financial resources were deducted from the value of the financial instrument, and as provided in Resolution CVM 604/09, loans were recognised at fair value. The amount to be appropriated to income in the future is as follows:
C64: Transaction costs | D64: Amount to be appropriated | E64: Profile
E65: up to 12 months | F65: from 12 to 24 | G65: from 24 to 36 | H65: from 36 to 48 | I65: from 48 to 60 | J65: > 60 months
C66: Banco do Brasil | D66: -0.77049126 | E66: -0.43883999 | F66: -0.25649329 | G66: -0.07515798 | H66: 0 | I66: 0 | J66: 0
C67: Foreign loan | D67: -0.0940057186 | E67: -0.0940057186 | F67: 0 | G67: 0 | H67: 0 | I67: 0 | J67: 0
C68: Debentures | D68: -41.40553095 | E68: -13.05756788 | F68: -12.40293042 | G68: -9.27376543 | H68: -5.31813194 | I68: -1.13880941 | J68: -0.21432587
C69: Notes | D69: -28.11354488 | E69: -3.428115345 | F69: -3.42089738 | G69: -3.423044723 | H69: -3.425193443 | I69: -3.436736738 | J69: -10.97955725
C70: Others | D70: -1.380553873 | E70: -0.5966242688 | F70: -0.4156727672 | G70: -0.3667180286 | H70: -0.001538808359 | I70: 0 | J70: 0
C71: Total | D71: -71.76412668 | E71: -17.6151532 | F71: -16.49599386 | G71: -13.13868616 | H71: -8.744864192 | I71: -4.575546148 | J71: -11.19388312
C73: As provided in Resolution CVM 604/09 (November 19, 2009), the amortization of fair value adjustment is as follows:
C75: Fair value adjustment | D75: Amount to be amortized | E75: Profile
E76: up to 12 months | F76: from 12 to 24 | G76: from 24 to 36 | H76: from 36 to 48 | I76: from 48 to 60 | J76: > 60 months
C77: Foreign loan | D77: 59.86394442 | E77: 0 | F77: 0 | G77: 4.417439656 | H77: 3.469838238 | I77: 51.97666653 | J77: 0
C78: Debêntures | D78: 70.49317997 | E78: 0 | F78: 0 | G78: 0 | H78: 0 | I78: 33.53293484 | J78: 36.96024513
C79: Total | D79: 130.3571244 | E79: 0 | F79: 0 | G79: 4.417439656 | H79: 3.469838238 | I79: 85.50960136 | J79: 36.96024513
C81: As provided in IAS 39, discount to the face value incurred in obtaining financial resources was deducted from the value of the financial instrument, and as provided in Resolution CVM 604/09, loans were recognised at fair value. The amount to be appropriated to income in the future is as follows:
C83: Discount to the face value | D83: Amount to be appropriated | E83: Profile
E84: up to 12 months | F84: from 12 to 24 | G84: from 24 to 36 | H84: from 36 to 48 | I84: from 48 to 60 | J84: > 60 months
C85: Notes | D85: -24.6825067 | E85: -3.6120755 | F85: -3.61207392 | G85: -3.61207392 | H85: -3.61207392 | I85: -3.61207392 | J85: -6.62213552
C86: Total | D86: -24.6825067 | E86: -3.6120755 | F86: -3.61207392 | G86: -3.61207392 | H86: -3.61207392 | I86: -3.61207392 | J86: -6.62213552

Sheet 1Q20
A7: Financing and debentures (R$ million) | D7: Index/ Currency ¹ | E7: Average weighted interest rate (% p.y.) ² | F7: Balance 9 Mar-20 | G7: Maturity | H7: Amortization Profile | N7: Transaction costs / discount to the face value / fair value adjustment 9
H8: up to 12 months | I8: from 12 to 24 | J8: from 24 to 36 | K8: from 36 to 48 | L8: from 48 to 60 | M8: > 60 months
B9: Foreing Currency
C11: Notes 3 | D11: US$ | E11: +5,3 | F11: 5523.378654 | G11: 2026 to 2029 | H11: 115.7689464 | I11: 0 | J11: 0 | K11: 0 | L11: 0 | M11: 5458.650596 | N11: -51.04088884
C12: Foreign loan 4 | D12: US$ | E12: +3,9 | F12: 1405.012209 | G12: 2021 to 2023 | H12: 8.691165657 | I12: 311.922 | J12: 0 | K12: 961.7595 | L12: 0 | M12: 0 | N12: 122.6395431
C13: Foreign loan 5 | D13: US$ + LIBOR | E13: +0,9 | F13: 786.4204865 | G13: 2022 to 2023 | H13: 1.768536662 | I13: 0 | J13: 519.87 | K13: 259.935 | L13: 0 | M13: 0 | N13: 4.846949828
C14: Financial institutions | D14: US$ + LIBOR | E14: +1,9 | F14: 754.3976916 | G14: 2020 to 2023 | H14: 217.3075265 | I14: 161.5215303 | J14: 376.8835707 | K14: 0 | L14: 0 | M14: 0 | N14: -1.314935938
C15: Foreign loan 6 | D15: US$ + LIBOR | E15: +2,0 | F15: 314.4980148 | G15: 2020 | H15: 314.5558565 | I15: 0 | J15: 0 | K15: 0 | L15: 0 | M15: 0 | N15: -0.05784177594
C16: Financial institutions | D16: US$ | E16: +2,8 | F16: 170.1661097 | G16: 2020 to 2022 | H16: 62.48508946 | I16: 0 | J16: 107.6810202 | K16: 0 | L16: 0 | M16: 0 | N16: -
C17: Financial institutions | D17: MXN | E17: +8,8 | F17: 40.49828845 | G17: 2020 | H17: 40.49828845 | I17: 0 | J17: 0 | K17: 0 | L17: 0 | M17: 0 | N17: -
C18: Advances on Foreign Exchange Contracts (ACC) | D18: US$ | E18: 0 | F18: 0 | H18: 0 | I18: 0 | J18: 0 | K18: 0 | L18: 0 | M18: 0 | N18: -
C19: Financial institutions | D19: MX$ + TIIE | E19: +1,5 | F19: 0 | G19: 2019 | H19: 0 | I19: 0 | J19: 0 | K19: 0 | L19: 0 | M19: 0 | N19: -
C20: BNDES | D20: US$ | E20: +7,0 | F20: 0 | G20: 2020 | H20: 0 | I20: 0 | J20: 0 | K20: 0 | L20: 0 | M20: 0 | N20: -
C21: BNDES | D21: US$ | E21: +0 | F21: 0 | G21: 10 dias | H21: 0 | I21: 0 | J21: 0 | K21: 0 | L21: 0 | M21: 0 | N21: -
C22: Advances on Foreign Exchange Contracts (ACE)
C24: Sub Total foreing currency | F24: 8994.371453 | H24: 761.0754096 | I24: 473.4435303 | J24: 1004.434591 | K24: 1221.6945 | L24: 0 | M24: 5458.650596 | N24: 75.07282632
B26: Local Currency
C28: Debentures - CRA | D28: CDI | E28: 95.8 | F28: 2058.958351 | G28: 2022 to 2023 | H28: 33.44899578 | I28: 0 | J28: 1390.523 | K28: 660 | L28: 0 | M28: 0 | N28: -25.01364491
C29: Debentures - Ipiranga | D29: CDI | E29: 105 | F29: 1888.971497 | G29: 2020 to 2022 | H29: 224.0818588 | I29: 916.6833323 | J29: 750 | K29: 0 | L29: 0 | M29: 0 | N29: -1.79369438
C30: Debentures - Ultrapar | D30: CDI | E30: 105.3 | F30: 1727.806222 | G30: 2023-03-06 | H30: 5.0030175 | I30: 0 | J30: 1725 | K30: 0 | L30: 0 | M30: 0 | N30: -2.19679573
C31: Banco do Brasil floating rate | D31: CDI | E31: 110.9 | F31: 611.165519 | G31: 2020 to 2022 | H31: 205.4671828 | I31: 203.1666667 | J31: 203.1666667 | K31: 0 | L31: 0 | M31: 0 | N31: -0.63499713
C32: Debentures - CRA 7 | D32: IPCA | E32: +4,6 | F32: 964.5266868 | G32: 2024 to 2025 | H32: 25.1302962 | I32: 0 | J32: 0 | K32: 0 | L32: 604.1062607 | M32: 273.0618606 | N32: 62.22826926
C33: BNDES | D33: TJLP | E33: +2,2 | F33: 49.34199685 | G33: 2020 to 2023 | H33: 33.03732193 | I33: 11.71341129 | J33: 4.378561181 | K33: 0.3567132222 | L33: 0 | M33: 0 | N33: -0.1440107859
C34: Working capital | D34: CDI | E34: +3,5 | F34: 230.2057489 | G34: 2021-03-31 | H34: 230.2057489 | I34: 0 | J34: 0 | K34: 0 | L34: 0 | M34: 0 | N34: -
C35: Research and projects financing (FINEP) | D35: TJLP | E35: +1,6 | F35: 38.45542272 | G35: 2020 to 2023 | H35: 11.60416853 | I35: 11.49434326 | J35: 11.3758445 | K35: 3.981066422 | L35: 0 | M35: 0 | N35: -
C36: BNDES | D36: SELIC | E36: +2,4 | F36: 24.59506666 | G36: 2020 to 2023 | H36: 20.00991198 | I36: 3.010455031 | J36: 1.577182269 | K36: 0 | L36: 0 | M36: 0 | N36: -0.002482614443
C37: Research and projects financing (FINEP) | D37: R$ | E37: +4,0 | F37: 11.21710492 | G37: 2020 to 2021 | H37: 6.418148426 | I37: 4.798956493 | J37: 0 | K37: 0 | L37: 0 | M37: 0 | N37: -
C38: Banco do Nordeste do Brasil | D38: R$ | E38: +8,5 | F38: 8.60506259 | G38: 2020 to 2021 | H38: 5.75034503 | I38: 2.85471756 | J38: 0 | K38: 0 | L38: 0 | M38: 0 | N38: -
C39: BNDES | D39: R$ | E39: +8,3 | F39: 2.521738872 | G39: 2020 to 2022 | H39: 2.459137556 | I39: 0.06260131586 | J39: 0 | K39: 0 | L39: 0 | M39: 0 | N39: 0
C40: Agency for Financing Machinery and Equipment (FINAME) | D40: TJLP | E40: +5,7 | F40: 0.009560608394 | G40: 2020 to 2022 | H40: 0.005233393451 | I40: 0.004327214943 | J40: 0 | K40: 0 | L40: 0 | M40: 0 | N40: -
C41: Debentures -Tequimar 8 | D41: R$ | E41: +6,5 | F41: 89.73693529 | G41: 2024 | H41: 2.0592025 | I41: 0 | J41: 0 | K41: 0 | L41: 90 | M41: 0 | N41: -2.322267209
C45: Sub Total local currency | F45: 7706.116912 | H45: 804.6805692 | I45: 1153.788811 | J45: 4086.021255 | K45: 664.3377796 | L45: 694.1062607 | M45: 273.0618606 | N45: 30.1203765
C47: Unrealized losses on swaps transactions | F47: 261.5552758 | H47: 261.5552758 | I47: 0 | J47: 0 | K47: 0 | L47: 0 | M47: 0 | N47: -
B49: Total | F49: 16962.04364 | H49: 1827.311255 | I49: 1627.232341 | J49: 5090.455846 | K49: 1886.03228 | L49: 694.1062607 | M49: 5731.712457 | N49: 105.1932028
C51: Transaction costs, discount to the face value and fair value adjustment 9 | H51: -20.99317803 | I51: -4.358077717 | J51: -17.21451675 | K51: 102.5044265 | L51: 23.62380522 | M51: 21.63073205 | N51: 105.1932028
B53: Total | F53: 16962.04364 | H53: 1806.318088 | I53: 1622.874264 | J53: 5073.241329 | K53: 1988.536706 | L53: 717.7300659 | M53: 5753.343189
B55: 1. | C55: Libor = London Interbank Offered Rate / Bs$ = Bolivar / MX$ = Mexican Peso / TIIE = Mexican Interbank Interest Rate Even / CDI = interbank certificate of deposit rate / TJLP = Long term interest rate / IGPM = General Index of Market Prices / SELIC = base interest rate set by the Brazilian Central Bank / IPCA = National Consumer Price Index
B56: 2. | C56: The company contracted hedging against foreign exchange exposure and interest rate for some debt.
B57: 3. | C57: These transactions were designated for hedge accounting (see Note 34 – Hedge Accounting).
B58: 4. | C58: For this loan, a hedging instrument was hired with the objective of swapping the fixed to floating rate, equivalent to 104.0% of CDI.
B59: 5. | C59: For this loan, a hedging instrument was hired with the objective of swapping the fixed to floating rate, equivalent to 105.0% of CDI.
B60: 6. | C60: For this loan, a hedging instrument was hired with the objective of swapping the fixed to floating rate, equivalent to 105.9% of CDI.
B61: 7. | C61: For this loan, a hedging instrument was hired with the objective of swapping the fixed to floating rate, equivalent to 95.8% of CDI.
B62: 8. | C62: For this loan, a hedging instrument was hired with the objective of swapping the fixed to floating rate, equivalent to 99.9% of CDI.
B63: 9. | C63: As provided in IAS 39, transaction costs incurred in obtaining financial resources were deducted from the value of the financial instrument, and as provided in Resolution CVM 604/09, loans were recognised at fair value. The amount to be appropriated to income in the future is as follows:
C65: Transaction costs | D65: Amount to be appropriated | E65: Profile
E66: up to 12 months | F66: from 12 to 24 | G66: from 24 to 36 | H66: from 36 to 48 | I66: from 48 to 60 | J66: > 60 months
C67: Banco do Brasil | D67: -0.63499713 | E67: -0.3928006 | F67: -0.21182484 | G67: -0.03037169 | H67: 0 | I67: 0 | J67: 0
C68: Foreign loan | D68: -0.05784177594 | E68: -0.05784177594 | F68: 0 | G68: 0 | H68: 0 | I68: 0 | J68: 0
C69: Debentures | D69: -38.08303272 | E69: -12.90045918 | F69: -12.20786292 | G69: -7.7486868 | H69: -4.38885914 | I69: -0.67809077 | J69: -0.15907391
C70: Notes | D70: -27.26140062 | E70: -3.419280636 | F70: -3.42142676 | G70: -3.423574376 | H70: -3.435112011 | I70: -3.42788014 | J70: -10.1341267
C71: Others | D71: -1.461440838 | E71: -0.610720337 | F71: -0.4958549502 | G71: -0.3543632089 | H71: -0.0005023423759 | I71: 0 | J71: 0
C72: Total | D72: -67.49871309 | E72: -17.38110253 | F72: -16.33696947 | G72: -11.55699607 | H72: -7.824473494 | I72: -4.10597091 | J72: -10.29320061
C74: As provided in Resolution CVM 604/09 (November 19, 2009), the amortization of fair value adjustment is as follows:
C76: Fair value adjustment | D76: Amount to be amortized | E76: Profile
E77: up to 12 months | F77: from 12 to 24 | G77: from 24 to 36 | H77: from 36 to 48 | I77: from 48 to 60 | J77: > 60 months
C78: Foreign loan | D78: 127.4864929 | E78: 0 | F78: 15.59096567 | G78: -2.045446756 | H78: 113.940974 | I78: 0 | J78: 0
C79: Debêntures | D79: 68.98489975 | E79: 0 | F79: 0 | G79: 0 | H79: 0 | I79: 31.34185005 | J79: 37.6430497
C80: Total | D80: 196.4713926 | E80: 0 | F80: 15.59096567 | G80: -2.045446756 | H80: 113.940974 | I80: 31.34185005 | J80: 37.6430497
C82: As provided in IAS 39, discount to the face value incurred in obtaining financial resources was deducted from the value of the financial instrument, and as provided in Resolution CVM 604/09, loans were recognised at fair value. The amount to be appropriated to income in the future is as follows:
C84: Discount to the face value | D84: Amount to be appropriated | E84: Profile
E85: up to 12 months | F85: from 12 to 24 | G85: from 24 to 36 | H85: from 36 to 48 | I85: from 48 to 60 | J85: > 60 months
C86: Notes | D86: -23.77948822 | E86: -3.6120755 | F86: -3.61207392 | G86: -3.61207392 | H86: -3.61207392 | I86: -3.61207392 | J86: -5.71911704
C87: Total | D87: -23.77948822 | E87: -3.6120755 | F87: -3.61207392 | G87: -3.61207392 | H87: -3.61207392 | I87: -3.61207392 | J87: -5.71911704

Sheet 2Q20
A7: Financing and debentures (R$ million) | D7: Index/ Currency ¹ | E7: Average weighted interest rate (% p.y.) ² | F7: Balance Jun-20 | G7: Maturity | H7: Amortization Profile | N7: Transaction costs / discount to the face value / fair value adjustment 8
H8: up to 12 months | I8: from 12 to 24 | J8: from 24 to 36 | K8: from 36 to 48 | L8: from 48 to 60 | M8: > 60 months
B9: Foreing Currency
C11: Notes 3 | D11: US$ | E11: +5,3 | F11: 5747.008586 | G11: 2026 to 2029 | H11: 46.47775124 | I11: 0 | J11: 0 | K11: 0 | L11: 0 | M11: 5749.816428 | N11: -49.28559299
C12: Foreign loan 4 | D12: US$ | E12: +3,9 | F12: 1474.151299 | G12: 2021 to 2023 | H12: 17.13254019 | I12: 328.56 | J12: 0 | K12: 1013.06 | L12: 0 | M12: 0 | N12: 115.3987584
C13: Foreign loan 5 | D13: US$ + LIBOR | E13: +0,9 | F13: 818.8340973 | G13: 2022 to 2023 | H13: 1.353438741 | I13: 547.6 | J13: 0 | K13: 273.8 | L13: 0 | M13: 0 | N13: -3.919341423
C14: Financial institutions | D14: US$ + LIBOR | E14: +1,9 | F14: 659.3796726 | G14: 2020 to 2023 | H14: 111.1693527 | I14: 164.749665 | J14: 384.415885 | K14: 0 | L14: 0 | M14: 0 | N14: -0.9552301203
C15: Financial institutions | D15: US$ | E15: +2,6 | F15: 174.3445063 | G15: 2020 to 2022 | H15: 64.51139631 | I15: 109.83311 | J15: 0 | K15: 0 | L15: 0 | M15: 0 | N15: -
C16: Financial institutions | D16: MXN | E16: +10,5 | F16: 57.43643759 | G16: 2020 | H16: 57.43643759 | I16: 0 | J16: 0 | K16: 0 | L16: 0 | M16: 0 | N16: -
C17: Advances on Foreign Exchange Contracts (ACC) | D17: US$ | E17: 0 | F17: 0 | H17: 0 | I17: 0 | J17: 0 | K17: 0 | L17: 0 | M17: 0 | N17: -
C18: Financial institutions | D18: MX$ + TIIE | E18: +1,5 | F18: 0 | G18: 2019 | H18: 0 | I18: 0 | J18: 0 | K18: 0 | L18: 0 | M18: 0 | N18: -
C19: BNDES | D19: US$ | E19: +7,0 | F19: 0 | G19: 2020 | H19: 0 | I19: 0 | J19: 0 | K19: 0 | L19: 0 | M19: 0 | N19: -
C20: BNDES | D20: US$ | E20: +0 | F20: 0 | G20: 10 dias | H20: 0 | I20: 0 | J20: 0 | K20: 0 | L20: 0 | M20: 0 | N20: -
C21: Advances on Foreign Exchange Contracts (ACE)
C23: Sub Total foreing currency | F23: 8931.154599 | H23: 298.0809168 | I23: 1150.742775 | J23: 384.415885 | K23: 1286.86 | L23: 0 | M23: 5749.816428 | N23: 61.23859384
B25: Local Currency
C27: Debentures - CRA | D27: DI | E27: 95.8 | F27: 2035.646842 | G27: 2022 to 2023 | H27: 7.92631028 | I27: 660.139 | J27: 730.384 | K27: 660 | L27: 0 | M27: 0 | N27: -22.80246877
C28: Debentures - Ultrapar | D28: DI | E28: 105.3 | F28: 1741.481891 | G28: 2023-03-06 | H28: 18.4919655 | I28: 0 | J28: 1725 | K28: 0 | L28: 0 | M28: 0 | N28: -2.01007433
C29: Debentures - Ipiranga | D29: DI | E29: 105 | F29: 1730.060339 | G29: 2021 to 2022 | H29: 231.4900863 | I29: 750 | J29: 750 | K29: 0 | L29: 0 | M29: 0 | N29: -1.42974742
C30: Promissory Notes - Ultrapar | D30: DI + R$ | E30: +3,1 | F30: 1009.997491 | G30: 2021-04-06 | H30: 1013.838197 | I30: 0 | J30: 0 | K30: 0 | L30: 0 | M30: 0 | N30: -3.84070572
C31: Debentures - CRA 6 | D31: IPCA | E31: +4,6 | F31: 947.3904364 | G31: 2024 to 2025 | H31: 16.33340146 | I31: 0 | J31: 0 | K31: 387.9493045 | L31: 233.1580214 | M31: 250.565672 | N31: 59.3840371
C32: Banco do Brasil floating rate | D32: DI | E32: 110.9 | F32: 406.7890131 | G32: 2021 to 2022 | H32: 204.1367021 | I32: 203.1666667 | J32: 0 | K32: 0 | L32: 0 | M32: 0 | N32: -0.51435577
C33: Promissory Notes - Ipiranga | D33: DI + R$ | E33: +2,0 | F33: 301.8853907 | G33: 2021-04-05 | H33: 303.272077 | I33: 0 | J33: 0 | K33: 0 | L33: 0 | M33: 0 | N33: -1.38668633
C34: Working capital | D34: DI | E34: +3,5 | F34: 233.9486959 | G34: 2021-03-31 | H34: 233.9486959 | I34: 0 | J34: 0 | K34: 0 | L34: 0 | M34: 0 | N34: -
C35: Debentures -Tequimar 7 | D35: R$ | E35: +6,5 | F35: 85.2543568 | G35: 2024 | H35: 0.6511788 | I35: 0 | J35: 0 | K35: 0 | L35: 90 | M35: 0 | N35: -5.396821998
C36: BNDES | D36: TJLP | E36: +2,2 | F36: 38.69269737 | G36: 2020 to 2023 | H36: 26.36122194 | I36: 9.087256386 | J36: 3.265294588 | K36: 0.08917830556 | L36: 0 | M36: 0 | N36: -0.1102538481
C37: Research and projects financing (FINEP) | D37: TJLP | E37: +1,6 | F37: 35.56517021 | G37: 2020 to 2023 | H37: 11.58750185 | I37: 11.49434326 | J37: 11.28697043 | K37: 1.196354678 | L37: 0 | M37: 0 | N37: -
C38: BNDES | D38: SELIC | E38: +2,4 | F38: 18.62199879 | G38: 2020 to 2023 | H38: 15.07068 | I38: 2.499185689 | J38: 1.053114514 | K38: 0 | L38: 0 | M38: 0 | N38: -0.0009814068076
C39: Research and projects financing (FINEP) | D39: R$ | E39: +4,0 | F39: 9.613615189 | G39: 2020 to 2021 | H39: 6.414310861 | I39: 3.199304328 | J39: 0 | K39: 0 | L39: 0 | M39: 0 | N39: -
C40: Banco do Nordeste do Brasil | D40: R$ | E40: +8,5 | F40: 8.25713207 | G40: 2021 | H40: 5.56100993 | I40: 2.69612214 | J40: 0 | K40: 0 | L40: 0 | M40: 0 | N40: -
C41: BNDES | D41: R$ | E41: +8,9 | F41: 1.614650175 | G41: 2020 to 2022 | H41: 1.584631376 | I41: 0.03001879847 | J41: 0 | K41: 0 | L41: 0 | M41: 0 | N41: 0
C42: Agency for Financing Machinery and Equipment (FINAME) | D42: TJLP | E42: +5,7 | F42: 0.008256420429 | G42: 2020 to 2022 | H42: 0.005227369969 | I42: 0.00302905046 | J42: 0 | K42: 0 | L42: 0 | M42: 0 | N42: -
C44: Sub Total local currency | F44: 8604.827976 | H44: 2096.673197 | I44: 1642.314926 | J44: 3220.98938 | K44: 1049.234838 | L44: 323.1580214 | M44: 250.565672 | N44: 21.89194151
C46: Unrealized losses on swaps transactions | F46: 228.1902155 | H46: 228.1902155 | I46: 0 | J46: 0 | K46: 0 | L46: 0 | M46: 0 | N46: -
B48: Total | F48: 17764.17279 | H48: 2622.94433 | I48: 2793.057701 | J48: 3605.405265 | K48: 2336.094838 | L48: 323.1580214 | M48: 6000.3821 | N48: 83.13053535
C50: Transaction costs, discount to the face value and fair value adjustment 8 | H50: -25.72843748 | I50: -6.055203938 | J50: -13.97263624 | K50: 119.0674285 | L50: 5.033001432 | M50: 4.786383071 | N50: 83.13053535
B52: Total | F52: 17764.17279 | H52: 2597.215892 | I52: 2787.002497 | J52: 3591.432628 | K52: 2455.162266 | L52: 328.1910228 | M52: 6005.168483
B54: 1. | C54: Libor = London Interbank Offered Rate / MX$ = Mexican Peso / DI = Interbank Deposits / TJLP = Long Term Interest Rate / SELIC = Base Interest Rate set by the Brazilian Central Bank / IPCA = National Consumer Price Index
B55: 2. | C55: The company contracted hedging against foreign exchange exposure and interest rate for some debt.
B56: 3. | C56: These transactions were designated for hedge accounting (see Note 34 – Hedge Accounting).
B57: 4. | C57: For this loan, a hedging instrument was hired with the objective of swapping the fixed to floating rate, equivalent to 104.0% of DI.
B58: 5. | C58: For this loan, a hedging instrument was hired with the objective of swapping the fixed to floating rate, equivalent to 105.0% of DI.
B59: 6. | C59: For this loan, a hedging instrument was hired with the objective of swapping the fixed to floating rate, equivalent to 95.8% of DI.
B60: 7. | C60: For this loan, a hedging instrument was hired with the objective of swapping the fixed to floating rate, equivalent to 99.9% of DI.
B61: 8. | C61: As provided in IAS 39, transaction costs incurred in obtaining financial resources were deducted from the value of the financial instrument. The amount to be appropriated to income in the future is as follows:
C63: Transaction costs | D63: Amount to be appropriated | E63: Profile
E64: up to 12 months | F64: from 12 to 24 | G64: from 24 to 36 | H64: from 36 to 48 | I64: from 48 to 60 | J64: > 60 months
C65: Banco do Brasil | D65: -0.51435577 | E65: -0.34772521 | F65: -0.16663056 | G65: 0 | H65: 0 | I65: 0 | J65: 0
C66: Debentures | D66: -34.8104589 | E66: -12.77839435 | F66: -11.42415599 | G66: -6.70951746 | H66: -3.33806934 | I66: -0.45712667 | J66: -0.10319509
C67: Notes | D67: -26.40912325 | E67: -3.419815637 | F67: -3.421962027 | G67: -3.424110017 | H67: -3.435649581 | I67: -3.42841662 | J67: -9.279169365
C68: Promissory Notes | D68: -5.22739205 | E68: -5.22739205 | F68: 0 | G68: 0 | H68: 0 | I68: 0 | J68: 0
C69: Others | D69: -1.066465375 | E69: -0.3430347337 | F69: -0.496461026 | G69: -0.2269348415 | H69: -3.477395336e-05 | I69: 0 | J69: 0
C70: Total | D70: -68.02779534 | E70: -22.11636198 | F70: -15.5092096 | G70: -10.36056232 | H70: -6.773753695 | I70: -3.88554329 | J70: -9.382364455
C72: As provided in Resolution CVM 604/09 (November 19, 2009), the amortization of fair value adjustment is as follows:
C74: Fair value adjustment | D74: Amount to be amortized | E74: Profile
E75: up to 12 months | F75: from 12 to 24 | G75: from 24 to 36 | H75: from 36 to 48 | I75: from 48 to 60 | J75: > 60 months
C76: Foreign loan | D76: 111.4794169 | E76: 0 | F76: 13.06607958 | G76: 0 | H76: 98.41333736 | I76: 0 | J76: 0
C77: Debentures | D77: 62.55538348 | E77: 0 | F77: 0 | G77: 0 | H77: 31.03991876 | I77: 12.53061864 | J77: 18.98484609
C78: Total | D78: 174.0348004 | E78: 0 | F78: 13.06607958 | G78: 0 | H78: 129.4532561 | I78: 12.53061864 | J78: 18.98484609
C80: As provided in IAS 39, discount to the face value incurred in obtaining financial resources was deducted from the value of the financial instrument. The amount to be appropriated to income in the future is as follows:
C82: Discount to the face value | D82: Amount to be appropriated | E82: Profile
E83: up to 12 months | F83: from 12 to 24 | G83: from 24 to 36 | H83: from 36 to 48 | I83: from 48 to 60 | J83: > 60 months
C84: Notes | D84: -22.87646974 | E84: -3.6120755 | F84: -3.61207392 | G84: -3.61207392 | H84: -3.61207392 | I84: -3.61207392 | J84: -4.81609856
C85: Total | D85: -22.87646974 | E85: -3.6120755 | F85: -3.61207392 | G85: -3.61207392 | H85: -3.61207392 | I85: -3.61207392 | J85: -4.81609856

Sheet 3Q20
A7: Financing and debentures (R$ million) | D7: Index/ Currency ¹ | E7: Average weighted interest rate (% p.y.) ² | F7: Balance Sep-20 | G7: Maturity | H7: Amortization Profile | N7: Transaction costs / discount to the face value / fair value adjustment 8
H8: up to 12 months | I8: from 12 to 24 | J8: from 24 to 36 | K8: from 36 to 48 | L8: from 48 to 60 | M8: > 60 months
B9: Foreing Currency
C11: Notes 3 | D11: US$ | E11: +5,3 | F11: 7995.112754 | G11: 2026 to 2029 | H11: 158.4335906 | I11: 0 | J11: 0 | K11: 0 | L11: 0 | M11: 7896.996922 | N11: -60.31775897
C12: Foreign loan 4 | D12: US$ | E12: +3,9 | F12: 1127.493665 | G12: 2021 to 2023 | H12: 342.1618419 | I12: 0 | J12: 705.0875 | K12: 0 | L12: 0 | M12: 0 | N12: 80.24432273
C13: Financial institutions | D13: US$ + LIBOR | E13: +1,4 | F13: 342.5226389 | G13: 2021 | H13: 342.5226389 | I13: 0 | J13: 0 | K13: 0 | L13: 0 | M13: 0 | N13: 0
C14: Foreign loan 5 | D14: US$ + LIBOR | E14: +1,0 | F14: 282.0812124 | G14: 2022 | H14: 0.01091435965 | I14: 282.035 | J14: 0 | K14: 0 | L14: 0 | M14: 0 | N14: 0.03529807024
C15: Financial institutions | D15: US$ | E15: +2,6 | F15: 175.4809141 | G15: 2020 to 2022 | H15: 61.31177531 | I15: 114.1691388 | J15: 0 | K15: 0 | L15: 0 | M15: 0 | N15: -
C16: Advances on Foreign Exchange Contracts (ACC) | D16: US$ | E16: +3,7 | F16: 113.5328758 | G16: 2021 | H16: 113.5328758 | I16: 0 | J16: 0 | K16: 0 | L16: 0 | M16: 0 | N16: -
C17: Financial institutions | D17: MXN | E17: +8,7 | F17: 38.47987971 | G17: 2020 | H17: 38.47987971 | I17: 0 | J17: 0 | K17: 0 | L17: 0 | M17: 0 | N17: -
C19: Sub Total foreing currency | F19: 10074.70394 | H19: 1056.453517 | I19: 396.2041388 | J19: 705.0875 | K19: 0 | L19: 0 | M19: 7896.996922 | N19: 19.96186183
B21: Local Currency
C23: Debentures - CRA | D23: DI | E23: 95.8 | F23: 2048.014367 | G23: 2022 to 2023 | H23: 18.0558687 | I23: 660.139 | J23: 730.384 | K23: 660 | L23: 0 | M23: 0 | N23: -20.56450161
C24: Debentures - Ultrapar | D24: DI | E24: 105.3 | F24: 1725.349667 | G24: 2023 | H24: 2.170947 | I24: 0 | J24: 1725 | K24: 0 | L24: 0 | M24: 0 | N24: -1.82128048
C25: Debentures - Ipiranga | D25: DI | E25: 105 | F25: 1672.323958 | G25: 2021 to 2022 | H25: 923.4674163 | I25: 750 | J25: 0 | K25: 0 | L25: 0 | M25: 0 | N25: -1.14345872
C26: Promissory Notes - Ultrapar | D26: DI + R$ | E26: +3,1 | F26: 1024.547702 | G26: 2021 | H26: 1027.128091 | I26: 0 | J26: 0 | K26: 0 | L26: 0 | M26: 0 | N26: -2.58038946
C27: Debentures - CRA 6 | D27: IPCA | E27: +4,6 | F27: 973.7846711 | G27: 2024 to 2025 | H27: 26.86836709 | I27: 0 | J27: 0 | K27: 391.2951495 | L27: 235.375621 | M27: 253.0788012 | N27: 67.1667323
C28: Banco do Brasil floating rate | D28: DI | E28: 110.9 | F28: 406.617684 | G28: 2021 to 2022 | H28: 203.8740511 | I28: 203.1666667 | J28: 0 | K28: 0 | L28: 0 | M28: 0 | N28: -0.42303385
C29: Promissory Notes - Ipiranga | D29: DI + R$ | E29: +2,0 | F29: 305.4588607 | G29: 2021 | H29: 306.3889982 | I29: 0 | J29: 0 | K29: 0 | L29: 0 | M29: 0 | N29: -0.93013753
C30: Working capital | D30: DI | E30: +3,5 | F30: 230.2184003 | G30: 2021 | H30: 230.2184003 | I30: 0 | J30: 0 | K30: 0 | L30: 0 | M30: 0 | N30: -
C31: Debentures -Tequimar 7 | D31: R$ | E31: +6,5 | F31: 91.49409325 | G31: 2024 | H31: 2.1278844 | I31: 0 | J31: 0 | K31: 0 | L31: 90 | M31: 0 | N31: -0.6337911522
C32: Research and projects financing (FINEP) | D32: TJLP | E32: +1,6 | F32: 32.6836434 | G32: 2020 to 2023 | H32: 11.57956084 | I32: 11.49434326 | J32: 9.520366814 | K32: 0.08937247658 | L32: 0 | M32: 0 | N32: -
C33: BNDES | D33: TJLP | E33: +2,5 | F33: 9.705766972 | G33: 2020 to 2021 | H33: 9.038337189 | I33: 0.6879057657 | J33: 0 | K33: 0 | L33: 0 | M33: 0 | N33: -0.02047598227
C34: Banco do Nordeste do Brasil | D34: R$ | E34: +10 | F34: 8.46072076 | G34: 2021 | H34: 8.46072076 | I34: 0 | J34: 0 | K34: 0 | L34: 0 | M34: 0 | N34: -
C35: Research and projects financing (FINEP) | D35: R$ | E35: +4,0 | F35: 8.011345994 | G35: 2020 to 2021 | H35: 6.41169383 | I35: 1.599652164 | J35: 0 | K35: 0 | L35: 0 | M35: 0 | N35: -
C36: BNDES | D36: SELIC | E36: +2,2 | F36: 0.4417493772 | G36: 2020 | H36: 0.4419071096 | I36: 0 | J36: 0 | K36: 0 | L36: 0 | M36: 0 | N36: -0.000157732374
C37: BNDES | D37: R$ | E37: +6,5 | F37: 0.1175493878 | G37: 2020 to 2022 | H37: 0.1117204619 | I37: 0.005828925928 | J37: 0 | K37: 0 | L37: 0 | M37: 0 | N37: 0
C38: Agency for Financing Machinery and Equipment (FINAME) | D38: TJLP | E38: +5,7 | F38: 0.006952698936 | G38: 2020 to 2022 | H38: 0.005221812958 | I38: 0.001730885977 | J38: 0 | K38: 0 | L38: 0 | M38: 0 | N38: -
C40: Sub Total local currency | F40: 8537.237131 | H40: 2776.349186 | I40: 1627.095128 | J40: 2464.904367 | K40: 1051.384522 | L40: 325.375621 | M40: 253.0788012 | N40: 39.04950579
C42: Unrealized losses on swaps transactions | F42: 143.9855424 | H42: 143.9855424 | I42: 0 | J42: 0 | K42: 0 | L42: 0 | M42: 0 | N42: -
B44: Total | F44: 18755.92661 | H44: 3976.788245 | I44: 2023.299266 | J44: 3169.991867 | K44: 1051.384522 | L44: 325.375621 | M44: 8150.075723 | N44: 59.01136762
C46: Transaction costs, discount to the face value and fair value adjustment 8 | H46: -12.33155042 | I46: -19.18532582 | J46: 53.30352827 | K46: 23.59207002 | L46: 8.599278282 | M46: 5.033367286 | N46: 59.01136762
B48: Total | F48: 18755.92661 | H48: 3964.456695 | I48: 2004.113941 | J48: 3223.295395 | K48: 1074.976592 | L48: 333.9748993 | M48: 8155.109091
B50: 1. | C50: Libor = London Interbank Offered Rate / MX$ = Mexican Peso / DI = Interbank Deposits / TJLP = Long Term Interest Rate / SELIC = Base Interest Rate set by the Brazilian Central Bank / IPCA = National Consumer Price Index
B51: 2. | C51: The company contracted hedging against foreign exchange exposure and interest rate for some debt.
B52: 3. | C52: These transactions were designated for hedge accounting (see Note 34 – Hedge Accounting).
B53: 4. | C53: For this loan, a hedging instrument was hired with the objective of swapping the fixed to floating rate, equivalent to 103.9% of DI.
